Workbook

Sheet Residential
C2: Serviceability Calculator
C3: Version 5.4 (30 March 2020)
C6: Applicant Name
C8: Loan Details
C10: New Loan Amount | G10: Interest Rate | H10: 5 | K10: Assessment Rate | O10: =MAX(BaselineAssessmentRate,I10+AssessmentLoading) -> 0.0585
C11: (including capitalised fees) | G11: Loan Term | K11: =IF(I11>MaximumLoanTermInYearsForPrimeLoans, "Loans Terms > " & MaximumLoanTermInYearsForPrimeLoans & " years not available on Prime", " ") -> 
G12: I/O Term
C14: Applicant Details: | E14: Applicant 1 | G14: Applicant 2 | I14: Applicant 3 | K14: Applicant 4 | M14: Applicant 5 | O14: Applicant 6 | R14: Total
C15: Status
C16: Individual (Couple) With | D16: Applicant 1
C17: Dependants
E18: =IF(AND(SUM(E19:E23,E25:E26)<>0,E15=""),"Enter a Status","") ->  | G18: =IF(AND(SUM(G19:G23,G25:G26)<>0,G15=""),"Enter a Status","") ->  | I18: =IF(AND(SUM(I19:I23,I25:I26)<>0,I15=""),"Enter a Status","") ->  | K18: =IF(AND(SUM(K19:K23,K25:K26)<>0,K15=""),"Enter a Status","") ->  | M18: =IF(AND(SUM(M19:M23,M25:M26)<>0,M15=""),"Enter a Status","") ->  | O18: =IF(AND(SUM(O19:O23,O25:O26)<>0,O15=""),"Enter a Status","") -> 
C19: Gross Annual Income
C20: Untaxed Allowable Income | R20: =(E20+G20+I20+K20+M20+O20) -> 0
C21: Self Employed Income
C22: Addbacks
C23: Business NPBT
C25: Gross Rental Income
C26: Investment Property Loan Balance
C27: Total Income | E27: =E25*RentalIncomeShading+E19+E20+E21+E22+E23 -> 0 | G27: =G25*RentalIncomeShading+G19+G20+G21+G22+G23 -> 0 | I27: =I25*RentalIncomeShading+I19+I20+I21+I22+I23 -> 0 | K27: =K25*RentalIncomeShading+K19+K20+K21+K22+K23 -> 0 | M27: =M25*RentalIncomeShading+M19+M20+M21+M22+M23 -> 0 | O27: =O25*RentalIncomeShading+O19+O20+O21+O22+O23 -> 0 | R27: =(E27+G27+I27+K27+M27+O27) -> 0
C28: Is an Applicant | E28: =AND(E15<>"") -> FALSE | G28: =AND(G15<>"") -> FALSE | I28: =AND(I15<>"") -> FALSE | K28: =AND(K15<>"") -> FALSE | M28: =AND(M15<>"") -> FALSE | O28: =AND(O15<>"") -> FALSE
C29: Spouse Dependants | E29: =IFERROR(HLOOKUP(E16,ResiApplicantDetailsTable,4,FALSE),0) -> 0 | G29: =IFERROR(HLOOKUP(G16,ResiApplicantDetailsTable,4,FALSE),0) -> 0 | I29: =IFERROR(HLOOKUP(I16,ResiApplicantDetailsTable,4,FALSE),0) -> 0 | K29: =IFERROR(HLOOKUP(K16,ResiApplicantDetailsTable,4,FALSE),0) -> 0 | M29: =IFERROR(HLOOKUP(M16,ResiApplicantDetailsTable,4,FALSE),0) -> 0 | O29: =IFERROR(HLOOKUP(O16,ResiApplicantDetailsTable,4,FALSE),0) -> 0
C30: Pepper Status Code | D30: Applicant 1 | E30: =IF(E$15="Individual (Couple)","P-C",IF(E$15="Individual (Single)","P-S","")) ->  | G30: =IF(G$15="Individual (Couple)","P-C",IF(G$15="Individual (Single)","P-S","")) ->  | I30: =IF(I$15="Individual (Couple)","P-C",IF(I$15="Individual (Single)","P-S","")) ->  | K30: =IF(K$15="Individual (Couple)","P-C",IF(K$15="Individual (Single)","P-S","")) ->  | M30: =IF(M$15="Individual (Couple)","P-C",IF(M$15="Individual (Single)","P-S","")) ->  | O30: =IF(O$15="Individual (Couple)","P-C",IF(O$15="Individual (Single)","P-S","")) -> 
C31: Pepper Dependents Code | E31: =IF(E$15="Individual (Couple)","P-CD"&INDEX(Validation!$B$21:$B$26,MATCH((E$17+E$29),Validation!$A$21:$A$26,1)),IF(E$15="Individual (Single)","P-SD"&INDEX(Validation!$B$21:$B$26,MATCH((E$17+E$29),Validation!$A$21:$A$26,1)),"")) ->  | G31: =IF(G$15="Individual (Couple)","P-CD"&INDEX(Validation!$B$21:$B$26,MATCH((G$17+G$29),Validation!$A$21:$A$26,1)),IF(G$15="Individual (Single)","P-SD"&INDEX(Validation!$B$21:$B$26,MATCH((G$17+G$29),Validation!$A$21:$A$26,1)),"")) ->  | I31: =IF(I$15="Individual (Couple)","P-CD"&INDEX(Validation!$B$21:$B$26,MATCH((I$17+I$29),Validation!$A$21:$A$26,1)),IF(I$15="Individual (Single)","P-SD"&INDEX(Validation!$B$21:$B$26,MATCH((I$17+I$29),Validation!$A$21:$A$26,1)),"")) ->  | K31: =IF(K$15="Individual (Couple)","P-CD"&INDEX(Validation!$B$21:$B$26,MATCH((K$17+K$29),Validation!$A$21:$A$26,1)),IF(K$15="Individual (Single)","P-SD"&INDEX(Validation!$B$21:$B$26,MATCH((K$17+K$29),Validation!$A$21:$A$26,1)),"")) ->  | M31: =IF(M$15="Individual (Couple)","P-CD"&INDEX(Validation!$B$21:$B$26,MATCH((M$17+M$29),Validation!$A$21:$A$26,1)),IF(M$15="Individual (Single)","P-SD"&INDEX(Validation!$B$21:$B$26,MATCH((M$17+M$29),Validation!$A$21:$A$26,1)),"")) ->  | O31: =IF(O$15="Individual (Couple)","P-CD"&INDEX(Validation!$B$21:$B$26,MATCH((O$17+O$29),Validation!$A$21:$A$26,1)),IF(O$15="Individual (Single)","P-SD"&INDEX(Validation!$B$21:$B$26,MATCH((O$17+O$29),Validation!$A$21:$A$26,1)),"")) -> 
C32: Exclude for LE calc | E32: =IFERROR(IF(MATCH(E16,$E$14:$O$14,0)<(COLUMN()-COLUMN($E$14:$O$14)+1),TRUE,FALSE),FALSE) -> FALSE | G32: =IFERROR(IF(MATCH(G16,$E$14:$O$14,0)<(COLUMN()-COLUMN($E$14:$O$14)+1),TRUE,FALSE),FALSE) -> FALSE | I32: =IFERROR(IF(MATCH(I16,$E$14:$O$14,0)<(COLUMN()-COLUMN($E$14:$O$14)+1),TRUE,FALSE),FALSE) -> FALSE | K32: =IFERROR(IF(MATCH(K16,$E$14:$O$14,0)<(COLUMN()-COLUMN($E$14:$O$14)+1),TRUE,FALSE),FALSE) -> FALSE | M32: =IFERROR(IF(MATCH(M16,$E$14:$O$14,0)<(COLUMN()-COLUMN($E$14:$O$14)+1),TRUE,FALSE),FALSE) -> FALSE | O32: =IFERROR(IF(MATCH(O16,$E$14:$O$14,0)<(COLUMN()-COLUMN($E$14:$O$14)+1),TRUE,FALSE),FALSE) -> FALSE
C33: Workings for Negative Gearing | E33: =IF(E26>0,E26*WorkingsForNegativeGearing+($G$51*12*(E26/SUM($E$26,$G$26,$I$26,$K$26,$M$26,$O$26))),0) -> 0 | G33: =IF(G26>0,G26*WorkingsForNegativeGearing+($G$51*12*(G26/SUM($E$26,$G$26,$I$26,$K$26,$M$26,$O$26))),0) -> 0 | I33: =IF(I26>0,I26*WorkingsForNegativeGearing+($G$51*12*(I26/SUM($E$26,$G$26,$I$26,$K$26,$M$26,$O$26))),0) -> 0 | K33: =IF(K26>0,K26*WorkingsForNegativeGearing+($G$51*12*(K26/SUM($E$26,$G$26,$I$26,$K$26,$M$26,$O$26))),0) -> 0 | M33: =IF(M26>0,M26*WorkingsForNegativeGearing+($G$51*12*(M26/SUM($E$26,$G$26,$I$26,$K$26,$M$26,$O$26))),0) -> 0 | O33: =IF(O26>0,O26*WorkingsForNegativeGearing+($G$51*12*(O26/SUM($E$26,$G$26,$I$26,$K$26,$M$26,$O$26))),0) -> 0
C34: Total Taxable Income Exc Business NPBT | E34: =MAX(0,E19+E25*RentalIncomeShading-E33+E21) -> 0 | G34: =MAX(0,G19+G25*RentalIncomeShading-G33+G21) -> 0 | I34: =MAX(0,I19+I25*RentalIncomeShading-I33+I21) -> 0 | K34: =MAX(0,K19+K25*RentalIncomeShading-K33+K21) -> 0 | M34: =MAX(0,M19+M25*RentalIncomeShading-M33+M21) -> 0 | O34: =MAX(0,O19+O25*RentalIncomeShading-O33+O21) -> 0 | R34: =(E34+G34+I34+K34+M34+O34) -> 0
C35: Spouse Income | E35: =IFERROR(HLOOKUP(E16,$E$14:$O$27,ROWS($E$14:$O$27),FALSE),0)-IFERROR(HLOOKUP(E16,$E$14:$O$33,ROWS($E$14:$O$33),FALSE),0) -> 0 | G35: =IFERROR(HLOOKUP(G16,$E$14:$O$27,ROWS($E$14:$O$27),FALSE),0)-IFERROR(HLOOKUP(G16,$E$14:$O$33,ROWS($E$14:$O$33),FALSE),0) -> 0 | I35: =IFERROR(HLOOKUP(I16,$E$14:$O$27,ROWS($E$14:$O$27),FALSE),0)-IFERROR(HLOOKUP(I16,$E$14:$O$33,ROWS($E$14:$O$33),FALSE),0) -> 0 | K35: =IFERROR(HLOOKUP(K16,$E$14:$O$27,ROWS($E$14:$O$27),FALSE),0)-IFERROR(HLOOKUP(K16,$E$14:$O$33,ROWS($E$14:$O$33),FALSE),0) -> 0 | M35: =IFERROR(HLOOKUP(M16,$E$14:$O$27,ROWS($E$14:$O$27),FALSE),0)-IFERROR(HLOOKUP(M16,$E$14:$O$33,ROWS($E$14:$O$33),FALSE),0) -> 0 | O35: =IFERROR(HLOOKUP(O16,$E$14:$O$27,ROWS($E$14:$O$27),FALSE),0)-IFERROR(HLOOKUP(O16,$E$14:$O$33,ROWS($E$14:$O$33),FALSE),0) -> 0
C36: Income Bracket | E36: =IFERROR(HLOOKUP(E27+E35-E33,HemCombinedIncomeRange,3,TRUE),1) -> 1 | G36: =IFERROR(HLOOKUP(G27+G35-G33,HemCombinedIncomeRange,3,TRUE),1) -> 1 | I36: =IFERROR(HLOOKUP(I27+I35-I33,HemCombinedIncomeRange,3,TRUE),1) -> 1 | K36: =IFERROR(HLOOKUP(K27+K35-K33,HemCombinedIncomeRange,3,TRUE),1) -> 1 | M36: =IFERROR(HLOOKUP(M27+M35-M33,HemCombinedIncomeRange,3,TRUE),1) -> 1 | O36: =IFERROR(HLOOKUP(O27+O35-O33,HemCombinedIncomeRange,3,TRUE),1) -> 1
C37: Tax | E37: =IF(E15="Company",E34*CompanyTax,INDEX(TaxForBracket,MATCH(E34,TaxBracketMin,1))+INDEX(TaxRate,MATCH(E34,TaxBracketMin,1))*(E34-INDEX(TaxBracketMin,MATCH(E34,TaxBracketMin,1)))+IF(E34<='Tax Table'!$B$6,0,IF(E34<='Tax Table'!$B$7,(E34-'Tax Table'!$B$6)*'Tax Table'!$C$6,E34*'Tax Table'!$C$7)))+(E23*CompanyTax) -> 0 | G37: =IF(G15="Company",G34*CompanyTax,INDEX(TaxForBracket,MATCH(G34,TaxBracketMin,1))+INDEX(TaxRate,MATCH(G34,TaxBracketMin,1))*(G34-INDEX(TaxBracketMin,MATCH(G34,TaxBracketMin,1)))+IF(G34<='Tax Table'!$B$6,0,IF(G34<='Tax Table'!$B$7,(G34-'Tax Table'!$B$6)*'Tax Table'!$C$6,G34*'Tax Table'!$C$7)))+(G23*CompanyTax) -> 0 | I37: =IF(I15="Company",I34*CompanyTax,INDEX(TaxForBracket,MATCH(I34,TaxBracketMin,1))+INDEX(TaxRate,MATCH(I34,TaxBracketMin,1))*(I34-INDEX(TaxBracketMin,MATCH(I34,TaxBracketMin,1)))+IF(I34<='Tax Table'!$B$6,0,IF(I34<='Tax Table'!$B$7,(I34-'Tax Table'!$B$6)*'Tax Table'!$C$6,I34*'Tax Table'!$C$7)))+(I23*CompanyTax) -> 0 | K37: =IF(K15="Company",K34*CompanyTax,INDEX(TaxForBracket,MATCH(K34,TaxBracketMin,1))+INDEX(TaxRate,MATCH(K34,TaxBracketMin,1))*(K34-INDEX(TaxBracketMin,MATCH(K34,TaxBracketMin,1)))+IF(K34<='Tax Table'!$B$6,0,IF(K34<='Tax Table'!$B$7,(K34-'Tax Table'!$B$6)*'Tax Table'!$C$6,K34*'Tax Table'!$C$7)))+(K23*CompanyTax) -> 0 | M37: =IF(M15="Company",M34*CompanyTax,INDEX(TaxForBracket,MATCH(M34,TaxBracketMin,1))+INDEX(TaxRate,MATCH(M34,TaxBracketMin,1))*(M34-INDEX(TaxBracketMin,MATCH(M34,TaxBracketMin,1)))+IF(M34<='Tax Table'!$B$6,0,IF(M34<='Tax Table'!$B$7,(M34-'Tax Table'!$B$6)*'Tax Table'!$C$6,M34*'Tax Table'!$C$7)))+(M23*CompanyTax) -> 0 | O37: =IF(O15="Company",O34*CompanyTax,INDEX(TaxForBracket,MATCH(O34,TaxBracketMin,1))+INDEX(TaxRate,MATCH(O34,TaxBracketMin,1))*(O34-INDEX(TaxBracketMin,MATCH(O34,TaxBracketMin,1)))+IF(O34<='Tax Table'!$B$6,0,IF(O34<='Tax Table'!$B$7,(O34-'Tax Table'!$B$6)*'Tax Table'!$C$6,O34*'Tax Table'!$C$7)))+(O23*CompanyTax) -> 0
C38: Tax offset for Low Income Earners | E38: =0-(IF(E15="Company",0,MIN(E37,IF(OR(E34<=0,E34>=TaxOffsetMaximumEntitlement),0,TaxOffsetForLowIncomeEarners-IF(E34>TaxOffsetIncomeThreshholds,((E34-TaxOffsetIncomeThreshholds)*TaxOffSetReducedByPerc),0))))+IF(OR(E15="Company",E34="",E34=0),0,IF(VLOOKUP(E34,TaxOffsetForLowIncomeTable,2,TRUE)+(E34-VLOOKUP(E34,TaxOffsetForLowIncomeTable,1,TRUE))*VLOOKUP(E34,TaxOffsetForLowIncomeTable,3,TRUE)<0,0,VLOOKUP(E34,TaxOffsetForLowIncomeTable,2,TRUE)+(E34-VLOOKUP(E34,TaxOffsetForLowIncomeTable,1,TRUE))*VLOOKUP(E34,TaxOffsetForLowIncomeTable,3,TRUE)))) -> 0 | G38: =0-(IF(G15="Company",0,MIN(G37,IF(OR(G34<=0,G34>=TaxOffsetMaximumEntitlement),0,TaxOffsetForLowIncomeEarners-IF(G34>TaxOffsetIncomeThreshholds,((G34-TaxOffsetIncomeThreshholds)*TaxOffSetReducedByPerc),0))))+IF(OR(G15="Company",G34="",G34=0),0,IF(VLOOKUP(G34,TaxOffsetForLowIncomeTable,2,TRUE)+(G34-VLOOKUP(G34,TaxOffsetForLowIncomeTable,1,TRUE))*VLOOKUP(G34,TaxOffsetForLowIncomeTable,3,TRUE)<0,0,VLOOKUP(G34,TaxOffsetForLowIncomeTable,2,TRUE)+(G34-VLOOKUP(G34,TaxOffsetForLowIncomeTable,1,TRUE))*VLOOKUP(G34,TaxOffsetForLowIncomeTable,3,TRUE)))) -> 0 | I38: =0-(IF(I15="Company",0,MIN(I37,IF(OR(I34<=0,I34>=TaxOffsetMaximumEntitlement),0,TaxOffsetForLowIncomeEarners-IF(I34>TaxOffsetIncomeThreshholds,((I34-TaxOffsetIncomeThreshholds)*TaxOffSetReducedByPerc),0))))+IF(OR(I15="Company",I34="",I34=0),0,IF(VLOOKUP(I34,TaxOffsetForLowIncomeTable,2,TRUE)+(I34-VLOOKUP(I34,TaxOffsetForLowIncomeTable,1,TRUE))*VLOOKUP(I34,TaxOffsetForLowIncomeTable,3,TRUE)<0,0,VLOOKUP(I34,TaxOffsetForLowIncomeTable,2,TRUE)+(I34-VLOOKUP(I34,TaxOffsetForLowIncomeTable,1,TRUE))*VLOOKUP(I34,TaxOffsetForLowIncomeTable,3,TRUE)))) -> 0 | K38: =0-(IF(K15="Company",0,MIN(K37,IF(OR(K34<=0,K34>=TaxOffsetMaximumEntitlement),0,TaxOffsetForLowIncomeEarners-IF(K34>TaxOffsetIncomeThreshholds,((K34-TaxOffsetIncomeThreshholds)*TaxOffSetReducedByPerc),0))))+IF(OR(K15="Company",K34="",K34=0),0,IF(VLOOKUP(K34,TaxOffsetForLowIncomeTable,2,TRUE)+(K34-VLOOKUP(K34,TaxOffsetForLowIncomeTable,1,TRUE))*VLOOKUP(K34,TaxOffsetForLowIncomeTable,3,TRUE)<0,0,VLOOKUP(K34,TaxOffsetForLowIncomeTable,2,TRUE)+(K34-VLOOKUP(K34,TaxOffsetForLowIncomeTable,1,TRUE))*VLOOKUP(K34,TaxOffsetForLowIncomeTable,3,TRUE)))) -> 0 | M38: =0-(IF(M15="Company",0,MIN(M37,IF(OR(M34<=0,M34>=TaxOffsetMaximumEntitlement),0,TaxOffsetForLowIncomeEarners-IF(M34>TaxOffsetIncomeThreshholds,((M34-TaxOffsetIncomeThreshholds)*TaxOffSetReducedByPerc),0))))+IF(OR(M15="Company",M34="",M34=0),0,IF(VLOOKUP(M34,TaxOffsetForLowIncomeTable,2,TRUE)+(M34-VLOOKUP(M34,TaxOffsetForLowIncomeTable,1,TRUE))*VLOOKUP(M34,TaxOffsetForLowIncomeTable,3,TRUE)<0,0,VLOOKUP(M34,TaxOffsetForLowIncomeTable,2,TRUE)+(M34-VLOOKUP(M34,TaxOffsetForLowIncomeTable,1,TRUE))*VLOOKUP(M34,TaxOffsetForLowIncomeTable,3,TRUE)))) -> 0 | O38: =0-(IF(O15="Company",0,MIN(O37,IF(OR(O34<=0,O34>=TaxOffsetMaximumEntitlement),0,TaxOffsetForLowIncomeEarners-IF(O34>TaxOffsetIncomeThreshholds,((O34-TaxOffsetIncomeThreshholds)*TaxOffSetReducedByPerc),0))))+IF(OR(O15="Company",O34="",O34=0),0,IF(VLOOKUP(O34,TaxOffsetForLowIncomeTable,2,TRUE)+(O34-VLOOKUP(O34,TaxOffsetForLowIncomeTable,1,TRUE))*VLOOKUP(O34,TaxOffsetForLowIncomeTable,3,TRUE)<0,0,VLOOKUP(O34,TaxOffsetForLowIncomeTable,2,TRUE)+(O34-VLOOKUP(O34,TaxOffsetForLowIncomeTable,1,TRUE))*VLOOKUP(O34,TaxOffsetForLowIncomeTable,3,TRUE)))) -> 0
C39: Net | E39: =E27-(IF(E37+E38>0,E37+E38,0)) -> 0 | G39: =G27-(IF(G37+G38>0,G37+G38,0)) -> 0 | I39: =I27-(IF(I37+I38>0,I37+I38,0)) -> 0 | K39: =K27-(IF(K37+K38>0,K37+K38,0)) -> 0 | M39: =M27-(IF(M37+M38>0,M37+M38,0)) -> 0 | O39: =O27-(IF(O37+O38>0,O37+O38,0)) -> 0 | R39: =(E39+G39+I39+K39+M39+O39) -> 0
C40: HEM Living Expense | E40: =IFERROR(IF(AND(E28,NOT(E32)),(VLOOKUP(E30,HemTableForExpenses,E36+1,FALSE) +(VLOOKUP(E31,HemTableForExpenses,E36+1,FALSE))*(E17+E29))*NumberOfWeeksInAYear,0),0) -> 0 | G40: =IFERROR(IF(AND(G28,NOT(G32)),(VLOOKUP(G30,HemTableForExpenses,G36+1,FALSE) +(VLOOKUP(G31,HemTableForExpenses,G36+1,FALSE))*(G17+G29))*NumberOfWeeksInAYear,0),0) -> 0 | I40: =IFERROR(IF(AND(I28,NOT(I32)),(VLOOKUP(I30,HemTableForExpenses,I36+1,FALSE) +(VLOOKUP(I31,HemTableForExpenses,I36+1,FALSE))*(I17+I29))*NumberOfWeeksInAYear,0),0) -> 0 | K40: =IFERROR(IF(AND(K28,NOT(K32)),(VLOOKUP(K30,HemTableForExpenses,K36+1,FALSE) +(VLOOKUP(K31,HemTableForExpenses,K36+1,FALSE))*(K17+K29))*NumberOfWeeksInAYear,0),0) -> 0 | M40: =IFERROR(IF(AND(M28,NOT(M32)),(VLOOKUP(M30,HemTableForExpenses,M36+1,FALSE) +(VLOOKUP(M31,HemTableForExpenses,M36+1,FALSE))*(M17+M29))*NumberOfWeeksInAYear,0),0) -> 0 | O40: =IFERROR(IF(AND(O28,NOT(O32)),(VLOOKUP(O30,HemTableForExpenses,O36+1,FALSE) +(VLOOKUP(O31,HemTableForExpenses,O36+1,FALSE))*(O17+O29))*NumberOfWeeksInAYear,0),0) -> 0 | R40: 0
K41: Customer Nominated Living Expenses | R41: =SUM(G50:G62)*12 -> 0
M42: Living Expense Used | R42: =MAX(R40:R41) -> 0
M43: Net Available Income | R43: =R39-R42 -> 0
C47: Commitments
C49: Living Expenses: | G49: Per Month | I49: Other Commitments: | M49: Per Month
C50: Owner occupied property utilities, rates & costs | I50: Rent/Board
C51: Investment property utilities, rates & costs | I51: Total Credit Card Limit | O51: =TEXT(CreditCardCommitments,"0.00%")&": "&M51*CreditCardCommitments -> 3.82%: 0 | R51: =M51*CreditCardCommitments -> 0
C52: Rented property costs | I52: Other Mortgage Repayments
C53: Telephone, Internet, Pay TV & Media Streaming | I53: Other Liabilities
C54: Groceries
C55: Recreation & Entertainment
C56: Clothing & Personal Care
C57: Medical & Health
C58: Transport | K58: To assist in verifying the customers living expenses, please provide last 3 months transaction bank statements
C59: Insurance
C60: Other Living Expenses
C61: Education
C62: Childcare
C65: Results
C67: Actual Rate: | E67: Monthly | G67: Annual | I67: Assessment Rate: | M67: Monthly | O67: Annual
C68: Total Income | E68: =G68/NumberOfMonthsInAYear -> 0 | G68: =$R$27 -> 0 | K68: Total Income | M68: =O68/NumberOfMonthsInAYear -> 0 | O68: =$R$27 -> 0
C69: Net Income | E69: =G69/NumberOfMonthsInAYear -> 0 | G69: =$R$39 -> 0 | K69: Net Income | M69: =R39/NumberOfMonthsInAYear -> 0 | O69: =$R$39 -> 0
C70: Living Costs | E70: =G70/NumberOfMonthsInAYear -> 0 | G70: =$R$42 -> 0 | K70: Living Costs | M70: =O70/NumberOfMonthsInAYear -> 0 | O70: =$R$42 -> 0
C71: Net Available Income | E71: =IFERROR(G71/NumberOfMonthsInAYear,0) -> 0 | G71: =$G$69-$G$70 -> 0 | K71: Net Available Income | M71: =IFERROR(O71/NumberOfMonthsInAYear,0) -> 0 | O71: =$O$69-$O$70 -> 0
C72: Proposed Repayments | E72: =IFERROR(-PMT(ResiInterestRate/NumberOfMonthsInAYear,(ResiLoanTerm-ResiLoanIOTerm)*NumberOfMonthsInAYear,ResiNewLoanAmount),0) -> 0 | G72: =E72*NumberOfMonthsInAYear -> 0 | K72: Proposed Repayments | M72: =IFERROR(-PMT(AssessmentRate/NumberOfMonthsInAYear,(ResiLoanTerm-ResiLoanIOTerm)*NumberOfMonthsInAYear,E10),0) -> 0 | O72: =M72*NumberOfMonthsInAYear -> 0
C73: Other Commitments | E73: =IFERROR(G73/NumberOfMonthsInAYear,0) -> 0 | G73: =O73 -> 0 | K73: Other Commitments | M73: =IFERROR(O73/NumberOfMonthsInAYear,0) -> 0 | O73: =($M$52*OtherMortgageRepaymentBuffer+$M$53+$R$51+$M$50)*NumberOfMonthsInAYear -> 0
C75: NSR: | E75: =IF(K80="INCOMPLETE",0,IFERROR(ROUNDDOWN(G71/(G72+G73),2),0)) -> 0 | G75: =IF(OR(ResiCheckForCompleteness="INCOMPLETE",ResiTotalIncome=0),"INCOMPLETE",IF(AND(IF(AND(ResiTotalUntaxedAvailableIncome<>0,ResiTotalUntaxedAvailableIncome/ResiTotalIncome>AllowableGovernmentAllowanceOverTotalIncomeLimitation),ResiActualNSR>=AcceptableNSRForGovernmentIncome,TRUE),(ResiActualNSR>=AcceptableNSRForAllOtherApplicants)),"PASS","FAIL")) -> INCOMPLETE | K75: NSR: | M75: =IF(K80="INCOMPLETE",0,IFERROR(ROUNDDOWN(O71/(O72+O73),2),0)) -> 0 | O75: =IF(OR(ResiCheckForCompleteness="INCOMPLETE",ResiTotalIncome=0),"INCOMPLETE",IF(AND(IF(AND(ResiTotalUntaxedAvailableIncome<>0,ResiTotalUntaxedAvailableIncome/ResiTotalIncome>AllowableGovernmentAllowanceOverTotalIncomeLimitation),ResiAssessmentNSR>=AcceptableNSRForGovernmentIncome,TRUE),(ResiAssessmentNSR>=AcceptableNSRForAllOtherApplicants)),"PASS","FAIL")) -> INCOMPLETE
C76: DSR: | E76: =IF(K80="INCOMPLETE","-",IFERROR((G72+G73-(M50*12))/R27,"-")) -> - | K76: DSR: | M76: =IF(K80="INCOMPLETE","-",IFERROR((O72 +O73-(M50*12))/R27,"-")) -> -
K79: Application Status
K80: =IF(OR(ResiNewLoanAmount="",ResiInterestRate="",ResiLoanTerm="",E15="",R27=0,E18<>"",G18<>"",I18<>"",K18<>"",M18<>"",O18<>"",I11<=I12,G50="",G51="",G52="",G53="",G54="",G55="",G56="",G57="",G58="",G59="",G60="",G61="",G62=""),"INCOMPLETE","COMPLETE") -> INCOMPLETE
G82: Eligible Loan Amount | M82: =IF(O75="INCOMPLETE",O75,MAX(0,IF(O75="PASS",ResiNewLoanAmount,IFERROR(-PV(O10/12,(ResiLoanTerm-ResiLoanIOTerm)*12,ROUNDDOWN(((O71-(O73*(IF(AND(ResiTotalUntaxedAvailableIncome<>0,ResiTotalUntaxedAvailableIncome/ResiTotalIncome>AllowableGovernmentAllowanceOverTotalIncomeLimitation),AcceptableNSRForGovernmentIncome,AcceptableNSRForAllOtherApplicants))))/(NumberOfMonthsInAYear*(IF(AND(ResiTotalUntaxedAvailableIncome<>0,ResiTotalUntaxedAvailableIncome/ResiTotalIncome>AllowableGovernmentAllowanceOverTotalIncomeLimitation),AcceptableNSRForGovernmentIncome,AcceptableNSRForAllOtherApplicants)))),0),0),0)))) -> INCOMPLETE
G84: Maximum Serviceable Loan Amount | M84: =IF(O75="INCOMPLETE",O75,MAX(0,IFERROR(-PV(O10/12,(ResiLoanTerm-ResiLoanIOTerm)*12,ROUNDDOWN(((O71-(O73*(IF(AND(ResiTotalUntaxedAvailableIncome<>0,ResiTotalUntaxedAvailableIncome/ResiTotalIncome>AllowableGovernmentAllowanceOverTotalIncomeLimitation),AcceptableNSRForGovernmentIncome,AcceptableNSRForAllOtherApplicants))))/(NumberOfMonthsInAYear*(IF(AND(ResiTotalUntaxedAvailableIncome<>0,ResiTotalUntaxedAvailableIncome/ResiTotalIncome>AllowableGovernmentAllowanceOverTotalIncomeLimitation),AcceptableNSRForGovernmentIncome,AcceptableNSRForAllOtherApplicants)))),0),0),0))) -> INCOMPLETE
C85: Net Service Ratio (NSR) Requirements (using Assessment Rate)
C86: PAYG applicants: NSR must be ≥ 1.00 | I86: Self Employed applicants: NSR must be ≥ 1.25
C87: Applicants with majority income as Government Allowances (eg. Pensions, Family Tax Benefits): NSR must be ≥ 1.25
C89: Important Information: This calculator is to be used as a guide only as to borrowing power based on the basic information provided. It is not an offer of credit or a quote. Lending criteria, terms and conditions, fees and charges will apply should a borrower apply for credit. Pepper Group Pty Limited ABN 55 094 317 665 Australian credit licence 286655

Sheet Commercial (hidden)
B1: Commercial Servicability Calculator
C2: =Residential!C3 -> Version 5.4 (30 March 2020)
C4: Applicant Name
C6: Proposed Loan Details
C8: New Loan Amount | G8: Interest Rate
C9: Documentation Type | G9: Loan Term (Years)
G10: I/O Term (Years)
G11: P&I Repayment | I11: =IF(I9>I10,-PMT(I8/12,12*(I9-I10),E8),0) -> 0
G12: IO Repayment | I12: =IF(I10>0,E8*I8/12,0) -> 0
C15: Business Loan Details | N15: excluding proposed Pepper loan
E17: Loan Amount | G17: Rate | I17: Actual Loan Repayment (Monthly)
C18: Loan 1
C19: Loan 2
C20: Loan 3
C21: Loan 4
C24: Business Income / Expenses
C26: Business Income | I26: Add Backs
C27: Net Profit Before Tax | I27: Depreciation
C28: Proposed Net CRE Rental Income | I28: Ammortisation
C29: Proposed Gross Residential Rental Income | I29: Interest Paid
I30: Directors Salaries/Fees/Super
I31: Other
C32: Earning Before Interest, Tax, Depreciation & Ammortisation (EBITDA)
E33: =K33+E27+E28+(E29*RentalIncomeShading) -> 0 | I33: Total Add Backs | K33: =SUM(K27:K31) -> 0
C36: Personal Income / Expenses
C38: Applicant Details | E38: Applicant 1 | G38: Applicant 2 | I38: Applicant 3 | K38: Applicant 4
C39: Status
C40: Couple With
C41: Dependants
E42: Enter a Status | G42: Enter a Status | I42: Enter a Status | K42: Enter a Status
C44: Gross Annual Income
C45: Untaxed Allowable Income
C46: Gross Residential Rental Income (Other)
C47: Total Income | E47: =E44+E45+E46*RentalIncomeShading -> 0 | G47: =G44+G45+G46*RentalIncomeShading -> 0 | I47: =I44+I45+I46*RentalIncomeShading -> 0 | K47: =K44+K45+K46*RentalIncomeShading -> 0 | P47: =(E47+G47+I47+K47) -> 0 | Q47: Total Gross Annual Income
C49: Investment Property Loan Balance (personal name)
C50: Tax | E50: =VLOOKUP(E66,IncomeTaxTable,2,TRUE)+MAX(((E66-VLOOKUP(E66,IncomeTaxTable,1,TRUE))*VLOOKUP(E66,IncomeTaxTable,3,TRUE)),0) +IF(E66<=MinimumForPartialLevy,0,IF(E66>MinimumForFullLevy,E66*MedicareFullLevyPerc,(E66-MinimumForPartialLevy)*MedicarePartialLevyPerc)) -> 0 | G50: =VLOOKUP(G66,IncomeTaxTable,2,TRUE)+MAX(((G66-VLOOKUP(G66,IncomeTaxTable,1,TRUE))*VLOOKUP(G66,IncomeTaxTable,3,TRUE)),0) +IF(G66<=MinimumForPartialLevy,0,IF(G66>MinimumForFullLevy,G66*MedicareFullLevyPerc,(G66-MinimumForPartialLevy)*MedicarePartialLevyPerc)) -> 0 | I50: =VLOOKUP(I66,IncomeTaxTable,2,TRUE)+MAX(((I66-VLOOKUP(I66,IncomeTaxTable,1,TRUE))*VLOOKUP(I66,IncomeTaxTable,3,TRUE)),0) +IF(I66<=MinimumForPartialLevy,0,IF(I66>MinimumForFullLevy,I66*MedicareFullLevyPerc,(I66-MinimumForPartialLevy)*MedicarePartialLevyPerc)) -> 0 | K50: =VLOOKUP(K66,IncomeTaxTable,2,TRUE)+MAX(((K66-VLOOKUP(K66,IncomeTaxTable,1,TRUE))*VLOOKUP(K66,IncomeTaxTable,3,TRUE)),0) +IF(K66<=MinimumForPartialLevy,0,IF(K66>MinimumForFullLevy,K66*MedicareFullLevyPerc,(K66-MinimumForPartialLevy)*MedicarePartialLevyPerc)) -> 0
C51: Tax offset for Low Income Earners | E51: =0-(IF(E39="Company",0,MIN(E50,IF(OR(E66<=0,E66>=TaxOffsetMaximumEntitlement),0,TaxOffsetForLowIncomeEarners-IF(E66>TaxOffsetIncomeThreshholds,((E66-TaxOffsetIncomeThreshholds)*TaxOffSetReducedByPerc),0))))+IF(OR(E39="Company",E66="",E66=0),0,IF(VLOOKUP(E66,TaxOffsetForLowIncomeTable,2,TRUE)+(E66-VLOOKUP(E66,TaxOffsetForLowIncomeTable,1,TRUE))*VLOOKUP(E66,TaxOffsetForLowIncomeTable,3,TRUE)<0,0,VLOOKUP(E66,TaxOffsetForLowIncomeTable,2,TRUE)+(E66-VLOOKUP(E66,TaxOffsetForLowIncomeTable,1,TRUE))*VLOOKUP(E66,TaxOffsetForLowIncomeTable,3,TRUE)))) -> 0 | G51: =0-(IF(G39="Company",0,MIN(G50,IF(OR(G66<=0,G66>=TaxOffsetMaximumEntitlement),0,TaxOffsetForLowIncomeEarners-IF(G66>TaxOffsetIncomeThreshholds,((G66-TaxOffsetIncomeThreshholds)*TaxOffSetReducedByPerc),0))))+IF(OR(G39="Company",G66="",G66=0),0,IF(VLOOKUP(G66,TaxOffsetForLowIncomeTable,2,TRUE)+(G66-VLOOKUP(G66,TaxOffsetForLowIncomeTable,1,TRUE))*VLOOKUP(G66,TaxOffsetForLowIncomeTable,3,TRUE)<0,0,VLOOKUP(G66,TaxOffsetForLowIncomeTable,2,TRUE)+(G66-VLOOKUP(G66,TaxOffsetForLowIncomeTable,1,TRUE))*VLOOKUP(G66,TaxOffsetForLowIncomeTable,3,TRUE)))) -> 0 | I51: =0-(IF(I39="Company",0,MIN(I50,IF(OR(I66<=0,I66>=TaxOffsetMaximumEntitlement),0,TaxOffsetForLowIncomeEarners-IF(I66>TaxOffsetIncomeThreshholds,((I66-TaxOffsetIncomeThreshholds)*TaxOffSetReducedByPerc),0))))+IF(OR(I39="Company",I66="",I66=0),0,IF(VLOOKUP(I66,TaxOffsetForLowIncomeTable,2,TRUE)+(I66-VLOOKUP(I66,TaxOffsetForLowIncomeTable,1,TRUE))*VLOOKUP(I66,TaxOffsetForLowIncomeTable,3,TRUE)<0,0,VLOOKUP(I66,TaxOffsetForLowIncomeTable,2,TRUE)+(I66-VLOOKUP(I66,TaxOffsetForLowIncomeTable,1,TRUE))*VLOOKUP(I66,TaxOffsetForLowIncomeTable,3,TRUE)))) -> 0 | K51: =0-(IF(K39="Company",0,MIN(K50,IF(OR(K66<=0,K66>=TaxOffsetMaximumEntitlement),0,TaxOffsetForLowIncomeEarners-IF(K66>TaxOffsetIncomeThreshholds,((K66-TaxOffsetIncomeThreshholds)*TaxOffSetReducedByPerc),0))))+IF(OR(K39="Company",K66="",K66=0),0,IF(VLOOKUP(K66,TaxOffsetForLowIncomeTable,2,TRUE)+(K66-VLOOKUP(K66,TaxOffsetForLowIncomeTable,1,TRUE))*VLOOKUP(K66,TaxOffsetForLowIncomeTable,3,TRUE)<0,0,VLOOKUP(K66,TaxOffsetForLowIncomeTable,2,TRUE)+(K66-VLOOKUP(K66,TaxOffsetForLowIncomeTable,1,TRUE))*VLOOKUP(K66,TaxOffsetForLowIncomeTable,3,TRUE)))) -> 0
C52: Net Income | E52: =E47-(IF(E50+E51>0,E50+E51,0)) -> 0 | G52: =G47-(IF(G50+G51>0,G50+G51,0)) -> 0 | I52: =I47-(IF(I50+I51>0,I50+I51,0)) -> 0 | K52: =K47-(IF(K50+K51>0,K50+K51,0)) -> 0 | P52: =(E52+G52+I52+K52) -> 0 | Q52: Total Net Annual Income
C54: Living Expenses (monthly) | G54: Other Commitments | K54: Per Month
C55: Declared Living Expenses | G55: Rent/Board
G56: Total Credit Card Limit | M56: 3%: | N56: =K56*CreditCardCommitments -> 0
G57: Personal Mortgage Repayments
G58: Other Consumer Debt
C60: Is an Applicant | E60: =OR(E39<>"") -> FALSE | G60: =OR(G39<>"") -> FALSE | I60: =OR(I39<>"") -> FALSE | K60: =OR(K39<>"") -> FALSE
C61: Spouse Dependants | E61: =IFERROR(HLOOKUP(E40,CREApplicantDetailsTable,4,FALSE),0) -> 0 | G61: =IFERROR(HLOOKUP(G40,CREApplicantDetailsTable,4,FALSE),0) -> 0 | I61: =IFERROR(HLOOKUP(I40,CREApplicantDetailsTable,4,FALSE),0) -> 0 | K61: =IFERROR(HLOOKUP(K40,CREApplicantDetailsTable,4,FALSE),0) -> 0
C62: Pepper Status Code | E62: =IF(E$39="Individual (Couple)","P-C",IF(E$39="Individual (Single)","P-S","")) ->  | G62: =IF(G$39="Individual (Couple)","P-C",IF(G$39="Individual (Single)","P-S","")) ->  | I62: =IF(I$39="Individual (Couple)","P-C",IF(I$39="Individual (Single)","P-S","")) ->  | K62: =IF(K$39="Individual (Couple)","P-C",IF(K$39="Individual (Single)","P-S","")) -> 
C63: Pepper Dependents Code | E63: =IF(E$39="Individual (Couple)","P-CD"&INDEX(Validation!$B$21:$B$26,MATCH((E$41+E$61),Validation!$A$21:$A$26,1)),IF(E$39="Individual (Single)","P-SD"&INDEX(Validation!$B$21:$B$26,MATCH((E$41+E$61),Validation!$A$21:$A$26,1)),"")) ->  | G63: =IF(G$39="Individual (Couple)","P-CD"&INDEX(Validation!$B$21:$B$26,MATCH((G$41+G$61),Validation!$A$21:$A$26,1)),IF(G$39="Individual (Single)","P-SD"&INDEX(Validation!$B$21:$B$26,MATCH((G$41+G$61),Validation!$A$21:$A$26,1)),"")) ->  | I63: =IF(I$39="Individual (Couple)","P-CD"&INDEX(Validation!$B$21:$B$26,MATCH((I$41+I$61),Validation!$A$21:$A$26,1)),IF(I$39="Individual (Single)","P-SD"&INDEX(Validation!$B$21:$B$26,MATCH((I$41+I$61),Validation!$A$21:$A$26,1)),"")) ->  | K63: =IF(K$39="Individual (Couple)","P-CD"&INDEX(Validation!$B$21:$B$26,MATCH((K$41+K$61),Validation!$A$21:$A$26,1)),IF(K$39="Individual (Single)","P-SD"&INDEX(Validation!$B$21:$B$26,MATCH((K$41+K$61),Validation!$A$21:$A$26,1)),"")) -> 
C64: Exclude for LE calc | E64: =IFERROR(IF(MATCH(E40,$E$38:$K$38,0)<(COLUMN()-COLUMN($E$38:$K$38)+1),TRUE,FALSE),FALSE) -> FALSE | G64: =IFERROR(IF(MATCH(G40,$E$38:$K$38,0)<(COLUMN()-COLUMN($E$38:$K$38)+1),TRUE,FALSE),FALSE) -> FALSE | I64: =IFERROR(IF(MATCH(I40,$E$38:$K$38,0)<(COLUMN()-COLUMN($E$38:$K$38)+1),TRUE,FALSE),FALSE) -> FALSE | K64: =IFERROR(IF(MATCH(K40,$E$38:$K$38,0)<(COLUMN()-COLUMN($E$38:$K$38)+1),TRUE,FALSE),FALSE) -> FALSE
C66: Total Taxable Income | E66: =MAX(E44+E46*RentalIncomeShading-E49*WorkingsForNegativeGearing,0) -> 0 | G66: =MAX(G44+G46*RentalIncomeShading-G49*WorkingsForNegativeGearing,0) -> 0 | I66: 0 | K66: 0 | P66: =(E66+G66+I66+K66) -> 0 | Q66: Total Taxable Income
C67: Spouse Income | E67: =IFERROR(HLOOKUP(E40,CREApplicantDetailsTable,7,FALSE),0) -> 0 | G67: =IFERROR(HLOOKUP(G40,CREApplicantDetailsTable,7,FALSE),0) -> 0 | I67: =IFERROR(HLOOKUP(I40,CREApplicantDetailsTable,7,FALSE),0) -> 0 | K67: =IFERROR(HLOOKUP(K40,CREApplicantDetailsTable,7,FALSE),0) -> 0
C68: Income Bracket | E68: =IFERROR(HLOOKUP(E44+E67,HemCombinedIncomeRange,3,TRUE),1) -> 1 | G68: =IFERROR(HLOOKUP(G44+G67,HemCombinedIncomeRange,3,TRUE),1) -> 1 | I68: =IFERROR(HLOOKUP(I44+I67,HemCombinedIncomeRange,3,TRUE),1) -> 1 | K68: =IFERROR(HLOOKUP(K44+K67,HemCombinedIncomeRange,3,TRUE),1) -> 1
C69: HEM Living Expense | E69: =IFERROR(IF(AND(E60,NOT(E64)),(VLOOKUP(E62,HemTableForExpenses,E68+1,FALSE) +(VLOOKUP(E63,HemTableForExpenses,E68+1,FALSE))*(E41+E61))*NumberOfWeeksInAYear,0),0) -> 0 | G69: =IFERROR(IF(AND(G60,NOT(G64)),(VLOOKUP(G62,HemTableForExpenses,G68+1,FALSE) +(VLOOKUP(G63,HemTableForExpenses,G68+1,FALSE))*(G41+G61))*NumberOfWeeksInAYear,0),0) -> 0 | I69: =IFERROR(IF(AND(I60,NOT(I64)),(VLOOKUP(I62,HemTableForExpenses,I68+1,FALSE) +(VLOOKUP(I63,HemTableForExpenses,I68+1,FALSE))*(I41+I61))*NumberOfWeeksInAYear,0),0) -> 0 | K69: =IFERROR(IF(AND(K60,NOT(K64)),(VLOOKUP(K62,HemTableForExpenses,K68+1,FALSE) +(VLOOKUP(K63,HemTableForExpenses,K68+1,FALSE))*(K41+K61))*NumberOfWeeksInAYear,0),0) -> 0 | P69: =(E69+G69+I69+K69) -> 0 | Q69: HEM Living Expense
P70: =E55*NumberOfMonthsInAYear -> 0 | Q70: Customer Nominated Living Expenses
P71: =MAX(P69,P70) -> 0 | Q71: Used Living Expenses
P72: =K55*NumberOfMonthsInAYear -> 0 | Q72: Personal rent
P73: =(K57*OtherMortgageRepaymentBuffer+K58+N56)*NumberOfMonthsInAYear -> 0 | Q73: Personal Debt
C78: Results
C81: Business income (EBITDA + net personal contribution) | E81: =E33+P52-P71-P72-P73 -> 0 | G81: Interest Expenses | I81: =(E8*I8)+(E18*G18)+(E19*G19)+(E20*G20)+(E21*G21) -> 0
G82: Debt Repayments | I82: =((SUM(I18:I21)+MAX(I11:I12))*12) -> 0
G85: Interest Coverage Ratio (ICR): | I85: =IFERROR(E81/I81,0) -> 0 | K85: =IF(CRECheckForCompleteness="INCOMPLETE","INCOMPLETE",IF(E9=FullDoc,IF(I85>=MinimumICRFullDoc,"PASS","FAIL"),IF(E9=AltDoc,IF(I85>=MinimumICRAltDoc,"PASS","FAIL"),IF(E9=LeaseDoc,IF(I85>=MinimumICRLeaseDoc,"PASS","FAIL"))))) -> INCOMPLETE
G86: Debt Service Coverage Ratio (DSCR): | I86: =IFERROR(E81/I82,0) -> 0 | K86: =IF(I89="INCOMPLETE","INCOMPLETE",IF(E9=FullDoc,IF(I86>=MinimumDSCRFullDoc,"PASS","FAIL"),IF(E9=AltDoc,IF(I86>=MinimumDSCRAltDoc,"PASS","FAIL"),IF(E9=LeaseDoc,IF(I86>=MinimumDSCRLeaseDoc,"PASS","FAIL"))))) -> INCOMPLETE
I88: Application Status
I89: =IF(OR(E8="",I8="",E9="",I9="",I9<I10),"INCOMPLETE","COMPLETE") -> INCOMPLETE

Sheet SEIC
B1: Self-Employed Income Calculator
C3: Business 1 | N3: Business 2
D5: Most Recent Year | F5: Previous Year | O5: Most Recent Year | Q5: Previous Year
C6: Financial year end date (DD/MM/YYYY) | N6: Financial year end date (DD/MM/YYYY) | P6: 42551
C8: Gross Business Income | N8: Gross Business Income
C9: less expenses | N9: less expenses
C10: plus superannuation over 9.5% | N10: plus superannuation over 9.5%
C12: plus depreciation | N12: plus depreciation
C13: plus interest / leasing charges | N13: plus interest / leasing charges
C15: less Ongoing Business Loan REPAYMENTS | N15: less Ongoing Business Loan REPAYMENTS
H16: Total Business Income | S16: Total Business Income
C17: Director Wages: | H17: Most Recent Year | I17: Previous Year | N17: Director Wages: | S17: Most Recent Year | T17: Previous Year
C18: Applicant 1 | H18: =(D$8-D$9+D$10-D$15)*D26+D18 -> 0 | I18: =(F$8-F$9+F$10-D$15)*F26+F18 -> 0 | N18: Applicant 1 | S18: =(O$8-O$9+O$10-O$15)*O26+O18 -> 0 | T18: =(Q$8-Q$9+Q$10-O$15)*Q26+Q18 -> 0
C19: Applicant 2 | H19: =(D$8-D$9+D$10-D$15)*D27+D19 -> 0 | I19: =(F$8-F$9+F$10-D$15)*F27+F19 -> 0 | N19: Applicant 2 | S19: =(O$8-O$9+O$10-O$15)*O27+O19 -> 0 | T19: =(Q$8-Q$9+Q$10-O$15)*Q27+Q19 -> 0
C20: Applicant 3 | H20: 0 | I20: 0 | N20: Applicant 3 | S20: 0 | T20: 0
C21: Applicant 4 | H21: 0 | I21: 0 | N21: Applicant 4 | S21: 0 | T21: 0
C22: Applicant 5 | H22: 0 | I22: 0 | N22: Applicant 5 | S22: 0 | T22: 0
C23: Applicant 6 | H23: 0 | I23: 0 | N23: Applicant 6 | S23: 0 | T23: 0
H24: Untaxed Addbacks | S24: Untaxed Addbacks
C25: Applicant's Entitlement: | H25: Most Recent Year | I25: Previous Year | N25: Applicant's Entitlement: | S25: Most Recent Year | T25: Previous Year
C26: Applicant 1 | H26: =(D$13+D$12)*$D26 -> 0 | I26: =(F$13+F$12)*$F26 -> 0 | N26: Applicant 1 | S26: =(O$13+O$12)*$O26 -> 0 | T26: =(Q$13+Q$12)*$Q26 -> 0
C27: Applicant 2 | H27: 0 | I27: 0 | N27: Applicant 2 | S27: 0 | T27: 0
C28: Applicant 3 | H28: 0 | I28: 0 | N28: Applicant 3 | S28: 0 | T28: 0
C29: Applicant 4 | H29: 0 | I29: 0 | N29: Applicant 4 | S29: 0 | T29: 0
C30: Applicant 5 | H30: 0 | I30: 0 | N30: Applicant 5 | S30: 0 | T30: 0
C31: Applicant 6 | H31: 0 | I31: 0 | N31: Applicant 6 | S31: 0 | T31: 0
D32: =IF(SUM(D26:D31)>100%,"Check: >100%","") ->  | F32: =IF(SUM(F26:F31)>100%,"Check","") ->  | O32: =IF(SUM(O26:O31)>100%,"Check: >100%","") ->  | Q32: =IF(SUM(Q26:Q31)>100%,"Check","") -> 
C33: Calculations: Business 1 | N33: Calculations: Business 2
D35: Self-Employed Income | O35: Self-Employed Income
C36: Applicant 1 | D36: =IF(H18>I18,AVERAGE(H18,I18),H18) -> 0 | N36: Applicant 1 | O36: =IF(S18>T18,AVERAGE(S18,T18),S18) -> 0
C37: Applicant 2 | D37: 0 | N37: Applicant 2 | O37: 0
C38: Applicant 3 | D38: 0 | N38: Applicant 3 | O38: 0
C39: Applicant 4 | D39: 0 | N39: Applicant 4 | O39: 0
C40: Applicant 5 | D40: 0 | N40: Applicant 5 | O40: 0
C41: Applicant 6 | D41: 0 | N41: Applicant 6 | O41: 0
D43: Addbacks | O43: Addbacks
C44: Applicant 1 | D44: =IF(H26>I26,AVERAGE(H26,I26),H26) -> 0 | N44: Applicant 1 | O44: =IF(S26>T26,AVERAGE(S26,T26),S26) -> 0
C45: Applicant 2 | D45: 0 | N45: Applicant 2 | O45: 0
C46: Applicant 3 | D46: 0 | N46: Applicant 3 | O46: 0
C47: Applicant 4 | D47: 0 | N47: Applicant 4 | O47: 0
C48: Applicant 5 | D48: 0 | N48: Applicant 5 | O48: 0
C49: Applicant 6 | D49: 0 | N49: Applicant 6 | O49: 0
C54: Outputs
D56: Self-Employed Income
C57: Applicant 1 | D57: =D36+O36 -> 0
C58: Applicant 2 | D58: 0
C59: Applicant 3 | D59: 0
C60: Applicant 4 | D60: 0
C61: Applicant 5 | D61: 0
C62: Applicant 6 | D62: 0
D64: Addbacks
C65: Applicant 1 | D65: =D44+O44 -> 0
C66: Applicant 2 | D66: 0
C67: Applicant 3 | D67: 0
C68: Applicant 4 | D68: 0
C69: Applicant 5 | D69: 0
C70: Applicant 6 | D70: 0

Sheet HEM Table (hidden)
A1: Combined Couple Gross Income | C1: =B2 -> 0 | D1: =C2 -> 21000 | E1: =D2 -> 32000 | F1: 43000 | G1: 53000 | H1: 64000 | I1: 85000 | J1: 107000 | K1: 128000 | L1: 150000 | M1: 171000 | N1: 214000 | O1: 267000 | P1: 321000 | S1: Higher income band used as data not available for income band
A2: HEM 2019Q4 | C2: 21000 | D2: 32000 | E2: 43000 | F2: 53000 | G2: 64000 | H2: 85000 | I2: 107000 | J2: 128000 | K2: 150000 | L2: 171000 | M2: 214000 | N2: 267000 | O2: 321000 | P2: 999999999
C3: 1 | D3: 2 | E3: 3 | F3: 4 | G3: 5 | H3: 6 | I3: 7 | J3: 8 | K3: 9 | L3: 10 | M3: 11 | N3: 12 | O3: 13 | P3: 14
A4: Pepper - Proposed
A5: Single | B5: P-S | C5: =C25 -> 251.6834851 | D5: =D25 -> 265.836488 | E5: 279.9411823 | F5: 300.8483872 | G5: 338.3829054 | H5: 386.464523 | I5: 459.453867 | J5: 513.1540691 | K5: 601.4664795 | L5: 635.0181303 | M5: 677.4530698 | N5: 782.925491 | O5: 918.546059 | P5: 939.7460611
A6: Couple | B6: P-C | C6: =D6 -> 490.4246021 | D6: =D20 -> 490.4246021 | E6: 504.5227434 | F6: 525.4202208 | G6: 562.9373329 | H6: 610.9966024 | I6: 683.9520074 | J6: 737.6272975 | K6: 825.8986498 | L6: 859.4346938 | M6: 901.849918 | N6: 1007.273336 | O6: 1142.830895 | P6: 1164.021085
A7: Single parent with 1 child (per child) | B7: P-SD1 | C7: =D7 -> 87.27439609 | D7: =IF(D26-D25<0,0,D26-D25) -> 87.27439609 | E7: 87.18857987 | F7: 87.06138248 | G7: 86.83302149 | H7: 86.54052541 | I7: 86.09644682 | J7: 85.76974002 | K7: 85.23244666 | L7: 85.02832168 | M7: 84.77011459 | N7: 84.12846771 | O7: 83.30342097 | P7: 83.17440517
A8: Single parent with 2 children (per child) | B8: P-SD2 | C8: 91.08959012 | D8: =IF(D27-D25<0,0,D27-D25)/2 -> 91.08959012 | E8: 91.09533964 | F8: 91.10385042 | G8: 91.119167 | H8: 91.13876192 | I8: 91.16852401 | J8: 91.1904139 | K8: 91.22638951 | L8: 91.24008488 | M8: 91.25736404 | N8: 91.30035793 | O8: 91.35564115 | P8: 91.3643016
A9: Single parent with 3 children (per child) | B9: P-SD3 | C9: 92.76452433 | D9: =E9 -> 92.76452433 | E9: =IF(E28-E25<0,0,E28-E25)/3 -> 92.76452433 | F9: 92.81608434 | G9: 92.90870114 | H9: 93.02729729 | I9: 93.20737235 | J9: 93.33984455 | K9: 93.5576729 | L9: 93.64046599 | M9: 93.74513557 | N9: 94.00531134 | O9: 94.33985284 | P9: 94.39218836
A10: Single parent with 4 or more children (per child) | B10: P-SD4+ | C10: 92.76452433 | D10: 92.76452433 | E10: =IF(E28-E25<0,0,E28-E25)/3 -> 92.76452433 | F10: 92.81608434 | G10: 92.90870114 | H10: 93.02729729 | I10: 93.20737235 | J10: 93.33984455 | K10: 93.5576729 | L10: 93.64046599 | M10: 93.74513557 | N10: 94.00531134 | O10: 94.33985284 | P10: 94.39218836
A11: Couple with 1 child (per child) | B11: P-CD1 | C11: 76.69230544 | D11: 76.69230544 | E11: =IF(E21-E20<0,0,E21-E20) -> 76.69230544 | F11: 76.72097837 | G11: 76.77241738 | H11: 76.83838634 | I11: 76.93849603 | J11: 77.01214261 | K11: 77.13323896 | L11: 77.17930894 | M11: 77.23743121 | N11: 77.38217345 | O11: 77.56816872 | P11: 77.59716864
A12: Couple with 2 children (per child) | B12: P-CD2 | C12: 68.73184768 | D12: 68.73184768 | E12: =IF(E22-E20<0,0,E22-E20)/2 -> 68.73184768 | F12: 68.75047264 | G12: 68.78389962 | H12: 68.82676669 | I12: 68.89182344 | J12: 68.9396364 | K12: 69.01833762 | L12: 69.04826224 | M12: 69.08603711 | N12: 69.18006635 | O12: 69.30091281 | P12: 69.31976605
A13: Couple with 3 children (per child) | B13: P-CD3 | C13: 65.45181512 | D13: 65.45181512 | E13: =F13 -> 65.45181512 | F13: =IF(F23-F20<0,0,F23-F20)/3 -> 65.45181512 | G13: 65.41586779 | H13: 65.36985163 | I13: 65.29998511 | J13: 65.24857784 | K13: 65.16401777 | L13: 65.13191736 | M13: 65.09128818 | N13: 64.99032556 | O13: 64.86049592 | P13: 64.84020111
A14: Couple with 4 or more children (per child) | B14: P-CD4+ | C14: =D14 -> 65.45181512 | D14: =E14 -> 65.45181512 | E14: =F14 -> 65.45181512 | F14: =IF(F23-F20<0,0,F23-F20)/3 -> 65.45181512 | G14: 65.41586779 | H14: 65.36985163 | I14: 65.29998511 | J14: 65.24857784 | K14: 65.16401777 | L14: 65.13191736 | M14: 65.09128818 | N14: 64.99032556 | O14: 64.86049592 | P14: 64.84020111
C16: 1 | D16: 2 | E16: 3 | F16: 4 | G16: 5 | H16: 6 | I16: 7 | J16: 8 | K16: 9 | L16: 10 | M16: 11 | N16: 12 | O16: 13 | P16: 14
C17: 21000 | D17: 21000 | E17: 32000 | F17: 43000 | G17: 53000 | H17: 64000 | I17: 85000 | J17: 107000 | K17: 128000 | L17: 150000 | M17: 171000 | N17: 214000 | O17: 267000 | P17: 321000
C18: or less | D18: to | E18: to | F18: to | G18: to | H18: to | I18: to | J18: to | K18: to | L18: to | M18: to | N18: to | O18: to | P18: to
A19: Australia | D19: 32000 | E19: 43000 | F19: 53000 | G19: 64000 | H19: 85000 | I19: 107000 | J19: 128000 | K19: 150000 | L19: 171000 | M19: 214000 | N19: 267000 | O19: 321000 | P19: 534000
A20: Couple | C20: 0 | D20: 490.4246021 | E20: 504.5227434 | F20: 525.4202208 | G20: 562.9373329 | H20: 610.9966024 | I20: 683.9520074 | J20: 737.6272975 | K20: 825.8986498 | L20: 859.4346938 | M20: 901.849918 | N20: 1007.273336 | O20: 1142.830895 | P20: 1164.021085
A21: Couple with 1 child | C21: 0 | D21: 0 | E21: 581.2150488 | F21: 602.1411992 | G21: 639.7097503 | H21: 687.8349888 | I21: 760.8905035 | J21: 814.6394401 | K21: 903.0318888 | L21: 936.6140027 | M21: 979.0873492 | N21: 1084.65551 | O21: 1220.399063 | P21: 1241.618253
A22: Couple with 2 children | C22: 0 | D22: 0 | E22: 641.9864387 | F22: 662.9211661 | G22: 700.5051322 | H22: 748.6501358 | I22: 821.7356543 | J22: 875.5065703 | K22: 963.9353251 | L22: 997.5312183 | M22: 1040.021992 | N22: 1145.633469 | O22: 1281.43272 | P22: 1302.660617
A23: Couple with 3 or more children | C23: 0 | D23: 0 | E23: 0 | F23: 721.7756662 | G23: 759.1849363 | H23: 807.1061573 | I23: 879.8519628 | J23: 933.3730311 | K23: 1021.390703 | L23: 1054.830446 | M23: 1097.123783 | N23: 1202.244313 | O23: 1337.412382 | P23: 1358.541688
A25: Single person | C25: 251.6834851 | D25: 265.836488 | E25: 279.9411823 | F25: 300.8483872 | G25: 338.3829054 | H25: 386.464523 | I25: 459.453867 | J25: 513.1540691 | K25: 601.4664795 | L25: 635.0181303 | M25: 677.4530698 | N25: 782.925491 | O25: 918.546059 | P25: 939.7460611
A26: Single parent with 1 child | C26: 0 | D26: 353.1108841 | E26: 367.1297622 | F26: 387.9097697 | G26: 425.2159269 | H26: 473.0050484 | I26: 545.5503138 | J26: 598.9238091 | K26: 686.6989261 | L26: 720.0464519 | M26: 762.2231844 | N26: 867.0539587 | O26: 1001.84948 | P26: 1022.920466
A27: Single parent with 2 children | C27: 0 | D27: 448.0156682 | E27: 462.1318616 | F27: 483.0560881 | G27: 520.6212394 | H27: 568.7420469 | I27: 641.790915 | J27: 695.5348969 | K27: 783.9192585 | L27: 817.4983 | M27: 859.9677979 | N27: 965.5262069 | O27: 1101.257341 | P27: 1122.474664
A28: Single parent with 3 or more children | C28: 0 | D28: 0 | E28: 558.2347553 | F28: 579.2966402 | G28: 617.1090088 | H28: 665.5464149 | I28: 739.0759841 | J28: 793.1736028 | K28: 882.1394982 | L28: 915.9395282 | M28: 958.6884766 | N28: 1064.941425 | O28: 1201.565617 | P28: 1222.922626
A36: Comparison to prior Benchmark version
A38: HEM 2018 Q1 | C38: 24008.52878 | D38: 24008.52878 | E38: 30010.66098 | F38: 36012.79318 | G38: 42014.92537 | H38: 48017.05757 | I38: 54019.18977 | J38: 60021.32196 | K38: 72025.58635 | L38: 84029.85075 | M38: 96034.11514 | N38: 108038.3795 | O38: 120042.6439 | P38: 144051.1727 | Q38: 168059.7015 | R38: 192068.2303 | S38: 240085.2878 | T38: 300106.6098 | U38: 360127.9318 | V38: 420149.2537
C39: or less | D39: to | E39: to | F39: to | G39: to | H39: to | I39: to | J39: to | K39: to | L39: to | M39: to | N39: to | O39: to | P39: to | Q39: to | R39: to | S39: to | T39: to | U39: to | V39: to
A40: Australia | D40: 30010.66098 | E40: 36012.79318 | F40: 42014.92537 | G40: 48017.05757 | H40: 54019.18977 | I40: 60021.32196 | J40: 72025.58635 | K40: 84029.85075 | L40: 96034.11514 | M40: 108038.3795 | N40: 120042.6439 | O40: 144051.1727 | P40: 168059.7015 | Q40: 192068.2303 | R40: 240085.2878 | S40: 300106.6098 | T40: 360127.9318 | U40: 420149.2537 | V40: 480170.5757
A41: Couple | C41: 462.0513825 | D41: 477.0977837 | E41: 472.6801224 | F41: 479.3517572 | G41: 504.8077031 | H41: 519.4903019 | I41: 551.5850042 | J41: 543.7014299 | K41: 586.7268191 | L41: 618.909787 | M41: 628.2418988 | N41: 647.0955157 | O41: 692.1655523 | P41: 715.6005458 | Q41: 749.0618029 | R41: 768.5124935 | S41: 819.6875916 | T41: 857.9877451 | U41: 889.8718081 | V41: 917.1841382
A42: Couple with 1 child | C42: 509.3032855 | D42: 524.4561907 | E42: 520.0072766 | F42: 526.7261243 | G42: 552.3623201 | H42: 567.1488842 | I42: 599.4708725 | J42: 591.5314851 | K42: 634.8615402 | L42: 667.2723538 | M42: 676.6705823 | N42: 695.6576429 | O42: 741.0468513 | P42: 764.6477846 | Q42: 798.3459388 | R42: 817.9343569 | S42: 869.4718142 | T42: 908.0431579 | U42: 940.1529808 | V42: 967.6587001
A43: Couple with 2 children | C43: 629.4117626 | D43: 644.5798235 | E43: 640.1264597 | F43: 646.8520181 | G43: 672.5138642 | H43: 687.3152083 | I43: 719.6695059 | J43: 711.7222057 | K43: 755.0955895 | L43: 787.5388199 | M43: 796.946411 | N43: 815.9525183 | O43: 861.3870869 | P43: 885.0116442 | Q43: 918.7435028 | R43: 938.3515316 | S43: 989.9405219 | T43: 1028.550445 | U43: 1060.692385 | V43: 1088.225616
A44: Couple with 3 or more children | C44: 688.2145435 | D44: 703.2684945 | E44: 698.8486466 | F44: 705.5236166 | G44: 730.9924204 | H44: 745.68245 | I44: 777.7934031 | J44: 769.9058439 | K44: 812.9529996 | L44: 845.152198 | M44: 854.4890454 | N44: 873.3521551 | O44: 918.4450289 | P44: 941.891868 | Q44: 975.3700017 | R44: 994.8305055 | S44: 1046.031485 | T44: 1084.350995 | U44: 1116.251171 | V44: 1143.577303
A46: Single person | C46: 261.0881912 | D46: 276.1114583 | E46: 271.7005977 | F46: 278.3619645 | G46: 303.7788075 | H46: 318.438845 | I46: 350.4842455 | J46: 342.6127919 | K46: 385.5720912 | L46: 417.7055985 | M46: 427.0233921 | N46: 445.848026 | O46: 490.8488409 | P46: 514.2478316 | Q46: 547.6576644 | R46: 567.0784732 | S46: 618.1749557 | T46: 656.4162681 | U46: 688.251347 | V46: 715.5217168
A47: Single parent with 1 child | C47: 321.23499 | D47: 336.2784566 | E47: 331.8616817 | F47: 338.5320153 | G47: 363.983067 | H47: 378.6628428 | I47: 410.7513745 | J47: 402.8693345 | K47: 445.8864607 | L47: 478.0632225 | M47: 487.3935586 | N47: 506.2435136 | O47: 551.3048849 | P47: 574.7353727 | Q47: 608.1901964 | R47: 627.6371659 | S47: 678.8024015 | T47: 717.0951864 | U47: 748.9731152 | V47: 776.2801907
A48: Single parent with 2 children | C48: 404.9492198 | D48: 420.0805588 | E48: 415.6379579 | F48: 422.3472524 | G48: 447.946971 | H48: 462.712481 | I48: 494.9884488 | J48: 487.060389 | K48: 530.3287657 | L48: 562.6934509 | M48: 572.0782661 | N48: 591.0383409 | O48: 636.3629123 | P48: 659.9303117 | Q48: 693.5804867 | R48: 713.1410444 | S48: 764.605138 | T48: 803.1215874 | U48: 835.185712 | V48: 862.6522854
A49: Single parent with 3 or more children | C49: 433.236445 | D49: 448.3248679 | E49: 443.8948858 | F49: 450.5851419 | G49: 476.1122442 | H49: 490.8358757 | I49: 523.020301 | J49: 515.1147178 | K49: 558.2603843 | L49: 590.5332755 | M49: 599.8915103 | N49: 618.7977912 | O49: 663.9938483 | P49: 687.4943492 | Q49: 721.0491027 | R49: 740.5541634 | S49: 791.8723151 | T49: 830.2795248 | U49: 862.2527097 | V49: 889.6413829
D52: =D20-D41 -> 13.32681844 | E52: =E20-E41 -> 31.84262099 | F52: =E20-F41 -> 25.17098618 | G52: =F20-G41 -> 20.61251771 | H52: =F20-H41 -> 5.92991894 | I52: =G20-I41 -> 11.35232872 | J52: =H20-J41 -> 67.29517249 | K52: =H20-K41 -> 24.2697833 | L52: =I20-L41 -> 65.04222041 | M52: =I20-M41 -> 55.71010862 | N52: 90.53178184 | O52: 133.7330975 | P52: 143.834148 | Q52: 152.7881151 | R52: 238.7608429 | S52: 323.1433032 | T52: 306.0333395 | U52: =P20-U41 -> 274.1492765 | V52: =P20-V41 -> 246.8369463
E53: =E21-E42 -> 61.20777226 | F53: =E21-F42 -> 54.48892455 | G53: 49.77887911 | H53: =F21-H42 -> 34.99231497 | I53: 40.23887778 | J53: 96.30350364 | K53: =H21-K42 -> 52.97344851 | L53: 93.61814966 | M53: 84.2199212 | N53: 118.9817972 | O53: 161.9850374 | P53: 171.9662181 | Q53: 180.7414104 | R53: 266.721153 | S53: 350.9272492 | T53: 333.5750953 | U53: =P21-U42 -> 301.4652724 | V53: =P21-V42 -> 273.9595531
E54: 1.859979091 | F54: -4.865579365 | G54: -9.592698106 | H54: -24.39404221 | I54: -19.16437374 | J54: 36.92793014 | K54: -6.445453733 | L54: 34.19683439 | M54: 24.78924333 | N54: 59.55405207 | O54: 102.5482381 | P54: 112.5195741 | Q54: 121.2784895 | R54: 207.2819375 | S54: 291.4921984 | T54: 274.1101712 | U54: 241.9682313 | V54: 214.4350002
G55: -9.216754246 | H55: -23.90678389 | I55: -18.60846679 | J55: 37.2003134 | K55: -5.846842345 | L55: 34.69976479 | M55: 25.36291737 | N55: 60.02087595 | O55: 102.9456742 | P55: 112.9385778 | Q55: 121.7537808 | R55: 207.4138076 | S55: 291.3808971 | T55: 274.1906934 | U55: 242.2905173 | V55: 214.9643845
U56: 0 | V56: 0
C57: =C25-C46 -> -9.404706137 | D57: -10.27497034 | E57: 8.240584638 | F57: 1.579217836 | G57: -2.930420255 | H57: -17.5904578 | I57: -12.10134014 | J57: 43.85173115 | K57: 0.8924317989 | L57: 41.74826847 | M57: 32.43047493 | N57: 67.30604308 | O57: 110.6176386 | P57: 120.7702986 | Q57: 129.7954055 | R57: 215.8470178 | S57: 300.3711033 | T57: 283.3297931 | U57: 251.4947141 | V57: 224.2243443
D58: 16.83242745 | E58: 35.26808044 | F58: 28.59774687 | G58: 23.92670276 | H58: 9.24692691 | I58: 14.46455235 | J58: 70.13571394 | K58: 27.11858769 | L58: 67.48709131 | M58: 58.15675522 | N58: 92.68029553 | O58: 135.3940412 | P58: 145.3110793 | Q58: 154.032988 | R58: 239.4167928 | S58: 323.0470784 | T58: 305.8252799 | U58: 273.9473511 | V58: 246.6402756
D59: 27.93510942 | E59: 46.49390367 | F59: 39.78460918 | G59: 35.10911702 | H59: 20.34360703 | I59: 25.6327906 | J59: 81.68165788 | K59: 38.41328114 | L59: 79.09746412 | M59: 69.71264888 | N59: 104.496556 | O59: 147.5563462 | P59: 157.5679883 | Q59: 166.3873112 | R59: 252.3851624 | S59: 336.6522032 | T59: 319.3530769 | U59: 287.2889523 | V59: 259.8223789
E60: 114.3398694 | F60: 107.6496134 | G60: 103.184396 | H60: 88.46076455 | I60: 94.08870777 | J60: 150.4316971 | K60: 107.2860306 | L60: 148.5427086 | M60: 139.1844738 | N60: 174.3758116 | O60: 218.1456499 | P60: 228.4451791 | Q60: 237.6393739 | R60: 324.3872616 | S60: 409.6933024 | T60: 392.6431014 | U60: 360.6699165 | V60: 333.2812433

Sheet Validation (hidden)
A1: Residential | B1: Applicant 1 | C1: Applicant 2 | D1: Applicant 3 | E1: Applicant 4 | F1: Applicant 5 | G1: Applicant 6 | I1: CRE | J1: Applicant 1 | K1: Applicant 2 | L1: Applicant 3 | M1: Applicant 4 | P1: Valid Status Resi | R1: Valid Status CRE
A2: Applicant 1 | B2: =IF(AND(B$1<>$A2,HLOOKUP($A2,Residential!$E$14:$O$15,2,FALSE)="Individual (Couple)",Residential!E$15="Individual (Couple)"),$A2) -> FALSE | C2: =IF(AND(C$1<>$A2,HLOOKUP($A2,Residential!$E$14:$O$15,2,FALSE)="Individual (Couple)",Residential!G$15="Individual (Couple)"),$A2) -> FALSE | D2: =IF(AND(D$1<>$A2,HLOOKUP($A2,Residential!$E$14:$O$15,2,FALSE)="Individual (Couple)",Residential!I$15="Individual (Couple)"),$A2) -> FALSE | E2: =IF(AND(E$1<>$A2,HLOOKUP($A2,Residential!$E$14:$O$15,2,FALSE)="Individual (Couple)",Residential!K$15="Individual (Couple)"),$A2) -> FALSE | F2: =IF(AND(F$1<>$A2,HLOOKUP($A2,Residential!$E$14:$O$15,2,FALSE)="Individual (Couple)",Residential!M$15="Individual (Couple)"),$A2) -> FALSE | G2: =IF(AND(G$1<>$A2,HLOOKUP($A2,Residential!$E$14:$O$15,2,FALSE)="Individual (Couple)",Residential!O$15="Individual (Couple)"),$A2) -> FALSE | I2: Applicant 1 | J2: =IF(AND(J$1<>$I2,HLOOKUP($I2,Commercial!$E$38:$K$39,2,FALSE)="Individual (Couple)",Commercial!E$39="Individual (Couple)"),$I2) -> FALSE | K2: =IF(AND(K$1<>$I2,HLOOKUP($I2,Commercial!$E$38:$K$39,2,FALSE)="Individual (Couple)",Commercial!G$39="Individual (Couple)"),$I2) -> FALSE | L2: =IF(AND(L$1<>$I2,HLOOKUP($I2,Commercial!$E$38:$K$39,2,FALSE)="Individual (Couple)",Commercial!I$39="Individual (Couple)"),$I2) -> FALSE | M2: =IF(AND(M$1<>$I2,HLOOKUP($I2,Commercial!$E$38:$K$39,2,FALSE)="Individual (Couple)",Commercial!K$39="Individual (Couple)"),$I2) -> FALSE | P2: Company | R2: Individual (Single)
A3: Applicant 2 | B3: =IF(AND(B$1<>$A3,HLOOKUP($A3,Residential!$E$14:$O$15,2,FALSE)="Individual (Couple)",Residential!E$15="Individual (Couple)"),$A3) -> FALSE | C3: =IF(AND(C$1<>$A3,HLOOKUP($A3,Residential!$E$14:$O$15,2,FALSE)="Individual (Couple)",Residential!G$15="Individual (Couple)"),$A3) -> FALSE | D3: =IF(AND(D$1<>$A3,HLOOKUP($A3,Residential!$E$14:$O$15,2,FALSE)="Individual (Couple)",Residential!I$15="Individual (Couple)"),$A3) -> FALSE | E3: =IF(AND(E$1<>$A3,HLOOKUP($A3,Residential!$E$14:$O$15,2,FALSE)="Individual (Couple)",Residential!K$15="Individual (Couple)"),$A3) -> FALSE | F3: =IF(AND(F$1<>$A3,HLOOKUP($A3,Residential!$E$14:$O$15,2,FALSE)="Individual (Couple)",Residential!M$15="Individual (Couple)"),$A3) -> FALSE | G3: =IF(AND(G$1<>$A3,HLOOKUP($A3,Residential!$E$14:$O$15,2,FALSE)="Individual (Couple)",Residential!O$15="Individual (Couple)"),$A3) -> FALSE | I3: Applicant 2 | J3: =IF(AND(J$1<>$I3,HLOOKUP($I3,Commercial!$E$38:$K$39,2,FALSE)="Individual (Couple)",Commercial!E$39="Individual (Couple)"),$I3) -> FALSE | K3: =IF(AND(K$1<>$I3,HLOOKUP($I3,Commercial!$E$38:$K$39,2,FALSE)="Individual (Couple)",Commercial!G$39="Individual (Couple)"),$I3) -> FALSE | L3: =IF(AND(L$1<>$I3,HLOOKUP($I3,Commercial!$E$38:$K$39,2,FALSE)="Individual (Couple)",Commercial!I$39="Individual (Couple)"),$I3) -> FALSE | M3: =IF(AND(M$1<>$I3,HLOOKUP($I3,Commercial!$E$38:$K$39,2,FALSE)="Individual (Couple)",Commercial!K$39="Individual (Couple)"),$I3) -> FALSE | P3: Individual (Single) | R3: Individual (Couple)
A4: Applicant 3 | B4: =IF(AND(B$1<>$A4,HLOOKUP($A4,Residential!$E$14:$O$15,2,FALSE)="Individual (Couple)",Residential!E$15="Individual (Couple)"),$A4) -> FALSE | C4: =IF(AND(C$1<>$A4,HLOOKUP($A4,Residential!$E$14:$O$15,2,FALSE)="Individual (Couple)",Residential!G$15="Individual (Couple)"),$A4) -> FALSE | D4: =IF(AND(D$1<>$A4,HLOOKUP($A4,Residential!$E$14:$O$15,2,FALSE)="Individual (Couple)",Residential!I$15="Individual (Couple)"),$A4) -> FALSE | E4: =IF(AND(E$1<>$A4,HLOOKUP($A4,Residential!$E$14:$O$15,2,FALSE)="Individual (Couple)",Residential!K$15="Individual (Couple)"),$A4) -> FALSE | F4: =IF(AND(F$1<>$A4,HLOOKUP($A4,Residential!$E$14:$O$15,2,FALSE)="Individual (Couple)",Residential!M$15="Individual (Couple)"),$A4) -> FALSE | G4: =IF(AND(G$1<>$A4,HLOOKUP($A4,Residential!$E$14:$O$15,2,FALSE)="Individual (Couple)",Residential!O$15="Individual (Couple)"),$A4) -> FALSE | I4: Applicant 3 | J4: =IF(AND(J$1<>$I4,HLOOKUP($I4,Commercial!$E$38:$K$39,2,FALSE)="Individual (Couple)",Commercial!E$39="Individual (Couple)"),$I4) -> FALSE | K4: =IF(AND(K$1<>$I4,HLOOKUP($I4,Commercial!$E$38:$K$39,2,FALSE)="Individual (Couple)",Commercial!G$39="Individual (Couple)"),$I4) -> FALSE | L4: =IF(AND(L$1<>$I4,HLOOKUP($I4,Commercial!$E$38:$K$39,2,FALSE)="Individual (Couple)",Commercial!I$39="Individual (Couple)"),$I4) -> FALSE | M4: =IF(AND(M$1<>$I4,HLOOKUP($I4,Commercial!$E$38:$K$39,2,FALSE)="Individual (Couple)",Commercial!K$39="Individual (Couple)"),$I4) -> FALSE | P4: Individual (Couple)
A5: Applicant 4 | B5: =IF(AND(B$1<>$A5,HLOOKUP($A5,Residential!$E$14:$O$15,2,FALSE)="Individual (Couple)",Residential!E$15="Individual (Couple)"),$A5) -> FALSE | C5: =IF(AND(C$1<>$A5,HLOOKUP($A5,Residential!$E$14:$O$15,2,FALSE)="Individual (Couple)",Residential!G$15="Individual (Couple)"),$A5) -> FALSE | D5: =IF(AND(D$1<>$A5,HLOOKUP($A5,Residential!$E$14:$O$15,2,FALSE)="Individual (Couple)",Residential!I$15="Individual (Couple)"),$A5) -> FALSE | E5: =IF(AND(E$1<>$A5,HLOOKUP($A5,Residential!$E$14:$O$15,2,FALSE)="Individual (Couple)",Residential!K$15="Individual (Couple)"),$A5) -> FALSE | F5: =IF(AND(F$1<>$A5,HLOOKUP($A5,Residential!$E$14:$O$15,2,FALSE)="Individual (Couple)",Residential!M$15="Individual (Couple)"),$A5) -> FALSE | G5: =IF(AND(G$1<>$A5,HLOOKUP($A5,Residential!$E$14:$O$15,2,FALSE)="Individual (Couple)",Residential!O$15="Individual (Couple)"),$A5) -> FALSE | I5: Applicant 4 | J5: =IF(AND(J$1<>$I5,HLOOKUP($I5,Commercial!$E$38:$K$39,2,FALSE)="Individual (Couple)",Commercial!E$39="Individual (Couple)"),$I5) -> FALSE | K5: =IF(AND(K$1<>$I5,HLOOKUP($I5,Commercial!$E$38:$K$39,2,FALSE)="Individual (Couple)",Commercial!G$39="Individual (Couple)"),$I5) -> FALSE | L5: =IF(AND(L$1<>$I5,HLOOKUP($I5,Commercial!$E$38:$K$39,2,FALSE)="Individual (Couple)",Commercial!I$39="Individual (Couple)"),$I5) -> FALSE | M5: =IF(AND(M$1<>$I5,HLOOKUP($I5,Commercial!$E$38:$K$39,2,FALSE)="Individual (Couple)",Commercial!K$39="Individual (Couple)"),$I5) -> FALSE
A6: Applicant 5 | B6: =IF(AND(B$1<>$A6,HLOOKUP($A6,Residential!$E$14:$O$15,2,FALSE)="Individual (Couple)",Residential!E$15="Individual (Couple)"),$A6) -> FALSE | C6: =IF(AND(C$1<>$A6,HLOOKUP($A6,Residential!$E$14:$O$15,2,FALSE)="Individual (Couple)",Residential!G$15="Individual (Couple)"),$A6) -> FALSE | D6: =IF(AND(D$1<>$A6,HLOOKUP($A6,Residential!$E$14:$O$15,2,FALSE)="Individual (Couple)",Residential!I$15="Individual (Couple)"),$A6) -> FALSE | E6: =IF(AND(E$1<>$A6,HLOOKUP($A6,Residential!$E$14:$O$15,2,FALSE)="Individual (Couple)",Residential!K$15="Individual (Couple)"),$A6) -> FALSE | F6: =IF(AND(F$1<>$A6,HLOOKUP($A6,Residential!$E$14:$O$15,2,FALSE)="Individual (Couple)",Residential!M$15="Individual (Couple)"),$A6) -> FALSE | G6: =IF(AND(G$1<>$A6,HLOOKUP($A6,Residential!$E$14:$O$15,2,FALSE)="Individual (Couple)",Residential!O$15="Individual (Couple)"),$A6) -> FALSE
A7: Applicant 6 | B7: =IF(AND(B$1<>$A7,HLOOKUP($A7,Residential!$E$14:$O$15,2,FALSE)="Individual (Couple)",Residential!E$15="Individual (Couple)"),$A7) -> FALSE | C7: =IF(AND(C$1<>$A7,HLOOKUP($A7,Residential!$E$14:$O$15,2,FALSE)="Individual (Couple)",Residential!G$15="Individual (Couple)"),$A7) -> FALSE | D7: =IF(AND(D$1<>$A7,HLOOKUP($A7,Residential!$E$14:$O$15,2,FALSE)="Individual (Couple)",Residential!I$15="Individual (Couple)"),$A7) -> FALSE | E7: =IF(AND(E$1<>$A7,HLOOKUP($A7,Residential!$E$14:$O$15,2,FALSE)="Individual (Couple)",Residential!K$15="Individual (Couple)"),$A7) -> FALSE | F7: =IF(AND(F$1<>$A7,HLOOKUP($A7,Residential!$E$14:$O$15,2,FALSE)="Individual (Couple)",Residential!M$15="Individual (Couple)"),$A7) -> FALSE | G7: =IF(AND(G$1<>$A7,HLOOKUP($A7,Residential!$E$14:$O$15,2,FALSE)="Individual (Couple)",Residential!O$15="Individual (Couple)"),$A7) -> FALSE
B9: =IF(MID(Residential!E15,13,6)<>"Couple","","N/A") ->  | C9: =IF(MID(Residential!G15,13,6)<>"Couple","","N/A") ->  | D9: =IF(MID(Residential!I15,13,6)<>"Couple","","N/A") ->  | E9: =IF(MID(Residential!K15,13,6)<>"Couple","","N/A") ->  | F9: =IF(MID(Residential!M15,13,6)<>"Couple","","N/A") ->  | G9: =IF(MID(Residential!O15,13,6)<>"Couple","","N/A") ->  | J9: =IF(MID(Commercial!E39,13,6)<>"Couple","","N/A") ->  | K9: =IF(MID(Commercial!G39,13,6)<>"Couple","","N/A") ->  | L9: =IF(MID(Commercial!I39,13,6)<>"Couple","","N/A") ->  | M9: =IF(MID(Commercial!K39,13,6)<>"Couple","","N/A") -> 
B10: =IF(MID(Residential!E15,13,6)<>"Couple","","Non-loan party") ->  | C10: =IF(MID(Residential!G15,13,6)<>"Couple","","Non-loan party") ->  | D10: =IF(MID(Residential!I15,13,6)<>"Couple","","Non-loan party") ->  | E10: =IF(MID(Residential!K15,13,6)<>"Couple","","Non-loan party") ->  | F10: =IF(MID(Residential!M15,13,6)<>"Couple","","Non-loan party") ->  | G10: =IF(MID(Residential!O15,13,6)<>"Couple","","Non-loan party") ->  | J10: =IF(MID(Commercial!E39,13,6)<>"Couple","","Non-loan party") ->  | K10: =IF(MID(Commercial!G39,13,6)<>"Couple","","Non-loan party") ->  | L10: =IF(MID(Commercial!I39,13,6)<>"Couple","","Non-loan party") ->  | M10: =IF(MID(Commercial!K39,13,6)<>"Couple","","Non-loan party") -> 
B11: =IFERROR(INDEX(B$2:B$7,SMALL(IF(ISTEXT(B$2:B$7),ROW(B$1:B$6),""), ROW(B2)-1)),"-") -> - | C11: =IFERROR(INDEX(C$2:C$7,SMALL(IF(ISTEXT(C$2:C$7),ROW(C$1:C$6),""), ROW(C2)-1)),"-") -> - | D11: =IFERROR(INDEX(D$2:D$7,SMALL(IF(ISTEXT(D$2:D$7),ROW(D$1:D$6),""), ROW(D2)-1)),"-") -> - | E11: =IFERROR(INDEX(E$2:E$7,SMALL(IF(ISTEXT(E$2:E$7),ROW(E$1:E$6),""), ROW(E2)-1)),"-") -> - | F11: =IFERROR(INDEX(F$2:F$7,SMALL(IF(ISTEXT(F$2:F$7),ROW(F$1:F$6),""), ROW(F2)-1)),"-") -> - | G11: =IFERROR(INDEX(G$2:G$7,SMALL(IF(ISTEXT(G$2:G$7),ROW(G$1:G$6),""), ROW(G2)-1)),"-") -> - | J11: =IFERROR(INDEX(J$2:J$5,SMALL(IF(ISTEXT(J$2:J$5),ROW(J$1:J$4),""), ROW(J2)-1)),"-") -> - | K11: =IFERROR(INDEX(K$2:K$5,SMALL(IF(ISTEXT(K$2:K$5),ROW(K$1:K$4),""), ROW(K2)-1)),"-") -> - | L11: =IFERROR(INDEX(L$2:L$5,SMALL(IF(ISTEXT(L$2:L$5),ROW(L$1:L$4),""), ROW(L2)-1)),"-") -> - | M11: =IFERROR(INDEX(M$2:M$5,SMALL(IF(ISTEXT(M$2:M$5),ROW(M$1:M$4),""), ROW(M2)-1)),"-") -> -
B12: =IFERROR(INDEX(B$2:B$7,SMALL(IF(ISTEXT(B$2:B$7),ROW(B$1:B$6),""), ROW(B3)-1)),"-") -> - | C12: =IFERROR(INDEX(C$2:C$7,SMALL(IF(ISTEXT(C$2:C$7),ROW(C$1:C$6),""), ROW(C3)-1)),"-") -> - | D12: =IFERROR(INDEX(D$2:D$7,SMALL(IF(ISTEXT(D$2:D$7),ROW(D$1:D$6),""), ROW(D3)-1)),"-") -> - | E12: =IFERROR(INDEX(E$2:E$7,SMALL(IF(ISTEXT(E$2:E$7),ROW(E$1:E$6),""), ROW(E3)-1)),"-") -> - | F12: =IFERROR(INDEX(F$2:F$7,SMALL(IF(ISTEXT(F$2:F$7),ROW(F$1:F$6),""), ROW(F3)-1)),"-") -> - | G12: =IFERROR(INDEX(G$2:G$7,SMALL(IF(ISTEXT(G$2:G$7),ROW(G$1:G$6),""), ROW(G3)-1)),"-") -> - | J12: =IFERROR(INDEX(J$2:J$5,SMALL(IF(ISTEXT(J$2:J$5),ROW(J$1:J$4),""), ROW(J3)-1)),"-") -> - | K12: =IFERROR(INDEX(K$2:K$5,SMALL(IF(ISTEXT(K$2:K$5),ROW(K$1:K$4),""), ROW(K3)-1)),"-") -> - | L12: =IFERROR(INDEX(L$2:L$5,SMALL(IF(ISTEXT(L$2:L$5),ROW(L$1:L$4),""), ROW(L3)-1)),"-") -> - | M12: =IFERROR(INDEX(M$2:M$5,SMALL(IF(ISTEXT(M$2:M$5),ROW(M$1:M$4),""), ROW(M3)-1)),"-") -> -
B13: =IFERROR(INDEX(B$2:B$7,SMALL(IF(ISTEXT(B$2:B$7),ROW(B$1:B$6),""), ROW(B4)-1)),"-") -> - | C13: =IFERROR(INDEX(C$2:C$7,SMALL(IF(ISTEXT(C$2:C$7),ROW(C$1:C$6),""), ROW(C4)-1)),"-") -> - | D13: =IFERROR(INDEX(D$2:D$7,SMALL(IF(ISTEXT(D$2:D$7),ROW(D$1:D$6),""), ROW(D4)-1)),"-") -> - | E13: =IFERROR(INDEX(E$2:E$7,SMALL(IF(ISTEXT(E$2:E$7),ROW(E$1:E$6),""), ROW(E4)-1)),"-") -> - | F13: =IFERROR(INDEX(F$2:F$7,SMALL(IF(ISTEXT(F$2:F$7),ROW(F$1:F$6),""), ROW(F4)-1)),"-") -> - | G13: =IFERROR(INDEX(G$2:G$7,SMALL(IF(ISTEXT(G$2:G$7),ROW(G$1:G$6),""), ROW(G4)-1)),"-") -> - | J13: =IFERROR(INDEX(J$2:J$5,SMALL(IF(ISTEXT(J$2:J$5),ROW(J$1:J$4),""), ROW(J4)-1)),"-") -> - | K13: =IFERROR(INDEX(K$2:K$5,SMALL(IF(ISTEXT(K$2:K$5),ROW(K$1:K$4),""), ROW(K4)-1)),"-") -> - | L13: =IFERROR(INDEX(L$2:L$5,SMALL(IF(ISTEXT(L$2:L$5),ROW(L$1:L$4),""), ROW(L4)-1)),"-") -> - | M13: =IFERROR(INDEX(M$2:M$5,SMALL(IF(ISTEXT(M$2:M$5),ROW(M$1:M$4),""), ROW(M4)-1)),"-") -> -
B14: =IFERROR(INDEX(B$2:B$7,SMALL(IF(ISTEXT(B$2:B$7),ROW(B$1:B$6),""), ROW(B5)-1)),"-") -> - | C14: =IFERROR(INDEX(C$2:C$7,SMALL(IF(ISTEXT(C$2:C$7),ROW(C$1:C$6),""), ROW(C5)-1)),"-") -> - | D14: =IFERROR(INDEX(D$2:D$7,SMALL(IF(ISTEXT(D$2:D$7),ROW(D$1:D$6),""), ROW(D5)-1)),"-") -> - | E14: =IFERROR(INDEX(E$2:E$7,SMALL(IF(ISTEXT(E$2:E$7),ROW(E$1:E$6),""), ROW(E5)-1)),"-") -> - | F14: =IFERROR(INDEX(F$2:F$7,SMALL(IF(ISTEXT(F$2:F$7),ROW(F$1:F$6),""), ROW(F5)-1)),"-") -> - | G14: =IFERROR(INDEX(G$2:G$7,SMALL(IF(ISTEXT(G$2:G$7),ROW(G$1:G$6),""), ROW(G5)-1)),"-") -> -
B15: =IFERROR(INDEX(B$2:B$7,SMALL(IF(ISTEXT(B$2:B$7),ROW(B$1:B$6),""), ROW(B6)-1)),"-") -> - | C15: =IFERROR(INDEX(C$2:C$7,SMALL(IF(ISTEXT(C$2:C$7),ROW(C$1:C$6),""), ROW(C6)-1)),"-") -> - | D15: =IFERROR(INDEX(D$2:D$7,SMALL(IF(ISTEXT(D$2:D$7),ROW(D$1:D$6),""), ROW(D6)-1)),"-") -> - | E15: =IFERROR(INDEX(E$2:E$7,SMALL(IF(ISTEXT(E$2:E$7),ROW(E$1:E$6),""), ROW(E6)-1)),"-") -> - | F15: =IFERROR(INDEX(F$2:F$7,SMALL(IF(ISTEXT(F$2:F$7),ROW(F$1:F$6),""), ROW(F6)-1)),"-") -> - | G15: =IFERROR(INDEX(G$2:G$7,SMALL(IF(ISTEXT(G$2:G$7),ROW(G$1:G$6),""), ROW(G6)-1)),"-") -> -
A19: Dependents Lookup
A20: Dependents | B20: DependedntsCode
A21: 0 | B21: 1
A22: 1 | B22: 1
A23: 2 | B23: 2
A24: 3 | B24: 3
A25: 4 | B25: 4+
B37: Don’t remove | C37: Don’t remove
A39: Servicability Calculator | I39: CRE
B40: Applicant 1 | C40: Applicant 2 | D40: Applicant 3 | E40: Applicant 4 | F40: Applicant 5 | G40: Applicant 6 | I40: Applicant 1 | J40: Applicant 2 | K40: Applicant 3 | L40: Applicant 4
A41: Status
A42: Individual (Couple) With

Sheet Tax Table (hidden)
I2: This is the Tax Offset for Low income earners
I3: https://www.ato.gov.au/individuals/income-and-deductions/offsets-and-rebates/low-income-earners/
A4: Medicare Levy 2017 - 2018 | D4: 1 | E4: Tax offset for Low income earners
A5: Threshold | B5: Value | C5: Rate | E5: Thresholds | F5: Max Tax Offset
A6: Minimum for partial levy | B6: 21980 | C6: 0.1 | E6: 37000 | F6: 445
A7: Minimum for full levy | B7: 27475 | C7: 0.02 | E7: 66667
A9: Tax 2018-2019
A10: Tax Bracket Min | B10: Tax For Bracket | C10: Tax Rate | E10: Reduced By over 37000K | F10: 0.015
A11: 0 | B11: 0 | C11: 0
A12: 18200 | B12: 0 | C12: 0.19 | D12: 2 | E12: Tax offset for Low income earners
A13: 37000 | B13: =(A13-A12)*C12 -> 3572 | C13: 0.325 | E13: Thresholds | F13: Tax Offset $ | G13: Tax Offset%
A14: 90000 | B14: =(A13-A12)*C12+(A14-A13)*C13 -> 20797 | C14: 0.37 | E14: 0 | F14: 200
A15: 180000 | B15: =(A13-A12)*C12+(A14-A13)*C13+(A15-A14)*C14 -> 54097 | C15: 0.45 | E15: 37000 | F15: 200 | G15: 0.03
A16: 999999999 | B16: =B15 -> 54097 | C16: 0.45 | E16: 48000 | F16: 530
E17: 90000 | F17: 530 | G17: -0.015
E18: 999999999 | F18: 530
I19: This is the Medicare levy reduction for low income earners
I20: https://www.ato.gov.au/Individuals/Medicare-levy/Medicare-levy-reduction-for-low-income-earners/

Sheet Inputs (hidden)
A1: Inputs
A3: Baseline Assessment Rate | B3: 0.0585
A5: Assessment Loading | B5: 0.025
A7: Credit Card Commitments | B7: 0.0382
A9: Workings for Negative Gearing | B9: 0.0367
A11: Other Mortgage Repayment Buffer | B11: 1.25
A13: Rental Income Shading | B13: 0.8
A15: Company Tax | B15: 0.275
A17: NumberOfWeeksInAYear | B17: 52
A18: NumberOfMonthsInAYear | B18: 12
A20: Acceptable NSR For LVR > 90% | B20: 1.35
A21: Acceptable NSR For Applicants with majority income as Government Allowances | B21: 1.25
A22: Acceptable NSR for All other applicants | B22: 1
A24: Allowable Government Allowance over Total Income Limitation | B24: 0.5
A32: CRE
B33: Full Doc | C33: Alt Doc | D33: Lease Doc
A34: Minimum ICR | B34: 1.495 | C34: 1.745 | D34: 1.745
A35: Minimum DSCR | B35: 1.245 | C35: 1.245 | D35: 1.245
A38: Residenital
A39: Minimum Loan Term in Years | B39: 10
A40: Maximum Loan Term In years | B40: 40
A41: Maximum Loan Term In Years For Prime Loans | B41: 30
A43: Minimum Interest Only Loan term in Years | B43: 0
A44: Maximum Interest Only Loan term in Years | B44: 5

Sheet Data (hidden)
A1: Loan Amount | B1: Interest Rate | C1: Assessment Rate | D1: Loan Term | E1: IO Term | F1: Status 1 | G1: Status 2 | H1: Status 3 | I1: Status 4 | J1: Status 5 | K1: Status 6 | L1: Couple With 1 | M1: Couple With 2 | N1: Couple With 3 | O1: Couple With 4 | P1: Couple With 5 | Q1: Couple With 6 | R1: Dependants 1 | S1: Dependants 2 | T1: Dependants 3 | U1: Dependants 4 | V1: Dependants 5 | W1: Dependants 6 | X1: Gross Annual Income 1 | Y1: Gross Annual Income 2 | Z1: Gross Annual Income 3 | AA1: Gross Annual Income 4 | AB1: Gross Annual Income 5 | AC1: Gross Annual Income 6 | AD1: Untaxed Income 1 | AE1: Untaxed Income 2 | AF1: Untaxed Income 3 | AG1: Untaxed Income 4 | AH1: Untaxed Income 5 | AI1: Untaxed Income 6 | AJ1: SEIC 1 | AK1: SEIC 2 | AL1: SEIC 3 | AM1: SEIC 4 | AN1: SEIC 5 | AO1: SEIC 6 | AP1: Add Backs 1 | AQ1: Add Backs 2 | AR1: Add Backs 3 | AS1: Add Backs 4 | AT1: Add Backs 5 | AU1: Add Backs 6 | AV1: NPBT 1 | AW1: NPBT 2 | AX1: NPBT 3 | AY1: NPBT 4 | AZ1: NPBT 5 | BA1: NPBT 6 | BB1: Gross Rental Income 1 | BC1: Gross Rental Income 2 | BD1: Gross Rental Income 3 | BE1: Gross Rental Income 4 | BF1: Gross Rental Income 5 | BG1: Gross Rental Income 6 | BH1: Investment Property Loan Balance 1 | BI1: Investment Property Loan Balance 2 | BJ1: Investment Property Loan Balance 3 | BK1: Investment Property Loan Balance 4 | BL1: Investment Property Loan Balance 5 | BM1: Investment Property Loan Balance 6 | BN1: Owner occupied property utilities, rates & costs | BO1: Investment property utilities, rates & costs | BP1: Rented property costs | BQ1: Telephone, Internet, Pay TV & Media Streaming | BR1: Groceries | BS1: Recreation & Entertainment | BT1: Clothing & Personal Care | BU1: Medical & Health | BV1: Transport | BW1: Insurance | BX1: Other Living Expenses | BY1: Education | BZ1: Childcare | CA1: Rent/Board | CB1: Total Credit Card Limit | CC1: Other Mortgage Repayments | CD1: Other Liabilities | CE1: Tax Applicant 1 | CF1: Tax Applicant 2 | CG1: Tax Applicant 3 | CH1: Tax Applicant 4 | CI1: Tax Applicant 5 | CJ1: Tax Applicant 6 | CK1: Net Income Applicant 1 | CL1: Net Income Applicant 2 | CM1: Net Income Applicant 3 | CN1: Net Income Applicant 4 | CO1: Net Income Applicant 5 | CP1: Net Income Applicant 6 | CQ1: Net Income Total | CR1: Hem Living Expense Applicant 1 | CS1: Hem Living Expense Applicant 2 | CT1: Hem Living Expense Applicant 3 | CU1: Hem Living Expense Applicant 4 | CV1: Hem Living Expense Applicant 5 | CW1: Hem Living Expense Applicant 6 | CX1: Hem Living Expense Total | CY1: Customer Nominated Living Expenses | CZ1: Living Expense Used | DA1: Net Available Income | DB1: Baseline Assessment Rate | DC1: Assessment Loading | DD1: Credit Card Commitments | DE1: Workings for Negative Gearing | DF1: Other Mortgage Repayment Buffer | DG1: Rental Income Shading | DH1: Company Tax | DI1: Actual Rate Monthly Total Income | DJ1: Actual Rate Monthly - Net Income | DK1: Actual Rate Monthly - Living Costs | DL1: Actual Rate Monthly - Net Available Income | DM1: Actual Rate Monthly - Proposed Repayments | DN1: Actual Rate Monthly - Other Commitments | DO1: Actual Rate Annually Total Income | DP1: Actual Rate Annually - Net Income | DQ1: Actual Rate Annually - Living Costs | DR1: Actual Rate Annually - Net Available Income | DS1: Actual Rate Annually - Proposed Repayments | DT1: Actual Rate Annually - Other Commitments | DU1: Assessment Rate Monthly Total Income | DV1: Assessment Rate Monthly - Net Income | DW1: Assessment Rate Monthly - Living Costs | DX1: Assessment Rate Monthly - Net Available Income | DY1: Assessment Rate Monthly - Proposed Repayments | DZ1: Assessment Rate Monthly - Other Commitments | EA1: Assessment Rate Annually Total Income | EB1: Assessment Rate Annually - Net Income | EC1: Assessment Rate Annually - Living Costs | ED1: Assessment Rate Annually - Net Available Income | EE1: Assessment Rate Annually - Proposed Repayments | EF1: Assessment Rate Annually - Other Commitments | EG1: Actual NSR | EH1: Actual DSR | EI1: Actual Results | EJ1: Assessment NSR | EK1: Assessment DSR | EL1: Assessment Results | EM1: Allowable Income
A2: =Residential!$E$10 -> 0 | B2: =Residential!$I$10 -> 0 | C2: =AssessmentRate -> 0.0585 | D2: =Residential!$I$11 -> 0 | E2: =Residential!$I$12 -> 0 | F2: =IF(Residential!$E$15="","",Residential!$E$15) ->  | G2: =IF(Residential!$G$15="","",Residential!$G$15) ->  | H2: =IF(Residential!$I$15="","",Residential!$I$15) ->  | I2: =IF(Residential!$K$15="","",Residential!$K$15) ->  | J2: =IF(Residential!$M$15="","",Residential!$M$15) ->  | K2: =IF(Residential!$O$15="","",Residential!$O$15) ->  | L2: =IF(Residential!$E$16="","",Residential!$E$16) ->  | M2: =IF(Residential!$G$16="","",Residential!$G$16) ->  | N2: =IF(Residential!$I$16="","",Residential!$I$16) ->  | O2: =IF(Residential!$K$16="","",Residential!$K$16) ->  | P2: =IF(Residential!$M$16="","",Residential!$M$16) ->  | Q2: =IF(Residential!$O$16="","",Residential!$O$16) ->  | R2: =IF(Residential!$E$17="","",Residential!$E$17) ->  | S2: =IF(Residential!$G$17="","",Residential!$G$17) ->  | T2: =IF(Residential!$I$17="","",Residential!$I$17) ->  | U2: =IF(Residential!$K$17="","",Residential!$K$17) ->  | V2: =IF(Residential!$M$17="","",Residential!$M$17) ->  | W2: =IF(Residential!$O$17="","",Residential!$O$17) ->  | X2: =Residential!$E$19 -> 0 | Y2: =Residential!$G$19 -> 0 | Z2: =Residential!$I$19 -> 0 | AA2: =Residential!$K$19 -> 0 | AB2: =Residential!$M$19 -> 0 | AC2: =Residential!$O$19 -> 0 | AD2: =Residential!$E$20 -> 0 | AE2: =Residential!$G$20 -> 0 | AF2: =Residential!$I$20 -> 0 | AG2: =Residential!$K$20 -> 0 | AH2: =Residential!$M$20 -> 0 | AI2: =Residential!$O$20 -> 0 | AJ2: =Residential!$E$21 -> 0 | AK2: =Residential!$G$21 -> 0 | AL2: =Residential!$I$21 -> 0 | AM2: =Residential!$K$21 -> 0 | AN2: =Residential!$M$21 -> 0 | AO2: =Residential!$O$21 -> 0 | AP2: =Residential!$E$22 -> 0 | AQ2: =Residential!$G$22 -> 0 | AR2: =Residential!$I$22 -> 0 | AS2: =Residential!$K$22 -> 0 | AT2: =Residential!$M$22 -> 0 | AU2: =Residential!$O$22 -> 0 | AV2: =Residential!$E$23 -> 0 | AW2: =Residential!$G$23 -> 0 | AX2: =Residential!$I$23 -> 0 | AY2: =Residential!$K$23 -> 0 | AZ2: =Residential!$M$23 -> 0 | BA2: =Residential!$O$23 -> 0 | BB2: =Residential!$E$25 -> 0 | BC2: =Residential!$G$25 -> 0 | BD2: =Residential!$I$25 -> 0 | BE2: =Residential!$K$25 -> 0 | BF2: =Residential!$M$25 -> 0 | BG2: =Residential!$O$25 -> 0 | BH2: =Residential!$E$26 -> 0 | BI2: =Residential!$G$26 -> 0 | BJ2: =Residential!$I$26 -> 0 | BK2: =Residential!$K$26 -> 0 | BL2: =Residential!$M$26 -> 0 | BM2: =Residential!$O$26 -> 0 | BN2: =Residential!$G$50 -> 0 | BO2: =Residential!$G$51 -> 0 | BP2: =Residential!$G$52 -> 0 | BQ2: =Residential!$G$53 -> 0 | BR2: =Residential!$G$54 -> 0 | BS2: =Residential!$G$55 -> 0 | BT2: =Residential!$G$56 -> 0 | BU2: =Residential!$G$57 -> 0 | BV2: =Residential!$G$58 -> 0 | BW2: =Residential!$G$59 -> 0 | BX2: =Residential!$G$60 -> 0 | BY2: =Residential!$G$61 -> 0 | BZ2: =Residential!$G$62 -> 0 | CA2: =Residential!$M$50 -> 0 | CB2: =Residential!$M$51 -> 0 | CC2: =Residential!$M$52 -> 0 | CD2: =Residential!$M$53 -> 0 | CE2: =Residential!$E$37 -> 0 | CF2: =Residential!$G$37 -> 0 | CG2: =Residential!$I$37 -> 0 | CH2: =Residential!$K$37 -> 0 | CI2: =Residential!$M$37 -> 0 | CJ2: =Residential!$O$37 -> 0 | CK2: =Residential!$E$39 -> 0 | CL2: =Residential!$G$39 -> 0 | CM2: =Residential!$I$39 -> 0 | CN2: =Residential!$K$39 -> 0 | CO2: =Residential!$M$39 -> 0 | CP2: =Residential!$O$39 -> 0 | CQ2: =Residential!$R$39 -> 0 | CR2: =Residential!$E$40 -> 0 | CS2: =Residential!$G$40 -> 0 | CT2: =Residential!$I$40 -> 0 | CU2: =Residential!$K$40 -> 0 | CV2: =Residential!$M$40 -> 0 | CW2: =Residential!$O$40 -> 0 | CX2: =Residential!$R$40 -> 0 | CY2: =Residential!$R$41 -> 0 | CZ2: =Residential!$R$42 -> 0 | DA2: =Residential!$R$43 -> 0 | DB2: =BaselineAssessmentRate -> 0.0585 | DC2: =AssessmentLoading -> 0.025 | DD2: =CreditCardCommitments -> 0.0382 | DE2: =WorkingsForNegativeGearing -> 0.0367 | DF2: =OtherMortgageRepaymentBuffer -> 1.25 | DG2: =RentalIncomeShading -> 0.8 | DH2: =CompanyTax -> 0.275 | DI2: =ROUND(Residential!$E$68,2) -> 0 | DJ2: =ROUND(Residential!$E$69,2) -> 0 | DK2: =ROUND(Residential!$E$70,2) -> 0 | DL2: =ROUND(Residential!$E$71,2) -> 0 | DM2: =ROUND(Residential!$E$72,2) -> 0 | DN2: =ROUND(Residential!$E$73,2) -> 0 | DO2: =ROUND(Residential!$G$68,2) -> 0 | DP2: =ROUND(Residential!$G$69,2) -> 0 | DQ2: =ROUND(Residential!$G$70,2) -> 0 | DR2: =ROUND(Residential!$G$71,2) -> 0 | DS2: =ROUND(Residential!$G$72,2) -> 0 | DT2: =ROUND(Residential!$G$73,2) -> 0 | DU2: =ROUND(Residential!$M$68,2) -> 0 | DV2: =ROUND(Residential!$M$69,2) -> 0 | DW2: =ROUND(Residential!$M$70,2) -> 0 | DX2: =ROUND(Residential!$M$71,2) -> 0 | DY2: =ROUND(Residential!$M$72,2) -> 0 | DZ2: =ROUND(Residential!$M$73,2) -> 0 | EA2: =ROUND(Residential!$O$68,2) -> 0 | EB2: =ROUND(Residential!$O$69,2) -> 0 | EC2: =ROUND(Residential!$O$70,2) -> 0 | ED2: =ROUND(Residential!$O$71,2) -> 0 | EE2: =ROUND(Residential!$O$72,2) -> 0 | EF2: =ROUND(Residential!$O$73,2) -> 0 | EG2: =Residential!$E$75 -> 0 | EH2: =Residential!$E$76 -> - | EI2: =Residential!$G$75 -> INCOMPLETE | EJ2: =Residential!$M$75 -> 0 | EK2: =Residential!$M$76 -> - | EL2: =Residential!$O$75 -> INCOMPLETE | EM2: =IF(Residential!$M$82<>"Incomplete",ROUND(Residential!$M$82,2),Residential!$M$82) -> INCOMPLETE

Sheet TestCases (hidden)
A1: Test Cases TestCases TestCases TestCases TestCases TestCases TestCases TestCases TestCases TestCases TestCases TestCases TestCases TestCases TestCases TestCases TestCases TestCases TestCases TestCases TestCases TestCases TestCases TestCases TestCases TestCases TestCases TestCases TestCases TestCases TestCases TestCases TestCases TestCases TestCases TestCases TestCases TestCases TestCases TestCases TestCases TestCases TestCases TestCases TestCases TestCases TestCases TestCases TestCases TestCases TestCases TestCases TestCases TestCases TestCases TestCases TestCases TestCases TestCases TestCases TestCases TestCases TestCases TestCases TestCases TestCases TestCases TestCases TestCases TestCases TestCases TestCases TestCases TestCases TestCases TestCases TestCases TestCases TestCases TestCases TestCases TestCases TestCases TestCases | CE1: Original-Result-set Original-Result-set Original-Result-set Original-Result-set Original-Result-set Original-Result-set Original-Result-set Original-Result-set Original-Result-set Original-Result-set Original-Result-set Original-Result-set Original-Result-set Original-Result-set Original-Result-set Original-Result-set Original-Result-set Original-Result-set Original-Result-set Original-Result-set Original-Result-set Original-Result-set Original-Result-set Original-Result-set Original-Result-set Original-Result-set Original-Result-set Original-Result-set | EN1: New-Resultset New-Resultset New-Resultset New-Resultset New-Resultset New-Resultset New-Resultset New-Resultset New-Resultset New-Resultset New-Resultset New-Resultset New-Resultset New-Resultset New-Resultset New-Resultset New-Resultset New-Resultset New-Resultset New-Resultset New-Resultset New-Resultset New-Resultset New-Resultset New-Resultset New-Resultset New-Resultset New-Resultset New-Resultset New-Resultset New-Resultset New-Resultset New-Resultset New-Resultset New-Resultset New-Resultset New-Resultset New-Resultset | GW1: Test cases will run when date tested is blank and Run Scenario Flag is "Y"
A2: Loan Amount | B2: Interest Rate | C2: Assesment Rate | D2: Loan Term | E2: IO Term | F2: Status 1 | G2: Status 2 | H2: Status 3 | I2: Status 4 | J2: Status 5 | K2: Status 6 | L2: Couple With 1 | M2: Couple With 2 | N2: Couple With 3 | O2: Couple With 4 | P2: Couple With 5 | Q2: Couple With 6 | R2: Dependants 1 | S2: Dependants 2 | T2: Dependants 3 | U2: Dependants 4 | V2: Dependants 5 | W2: Dependants 6 | X2: Gross Annual Income 1 | Y2: Gross Annual Income 2 | Z2: Gross Annual Income 3 | AA2: Gross Annual Income 4 | AB2: Gross Annual Income 5 | AC2: Gross Annual Income 6 | AD2: Untaxed Income 1 | AE2: Untaxed Income 2 | AF2: Untaxed Income 3 | AG2: Untaxed Income 4 | AH2: Untaxed Income 5 | AI2: Untaxed Income 6 | AJ2: SEIC 1 | AK2: SEIC 2 | AL2: SEIC 3 | AM2: SEIC 4 | AN2: SEIC 5 | AO2: SEIC 6 | AP2: Add Backs 1 | AQ2: Add Backs 2 | AR2: Add Backs 3 | AS2: Add Backs 4 | AT2: Add Backs 5 | AU2: Add Backs 6 | AV2: NPBT 1 | AW2: NPBT 2 | AX2: NPBT 3 | AY2: NPBT 4 | AZ2: NPBT 5 | BA2: NPBT 6 | BB2: Gross Rental Income 1 | BC2: Gross Rental Income 2 | BD2: Gross Rental Income 3 | BE2: Gross Rental Income 4 | BF2: Gross Rental Income 5 | BG2: Gross Rental Income 6 | BH2: Investment Property Loan Balance 1 | BI2: Investment Property Loan Balance 2 | BJ2: Investment Property Loan Balance 3 | BK2: Investment Property Loan Balance 4 | BL2: Investment Property Loan Balance 5 | BM2: Investment Property Loan Balance 6 | BN2: Owner occupied property utilities, rates & costs | BO2: Investment property utilities, rates & costs | BP2: Rented property costs | BQ2: Telephone, Internet, Pay TV & Media Streaming | BR2: Groceries | BS2: Recreation & Entertainment | BT2: Clothing & Personal Care | BU2: Medical & Health | BV2: Transport | BW2: Insurance | BX2: Other Living Expenses | BY2: Education | BZ2: Childcare | CA2: Rent/Board | CB2: Total Credit Card Limit | CC2: Other Mortgage Repayments | CD2: Other Liabilities | CE2: Tax Applicant 1 | CF2: Tax Applicant 2 | CG2: Tax Applicant 3 | CH2: Tax Applicant 4 | CI2: Tax Applicant 5 | CJ2: Tax Applicant 6 | CK2: Net Income Applicant 1 | CL2: Net Income Applicant 2 | CM2: Net Income Applicant 3 | CN2: Net Income Applicant 4 | CO2: Net Income Applicant 5 | CP2: Net Income Applicant 6 | CQ2: Net Income Total | CR2: Hem Living Expense Applicant 1 | CS2: Hem Living Expense Applicant 2 | CT2: Hem Living Expense Applicant 3 | CU2: Hem Living Expense Applicant 4 | CV2: Hem Living Expense Applicant 5 | CW2: Hem Living Expense Applicant 6 | CX2: Hem Living Expense Total | CY2: Customer Nominated Living Expenses | CZ2: Living Expense Used | DA2: Net Available Income | DB2: Baseline Assessment Rate | DC2: Assessment Loading | DD2: Credit Card Commitments | DE2: Workings for Negative Gearing | DF2: Other Mortgage Repayment Buffer | DG2: Rental Income Shading | DH2: Company Tax | DI2: Actual Rate Monthly Total Income | DJ2: Actual Rate Monthly - Net Income | DK2: Actual Rate Monthly - Living Costs | DL2: Actual Rate Monthly - Net Available Income | DM2: Actual Rate Monthly - Proposed Repayments | DN2: Actual Rate Monthly - Other Commitments | DO2: Actual Rate Annually Total Income | DP2: Actual Rate Annually - Net Income | DQ2: Actual Rate Annually - Living Costs | DR2: Actual Rate Annually - Net Available Income | DS2: Actual Rate Annually - Proposed Repayments | DT2: Actual Rate Annually - Other Commitments | DU2: Assessment Rate Monthly Total Income | DV2: Assessment Rate Monthly - Net Income | DW2: Assessment Rate Monthly - Living Costs | DX2: Assessment Rate Monthly - Net Available Income | DY2: Assessment Rate Monthly - Proposed Repayments | DZ2: Assessment Rate Monthly - Other Commitments | EA2: Assessment Rate Annually Total Income | EB2: Assessment Rate Annually - Net Income | EC2: Assessment Rate Annually - Living Costs | ED2: Assessment Rate Annually - Net Available Income | EE2: Assessment Rate Annually - Proposed Repayments | EF2: Assessment Rate Annually - Other Commitments | EG2: Actual NSR | EH2: Actual DSR | EI2: Actual Results | EJ2: Assessment NSR | EK2: Assessment DSR | EL2: Assessment Results | EM2: Allowable Income | EN2: Tax Applicant 1 | EO2: Tax Applicant 2 | EP2: Tax Applicant 3 | EQ2: Tax Applicant 4 | ER2: Tax Applicant 5 | ES2: Tax Applicant 6 | ET2: Net Income Applicant 1 | EU2: Net Income Applicant 2 | EV2: Net Income Applicant 3 | EW2: Net Income Applicant 4 | EX2: Net Income Applicant 5 | EY2: Net Income Applicant 6 | EZ2: Net Income Total | FA2: Hem Living Expense Applicant 1 | FB2: Hem Living Expense Applicant 2 | FC2: Hem Living Expense Applicant 3 | FD2: Hem Living Expense Applicant 4 | FE2: Hem Living Expense Applicant 5 | FF2: Hem Living Expense Applicant 6 | FG2: Hem Living Expense Total | FH2: Customer Nominated Living Expenses | FI2: Living Expense Used | FJ2: Net Available Income | FK2: Baseline Assessment Rate | FL2: Assessment Loading | FM2: Credit Card Commitments | FN2: Workings for Negative Gearing | FO2: Other Mortgage Repayment Buffer | FP2: Rental Income Shading | FQ2: Company Tax | FR2: Actual Rate Monthly Total Income | FS2: Actual Rate Monthly - Net Income | FT2: Actual Rate Monthly - Living Costs | FU2: Actual Rate Monthly - Net Available Income | FV2: Actual Rate Monthly - Proposed Repayments | FW2: Actual Rate Monthly - Other Commitments | FX2: Actual Rate Annually Total Income | FY2: Actual Rate Annually - Net Income | FZ2: Actual Rate Annually - Living Costs | GA2: Actual Rate Annually - Net Available Income | GB2: Actual Rate Annually - Proposed Repayments | GC2: Actual Rate Annually - Other Commitments | GD2: Assessment Rate Monthly Total Income | GE2: Assessment Rate Monthly - Net Income | GF2: Assessment Rate Monthly - Living Costs | GG2: Assessment Rate Monthly - Net Available Income | GH2: Assessment Rate Monthly - Proposed Repayments | GI2: Assessment Rate Monthly - Other Commitments | GJ2: Assessment Rate Annually Total Income | GK2: Assessment Rate Annually - Net Income | GL2: Assessment Rate Annually - Living Costs | GM2: Assessment Rate Annually - Net Available Income | GN2: Assessment Rate Annually - Proposed Repayments | GO2: Assessment Rate Annually - Other Commitments | GP2: Actual NSR | GQ2: Actual DSR | GR2: Actual Results | GS2: Assessment NSR | GT2: Assessment DSR | GU2: Assessment Results | GV2: Allowable Income | GW2: Pass or Fail | GX2: Run Scenario Flag | GY2: Date Tested | GZ2: Scenario | HA2: Sequence | HB2: Name | HE2: HEM Delta
A3: 1000000 | B3: 0.06 | C3: 0.085 | D3: 30 | E3: 5 | F3: Individual (Couple) | G3: Individual (Couple) | L3: Applicant 2 | M3: Applicant 1 | R3: 2 | X3: 270000 | Y3: 0 | Z3: 0 | AA3: 0 | AB3: 0 | AC3: 0 | AD3: 0 | AE3: 0 | AF3: 0 | AG3: 0 | AH3: 0 | AI3: 0 | AJ3: 135000 | AK3: 0 | AL3: 0 | AM3: 0 | AN3: 0 | AO3: 0 | AP3: 0 | AQ3: 0 | AR3: 0 | AS3: 0 | AT3: 0 | AU3: 0 | AV3: 100000 | AW3: 0 | AX3: 0 | AY3: 0 | AZ3: 0 | BA3: 0 | BB3: 0 | BC3: 100000 | BD3: 0 | BE3: 0 | BF3: 0 | BG3: 0 | BH3: 0 | BI3: 300000 | BJ3: 0 | BK3: 0 | BL3: 0 | BM3: 0 | BN3: 100 | BO3: 100 | BP3: 0 | BQ3: 80 | BR3: 300 | BS3: 80 | BT3: 30 | BU3: 50 | BV3: 50 | BW3: 0 | BX3: 0 | BY3: 50 | BZ3: 0 | CA3: 0 | CB3: 5000 | CC3: 1000 | CD3: 500 | CE3: 193447 | CF3: 14530.9 | CG3: 0 | CH3: 0 | CI3: 0 | CJ3: 0 | CK3: 311553 | CL3: 65999.8 | CM3: 0 | CN3: 0 | CO3: 0 | CP3: 0 | CQ3: 377552.8 | CR3: 56587.73 | CS3: 0 | CT3: 0 | CU3: 0 | CV3: 0 | CW3: 0 | CX3: 56587.73 | CY3: 10080 | CZ3: 56587.73 | DA3: 320965.07 | DB3: 0.0585 | DC3: 0.025 | DD3: 0.0382 | DE3: 0.0406 | DF3: 1.25 | DG3: 0.8 | DH3: 0.3 | DI3: 48750 | DJ3: 31462.73 | DK3: 4715.64 | DL3: 26747.09 | DM3: 6443.01 | DN3: 1941 | DO3: 585000 | DP3: 377552.8 | DQ3: 56587.73 | DR3: 320965.07 | DS3: 77316.17 | DT3: 23292 | DU3: 48750 | DV3: 31462.73 | DW3: 4715.64 | DX3: 26747.09 | DY3: 8052.27 | DZ3: 1941 | EA3: 585000 | EB3: 377552.8 | EC3: 56587.73 | ED3: 320965.07 | EE3: 96627.25 | EF3: 23292 | EG3: 3.19 | EH3: 0.1719797747 | EI3: PASS | EJ3: 2.67 | EK3: 0.204990171 | EL3: PASS | EM3: 1000000 | EN3: 190947 | EO3: 14934.55 | EP3: 0 | EQ3: 0 | ER3: 0 | ES3: 0 | ET3: 314053 | EU3: 65595.45 | EV3: 0 | EW3: 0 | EX3: 0 | EY3: 0 | EZ3: 379648.45 | FA3: 67738.35 | FB3: 0 | FC3: 0 | FD3: 0 | FE3: 0 | FF3: 0 | FG3: 67738.35 | FH3: 10080 | FI3: 67738.35 | FJ3: 311910.1 | FK3: 0.0585 | FL3: 0.025 | FM3: 0.0382 | FN3: 0.0367 | FO3: 1.25 | FP3: 0.8 | FQ3: 0.275 | FR3: 48750 | FS3: 31637.37 | FT3: 5644.86 | FU3: 25992.51 | FV3: 6443.01 | FW3: 1941 | FX3: 585000 | FY3: 379648.45 | FZ3: 67738.35 | GA3: 311910.1 | GB3: 77316.17 | GC3: 23292 | GD3: 48750 | GE3: 31637.37 | GF3: 5644.86 | GG3: 25992.51 | GH3: 8052.27 | GI3: 1941 | GJ3: 585000 | GK3: 379648.45 | GL3: 67738.35 | GM3: 311910.1 | GN3: 96627.25 | GO3: 23292 | GP3: 3.1 | GQ3: 0.1719797747 | GR3: PASS | GS3: 2.6 | GT3: 0.204990171 | GU3: PASS | GV3: 1000000 | GW3: =IF(AND(DI3=FR3,DJ3=FS3,DK3=FT3,DL3=FU3,DM3=FV3,DN3=FW3,DO3=FX3,DP3=FY3,DQ3=FZ3,DR3=GA3,DS3=GB3,DT3=GC3,DU3=GD3,DV3=GE3,DW3=GF3,DX3=GG3,DY3=GH3,DZ3=GI3,EA3=GJ3,EB3=GK3,EC3=GL3,ED3=GM3,EE3=GN3,EF3=GO3,EG3=GP3,EH3=GQ3,EI3=GR3,EJ3=GS3,EK3=GT3,EL3=GU3,EM3=GV3),"Pass","Fail") -> Fail | GX3: Y | GY3: 2020-03-26T15:47:11 | HA3: Case 1 | HB3: Mick | HE3: =FG3-CX3 -> 11150.62
A4: 1000000 | B4: 0.06 | C4: 0.085 | D4: 25 | E4: 0 | F4: Individual (Couple) | G4: Individual (Couple) | L4: Applicant 2 | M4: Applicant 1 | R4: 2 | X4: 260000 | Y4: 0 | Z4: 0 | AA4: 0 | AB4: 0 | AC4: 0 | AD4: 0 | AE4: 0 | AF4: 0 | AG4: 0 | AH4: 0 | AI4: 0 | AJ4: 135000 | AK4: 0 | AL4: 0 | AM4: 0 | AN4: 0 | AO4: 0 | AP4: 0 | AQ4: 0 | AR4: 0 | AS4: 0 | AT4: 0 | AU4: 0 | AV4: 0 | AW4: 0 | AX4: 0 | AY4: 0 | AZ4: 0 | BA4: 0 | BB4: 0 | BC4: 100000 | BD4: 0 | BE4: 0 | BF4: 0 | BG4: 0 | BH4: 0 | BI4: 0 | BJ4: 0 | BK4: 0 | BL4: 0 | BM4: 0 | BN4: 0 | BO4: 0 | BP4: 0 | BQ4: 0 | BR4: 0 | BS4: 0 | BT4: 0 | BU4: 0 | BV4: 0 | BW4: 0 | BX4: 0 | BY4: 0 | BZ4: 2000 | CA4: 0 | CB4: 5000 | CC4: 1000 | CD4: 500 | CE4: 158747 | CF4: 19147 | CG4: 0 | CH4: 0 | CI4: 0 | CJ4: 0 | CK4: 236253 | CL4: 61383 | CM4: 0 | CN4: 0 | CO4: 0 | CP4: 0 | CQ4: 297636 | CR4: 56587.73 | CS4: 0 | CT4: 0 | CU4: 0 | CV4: 0 | CW4: 0 | CX4: 56587.73 | CY4: 24000 | CZ4: 56587.73 | DA4: 241048.27 | DB4: 0.0585 | DC4: 0.025 | DD4: 0.0382 | DE4: 0.0406 | DF4: 1.25 | DG4: 0.8 | DH4: 0.3 | DI4: 39583.33 | DJ4: 24803 | DK4: 4715.64 | DL4: 20087.36 | DM4: 6443.01 | DN4: 1941 | DO4: 475000 | DP4: 297636 | DQ4: 56587.73 | DR4: 241048.27 | DS4: 77316.17 | DT4: 23292 | DU4: 39583.33 | DV4: 24803 | DW4: 4715.64 | DX4: 20087.36 | DY4: 8052.27 | DZ4: 1941 | EA4: 475000 | EB4: 297636 | EC4: 56587.73 | ED4: 241048.27 | EE4: 96627.25 | EF4: 23292 | EG4: 2.39 | EH4: 0.2118066698 | EI4: PASS | EJ4: 2.01 | EK4: 0.252461579 | EL4: PASS | EM4: 1000000 | EN4: 158747 | EO4: 19147 | EP4: 0 | EQ4: 0 | ER4: 0 | ES4: 0 | ET4: 236253 | EU4: 61383 | EV4: 0 | EW4: 0 | EX4: 0 | EY4: 0 | EZ4: 297636 | FA4: 67738.35 | FB4: 0 | FC4: 0 | FD4: 0 | FE4: 0 | FF4: 0 | FG4: 67738.35 | FH4: 24000 | FI4: 67738.35 | FJ4: 229897.65 | FK4: 0.0585 | FL4: 0.025 | FM4: 0.0382 | FN4: 0.0367 | FO4: 1.25 | FP4: 0.8 | FQ4: 0.275 | FR4: 39583.33 | FS4: 24803 | FT4: 5644.86 | FU4: 19158.14 | FV4: 6443.01 | FW4: 1941 | FX4: 475000 | FY4: 297636 | FZ4: 67738.35 | GA4: 229897.65 | GB4: 77316.17 | GC4: 23292 | GD4: 39583.33 | GE4: 24803 | GF4: 5644.86 | GG4: 19158.14 | GH4: 8052.27 | GI4: 1941 | GJ4: 475000 | GK4: 297636 | GL4: 67738.35 | GM4: 229897.65 | GN4: 96627.25 | GO4: 23292 | GP4: 2.28 | GQ4: 0.2118066698 | GR4: PASS | GS4: 1.91 | GT4: 0.252461579 | GU4: PASS | GV4: 1000000 | GW4: =IF(AND(DI4=FR4,DJ4=FS4,DK4=FT4,DL4=FU4,DM4=FV4,DN4=FW4,DO4=FX4,DP4=FY4,DQ4=FZ4,DR4=GA4,DS4=GB4,DT4=GC4,DU4=GD4,DV4=GE4,DW4=GF4,DX4=GG4,DY4=GH4,DZ4=GI4,EA4=GJ4,EB4=GK4,EC4=GL4,ED4=GM4,EE4=GN4,EF4=GO4,EG4=GP4,EH4=GQ4,EI4=GR4,EJ4=GS4,EK4=GT4,EL4=GU4,EM4=GV4),"Pass","Fail") -> Fail | GX4: Y | GY4: 2020-03-26T15:47:20 | HA4: Case 2 | HB4: Mick | HE4: =FG4-CX4 -> 11150.62
A5: 1000000 | B5: 0.04 | C5: 0.065 | D5: 31 | E5: 0 | F5: Individual (Couple) | G5: Individual (Couple) | L5: Applicant 2 | M5: Applicant 1 | R5: 2 | X5: 260000 | Y5: 0 | Z5: 0 | AA5: 0 | AB5: 0 | AC5: 0 | AD5: 0 | AE5: 0 | AF5: 0 | AG5: 0 | AH5: 0 | AI5: 0 | AJ5: 135000 | AK5: 0 | AL5: 0 | AM5: 0 | AN5: 0 | AO5: 0 | AP5: 0 | AQ5: 0 | AR5: 0 | AS5: 0 | AT5: 0 | AU5: 0 | AV5: 0 | AW5: 0 | AX5: 0 | AY5: 0 | AZ5: 0 | BA5: 0 | BB5: 0 | BC5: 100000 | BD5: 0 | BE5: 0 | BF5: 0 | BG5: 0 | BH5: 0 | BI5: 1000000 | BJ5: 0 | BK5: 0 | BL5: 0 | BM5: 0 | BN5: 500 | BO5: 300 | BP5: 0 | BQ5: 300 | BR5: 1200 | BS5: 1500 | BT5: 1200 | BU5: 500 | BV5: 400 | BW5: 500 | BX5: 0 | BY5: 500 | BZ5: 0 | CA5: 0 | CB5: 5000 | CC5: 10000 | CD5: 500 | CE5: 158747 | CF5: 4060 | CG5: 0 | CH5: 0 | CI5: 0 | CJ5: 0 | CK5: 236253 | CL5: 76585 | CM5: 0 | CN5: 0 | CO5: 0 | CP5: 0 | CQ5: 312838 | CR5: 56587.73 | CS5: 0 | CT5: 0 | CU5: 0 | CV5: 0 | CW5: 0 | CX5: 56587.73 | CY5: 82800 | CZ5: 82800 | DA5: 230038 | DB5: 0.0585 | DC5: 0.025 | DD5: 0.0382 | DE5: 0.0406 | DF5: 1.25 | DG5: 0.8 | DH5: 0.3 | DI5: 39583.33 | DJ5: 26069.83 | DK5: 6900 | DL5: 19169.83 | DM5: 4694.71 | DN5: 13191 | DO5: 475000 | DP5: 312838 | DQ5: 82800 | DR5: 230038 | DS5: 56336.57 | DT5: 158292 | DU5: 39583.33 | DV5: 26069.83 | DW5: 6900 | DX5: 19169.83 | DY5: 6255.15 | DZ5: 13191 | EA5: 475000 | EB5: 312838 | EC5: 82800 | ED5: 230038 | EE5: 75061.84 | EF5: 158292 | EG5: 1.07 | EH5: 0.451849612 | EI5: PASS | EJ5: 0.98 | EK5: 0.4912712402 | EL5: FAIL | EM5: 955692.01 | EN5: 158747 | EO5: 5243.5 | EP5: 0 | EQ5: 0 | ER5: 0 | ES5: 0 | ET5: 236253 | EU5: 75442 | EV5: 0 | EW5: 0 | EX5: 0 | EY5: 0 | EZ5: 311695 | FA5: 67738.35 | FB5: 0 | FC5: 0 | FD5: 0 | FE5: 0 | FF5: 0 | FG5: 67738.35 | FH5: 82800 | FI5: 82800 | FJ5: 228895 | FK5: 0.0585 | FL5: 0.025 | FM5: 0.0382 | FN5: 0.0367 | FO5: 1.25 | FP5: 0.8 | FQ5: 0.275 | FR5: 39583.33 | FS5: 25974.58 | FT5: 6900 | FU5: 19074.58 | FV5: 4694.71 | FW5: 13191 | FX5: 475000 | FY5: 311695 | FZ5: 82800 | GA5: 228895 | GB5: 56336.57 | GC5: 158292 | GD5: 39583.33 | GE5: 25974.58 | GF5: 6900 | GG5: 19074.58 | GH5: 6255.15 | GI5: 13191 | GJ5: 475000 | GK5: 311695 | GL5: 82800 | GM5: 228895 | GN5: 75061.84 | GO5: 158292 | GP5: 1.06 | GQ5: 0.451849612 | GR5: PASS | GS5: 0.98 | GT5: 0.4912712402 | GU5: FAIL | GV5: 940504.53 | GW5: Fail | GX5: Y | GY5: 2020-03-26T15:47:28 | HA5: Case 3 | HB5: Mick | HE5: 11150.62
A6: 2000000 | B6: 0.05 | C6: 0.075 | D6: 25 | E6: 1 | F6: Individual (Single) | G6: Individual (Couple) | H6: Individual (Single) | M6: Non-loan Party | T6: 3 | X6: 80000 | Y6: 100000 | Z6: 120000 | AA6: 0 | AB6: 0 | AC6: 0 | AD6: 0 | AE6: 0 | AF6: 0 | AG6: 0 | AH6: 0 | AI6: 0 | AJ6: 0 | AK6: 0 | AL6: 0 | AM6: 0 | AN6: 0 | AO6: 0 | AP6: 0 | AQ6: 0 | AR6: 0 | AS6: 0 | AT6: 0 | AU6: 0 | AV6: 0 | AW6: 0 | AX6: 0 | AY6: 0 | AZ6: 0 | BA6: 0 | BB6: 0 | BC6: 0 | BD6: 0 | BE6: 0 | BF6: 0 | BG6: 0 | BH6: 0 | BI6: 0 | BJ6: 0 | BK6: 0 | BL6: 0 | BM6: 0 | BN6: 0 | BO6: 0 | BP6: 0 | BQ6: 0 | BR6: 0 | BS6: 0 | BT6: 0 | BU6: 0 | BV6: 0 | BW6: 0 | BX6: 0 | BY6: 0 | BZ6: 0 | CA6: 0 | CB6: 0 | CC6: 0 | CD6: 0 | CE6: 19147 | CF6: 26497 | CG6: 34297 | CH6: 0 | CI6: 0 | CJ6: 0 | CK6: 61383 | CL6: 73883 | CM6: 85783 | CN6: 0 | CO6: 0 | CP6: 0 | CQ6: 221049 | CR6: 20049.75 | CS6: 32668.58 | CT6: 32177.49 | CU6: 0 | CV6: 0 | CW6: 0 | CX6: 84895.81 | CY6: 0 | CZ6: 84895.81 | DA6: 136153.19 | DB6: 0.0585 | DC6: 0.025 | DD6: 0.0382 | DE6: 0.0406 | DF6: 1.25 | DG6: 0.8 | DH6: 0.3 | DI6: 25000 | DJ6: 18420.75 | DK6: 7074.65 | DL6: 11346.1 | DM6: 11937.95 | DN6: 0 | DO6: 300000 | DP6: 221049 | DQ6: 84895.81 | DR6: 136153.19 | DS6: 143255.4 | DT6: 0 | DU6: 25000 | DV6: 18420.75 | DW6: 7074.65 | DX6: 11346.1 | DY6: 14992.1 | DZ6: 0 | EA6: 300000 | EB6: 221049 | EC6: 84895.81 | ED6: 136153.19 | EE6: 179905.18 | EF6: 0 | EG6: 0.95 | EH6: 0.4775180098 | EI6: FAIL | EJ6: 0.75 | EK6: 0.599683921 | EL6: FAIL | EM6: 1513597.36 | EN6: 19147 | EO6: 26497 | EP6: 34297 | EQ6: 0 | ER6: 0 | ES6: 0 | ET6: 61383 | EU6: 73883 | EV6: 85783 | EW6: 0 | EX6: 0 | EY6: 0 | EZ6: 221049 | FA6: 20096.16 | FB6: 35565.5 | FC6: 41245.03 | FD6: 0 | FE6: 0 | FF6: 0 | FG6: 96906.69 | FH6: 0 | FI6: 96906.69 | FJ6: 124142.31 | FK6: 0.0585 | FL6: 0.025 | FM6: 0.0382 | FN6: 0.0367 | FO6: 1.25 | FP6: 0.8 | FQ6: 0.275 | FR6: 25000 | FS6: 18420.75 | FT6: 8075.56 | FU6: 10345.19 | FV6: 11937.95 | FW6: 0 | FX6: 300000 | FY6: 221049 | FZ6: 96906.69 | GA6: 124142.31 | GB6: 143255.4 | GC6: 0 | GD6: 25000 | GE6: 18420.75 | GF6: 8075.56 | GG6: 10345.19 | GH6: 14992.1 | GI6: 0 | GJ6: 300000 | GK6: 221049 | GL6: 96906.69 | GM6: 124142.31 | GN6: 179905.18 | GO6: 0 | GP6: 0.86 | GQ6: 0.4775180098 | GR6: FAIL | GS6: 0.69 | GT6: 0.599683921 | GU6: FAIL | GV6: 1380060.35 | GW6: Fail | GX6: Y | GY6: 2020-03-26T15:47:37 | HA6: Case 4 | HB6: Mick | HE6: 12010.88
A7: 1000000 | B7: 0.04 | C7: 0.065 | D7: 25 | E7: 0 | F7: Individual (Single) | G7: Individual (Single) | H7: Individual (Single) | I7: Individual (Single) | J7: Individual (Single) | K7: Individual (Single) | X7: 18200 | Y7: 22000 | Z7: 30000 | AA7: 40000 | AB7: 95000 | AC7: 190000 | AD7: 0 | AE7: 0 | AF7: 0 | AG7: 0 | AH7: 0 | AI7: 0 | AJ7: 0 | AK7: 0 | AL7: 0 | AM7: 0 | AN7: 0 | AO7: 0 | AP7: 0 | AQ7: 0 | AR7: 0 | AS7: 0 | AT7: 0 | AU7: 0 | AV7: 0 | AW7: 0 | AX7: 0 | AY7: 0 | AZ7: 0 | BA7: 0 | BB7: 0 | BC7: 0 | BD7: 0 | BE7: 0 | BF7: 0 | BG7: 0 | BH7: 0 | BI7: 0 | BJ7: 0 | BK7: 0 | BL7: 0 | BM7: 0 | BN7: 0 | BO7: 0 | BP7: 0 | BQ7: 0 | BR7: 0 | BS7: 0 | BT7: 0 | BU7: 0 | BV7: 0 | BW7: 0 | BX7: 0 | BY7: 0 | BZ7: 0 | CA7: 0 | CB7: 0 | CC7: 0 | CD7: 0 | CE7: 0 | CF7: 724 | CG7: 2842 | CH7: 5347 | CI7: 24547 | CJ7: 62397 | CK7: 18200 | CL7: 21921 | CM7: 27803 | CN7: 35343 | CO7: 70908 | CP7: 127603 | CQ7: 301778 | CR7: 13576.59 | CS7: 13576.59 | CT7: 14357.8 | CU7: 14474.82 | CV7: 21720.69 | CW7: 28478.2 | CX7: 106184.68 | CY7: 0 | CZ7: 106184.68 | DA7: 195593.32 | DB7: 0.0585 | DC7: 0.025 | DD7: 0.0382 | DE7: 0.0406 | DF7: 1.25 | DG7: 0.8 | DH7: 0.3 | DI7: 32933.33 | DJ7: 25148.17 | DK7: 8848.72 | DL7: 16299.44 | DM7: 5278.37 | DN7: 0 | DO7: 395200 | DP7: 301778 | DQ7: 106184.68 | DR7: 195593.32 | DS7: 63340.42 | DT7: 0 | DU7: 32933.33 | DV7: 25148.17 | DW7: 8848.72 | DX7: 16299.44 | DY7: 6752.07 | DZ7: 0 | EA7: 395200 | EB7: 301778 | EC7: 106184.68 | ED7: 195593.32 | EE7: 81024.86 | EF7: 0 | EG7: 3.08 | EH7: 0.1602743442 | EI7: PASS | EJ7: 2.41 | EK7: 0.2050224174 | EL7: PASS | EM7: 1000000 | EN7: 0 | EO7: 724 | EP7: 2842 | EQ7: 5347 | ER7: 24547 | ES7: 62397 | ET7: 18200 | EU7: 21921 | EV7: 27803 | EW7: 35343 | EX7: 70908 | EY7: 127603 | EZ7: 301778 | FA7: 13087.54 | FB7: 13823.5 | FC7: 13823.5 | FD7: 14556.94 | FE7: 23891.6 | FF7: 35227.56 | FG7: 114410.64 | FH7: 0 | FI7: 114410.64 | FJ7: 187367.36 | FK7: 0.0585 | FL7: 0.025 | FM7: 0.0382 | FN7: 0.0367 | FO7: 1.25 | FP7: 0.8 | FQ7: 0.275 | FR7: 32933.33 | FS7: 25148.17 | FT7: 9534.22 | FU7: 15613.95 | FV7: 5278.37 | FW7: 0 | FX7: 395200 | FY7: 301778 | FZ7: 114410.64 | GA7: 187367.36 | GB7: 63340.42 | GC7: 0 | GD7: 32933.33 | GE7: 25148.17 | GF7: 9534.22 | GG7: 15613.95 | GH7: 6752.07 | GI7: 0 | GJ7: 395200 | GK7: 301778 | GL7: 114410.64 | GM7: 187367.36 | GN7: 81024.86 | GO7: 0 | GP7: 2.95 | GQ7: 0.1602743442 | GR7: PASS | GS7: 2.31 | GT7: 0.2050224174 | GU7: PASS | GV7: 1000000 | GW7: Fail | GX7: Y | GY7: 2020-03-26T15:47:46 | HA7: Case 5 | HB7: Mick | HE7: 8225.96
A8: 2500000 | B8: 0.0679 | C8: 0.0929 | D8: 40 | E8: 5 | F8: Company | G8: Individual (Single) | H8: Individual (Couple) | I8: Individual (Couple) | J8: Individual (Couple) | K8: Individual (Single) | N8: Non-loan Party | O8: Applicant 5 | P8: Applicant 4 | X8: 0 | Y8: 0 | Z8: 80000 | AA8: 30000 | AB8: 40000 | AC8: 1 | AD8: 0 | AE8: 0 | AF8: 0 | AG8: 0 | AH8: 0 | AI8: 0 | AJ8: 0 | AK8: 150000 | AL8: 0 | AM8: 0 | AN8: 0 | AO8: 0 | AP8: 75000 | AQ8: 0 | AR8: 0 | AS8: 0 | AT8: 0 | AU8: 0 | AV8: 535000 | AW8: 0 | AX8: 0 | AY8: 0 | AZ8: 0 | BA8: 0 | BB8: 0 | BC8: 0 | BD8: 0 | BE8: 50000 | BF8: 50000 | BG8: 0 | BH8: 0 | BI8: 0 | BJ8: 0 | BK8: 1000000 | BL8: 1000000 | BM8: 0 | BN8: 0 | BO8: 0 | BP8: 0 | BQ8: 0 | BR8: 0 | BS8: 0 | BT8: 0 | BU8: 0 | BV8: 0 | BW8: 0 | BX8: 0 | BY8: 0 | BZ8: 20000 | CA8: 0 | CB8: 50000 | CC8: 15000 | CD8: 0 | CE8: 160500 | CF8: 45997 | CG8: 19147 | CH8: 2716 | CI8: 5140 | CJ8: 0 | CK8: 449500 | CL8: 104003 | CM8: 61383 | CN8: 67929 | CO8: 75541 | CP8: 1 | CQ8: 758357 | CR8: 0 | CS8: 26740.89 | CT8: 30509.79 | CU8: 28272.47 | CV8: 0 | CW8: 13576.59 | CX8: 99099.74 | CY8: 240000 | CZ8: 240000 | DA8: 518357 | DB8: 0.0585 | DC8: 0.025 | DD8: 0.0382 | DE8: 0.0406 | DF8: 1.25 | DG8: 0.8 | DH8: 0.3 | DI8: 82500.08 | DJ8: 63196.42 | DK8: 20000 | DL8: 43196.42 | DM8: 15604.88 | DN8: 20660 | DO8: 990001 | DP8: 758357 | DQ8: 240000 | DR8: 518357 | DS8: 187258.53 | DT8: 247920 | DU8: 82500.08 | DV8: 63196.42 | DW8: 20000 | DX8: 43196.42 | DY8: 20143.89 | DZ8: 20660 | EA8: 990001 | EB8: 758357 | EC8: 240000 | ED8: 518357 | EE8: 241726.63 | EF8: 247920 | EG8: 1.19 | EH8: 0.4395738335 | EI8: PASS | EJ8: 1.05 | EK8: 0.4945920572 | EL8: PASS | EM8: 2500000 | EN8: 147125 | EO8: 45997 | EP8: 19147 | EQ8: 3535 | ER8: 6485.5 | ES8: 0 | ET8: 462875 | EU8: 104003 | EV8: 61383 | EW8: 67110 | EX8: 74254 | EY8: 1 | EZ8: 769626 | FA8: 0 | FB8: 33020.94 | FC8: 31771.82 | FD8: 31771.82 | FE8: 0 | FF8: 13087.54 | FG8: 109652.13 | FH8: 240000 | FI8: 240000 | FJ8: 529626 | FK8: 0.0585 | FL8: 0.025 | FM8: 0.0382 | FN8: 0.0367 | FO8: 1.25 | FP8: 0.8 | FQ8: 0.275 | FR8: 82500.08 | FS8: 64135.5 | FT8: 20000 | FU8: 44135.5 | FV8: 15604.88 | FW8: 20660 | FX8: 990001 | FY8: 769626 | FZ8: 240000 | GA8: 529626 | GB8: 187258.53 | GC8: 247920 | GD8: 82500.08 | GE8: 64135.5 | GF8: 20000 | GG8: 44135.5 | GH8: 20143.89 | GI8: 20660 | GJ8: 990001 | GK8: 769626 | GL8: 240000 | GM8: 529626 | GN8: 241726.63 | GO8: 247920 | GP8: 1.21 | GQ8: 0.4395738335 | GR8: PASS | GS8: 1.08 | GT8: 0.4945920572 | GU8: PASS | GV8: 2500000 | GW8: Fail | GX8: Y | GY8: 2020-03-26T15:47:55 | HA8: Case 6 | HB8: Mick | HE8: 10552.39
A9: 2000000 | B9: 0.0529 | C9: 0.0779 | D9: 30 | E9: 3 | F9: Company | G9: Individual (Single) | X9: 0 | Y9: 1 | Z9: 0 | AA9: 0 | AB9: 0 | AC9: 0 | AD9: 0 | AE9: 30000 | AF9: 0 | AG9: 0 | AH9: 0 | AI9: 0 | AJ9: 0 | AK9: 0 | AL9: 0 | AM9: 0 | AN9: 0 | AO9: 0 | AP9: 0 | AQ9: 0 | AR9: 0 | AS9: 0 | AT9: 0 | AU9: 0 | AV9: 300000 | AW9: 0 | AX9: 0 | AY9: 0 | AZ9: 0 | BA9: 0 | BB9: 0 | BC9: 0 | BD9: 0 | BE9: 0 | BF9: 0 | BG9: 0 | BH9: 0 | BI9: 0 | BJ9: 0 | BK9: 0 | BL9: 0 | BM9: 0 | BN9: 0 | BO9: 0 | BP9: 0 | BQ9: 0 | BR9: 0 | BS9: 0 | BT9: 0 | BU9: 0 | BV9: 0 | BW9: 0 | BX9: 0 | BY9: 0 | BZ9: 0 | CA9: 0 | CB9: 0 | CC9: 0 | CD9: 0 | CE9: 90000 | CF9: 0 | CG9: 0 | CH9: 0 | CI9: 0 | CJ9: 0 | CK9: 210000 | CL9: 30001 | CM9: 0 | CN9: 0 | CO9: 0 | CP9: 0 | CQ9: 240001 | CR9: 0 | CS9: 14357.8 | CT9: 0 | CU9: 0 | CV9: 0 | CW9: 0 | CX9: 14357.8 | CY9: 0 | CZ9: 14357.8 | DA9: 225643.2 | DB9: 0.0585 | DC9: 0.025 | DD9: 0.0382 | DE9: 0.0406 | DF9: 1.25 | DG9: 0.8 | DH9: 0.3 | DI9: 27500.08 | DJ9: 20000.08 | DK9: 1196.48 | DL9: 18803.6 | DM9: 11608.05 | DN9: 0 | DO9: 330001 | DP9: 240001 | DQ9: 14357.8 | DR9: 225643.2 | DS9: 139296.62 | DT9: 0 | DU9: 27500.08 | DV9: 20000.08 | DW9: 1196.48 | DX9: 18803.6 | DY9: 14802.32 | DZ9: 0 | EA9: 330001 | EB9: 240001 | EC9: 14357.8 | ED9: 225643.2 | EE9: 177627.89 | EF9: 0 | EG9: 1.61 | EH9: 0.4221096996 | EI9: PASS | EJ9: 1.27 | EK9: 0.5382646951 | EL9: PASS | EM9: 2000000 | EN9: 82500 | EO9: 0 | EP9: 0 | EQ9: 0 | ER9: 0 | ES9: 0 | ET9: 217500 | EU9: 30001 | EV9: 0 | EW9: 0 | EX9: 0 | EY9: 0 | EZ9: 247501 | FA9: 0 | FB9: 13823.5 | FC9: 0 | FD9: 0 | FE9: 0 | FF9: 0 | FG9: 13823.5 | FH9: 0 | FI9: 13823.5 | FJ9: 233677.5 | FK9: 0.0585 | FL9: 0.025 | FM9: 0.0382 | FN9: 0.0367 | FO9: 1.25 | FP9: 0.8 | FQ9: 0.275 | FR9: 27500.08 | FS9: 20625.08 | FT9: 1151.96 | FU9: 19473.13 | FV9: 11608.05 | FW9: 0 | FX9: 330001 | FY9: 247501 | FZ9: 13823.5 | GA9: 233677.5 | GB9: 139296.62 | GC9: 0 | GD9: 27500.08 | GE9: 20625.08 | GF9: 1151.96 | GG9: 19473.13 | GH9: 14802.32 | GI9: 0 | GJ9: 330001 | GK9: 247501 | GL9: 13823.5 | GM9: 233677.5 | GN9: 177627.89 | GO9: 0 | GP9: 1.67 | GQ9: 0.4221096996 | GR9: PASS | GS9: 1.31 | GT9: 0.5382646951 | GU9: PASS | GV9: 2000000 | GW9: Fail | GX9: Y | GY9: 2020-03-26T15:48:04 | HA9: Case 7 | HB9: Mick | HE9: -534.3
A10: 350000 | B10: 0.06 | C10: 0.085 | D10: 12 | E10: 5 | F10: Individual (Couple) | G10: Individual (Couple) | L10: Applicant 2 | M10: Applicant 1 | R10: 3 | S10: 2 | X10: 100000 | Y10: 80000 | Z10: 0 | AA10: 0 | AB10: 0 | AC10: 0 | AD10: 0 | AE10: 1 | AF10: 0 | AG10: 0 | AH10: 0 | AI10: 0 | AJ10: 0 | AK10: 25000 | AL10: 0 | AM10: 0 | AN10: 0 | AO10: 0 | AP10: 0 | AQ10: 0 | AR10: 0 | AS10: 0 | AT10: 0 | AU10: 0 | AV10: 0 | AW10: 0 | AX10: 0 | AY10: 0 | AZ10: 0 | BA10: 0 | BB10: 0 | BC10: 0 | BD10: 0 | BE10: 0 | BF10: 0 | BG10: 0 | BH10: 0 | BI10: 0 | BJ10: 0 | BK10: 0 | BL10: 0 | BM10: 0 | BN10: 0 | BO10: 0 | BP10: 0 | BQ10: 0 | BR10: 0 | BS10: 0 | BT10: 0 | BU10: 0 | BV10: 0 | BW10: 0 | BX10: 0 | BY10: 0 | BZ10: 0 | CA10: 0 | CB10: 30000 | CC10: 500 | CD10: 0 | CE10: 26497 | CF10: 28447 | CG10: 0 | CH10: 0 | CI10: 0 | CJ10: 0 | CK10: 73883 | CL10: 76859 | CM10: 0 | CN10: 0 | CO10: 0 | CP10: 0 | CQ10: 150742 | CR10: 59576.88 | CS10: 0 | CT10: 0 | CU10: 0 | CV10: 0 | CW10: 0 | CX10: 59576.88 | CY10: 0 | CZ10: 59576.88 | DA10: 91165.12 | DB10: 0.0585 | DC10: 0.025 | DD10: 0.0382 | DE10: 0.0406 | DF10: 1.25 | DG10: 0.8 | DH10: 0.3 | DI10: 17083.42 | DJ10: 12561.83 | DK10: 4964.74 | DL10: 7597.09 | DM10: 5112.99 | DN10: 1771 | DO10: 205001 | DP10: 150742 | DQ10: 59576.88 | DR10: 91165.12 | DS10: 61355.93 | DT10: 21252 | DU10: 17083.42 | DV10: 12561.83 | DW10: 4964.74 | DX10: 7597.09 | DY10: 5542.77 | DZ10: 1771 | EA10: 205001 | EB10: 150742 | EC10: 59576.88 | ED10: 91165.12 | EE10: 66513.24 | EF10: 21252 | EG10: 1.1 | EH10: 0.4029635408 | EI10: PASS | EJ10: 1.03 | EK10: 0.4281210279 | EL10: PASS | EM10: 350000 | EN10: 26497 | EO10: 28447 | EP10: 0 | EQ10: 0 | ER10: 0 | ES10: 0 | ET10: 73883 | EU10: 76859 | EV10: 0 | EW10: 0 | EX10: 0 | EY10: 0 | EZ10: 150742 | FA10: 63819.93 | FB10: 0 | FC10: 0 | FD10: 0 | FE10: 0 | FF10: 0 | FG10: 63819.93 | FH10: 0 | FI10: 63819.93 | FJ10: 86922.07 | FK10: 0.0585 | FL10: 0.025 | FM10: 0.0382 | FN10: 0.0367 | FO10: 1.25 | FP10: 0.8 | FQ10: 0.275 | FR10: 17083.42 | FS10: 12561.83 | FT10: 5318.33 | FU10: 7243.51 | FV10: 5112.99 | FW10: 1771 | FX10: 205001 | FY10: 150742 | FZ10: 63819.93 | GA10: 86922.07 | GB10: 61355.93 | GC10: 21252 | GD10: 17083.42 | GE10: 12561.83 | GF10: 5318.33 | GG10: 7243.51 | GH10: 5542.77 | GI10: 1771 | GJ10: 205001 | GK10: 150742 | GL10: 63819.93 | GM10: 86922.07 | GN10: 66513.24 | GO10: 21252 | GP10: 1.05 | GQ10: 0.4029635408 | GR10: PASS | GS10: 0.99 | GT10: 0.4281210279 | GU10: FAIL | GV10: 345531.21 | GW10: Fail | GX10: Y | GY10: 2020-03-26T15:48:12 | HA10: Case 8 | HB10: Mick | HE10: 4243.05
A11: 350000 | B11: 0.06 | C11: 0.085 | D11: 12 | E11: 5 | F11: Individual (Couple) | G11: Individual (Couple) | L11: Applicant 2 | M11: Applicant 1 | R11: 3 | S11: 2 | X11: 100000 | Y11: 80000 | Z11: 0 | AA11: 0 | AB11: 0 | AC11: 0 | AD11: 0 | AE11: 0 | AF11: 0 | AG11: 0 | AH11: 0 | AI11: 0 | AJ11: 0 | AK11: 25000 | AL11: 0 | AM11: 0 | AN11: 0 | AO11: 0 | AP11: 0 | AQ11: 0 | AR11: 0 | AS11: 0 | AT11: 0 | AU11: 0 | AV11: 0 | AW11: 0 | AX11: 0 | AY11: 0 | AZ11: 0 | BA11: 0 | BB11: 0 | BC11: 0 | BD11: 0 | BE11: 0 | BF11: 0 | BG11: 0 | BH11: 0 | BI11: 0 | BJ11: 0 | BK11: 0 | BL11: 0 | BM11: 0 | BN11: 0 | BO11: 0 | BP11: 0 | BQ11: 0 | BR11: 0 | BS11: 0 | BT11: 0 | BU11: 0 | BV11: 0 | BW11: 0 | BX11: 0 | BY11: 0 | BZ11: 0 | CA11: 0 | CB11: 30000 | CC11: 500 | CD11: 0 | CE11: 26497 | CF11: 28447 | CG11: 0 | CH11: 0 | CI11: 0 | CJ11: 0 | CK11: 73883 | CL11: 76858 | CM11: 0 | CN11: 0 | CO11: 0 | CP11: 0 | CQ11: 150741 | CR11: 59576.88 | CS11: 0 | CT11: 0 | CU11: 0 | CV11: 0 | CW11: 0 | CX11: 59576.88 | CY11: 0 | CZ11: 59576.88 | DA11: 91164.12 | DB11: 0.0585 | DC11: 0.025 | DD11: 0.0382 | DE11: 0.0406 | DF11: 1.25 | DG11: 0.8 | DH11: 0.3 | DI11: 17083.33 | DJ11: 12561.75 | DK11: 4964.74 | DL11: 7597.01 | DM11: 5112.99 | DN11: 1771 | DO11: 205000 | DP11: 150741 | DQ11: 59576.88 | DR11: 91164.12 | DS11: 61355.93 | DT11: 21252 | DU11: 17083.33 | DV11: 12561.75 | DW11: 4964.74 | DX11: 7597.01 | DY11: 5542.77 | DZ11: 1771 | EA11: 205000 | EB11: 150741 | EC11: 59576.88 | ED11: 91164.12 | EE11: 66513.24 | EF11: 21252 | EG11: 1.1 | EH11: 0.4029655065 | EI11: PASS | EJ11: 1.03 | EK11: 0.4281231163 | EL11: PASS | EM11: 350000 | EN11: 26497 | EO11: 28447 | EP11: 0 | EQ11: 0 | ER11: 0 | ES11: 0 | ET11: 73883 | EU11: 76858 | EV11: 0 | EW11: 0 | EX11: 0 | EY11: 0 | EZ11: 150741 | FA11: 63819.93 | FB11: 0 | FC11: 0 | FD11: 0 | FE11: 0 | FF11: 0 | FG11: 63819.93 | FH11: 0 | FI11: 63819.93 | FJ11: 86921.07 | FK11: 0.0585 | FL11: 0.025 | FM11: 0.0382 | FN11: 0.0367 | FO11: 1.25 | FP11: 0.8 | FQ11: 0.275 | FR11: 17083.33 | FS11: 12561.75 | FT11: 5318.33 | FU11: 7243.42 | FV11: 5112.99 | FW11: 1771 | FX11: 205000 | FY11: 150741 | FZ11: 63819.93 | GA11: 86921.07 | GB11: 61355.93 | GC11: 21252 | GD11: 17083.33 | GE11: 12561.75 | GF11: 5318.33 | GG11: 7243.42 | GH11: 5542.77 | GI11: 1771 | GJ11: 205000 | GK11: 150741 | GL11: 63819.93 | GM11: 86921.07 | GN11: 66513.24 | GO11: 21252 | GP11: 1.05 | GQ11: 0.4029655065 | GR11: PASS | GS11: 0.99 | GT11: 0.4281231163 | GU11: FAIL | GV11: 345531.21 | GW11: Fail | GX11: Y | GY11: 2020-03-26T15:48:21 | HA11: Case 9 | HB11: Mick | HE11: 4243.05
A12: 500000 | B12: 0.07 | C12: 0.095 | D12: 20 | E12: 3 | F12: Individual (Couple) | G12: Individual (Couple) | L12: Applicant 2 | M12: Applicant 1 | R12: 2 | X12: 150000 | Y12: 0 | Z12: 0 | AA12: 0 | AB12: 0 | AC12: 0 | AD12: 0 | AE12: 0 | AF12: 0 | AG12: 0 | AH12: 0 | AI12: 0 | AJ12: 0 | AK12: 0 | AL12: 0 | AM12: 0 | AN12: 0 | AO12: 0 | AP12: 0 | AQ12: 0 | AR12: 0 | AS12: 0 | AT12: 0 | AU12: 0 | AV12: 0 | AW12: 0 | AX12: 0 | AY12: 0 | AZ12: 0 | BA12: 0 | BB12: 20000 | BC12: 0 | BD12: 0 | BE12: 0 | BF12: 0 | BG12: 0 | BH12: 0 | BI12: 0 | BJ12: 0 | BK12: 0 | BL12: 0 | BM12: 0 | BN12: 4000 | BO12: 0 | BP12: 0 | BQ12: 0 | BR12: 0 | BS12: 0 | BT12: 0 | BU12: 0 | BV12: 0 | BW12: 0 | BX12: 0 | BY12: 0 | BZ12: 0 | CA12: 0 | CB12: 0 | CC12: 0 | CD12: 0 | CE12: 52237 | CF12: 0 | CG12: 0 | CH12: 0 | CI12: 0 | CJ12: 0 | CK12: 113763 | CL12: 0 | CM12: 0 | CN12: 0 | CO12: 0 | CP12: 0 | CQ12: 113763 | CR12: 46020.61 | CS12: 0 | CT12: 0 | CU12: 0 | CV12: 0 | CW12: 0 | CX12: 46020.61 | CY12: 48000 | CZ12: 48000 | DA12: 65763 | DB12: 0.0585 | DC12: 0.025 | DD12: 0.0382 | DE12: 0.0406 | DF12: 1.25 | DG12: 0.8 | DH12: 0.3 | DI12: 13833.33 | DJ12: 9480.25 | DK12: 4000 | DL12: 5480.25 | DM12: 4198.3 | DN12: 0 | DO12: 166000 | DP12: 113763 | DQ12: 48000 | DR12: 65763 | DS12: 50379.64 | DT12: 0 | DU12: 13833.33 | DV12: 9480.25 | DW12: 4000 | DX12: 5480.25 | DY12: 4948.9 | DZ12: 0 | EA12: 166000 | EB12: 113763 | EC12: 48000 | ED12: 65763 | EE12: 59386.84 | EF12: 0 | EG12: 1.3 | EH12: 0.3034918023 | EI12: PASS | EJ12: 1.1 | EK12: 0.3577520406 | EL12: PASS | EM12: 500000 | EN12: 52237 | EO12: 0 | EP12: 0 | EQ12: 0 | ER12: 0 | ES12: 0 | ET12: 113763 | EU12: 0 | EV12: 0 | EW12: 0 | EX12: 0 | EY12: 0 | EZ12: 113763 | FA12: 51871.62 | FB12: 0 | FC12: 0 | FD12: 0 | FE12: 0 | FF12: 0 | FG12: 51871.62 | FH12: 48000 | FI12: 51871.62 | FJ12: 61891.38 | FK12: 0.0585 | FL12: 0.025 | FM12: 0.0382 | FN12: 0.0367 | FO12: 1.25 | FP12: 0.8 | FQ12: 0.275 | FR12: 13833.33 | FS12: 9480.25 | FT12: 4322.64 | FU12: 5157.61 | FV12: 4198.3 | FW12: 0 | FX12: 166000 | FY12: 113763 | FZ12: 51871.62 | GA12: 61891.38 | GB12: 50379.64 | GC12: 0 | GD12: 13833.33 | GE12: 9480.25 | GF12: 4322.64 | GG12: 5157.61 | GH12: 4948.9 | GI12: 0 | GJ12: 166000 | GK12: 113763 | GL12: 51871.62 | GM12: 61891.38 | GN12: 59386.84 | GO12: 0 | GP12: 1.22 | GQ12: 0.3034918023 | GR12: PASS | GS12: 1.04 | GT12: 0.3577520406 | GU12: PASS | GV12: 500000 | GW12: Fail | GX12: Y | GY12: 2020-03-26T15:48:29 | HA12: Case 10 | HB12: Mick | HE12: 5851.01
A13: 500000 | B13: 0.07 | C13: 0.095 | D13: 20 | E13: 3 | F13: Individual (Couple) | G13: Individual (Couple) | L13: Applicant 2 | M13: Applicant 1 | R13: 2 | X13: 150000 | Y13: 0 | Z13: 0 | AA13: 0 | AB13: 0 | AC13: 0 | AD13: 0 | AE13: 0 | AF13: 0 | AG13: 0 | AH13: 0 | AI13: 0 | AJ13: 0 | AK13: 0 | AL13: 0 | AM13: 0 | AN13: 0 | AO13: 0 | AP13: 0 | AQ13: 0 | AR13: 0 | AS13: 0 | AT13: 0 | AU13: 0 | AV13: 0 | AW13: 0 | AX13: 0 | AY13: 0 | AZ13: 0 | BA13: 0 | BB13: 20000 | BC13: 0 | BD13: 0 | BE13: 0 | BF13: 0 | BG13: 0 | BH13: 100000 | BI13: 0 | BJ13: 0 | BK13: 0 | BL13: 0 | BM13: 0 | BN13: 4000 | BO13: 0 | BP13: 0 | BQ13: 0 | BR13: 0 | BS13: 0 | BT13: 0 | BU13: 0 | BV13: 0 | BW13: 0 | BX13: 0 | BY13: 0 | BZ13: 0 | CA13: 0 | CB13: 0 | CC13: 0 | CD13: 0 | CE13: 50653.6 | CF13: 0 | CG13: 0 | CH13: 0 | CI13: 0 | CJ13: 0 | CK13: 115346.4 | CL13: 0 | CM13: 0 | CN13: 0 | CO13: 0 | CP13: 0 | CQ13: 115346.4 | CR13: 46020.61 | CS13: 0 | CT13: 0 | CU13: 0 | CV13: 0 | CW13: 0 | CX13: 46020.61 | CY13: 48000 | CZ13: 48000 | DA13: 67346.4 | DB13: 0.0585 | DC13: 0.025 | DD13: 0.0382 | DE13: 0.0406 | DF13: 1.25 | DG13: 0.8 | DH13: 0.3 | DI13: 13833.33 | DJ13: 9612.2 | DK13: 4000 | DL13: 5612.2 | DM13: 4198.3 | DN13: 0 | DO13: 166000 | DP13: 115346.4 | DQ13: 48000 | DR13: 67346.4 | DS13: 50379.64 | DT13: 0 | DU13: 13833.33 | DV13: 9612.2 | DW13: 4000 | DX13: 5612.2 | DY13: 4948.9 | DZ13: 0 | EA13: 166000 | EB13: 115346.4 | EC13: 48000 | ED13: 67346.4 | EE13: 59386.84 | EF13: 0 | EG13: 1.33 | EH13: 0.3034918023 | EI13: PASS | EJ13: 1.13 | EK13: 0.3577520406 | EL13: PASS | EM13: 500000 | EN13: 50805.7 | EO13: 0 | EP13: 0 | EQ13: 0 | ER13: 0 | ES13: 0 | ET13: 115194.3 | EU13: 0 | EV13: 0 | EW13: 0 | EX13: 0 | EY13: 0 | EZ13: 115194.3 | FA13: 51871.62 | FB13: 0 | FC13: 0 | FD13: 0 | FE13: 0 | FF13: 0 | FG13: 51871.62 | FH13: 48000 | FI13: 51871.62 | FJ13: 63322.68 | FK13: 0.0585 | FL13: 0.025 | FM13: 0.0382 | FN13: 0.0367 | FO13: 1.25 | FP13: 0.8 | FQ13: 0.275 | FR13: 13833.33 | FS13: 9599.53 | FT13: 4322.64 | FU13: 5276.89 | FV13: 4198.3 | FW13: 0 | FX13: 166000 | FY13: 115194.3 | FZ13: 51871.62 | GA13: 63322.68 | GB13: 50379.64 | GC13: 0 | GD13: 13833.33 | GE13: 9599.53 | GF13: 4322.64 | GG13: 5276.89 | GH13: 4948.9 | GI13: 0 | GJ13: 166000 | GK13: 115194.3 | GL13: 51871.62 | GM13: 63322.68 | GN13: 59386.84 | GO13: 0 | GP13: 1.25 | GQ13: 0.3034918023 | GR13: PASS | GS13: 1.06 | GT13: 0.3577520406 | GU13: PASS | GV13: 500000 | GW13: Fail | GX13: Y | GY13: 2020-03-26T15:48:38 | HA13: Case 11 | HB13: Mick | HE13: 5851.01
A14: 200000 | B14: 0.05 | C14: 0.075 | D14: 30 | E14: 0 | F14: Individual (Couple) | G14: Individual (Couple) | L14: Applicant 2 | M14: Applicant 1 | X14: 0 | Y14: 10000 | Z14: 0 | AA14: 0 | AB14: 0 | AC14: 0 | AD14: 35000 | AE14: 0 | AF14: 0 | AG14: 0 | AH14: 0 | AI14: 0 | AJ14: 0 | AK14: 0 | AL14: 0 | AM14: 0 | AN14: 0 | AO14: 0 | AP14: 0 | AQ14: 0 | AR14: 0 | AS14: 0 | AT14: 0 | AU14: 0 | AV14: 0 | AW14: 0 | AX14: 0 | AY14: 0 | AZ14: 0 | BA14: 0 | BB14: 0 | BC14: 0 | BD14: 0 | BE14: 0 | BF14: 0 | BG14: 0 | BH14: 0 | BI14: 0 | BJ14: 0 | BK14: 0 | BL14: 0 | BM14: 0 | BN14: 100 | BO14: 0 | BP14: 0 | BQ14: 0 | BR14: 0 | BS14: 0 | BT14: 0 | BU14: 0 | BV14: 0 | BW14: 0 | BX14: 0 | BY14: 0 | BZ14: 0 | CA14: 0 | CB14: 0 | CC14: 0 | CD14: 0 | CE14: 0 | CF14: 0 | CG14: 0 | CH14: 0 | CI14: 0 | CJ14: 0 | CK14: 35000 | CL14: 10000 | CM14: 0 | CN14: 0 | CO14: 0 | CP14: 0 | CQ14: 45000 | CR14: 26250 | CS14: 0 | CT14: 0 | CU14: 0 | CV14: 0 | CW14: 0 | CX14: 26250 | CY14: 1200 | CZ14: 26250 | DA14: 18750 | DB14: 0.0585 | DC14: 0.025 | DD14: 0.0382 | DE14: 0.0406 | DF14: 1.25 | DG14: 0.8 | DH14: 0.3 | DI14: 3750 | DJ14: 3750 | DK14: 2187.5 | DL14: 1562.5 | DM14: 1073.64 | DN14: 0 | DO14: 45000 | DP14: 45000 | DQ14: 26250 | DR14: 18750 | DS14: 12883.72 | DT14: 0 | DU14: 3750 | DV14: 3750 | DW14: 2187.5 | DX14: 1562.5 | DY14: 1398.43 | DZ14: 0 | EA14: 45000 | EB14: 45000 | EC14: 26250 | ED14: 18750 | EE14: 16781.15 | EF14: 0 | EG14: 1.45 | EH14: 0.2863048656 | EI14: PASS | EJ14: 1.11 | EK14: 0.3729144046 | EL14: FAIL | EM14: 178629.02 | EN14: 0 | EO14: 0 | EP14: 0 | EQ14: 0 | ER14: 0 | ES14: 0 | ET14: 35000 | EU14: 10000 | EV14: 0 | EW14: 0 | EX14: 0 | EY14: 0 | EZ14: 45000 | FA14: 27321.85 | FB14: 0 | FC14: 0 | FD14: 0 | FE14: 0 | FF14: 0 | FG14: 27321.85 | FH14: 1200 | FI14: 27321.85 | FJ14: 17678.15 | FK14: 0.0585 | FL14: 0.025 | FM14: 0.0382 | FN14: 0.0367 | FO14: 1.25 | FP14: 0.8 | FQ14: 0.275 | FR14: 3750 | FS14: 3750 | FT14: 2276.82 | FU14: 1473.18 | FV14: 1073.64 | FW14: 0 | FX14: 45000 | FY14: 45000 | FZ14: 27321.85 | GA14: 17678.15 | GB14: 12883.72 | GC14: 0 | GD14: 3750 | GE14: 3750 | GF14: 2276.82 | GG14: 1473.18 | GH14: 1398.43 | GI14: 0 | GJ14: 45000 | GK14: 45000 | GL14: 27321.85 | GM14: 17678.15 | GN14: 16781.15 | GO14: 0 | GP14: 1.37 | GQ14: 0.2863048656 | GR14: PASS | GS14: 1.05 | GT14: 0.3729144046 | GU14: FAIL | GV14: 168474.77 | GW14: Fail | GX14: Y | GY14: 2020-03-26T15:48:46 | HA14: Case 12 | HB14: Mick | HE14: 1071.85
A15: 1000000 | B15: 0.05 | C15: 0.075 | D15: 30 | E15: 0 | F15: Individual (Couple) | G15: Individual (Couple) | L15: Applicant 2 | M15: Applicant 1 | X15: 0 | Y15: 0 | Z15: 0 | AA15: 0 | AB15: 0 | AC15: 0 | AD15: 0 | AE15: 0 | AF15: 0 | AG15: 0 | AH15: 0 | AI15: 0 | AJ15: 0 | AK15: 0 | AL15: 0 | AM15: 0 | AN15: 0 | AO15: 0 | AP15: 0 | AQ15: 0 | AR15: 0 | AS15: 0 | AT15: 0 | AU15: 0 | AV15: 0 | AW15: 0 | AX15: 0 | AY15: 0 | AZ15: 0 | BA15: 0 | BB15: 200000 | BC15: 0 | BD15: 0 | BE15: 0 | BF15: 0 | BG15: 0 | BH15: 1000000 | BI15: 0 | BJ15: 0 | BK15: 0 | BL15: 0 | BM15: 0 | BN15: 100 | BO15: 0 | BP15: 0 | BQ15: 0 | BR15: 0 | BS15: 0 | BT15: 0 | BU15: 0 | BV15: 0 | BW15: 0 | BX15: 0 | BY15: 0 | BZ15: 0 | CA15: 0 | CB15: 0 | CC15: 0 | CD15: 0 | CE15: 34063 | CF15: 0 | CG15: 0 | CH15: 0 | CI15: 0 | CJ15: 0 | CK15: 126026 | CL15: 0 | CM15: 0 | CN15: 0 | CO15: 0 | CP15: 0 | CQ15: 126026 | CR15: 33648.97 | CS15: 0 | CT15: 0 | CU15: 0 | CV15: 0 | CW15: 0 | CX15: 33648.97 | CY15: 1200 | CZ15: 33648.97 | DA15: 92377.03 | DB15: 0.0585 | DC15: 0.025 | DD15: 0.0382 | DE15: 0.0406 | DF15: 1.25 | DG15: 0.8 | DH15: 0.3 | DI15: 13333.33 | DJ15: 10502.17 | DK15: 2804.08 | DL15: 7698.09 | DM15: 5368.22 | DN15: 0 | DO15: 160000 | DP15: 126026 | DQ15: 33648.97 | DR15: 92377.03 | DS15: 64418.59 | DT15: 0 | DU15: 13333.33 | DV15: 10502.17 | DW15: 2804.08 | DX15: 7698.09 | DY15: 6992.15 | DZ15: 0 | EA15: 160000 | EB15: 126026 | EC15: 33648.97 | ED15: 92377.03 | EE15: 83905.74 | EF15: 0 | EG15: 1.43 | EH15: 0.4026162173 | EI15: PASS | EJ15: 1.1 | EK15: 0.5244108814 | EL15: PASS | EM15: 1000000 | EN15: 35584 | EO15: 0 | EP15: 0 | EQ15: 0 | ER15: 0 | ES15: 0 | ET15: 124446.5 | EU15: 0 | EV15: 0 | EW15: 0 | EX15: 0 | EY15: 0 | EZ15: 124446.5 | FA15: 38356.62 | FB15: 0 | FC15: 0 | FD15: 0 | FE15: 0 | FF15: 0 | FG15: 38356.62 | FH15: 1200 | FI15: 38356.62 | FJ15: 86089.88 | FK15: 0.0585 | FL15: 0.025 | FM15: 0.0382 | FN15: 0.0367 | FO15: 1.25 | FP15: 0.8 | FQ15: 0.275 | FR15: 13333.33 | FS15: 10370.54 | FT15: 3196.39 | FU15: 7174.16 | FV15: 5368.22 | FW15: 0 | FX15: 160000 | FY15: 124446.5 | FZ15: 38356.62 | GA15: 86089.88 | GB15: 64418.59 | GC15: 0 | GD15: 13333.33 | GE15: 10370.54 | GF15: 3196.39 | GG15: 7174.16 | GH15: 6992.15 | GI15: 0 | GJ15: 160000 | GK15: 124446.5 | GL15: 38356.62 | GM15: 86089.88 | GN15: 83905.74 | GO15: 0 | GP15: 1.33 | GQ15: 0.4026162173 | GR15: PASS | GS15: 1.02 | GT15: 0.5244108814 | GU15: PASS | GV15: 1000000 | GW15: Fail | GX15: Y | GY15: 2020-03-26T15:48:55 | HA15: Case 13 | HB15: Mick | HE15: 4707.65
A16: 1500000 | B16: 0.06 | C16: 0.085 | D16: 30 | E16: 0 | F16: Individual (Couple) | G16: Individual (Couple) | H16: Individual (Single) | L16: Applicant 2 | M16: Applicant 1 | X16: 300000 | Y16: 10000 | Z16: 0 | AA16: 0 | AB16: 0 | AC16: 0 | AD16: 35000 | AE16: 0 | AF16: 35000 | AG16: 0 | AH16: 0 | AI16: 0 | AJ16: 116000 | AK16: 0 | AL16: 0 | AM16: 0 | AN16: 0 | AO16: 0 | AP16: 15000 | AQ16: 0 | AR16: 0 | AS16: 0 | AT16: 0 | AU16: 0 | AV16: 0 | AW16: 0 | AX16: 0 | AY16: 0 | AZ16: 0 | BA16: 0 | BB16: 0 | BC16: 0 | BD16: 0 | BE16: 0 | BF16: 0 | BG16: 0 | BH16: 0 | BI16: 0 | BJ16: 0 | BK16: 0 | BL16: 0 | BM16: 0 | BN16: 100 | BO16: 0 | BP16: 0 | BQ16: 0 | BR16: 0 | BS16: 0 | BT16: 0 | BU16: 0 | BV16: 0 | BW16: 0 | BX16: 0 | BY16: 0 | BZ16: 0 | CA16: 0 | CB16: 0 | CC16: 0 | CD16: 0 | CE16: 168617 | CF16: 0 | CG16: 0 | CH16: 0 | CI16: 0 | CJ16: 0 | CK16: 297383 | CL16: 10000 | CM16: 35000 | CN16: 0 | CO16: 0 | CP16: 0 | CQ16: 342383 | CR16: 47693.58 | CS16: 0 | CT16: 14128.43 | CU16: 0 | CV16: 0 | CW16: 0 | CX16: 61822.01 | CY16: 1200 | CZ16: 61822.01 | DA16: 280560.99 | DB16: 0.0585 | DC16: 0.025 | DD16: 0.0382 | DE16: 0.0406 | DF16: 1.25 | DG16: 0.8 | DH16: 0.3 | DI16: 42583.33 | DJ16: 28531.92 | DK16: 5151.83 | DL16: 23380.08 | DM16: 8993.26 | DN16: 0 | DO16: 511000 | DP16: 342383 | DQ16: 61822.01 | DR16: 280560.99 | DS16: 107919.09 | DT16: 0 | DU16: 42583.33 | DV16: 28531.92 | DW16: 5151.83 | DX16: 23380.08 | DY16: 11533.7 | DZ16: 0 | EA16: 511000 | EB16: 342383 | EC16: 61822.01 | ED16: 280560.99 | EE16: 138404.43 | EF16: 0 | EG16: 2.59 | EH16: 0.2111919658 | EI16: PASS | EJ16: 2.02 | EK16: 0.2708501508 | EL16: PASS | EM16: 1500000 | EN16: 168617 | EO16: 0 | EP16: 0 | EQ16: 0 | ER16: 0 | ES16: 0 | ET16: 297383 | EU16: 10000 | EV16: 35000 | EW16: 0 | EX16: 0 | EY16: 0 | EZ16: 342383 | FA16: 60529.1 | FB16: 0 | FC16: 14556.94 | FD16: 0 | FE16: 0 | FF16: 0 | FG16: 75086.04 | FH16: 1200 | FI16: 75086.04 | FJ16: 267296.96 | FK16: 0.0585 | FL16: 0.025 | FM16: 0.0382 | FN16: 0.0367 | FO16: 1.25 | FP16: 0.8 | FQ16: 0.275 | FR16: 42583.33 | FS16: 28531.92 | FT16: 6257.17 | FU16: 22274.75 | FV16: 8993.26 | FW16: 0 | FX16: 511000 | FY16: 342383 | FZ16: 75086.04 | GA16: 267296.96 | GB16: 107919.09 | GC16: 0 | GD16: 42583.33 | GE16: 28531.92 | GF16: 6257.17 | GG16: 22274.75 | GH16: 11533.7 | GI16: 0 | GJ16: 511000 | GK16: 342383 | GL16: 75086.04 | GM16: 267296.96 | GN16: 138404.43 | GO16: 0 | GP16: 2.47 | GQ16: 0.2111919658 | GR16: PASS | GS16: 1.93 | GT16: 0.2708501508 | GU16: PASS | GV16: 1500000 | GW16: Fail | GX16: Y | GY16: 2020-03-26T15:49:03 | HA16: Case 14 | HB16: Mick | HE16: 13264.03
A17: 1000000 | B17: 0.06 | C17: 0.085 | D17: 30 | E17: 0 | F17: Individual (Single) | G17: Individual (Couple) | H17: Individual (Couple) | M17: Applicant 3 | N17: Applicant 2 | X17: 0 | Y17: 50000 | Z17: 0 | AA17: 0 | AB17: 0 | AC17: 0 | AD17: 0 | AE17: 0 | AF17: 0 | AG17: 0 | AH17: 0 | AI17: 0 | AJ17: 25000 | AK17: 0 | AL17: 0 | AM17: 0 | AN17: 0 | AO17: 0 | AP17: 0 | AQ17: 0 | AR17: 0 | AS17: 0 | AT17: 0 | AU17: 0 | AV17: 0 | AW17: 0 | AX17: 0 | AY17: 0 | AZ17: 0 | BA17: 0 | BB17: 0 | BC17: 60000 | BD17: 60000 | BE17: 0 | BF17: 0 | BG17: 0 | BH17: 0 | BI17: 500000 | BJ17: 500000 | BK17: 0 | BL17: 0 | BM17: 0 | BN17: 1000 | BO17: 0 | BP17: 0 | BQ17: 0 | BR17: 0 | BS17: 0 | BT17: 0 | BU17: 0 | BV17: 0 | BW17: 0 | BX17: 0 | BY17: 0 | BZ17: 0 | CA17: 0 | CB17: 0 | CC17: 0 | CD17: 0 | CE17: 1594 | CF17: 18353.5 | CG17: 2359 | CH17: 0 | CI17: 0 | CJ17: 0 | CK17: 24051 | CL17: 80176.5 | CM17: 46286 | CN17: 0 | CO17: 0 | CP17: 0 | CQ17: 150513.5 | CR17: 14357.8 | CS17: 32668.58 | CT17: 0 | CU17: 0 | CV17: 0 | CW17: 0 | CX17: 47026.37 | CY17: 12000 | CZ17: 47026.37 | DA17: 103487.13 | DB17: 0.0585 | DC17: 0.025 | DD17: 0.0382 | DE17: 0.0406 | DF17: 1.25 | DG17: 0.8 | DH17: 0.3 | DI17: 14250 | DJ17: 12542.79 | DK17: 3918.86 | DL17: 8623.93 | DM17: 5995.51 | DN17: 0 | DO17: 171000 | DP17: 150513.5 | DQ17: 47026.37 | DR17: 103487.13 | DS17: 71946.06 | DT17: 0 | DU17: 14250 | DV17: 12542.79 | DW17: 3918.86 | DX17: 8623.93 | DY17: 7689.13 | DZ17: 0 | EA17: 171000 | EB17: 150513.5 | EC17: 47026.37 | ED17: 103487.13 | EE17: 92269.62 | EF17: 0 | EG17: 1.43 | EH17: 0.4207372106 | EI17: PASS | EJ17: 1.12 | EK17: 0.5395884095 | EL17: PASS | EM17: 1000000 | EN17: 1594 | EO17: 19026.25 | EP17: 2768.5 | EQ17: 0 | ER17: 0 | ES17: 0 | ET17: 24051 | EU17: 79503.75 | EV17: 45876.5 | EW17: 0 | EX17: 0 | EY17: 0 | EZ17: 149431.25 | FA17: 13823.5 | FB17: 38356.62 | FC17: 0 | FD17: 0 | FE17: 0 | FF17: 0 | FG17: 52180.12 | FH17: 12000 | FI17: 52180.12 | FJ17: 97251.13 | FK17: 0.0585 | FL17: 0.025 | FM17: 0.0382 | FN17: 0.0367 | FO17: 1.25 | FP17: 0.8 | FQ17: 0.275 | FR17: 14250 | FS17: 12452.6 | FT17: 4348.34 | FU17: 8104.26 | FV17: 5995.51 | FW17: 0 | FX17: 171000 | FY17: 149431.25 | FZ17: 52180.12 | GA17: 97251.13 | GB17: 71946.06 | GC17: 0 | GD17: 14250 | GE17: 12452.6 | GF17: 4348.34 | GG17: 8104.26 | GH17: 7689.13 | GI17: 0 | GJ17: 171000 | GK17: 149431.25 | GL17: 52180.12 | GM17: 97251.13 | GN17: 92269.62 | GO17: 0 | GP17: 1.35 | GQ17: 0.4207372106 | GR17: PASS | GS17: 1.05 | GT17: 0.5395884095 | GU17: PASS | GV17: 1000000 | GW17: Fail | GX17: Y | GY17: 2020-03-26T15:49:12 | HA17: Case 15 | HB17: Mick | HE17: 5153.75
A18: 200000 | B18: 0.05 | C18: 0.075 | D18: 30 | E18: 0 | F18: Individual (Single) | R18: 1 | X18: 107000 | Y18: 0 | Z18: 0 | AA18: 0 | AB18: 0 | AC18: 0 | AD18: 0 | AE18: 0 | AF18: 0 | AG18: 0 | AH18: 0 | AI18: 0 | AJ18: 0 | AK18: 0 | AL18: 0 | AM18: 0 | AN18: 0 | AO18: 0 | AP18: 0 | AQ18: 0 | AR18: 0 | AS18: 0 | AT18: 0 | AU18: 0 | AV18: 0 | AW18: 0 | AX18: 0 | AY18: 0 | AZ18: 0 | BA18: 0 | BB18: 0 | BC18: 0 | BD18: 0 | BE18: 0 | BF18: 0 | BG18: 0 | BH18: 0 | BI18: 0 | BJ18: 0 | BK18: 0 | BL18: 0 | BM18: 0 | BN18: 100 | BO18: 0 | BP18: 0 | BQ18: 0 | BR18: 0 | BS18: 0 | BT18: 0 | BU18: 0 | BV18: 0 | BW18: 0 | BX18: 0 | BY18: 0 | BZ18: 0 | CA18: 0 | CB18: 10000 | CC18: 1000 | CD18: 1000 | CE18: 29227 | CF18: 0 | CG18: 0 | CH18: 0 | CI18: 0 | CJ18: 0 | CK18: 78048 | CL18: 0 | CM18: 0 | CN18: 0 | CO18: 0 | CP18: 0 | CQ18: 78048 | CR18: 25344.47 | CS18: 0 | CT18: 0 | CU18: 0 | CV18: 0 | CW18: 0 | CX18: 25344.47 | CY18: 1200 | CZ18: 25344.47 | DA18: 52703.54 | DB18: 0.0585 | DC18: 0.025 | DD18: 0.0382 | DE18: 0.0406 | DF18: 1.25 | DG18: 0.8 | DH18: 0.3 | DI18: 8916.67 | DJ18: 6504 | DK18: 2112.04 | DL18: 4391.96 | DM18: 1073.64 | DN18: 2632 | DO18: 107000 | DP18: 78048 | DQ18: 25344.47 | DR18: 52703.54 | DS18: 12883.72 | DT18: 31584 | DU18: 8916.67 | DV18: 6504 | DW18: 2112.04 | DX18: 4391.96 | DY18: 1398.43 | DZ18: 2632 | EA18: 107000 | EB18: 78048 | EC18: 25344.47 | ED18: 52703.54 | EE18: 16781.15 | EF18: 31584 | EG18: 1.18 | EH18: 0.4155861584 | EI18: PASS | EJ18: 1.08 | EK18: 0.4520107309 | EL18: PASS | EM18: 200000 | EN18: 29227 | EO18: 0 | EP18: 0 | EQ18: 0 | ER18: 0 | ES18: 0 | ET18: 78048 | EU18: 0 | EV18: 0 | EW18: 0 | EX18: 0 | EY18: 0 | EZ18: 78048 | FA18: 31144.04 | FB18: 0 | FC18: 0 | FD18: 0 | FE18: 0 | FF18: 0 | FG18: 31144.04 | FH18: 1200 | FI18: 31144.04 | FJ18: 46903.96 | FK18: 0.0585 | FL18: 0.025 | FM18: 0.0382 | FN18: 0.0367 | FO18: 1.25 | FP18: 0.8 | FQ18: 0.275 | FR18: 8916.67 | FS18: 6504 | FT18: 2595.34 | FU18: 3908.66 | FV18: 1073.64 | FW18: 2632 | FX18: 107000 | FY18: 78048 | FZ18: 31144.04 | GA18: 46903.96 | GB18: 12883.72 | GC18: 31584 | GD18: 8916.67 | GE18: 6504 | GF18: 2595.34 | GG18: 3908.66 | GH18: 1398.43 | GI18: 2632 | GJ18: 107000 | GK18: 78048 | GL18: 31144.04 | GM18: 46903.96 | GN18: 16781.15 | GO18: 31584 | GP18: 1.05 | GQ18: 0.4155861584 | GR18: PASS | GS18: 0.96 | GT18: 0.4520107309 | GU18: FAIL | GV18: 182490.49 | GW18: Fail | GX18: Y | GY18: 2020-03-26T15:49:21 | HA18: Case 16 | HB18: Mick | HE18: 5799.57
A19: 200000 | B19: 0.05 | C19: 0.075 | D19: 30 | E19: 0 | F19: Individual (Single) | R19: 1 | X19: 107000 | Y19: 0 | Z19: 0 | AA19: 0 | AB19: 0 | AC19: 0 | AD19: 25000 | AE19: 0 | AF19: 0 | AG19: 0 | AH19: 0 | AI19: 0 | AJ19: 0 | AK19: 0 | AL19: 0 | AM19: 0 | AN19: 0 | AO19: 0 | AP19: 0 | AQ19: 0 | AR19: 0 | AS19: 0 | AT19: 0 | AU19: 0 | AV19: 0 | AW19: 0 | AX19: 0 | AY19: 0 | AZ19: 0 | BA19: 0 | BB19: 0 | BC19: 0 | BD19: 0 | BE19: 0 | BF19: 0 | BG19: 0 | BH19: 0 | BI19: 0 | BJ19: 0 | BK19: 0 | BL19: 0 | BM19: 0 | BN19: 100 | BO19: 0 | BP19: 0 | BQ19: 0 | BR19: 0 | BS19: 0 | BT19: 0 | BU19: 0 | BV19: 0 | BW19: 0 | BX19: 0 | BY19: 0 | BZ19: 0 | CA19: 0 | CB19: 10000 | CC19: 1000 | CD19: 1000 | CE19: 29227 | CF19: 0 | CG19: 0 | CH19: 0 | CI19: 0 | CJ19: 0 | CK19: 103048 | CL19: 0 | CM19: 0 | CN19: 0 | CO19: 0 | CP19: 0 | CQ19: 103048 | CR19: 28667.85 | CS19: 0 | CT19: 0 | CU19: 0 | CV19: 0 | CW19: 0 | CX19: 28667.85 | CY19: 1200 | CZ19: 28667.85 | DA19: 74380.15 | DB19: 0.0585 | DC19: 0.025 | DD19: 0.0382 | DE19: 0.0406 | DF19: 1.25 | DG19: 0.8 | DH19: 0.3 | DI19: 11000 | DJ19: 8587.33 | DK19: 2388.99 | DL19: 6198.35 | DM19: 1073.64 | DN19: 2632 | DO19: 132000 | DP19: 103048 | DQ19: 28667.85 | DR19: 74380.15 | DS19: 12883.72 | DT19: 31584 | DU19: 11000 | DV19: 8587.33 | DW19: 2388.99 | DX19: 6198.35 | DY19: 1398.43 | DZ19: 2632 | EA19: 132000 | EB19: 103048 | EC19: 28667.85 | ED19: 74380.15 | EE19: 16781.15 | EF19: 31584 | EG19: 1.67 | EH19: 0.3368766587 | EI19: PASS | EJ19: 1.53 | EK19: 0.3664026379 | EL19: PASS | EM19: 200000 | EN19: 29227 | EO19: 0 | EP19: 0 | EQ19: 0 | ER19: 0 | ES19: 0 | ET19: 103048 | EU19: 0 | EV19: 0 | EW19: 0 | EX19: 0 | EY19: 0 | EZ19: 103048 | FA19: 35708.34 | FB19: 0 | FC19: 0 | FD19: 0 | FE19: 0 | FF19: 0 | FG19: 35708.34 | FH19: 1200 | FI19: 35708.34 | FJ19: 67339.66 | FK19: 0.0585 | FL19: 0.025 | FM19: 0.0382 | FN19: 0.0367 | FO19: 1.25 | FP19: 0.8 | FQ19: 0.275 | FR19: 11000 | FS19: 8587.33 | FT19: 2975.7 | FU19: 5611.64 | FV19: 1073.64 | FW19: 2632 | FX19: 132000 | FY19: 103048 | FZ19: 35708.34 | GA19: 67339.66 | GB19: 12883.72 | GC19: 31584 | GD19: 11000 | GE19: 8587.33 | GF19: 2975.7 | GG19: 5611.64 | GH19: 1398.43 | GI19: 2632 | GJ19: 132000 | GK19: 103048 | GL19: 35708.34 | GM19: 67339.66 | GN19: 16781.15 | GO19: 31584 | GP19: 1.51 | GQ19: 0.3368766587 | GR19: PASS | GS19: 1.39 | GT19: 0.3664026379 | GU19: PASS | GV19: 200000 | GW19: Fail | GX19: Y | GY19: 2020-03-26T15:49:30 | HA19: Case 17 | HB19: Mick | HE19: 7040.49
A20: 2500000 | B20: 0.0679 | C20: 0.0929 | D20: 40 | E20: 5 | F20: Company | G20: Individual (Single) | H20: Individual (Couple) | I20: Individual (Couple) | J20: Individual (Couple) | K20: Individual (Single) | N20: Non-loan Party | O20: Applicant 5 | P20: Applicant 4 | X20: 0 | Y20: 0 | Z20: 80000 | AA20: 0 | AB20: 0 | AC20: 300000 | AD20: 0 | AE20: 0 | AF20: 0 | AG20: 0 | AH20: 0 | AI20: 0 | AJ20: 535000 | AK20: 150000 | AL20: 0 | AM20: 0 | AN20: 0 | AO20: 0 | AP20: 75000 | AQ20: 0 | AR20: 0 | AS20: 0 | AT20: 0 | AU20: 0 | AV20: 0 | AW20: 0 | AX20: 0 | AY20: 0 | AZ20: 0 | BA20: 0 | BB20: 0 | BC20: 0 | BD20: 0 | BE20: 50000 | BF20: 50000 | BG20: 0 | BH20: 0 | BI20: 0 | BJ20: 0 | BK20: 1000000 | BL20: 1000000 | BM20: 0 | BN20: 0 | BO20: 0 | BP20: 0 | BQ20: 0 | BR20: 0 | BS20: 0 | BT20: 0 | BU20: 0 | BV20: 0 | BW20: 0 | BX20: 0 | BY20: 0 | BZ20: 20000 | CA20: 0 | CB20: 50000 | CC20: 15000 | CD20: 0 | CE20: 160500 | CF20: 45997 | CG20: 19147 | CH20: 0 | CI20: 0 | CJ20: 114097 | CK20: 449500 | CL20: 104003 | CM20: 61383 | CN20: 40000 | CO20: 40000 | CP20: 185903 | CQ20: 880789 | CR20: 0 | CS20: 26740.89 | CT20: 30509.79 | CU20: 24026.67 | CV20: 0 | CW20: 32145.1 | CX20: 113422.45 | CY20: 240000 | CZ20: 240000 | DA20: 640789 | DB20: 0.0585 | DC20: 0.025 | DD20: 0.0382 | DE20: 0.0406 | DF20: 1.25 | DG20: 0.8 | DH20: 0.3 | DI20: 101666.67 | DJ20: 73399.08 | DK20: 20000 | DL20: 53399.08 | DM20: 15604.88 | DN20: 20660 | DO20: 1220000 | DP20: 880789 | DQ20: 240000 | DR20: 640789 | DS20: 187258.53 | DT20: 247920 | DU20: 101666.67 | DV20: 73399.08 | DW20: 20000 | DX20: 53399.08 | DY20: 20143.89 | DZ20: 20660 | EA20: 1220000 | EB20: 880789 | EC20: 240000 | ED20: 640789 | EE20: 241726.63 | EF20: 247920 | EG20: 1.47 | EH20: 0.356703717 | EI20: PASS | EJ20: 1.3 | EK20: 0.4013496977 | EL20: PASS | EM20: 2500000 | EN20: 147125 | EO20: 45997 | EP20: 19147 | EQ20: 0 | ER20: 0 | ES20: 114097 | ET20: 462875 | EU20: 104003 | EV20: 61383 | EW20: 40000 | EX20: 40000 | EY20: 185903 | EZ20: 894164 | FA20: 0 | FB20: 33020.94 | FC20: 31771.82 | FD20: 25502.08 | FE20: 0 | FF20: 47764.4 | FG20: 138059.24 | FH20: 240000 | FI20: 240000 | FJ20: 654164 | FK20: 0.0585 | FL20: 0.025 | FM20: 0.0382 | FN20: 0.0367 | FO20: 1.25 | FP20: 0.8 | FQ20: 0.275 | FR20: 101666.67 | FS20: 74513.67 | FT20: 20000 | FU20: 54513.67 | FV20: 15604.88 | FW20: 20660 | FX20: 1220000 | FY20: 894164 | FZ20: 240000 | GA20: 654164 | GB20: 187258.53 | GC20: 247920 | GD20: 101666.67 | GE20: 74513.67 | GF20: 20000 | GG20: 54513.67 | GH20: 20143.89 | GI20: 20660 | GJ20: 1220000 | GK20: 894164 | GL20: 240000 | GM20: 654164 | GN20: 241726.63 | GO20: 247920 | GP20: 1.5 | GQ20: 0.356703717 | GR20: PASS | GS20: 1.33 | GT20: 0.4013496977 | GU20: PASS | GV20: 2500000 | GW20: Fail | GX20: Y | GY20: 2020-03-26T15:49:39 | HA20: Case 18 | HB20: Mick | HE20: 24636.79
A21: 2500000 | B21: 0.0679 | C21: 0.0929 | D21: 40 | E21: 5 | F21: Company | G21: Individual (Single) | H21: Individual (Couple) | I21: Individual (Couple) | J21: Individual (Couple) | K21: Individual (Single) | N21: Non-loan Party | O21: Applicant 5 | P21: Applicant 4 | X21: 0 | Y21: 0 | Z21: 80000 | AA21: 30000 | AB21: 40000 | AC21: 0 | AD21: 0 | AE21: 0 | AF21: 0 | AG21: 0 | AH21: 0 | AI21: 75000 | AJ21: 0 | AK21: 150000 | AL21: 0 | AM21: 0 | AN21: 0 | AO21: 0 | AP21: 75000 | AQ21: 0 | AR21: 0 | AS21: 0 | AT21: 0 | AU21: 0 | AV21: 535000 | AW21: 0 | AX21: 0 | AY21: 0 | AZ21: 0 | BA21: 0 | BB21: 0 | BC21: 0 | BD21: 0 | BE21: 50000 | BF21: 50000 | BG21: 0 | BH21: 0 | BI21: 0 | BJ21: 0 | BK21: 1000000 | BL21: 1000000 | BM21: 0 | BN21: 0 | BO21: 0 | BP21: 0 | BQ21: 0 | BR21: 0 | BS21: 0 | BT21: 0 | BU21: 0 | BV21: 0 | BW21: 0 | BX21: 0 | BY21: 0 | BZ21: 20000 | CA21: 0 | CB21: 50000 | CC21: 15000 | CD21: 0 | CE21: 160500 | CF21: 45997 | CG21: 19147 | CH21: 2716 | CI21: 5140 | CJ21: 0 | CK21: 449500 | CL21: 104003 | CM21: 61383 | CN21: 67929 | CO21: 75541 | CP21: 75000 | CQ21: 833356 | CR21: 0 | CS21: 26740.89 | CT21: 30509.79 | CU21: 28272.47 | CV21: 0 | CW21: 20049.75 | CX21: 105572.9 | CY21: 240000 | CZ21: 240000 | DA21: 593356 | DB21: 0.0585 | DC21: 0.025 | DD21: 0.0382 | DE21: 0.0406 | DF21: 1.25 | DG21: 0.8 | DH21: 0.3 | DI21: 88750 | DJ21: 69446.33 | DK21: 20000 | DL21: 49446.33 | DM21: 15604.88 | DN21: 20660 | DO21: 1065000 | DP21: 833356 | DQ21: 240000 | DR21: 593356 | DS21: 187258.53 | DT21: 247920 | DU21: 88750 | DV21: 69446.33 | DW21: 20000 | DX21: 49446.33 | DY21: 20143.89 | DZ21: 20660 | EA21: 1065000 | EB21: 833356 | EC21: 240000 | ED21: 593356 | EE21: 241726.63 | EF21: 247920 | EG21: 1.36 | EH21: 0.4086183425 | EI21: PASS | EJ21: 1.21 | EK21: 0.459762095 | EL21: PASS | EM21: 2500000 | EN21: 147125 | EO21: 45997 | EP21: 19147 | EQ21: 3535 | ER21: 6485.5 | ES21: 0 | ET21: 462875 | EU21: 104003 | EV21: 61383 | EW21: 67110 | EX21: 74254 | EY21: 75000 | EZ21: 844625 | FA21: 0 | FB21: 33020.94 | FC21: 31771.82 | FD21: 31771.82 | FE21: 0 | FF21: 20096.16 | FG21: 116660.74 | FH21: 240000 | FI21: 240000 | FJ21: 604625 | FK21: 0.0585 | FL21: 0.025 | FM21: 0.0382 | FN21: 0.0367 | FO21: 1.25 | FP21: 0.8 | FQ21: 0.275 | FR21: 88750 | FS21: 70385.42 | FT21: 20000 | FU21: 50385.42 | FV21: 15604.88 | FW21: 20660 | FX21: 1065000 | FY21: 844625 | FZ21: 240000 | GA21: 604625 | GB21: 187258.53 | GC21: 247920 | GD21: 88750 | GE21: 70385.42 | GF21: 20000 | GG21: 50385.42 | GH21: 20143.89 | GI21: 20660 | GJ21: 1065000 | GK21: 844625 | GL21: 240000 | GM21: 604625 | GN21: 241726.63 | GO21: 247920 | GP21: 1.38 | GQ21: 0.4086183425 | GR21: PASS | GS21: 1.23 | GT21: 0.459762095 | GU21: PASS | GV21: 2500000 | GW21: Fail | GX21: Y | GY21: 2020-03-26T15:49:47 | HA21: Case 19 | HB21: Mick | HE21: 11087.84
A22: 2500000 | B22: 0.0679 | C22: 0.0929 | D22: 40 | E22: 5 | F22: Company | G22: Individual (Single) | H22: Individual (Couple) | I22: Individual (Couple) | J22: Individual (Couple) | K22: Individual (Single) | N22: Non-loan Party | O22: Applicant 5 | P22: Applicant 4 | X22: 0 | Y22: 0 | Z22: 80000 | AA22: 30000 | AB22: 40000 | AC22: 0 | AD22: 0 | AE22: 0 | AF22: 0 | AG22: 0 | AH22: 0 | AI22: 75000 | AJ22: 535000 | AK22: 150000 | AL22: 0 | AM22: 0 | AN22: 0 | AO22: 0 | AP22: 75000 | AQ22: 0 | AR22: 0 | AS22: 0 | AT22: 0 | AU22: 0 | AV22: 0 | AW22: 0 | AX22: 0 | AY22: 0 | AZ22: 0 | BA22: 0 | BB22: 0 | BC22: 0 | BD22: 0 | BE22: 50000 | BF22: 50000 | BG22: 0 | BH22: 0 | BI22: 0 | BJ22: 0 | BK22: 1000000 | BL22: 1000000 | BM22: 0 | BN22: 0 | BO22: 0 | BP22: 0 | BQ22: 0 | BR22: 0 | BS22: 0 | BT22: 0 | BU22: 0 | BV22: 0 | BW22: 0 | BX22: 0 | BY22: 0 | BZ22: 20000 | CA22: 0 | CB22: 50000 | CC22: 15000 | CD22: 0 | CE22: 160500 | CF22: 45997 | CG22: 19147 | CH22: 2716 | CI22: 5140 | CJ22: 0 | CK22: 449500 | CL22: 104003 | CM22: 61383 | CN22: 67929 | CO22: 75541 | CP22: 75000 | CQ22: 833356 | CR22: 0 | CS22: 26740.89 | CT22: 30509.79 | CU22: 28272.47 | CV22: 0 | CW22: 20049.75 | CX22: 105572.9 | CY22: 240000 | CZ22: 240000 | DA22: 593356 | DB22: 0.0585 | DC22: 0.025 | DD22: 0.0382 | DE22: 0.0406 | DF22: 1.25 | DG22: 0.8 | DH22: 0.3 | DI22: 88750 | DJ22: 69446.33 | DK22: 20000 | DL22: 49446.33 | DM22: 15604.88 | DN22: 20660 | DO22: 1065000 | DP22: 833356 | DQ22: 240000 | DR22: 593356 | DS22: 187258.53 | DT22: 247920 | DU22: 88750 | DV22: 69446.33 | DW22: 20000 | DX22: 49446.33 | DY22: 20143.89 | DZ22: 20660 | EA22: 1065000 | EB22: 833356 | EC22: 240000 | ED22: 593356 | EE22: 241726.63 | EF22: 247920 | EG22: 1.36 | EH22: 0.4086183425 | EI22: PASS | EJ22: 1.21 | EK22: 0.459762095 | EL22: PASS | EM22: 2500000 | EN22: 147125 | EO22: 45997 | EP22: 19147 | EQ22: 3535 | ER22: 6485.5 | ES22: 0 | ET22: 462875 | EU22: 104003 | EV22: 61383 | EW22: 67110 | EX22: 74254 | EY22: 75000 | EZ22: 844625 | FA22: 0 | FB22: 33020.94 | FC22: 31771.82 | FD22: 31771.82 | FE22: 0 | FF22: 20096.16 | FG22: 116660.74 | FH22: 240000 | FI22: 240000 | FJ22: 604625 | FK22: 0.0585 | FL22: 0.025 | FM22: 0.0382 | FN22: 0.0367 | FO22: 1.25 | FP22: 0.8 | FQ22: 0.275 | FR22: 88750 | FS22: 70385.42 | FT22: 20000 | FU22: 50385.42 | FV22: 15604.88 | FW22: 20660 | FX22: 1065000 | FY22: 844625 | FZ22: 240000 | GA22: 604625 | GB22: 187258.53 | GC22: 247920 | GD22: 88750 | GE22: 70385.42 | GF22: 20000 | GG22: 50385.42 | GH22: 20143.89 | GI22: 20660 | GJ22: 1065000 | GK22: 844625 | GL22: 240000 | GM22: 604625 | GN22: 241726.63 | GO22: 247920 | GP22: 1.38 | GQ22: 0.4086183425 | GR22: PASS | GS22: 1.23 | GT22: 0.459762095 | GU22: PASS | GV22: 2500000 | GW22: Fail | GX22: Y | GY22: 2020-03-26T15:49:56 | HA22: Case 20 | HB22: Mick | HE22: 11087.84
A23: 2500000 | B23: 0.0679 | C23: 0.0929 | D23: 40 | E23: 5 | F23: Company | G23: Individual (Single) | H23: Individual (Couple) | I23: Individual (Couple) | J23: Individual (Couple) | K23: Individual (Single) | N23: Non-loan Party | O23: Applicant 5 | P23: Applicant 4 | X23: 0 | Y23: 0 | Z23: 80000 | AA23: 30000 | AB23: 40000 | AC23: 0 | AD23: 0 | AE23: 0 | AF23: 0 | AG23: 0 | AH23: 0 | AI23: 409501 | AJ23: 535000 | AK23: 150000 | AL23: 0 | AM23: 0 | AN23: 0 | AO23: 0 | AP23: 75000 | AQ23: 0 | AR23: 0 | AS23: 0 | AT23: 0 | AU23: 0 | AV23: 0 | AW23: 0 | AX23: 0 | AY23: 0 | AZ23: 0 | BA23: 0 | BB23: 0 | BC23: 0 | BD23: 0 | BE23: 50000 | BF23: 50000 | BG23: 0 | BH23: 0 | BI23: 0 | BJ23: 0 | BK23: 1000000 | BL23: 1000000 | BM23: 0 | BN23: 0 | BO23: 0 | BP23: 0 | BQ23: 0 | BR23: 0 | BS23: 0 | BT23: 0 | BU23: 0 | BV23: 0 | BW23: 0 | BX23: 0 | BY23: 0 | BZ23: 20000 | CA23: 0 | CB23: 50000 | CC23: 15000 | CD23: 0 | CE23: 160500 | CF23: 45997 | CG23: 19147 | CH23: 2716 | CI23: 5140 | CJ23: 0 | CK23: 449500 | CL23: 104003 | CM23: 61383 | CN23: 67929 | CO23: 75541 | CP23: 409501 | CQ23: 1167857 | CR23: 0 | CS23: 26740.89 | CT23: 30509.79 | CU23: 28272.47 | CV23: 0 | CW23: 35789.07 | CX23: 121312.23 | CY23: 240000 | CZ23: 240000 | DA23: 927857 | DB23: 0.0585 | DC23: 0.025 | DD23: 0.0382 | DE23: 0.0406 | DF23: 1.25 | DG23: 0.8 | DH23: 0.3 | DI23: 116625.08 | DJ23: 97321.42 | DK23: 20000 | DL23: 77321.42 | DM23: 15604.88 | DN23: 20660 | DO23: 1399501 | DP23: 1167857 | DQ23: 240000 | DR23: 927857 | DS23: 187258.53 | DT23: 247920 | DU23: 116625.08 | DV23: 97321.42 | DW23: 20000 | DX23: 77321.42 | DY23: 20143.89 | DZ23: 20660 | EA23: 1399501 | EB23: 1167857 | EC23: 240000 | ED23: 927857 | EE23: 241726.63 | EF23: 247920 | EG23: 2.13 | EH23: 0.3109526429 | EI23: PASS | EJ23: 1.89 | EK23: 0.3498722982 | EL23: PASS | EM23: 2500000 | EN23: 147125 | EO23: 45997 | EP23: 19147 | EQ23: 3535 | ER23: 6485.5 | ES23: 0 | ET23: 462875 | EU23: 104003 | EV23: 61383 | EW23: 67110 | EX23: 74254 | EY23: 409501 | EZ23: 1179126 | FA23: 0 | FB23: 33020.94 | FC23: 31771.82 | FD23: 31771.82 | FE23: 0 | FF23: 48866.8 | FG23: 145431.38 | FH23: 240000 | FI23: 240000 | FJ23: 939126 | FK23: 0.0585 | FL23: 0.025 | FM23: 0.0382 | FN23: 0.0367 | FO23: 1.25 | FP23: 0.8 | FQ23: 0.275 | FR23: 116625.08 | FS23: 98260.5 | FT23: 20000 | FU23: 78260.5 | FV23: 15604.88 | FW23: 20660 | FX23: 1399501 | FY23: 1179126 | FZ23: 240000 | GA23: 939126 | GB23: 187258.53 | GC23: 247920 | GD23: 116625.08 | GE23: 98260.5 | GF23: 20000 | GG23: 78260.5 | GH23: 20143.89 | GI23: 20660 | GJ23: 1399501 | GK23: 1179126 | GL23: 240000 | GM23: 939126 | GN23: 241726.63 | GO23: 247920 | GP23: 2.15 | GQ23: 0.3109526429 | GR23: PASS | GS23: 1.91 | GT23: 0.3498722982 | GU23: PASS | GV23: 2500000 | GW23: Fail | GX23: Y | GY23: 2020-03-26T15:50:05 | HA23: Case 21 | HB23: Mick | HE23: 24119.15
A24: 2500000 | B24: 0.0679 | C24: 0.0929 | D24: 40 | E24: 5 | F24: Company | G24: Individual (Single) | H24: Individual (Couple) | I24: Individual (Couple) | J24: Individual (Couple) | K24: Individual (Single) | N24: Non-loan Party | O24: Applicant 5 | P24: Applicant 4 | X24: 0 | Y24: 0 | Z24: 80000 | AA24: 30000 | AB24: 40000 | AC24: 1 | AD24: 0 | AE24: 0 | AF24: 0 | AG24: 0 | AH24: 0 | AI24: 0 | AJ24: 535000 | AK24: 150000 | AL24: 0 | AM24: 0 | AN24: 0 | AO24: 0 | AP24: 75000 | AQ24: 0 | AR24: 0 | AS24: 0 | AT24: 0 | AU24: 0 | AV24: 0 | AW24: 0 | AX24: 0 | AY24: 0 | AZ24: 0 | BA24: 0 | BB24: 0 | BC24: 0 | BD24: 0 | BE24: 50000 | BF24: 50000 | BG24: 0 | BH24: 0 | BI24: 0 | BJ24: 0 | BK24: 1000000 | BL24: 1000000 | BM24: 0 | BN24: 0 | BO24: 0 | BP24: 0 | BQ24: 0 | BR24: 0 | BS24: 0 | BT24: 0 | BU24: 0 | BV24: 0 | BW24: 0 | BX24: 0 | BY24: 0 | BZ24: 20000 | CA24: 0 | CB24: 50000 | CC24: 15000 | CD24: 0 | CE24: 160500 | CF24: 45997 | CG24: 19147 | CH24: 2716 | CI24: 5140 | CJ24: 0 | CK24: 449500 | CL24: 104003 | CM24: 61383 | CN24: 67929 | CO24: 75541 | CP24: 1 | CQ24: 758357 | CR24: 0 | CS24: 26740.89 | CT24: 30509.79 | CU24: 28272.47 | CV24: 0 | CW24: 13576.59 | CX24: 99099.74 | CY24: 240000 | CZ24: 240000 | DA24: 518357 | DB24: 0.0585 | DC24: 0.025 | DD24: 0.0382 | DE24: 0.0406 | DF24: 1.25 | DG24: 0.8 | DH24: 0.3 | DI24: 82500.08 | DJ24: 63196.42 | DK24: 20000 | DL24: 43196.42 | DM24: 15604.88 | DN24: 20660 | DO24: 990001 | DP24: 758357 | DQ24: 240000 | DR24: 518357 | DS24: 187258.53 | DT24: 247920 | DU24: 82500.08 | DV24: 63196.42 | DW24: 20000 | DX24: 43196.42 | DY24: 20143.89 | DZ24: 20660 | EA24: 990001 | EB24: 758357 | EC24: 240000 | ED24: 518357 | EE24: 241726.63 | EF24: 247920 | EG24: 1.19 | EH24: 0.4395738335 | EI24: PASS | EJ24: 1.05 | EK24: 0.4945920572 | EL24: PASS | EM24: 2500000 | EN24: 147125 | EO24: 45997 | EP24: 19147 | EQ24: 3535 | ER24: 6485.5 | ES24: 0 | ET24: 462875 | EU24: 104003 | EV24: 61383 | EW24: 67110 | EX24: 74254 | EY24: 1 | EZ24: 769626 | FA24: 0 | FB24: 33020.94 | FC24: 31771.82 | FD24: 31771.82 | FE24: 0 | FF24: 13087.54 | FG24: 109652.13 | FH24: 240000 | FI24: 240000 | FJ24: 529626 | FK24: 0.0585 | FL24: 0.025 | FM24: 0.0382 | FN24: 0.0367 | FO24: 1.25 | FP24: 0.8 | FQ24: 0.275 | FR24: 82500.08 | FS24: 64135.5 | FT24: 20000 | FU24: 44135.5 | FV24: 15604.88 | FW24: 20660 | FX24: 990001 | FY24: 769626 | FZ24: 240000 | GA24: 529626 | GB24: 187258.53 | GC24: 247920 | GD24: 82500.08 | GE24: 64135.5 | GF24: 20000 | GG24: 44135.5 | GH24: 20143.89 | GI24: 20660 | GJ24: 990001 | GK24: 769626 | GL24: 240000 | GM24: 529626 | GN24: 241726.63 | GO24: 247920 | GP24: 1.21 | GQ24: 0.4395738335 | GR24: PASS | GS24: 1.08 | GT24: 0.4945920572 | GU24: PASS | GV24: 2500000 | GW24: Fail | GX24: Y | GY24: 2020-03-26T15:50:13 | HA24: Case 22 | HB24: Mick | HE24: 10552.39
A25: 2500000 | B25: 0.0679 | C25: 0.0929 | D25: 40 | E25: 5 | F25: Company | G25: Individual (Single) | H25: Individual (Couple) | I25: Individual (Couple) | J25: Individual (Couple) | K25: Individual (Single) | N25: Non-loan Party | O25: Applicant 5 | P25: Applicant 4 | X25: 0 | Y25: 0 | Z25: 80000 | AA25: 30000 | AB25: 40000 | AC25: 1 | AD25: 0 | AE25: 0 | AF25: 0 | AG25: 0 | AH25: 0 | AI25: 500000 | AJ25: 0 | AK25: 1 | AL25: 0 | AM25: 0 | AN25: 0 | AO25: 0 | AP25: 75000 | AQ25: 0 | AR25: 0 | AS25: 0 | AT25: 0 | AU25: 0 | AV25: 35000 | AW25: 0 | AX25: 0 | AY25: 0 | AZ25: 0 | BA25: 0 | BB25: 0 | BC25: 0 | BD25: 0 | BE25: 50000 | BF25: 50000 | BG25: 0 | BH25: 0 | BI25: 0 | BJ25: 0 | BK25: 1000000 | BL25: 1000000 | BM25: 0 | BN25: 0 | BO25: 0 | BP25: 0 | BQ25: 0 | BR25: 0 | BS25: 0 | BT25: 0 | BU25: 0 | BV25: 0 | BW25: 0 | BX25: 0 | BY25: 0 | BZ25: 20000 | CA25: 0 | CB25: 50000 | CC25: 15000 | CD25: 0 | CE25: 10500 | CF25: 0 | CG25: 19147 | CH25: 2716 | CI25: 5140 | CJ25: 0 | CK25: 99500 | CL25: 1 | CM25: 61383 | CN25: 67929 | CO25: 75541 | CP25: 500001 | CQ25: 804355 | CR25: 0 | CS25: 13576.59 | CT25: 30509.79 | CU25: 28272.47 | CV25: 0 | CW25: 37207.13 | CX25: 109565.98 | CY25: 240000 | CZ25: 240000 | DA25: 564355 | DB25: 0.0585 | DC25: 0.025 | DD25: 0.0382 | DE25: 0.0406 | DF25: 1.25 | DG25: 0.8 | DH25: 0.3 | DI25: 70000.17 | DJ25: 67029.58 | DK25: 20000 | DL25: 47029.58 | DM25: 15604.88 | DN25: 20660 | DO25: 840002 | DP25: 804355 | DQ25: 240000 | DR25: 564355 | DS25: 187258.53 | DT25: 247920 | DU25: 70000.17 | DV25: 67029.58 | DW25: 20000 | DX25: 47029.58 | DY25: 20143.89 | DZ25: 20660 | EA25: 840002 | EB25: 804355 | EC25: 240000 | ED25: 564355 | EE25: 241726.63 | EF25: 247920 | EG25: 1.29 | EH25: 0.5180684507 | EI25: PASS | EJ25: 1.15 | EK25: 0.5829112683 | EL25: FAIL | EM25: 2105229.36 | EN25: 9625 | EO25: 0 | EP25: 19147 | EQ25: 3535 | ER25: 6485.5 | ES25: 0 | ET25: 100375 | EU25: 1 | EV25: 61383 | EW25: 67110 | EX25: 74254 | EY25: 500001 | EZ25: 803124 | FA25: 0 | FB25: 13087.54 | FC25: 31771.82 | FD25: 31771.82 | FE25: 0 | FF25: 48866.8 | FG25: 125497.98 | FH25: 240000 | FI25: 240000 | FJ25: 563124 | FK25: 0.0585 | FL25: 0.025 | FM25: 0.0382 | FN25: 0.0367 | FO25: 1.25 | FP25: 0.8 | FQ25: 0.275 | FR25: 70000.17 | FS25: 66927 | FT25: 20000 | FU25: 46927 | FV25: 15604.88 | FW25: 20660 | FX25: 840002 | FY25: 803124 | FZ25: 240000 | GA25: 563124 | GB25: 187258.53 | GC25: 247920 | GD25: 70000.17 | GE25: 66927 | GF25: 20000 | GG25: 46927 | GH25: 20143.89 | GI25: 20660 | GJ25: 840002 | GK25: 803124 | GL25: 240000 | GM25: 563124 | GN25: 241726.63 | GO25: 247920 | GP25: 1.29 | GQ25: 0.5180684507 | GR25: PASS | GS25: 1.15 | GT25: 0.5829112683 | GU25: FAIL | GV25: 2095052.57 | GW25: Fail | GX25: Y | GY25: 2020-03-26T15:50:22 | HA25: Case 23 | HB25: Mick | HE25: 15932
A26: 2000000 | B26: 0.0529 | C26: 0.0779 | D26: 30 | E26: 3 | F26: Company | G26: Individual (Single) | X26: 0 | Y26: 0 | Z26: 0 | AA26: 0 | AB26: 0 | AC26: 0 | AD26: 0 | AE26: 30000 | AF26: 0 | AG26: 0 | AH26: 0 | AI26: 0 | AJ26: 0 | AK26: 0 | AL26: 0 | AM26: 0 | AN26: 0 | AO26: 0 | AP26: 0 | AQ26: 0 | AR26: 0 | AS26: 0 | AT26: 0 | AU26: 0 | AV26: 300000 | AW26: 0 | AX26: 0 | AY26: 0 | AZ26: 0 | BA26: 0 | BB26: 0 | BC26: 0 | BD26: 0 | BE26: 0 | BF26: 0 | BG26: 0 | BH26: 0 | BI26: 0 | BJ26: 0 | BK26: 0 | BL26: 0 | BM26: 0 | BN26: 0 | BO26: 0 | BP26: 0 | BQ26: 0 | BR26: 0 | BS26: 0 | BT26: 0 | BU26: 0 | BV26: 0 | BW26: 0 | BX26: 0 | BY26: 0 | BZ26: 0 | CA26: 0 | CB26: 0 | CC26: 0 | CD26: 0 | CE26: 90000 | CF26: 0 | CG26: 0 | CH26: 0 | CI26: 0 | CJ26: 0 | CK26: 210000 | CL26: 30000 | CM26: 0 | CN26: 0 | CO26: 0 | CP26: 0 | CQ26: 240000 | CR26: 0 | CS26: 14357.8 | CT26: 0 | CU26: 0 | CV26: 0 | CW26: 0 | CX26: 14357.8 | CY26: 0 | CZ26: 14357.8 | DA26: 225642.2 | DB26: 0.0585 | DC26: 0.025 | DD26: 0.0382 | DE26: 0.0406 | DF26: 1.25 | DG26: 0.8 | DH26: 0.3 | DI26: 27500 | DJ26: 20000 | DK26: 1196.48 | DL26: 18803.52 | DM26: 11608.05 | DN26: 0 | DO26: 330000 | DP26: 240000 | DQ26: 14357.8 | DR26: 225642.2 | DS26: 139296.62 | DT26: 0 | DU26: 27500 | DV26: 20000 | DW26: 1196.48 | DX26: 18803.52 | DY26: 14802.32 | DZ26: 0 | EA26: 330000 | EB26: 240000 | EC26: 14357.8 | ED26: 225642.2 | EE26: 177627.89 | EF26: 0 | EG26: 1.61 | EH26: 0.4221109787 | EI26: PASS | EJ26: 1.27 | EK26: 0.5382663262 | EL26: PASS | EM26: 2000000 | EN26: 82500 | EO26: 0 | EP26: 0 | EQ26: 0 | ER26: 0 | ES26: 0 | ET26: 217500 | EU26: 30000 | EV26: 0 | EW26: 0 | EX26: 0 | EY26: 0 | EZ26: 247500 | FA26: 0 | FB26: 13823.5 | FC26: 0 | FD26: 0 | FE26: 0 | FF26: 0 | FG26: 13823.5 | FH26: 0 | FI26: 13823.5 | FJ26: 233676.5 | FK26: 0.0585 | FL26: 0.025 | FM26: 0.0382 | FN26: 0.0367 | FO26: 1.25 | FP26: 0.8 | FQ26: 0.275 | FR26: 27500 | FS26: 20625 | FT26: 1151.96 | FU26: 19473.04 | FV26: 11608.05 | FW26: 0 | FX26: 330000 | FY26: 247500 | FZ26: 13823.5 | GA26: 233676.5 | GB26: 139296.62 | GC26: 0 | GD26: 27500 | GE26: 20625 | GF26: 1151.96 | GG26: 19473.04 | GH26: 14802.32 | GI26: 0 | GJ26: 330000 | GK26: 247500 | GL26: 13823.5 | GM26: 233676.5 | GN26: 177627.89 | GO26: 0 | GP26: 1.67 | GQ26: 0.4221109787 | GR26: PASS | GS26: 1.31 | GT26: 0.5382663262 | GU26: PASS | GV26: 2000000 | GW26: Fail | GX26: Y | GY26: 2020-03-26T15:50:30 | HA26: Case 24 | HB26: Mick | HE26: -534.3
A27: 2000000 | B27: 0.0529 | C27: 0.0779 | D27: 30 | E27: 3 | F27: Individual (Single) | G27: Individual (Single) | X27: 0 | Y27: 1 | Z27: 0 | AA27: 0 | AB27: 0 | AC27: 0 | AD27: 0 | AE27: 30000 | AF27: 0 | AG27: 0 | AH27: 0 | AI27: 0 | AJ27: 330000 | AK27: 0 | AL27: 0 | AM27: 0 | AN27: 0 | AO27: 0 | AP27: 0 | AQ27: 0 | AR27: 0 | AS27: 0 | AT27: 0 | AU27: 0 | AV27: 0 | AW27: 0 | AX27: 0 | AY27: 0 | AZ27: 0 | BA27: 0 | BB27: 0 | BC27: 0 | BD27: 0 | BE27: 0 | BF27: 0 | BG27: 0 | BH27: 0 | BI27: 0 | BJ27: 0 | BK27: 0 | BL27: 0 | BM27: 0 | BN27: 0 | BO27: 0 | BP27: 0 | BQ27: 0 | BR27: 0 | BS27: 0 | BT27: 0 | BU27: 0 | BV27: 0 | BW27: 0 | BX27: 0 | BY27: 0 | BZ27: 0 | CA27: 0 | CB27: 0 | CC27: 0 | CD27: 0 | CE27: 128197 | CF27: 0 | CG27: 0 | CH27: 0 | CI27: 0 | CJ27: 0 | CK27: 201803 | CL27: 30001 | CM27: 0 | CN27: 0 | CO27: 0 | CP27: 0 | CQ27: 231804 | CR27: 34133.65 | CS27: 14357.8 | CT27: 0 | CU27: 0 | CV27: 0 | CW27: 0 | CX27: 48491.44 | CY27: 0 | CZ27: 48491.44 | DA27: 183312.56 | DB27: 0.0585 | DC27: 0.025 | DD27: 0.0382 | DE27: 0.0406 | DF27: 1.25 | DG27: 0.8 | DH27: 0.3 | DI27: 30000.08 | DJ27: 19317 | DK27: 4040.95 | DL27: 15276.05 | DM27: 11608.05 | DN27: 0 | DO27: 360001 | DP27: 231804 | DQ27: 48491.44 | DR27: 183312.56 | DS27: 139296.62 | DT27: 0 | DU27: 30000.08 | DV27: 19317 | DW27: 4040.95 | DX27: 15276.05 | DY27: 14802.32 | DZ27: 0 | EA27: 360001 | EB27: 231804 | EC27: 48491.44 | ED27: 183312.56 | EE27: 177627.89 | EF27: 0 | EG27: 1.31 | EH27: 0.386933989 | EI27: PASS | EJ27: 1.03 | EK27: 0.4934094284 | EL27: PASS | EM27: 2000000 | EN27: 128197 | EO27: 0 | EP27: 0 | EQ27: 0 | ER27: 0 | ES27: 0 | ET27: 201803 | EU27: 30001 | EV27: 0 | EW27: 0 | EX27: 0 | EY27: 0 | EZ27: 231804 | FA27: 48866.8 | FB27: 13823.5 | FC27: 0 | FD27: 0 | FE27: 0 | FF27: 0 | FG27: 62690.29 | FH27: 0 | FI27: 62690.29 | FJ27: 169113.71 | FK27: 0.0585 | FL27: 0.025 | FM27: 0.0382 | FN27: 0.0367 | FO27: 1.25 | FP27: 0.8 | FQ27: 0.275 | FR27: 30000.08 | FS27: 19317 | FT27: 5224.19 | FU27: 14092.81 | FV27: 11608.05 | FW27: 0 | FX27: 360001 | FY27: 231804 | FZ27: 62690.29 | GA27: 169113.71 | GB27: 139296.62 | GC27: 0 | GD27: 30000.08 | GE27: 19317 | GF27: 5224.19 | GG27: 14092.81 | GH27: 14802.32 | GI27: 0 | GJ27: 360001 | GK27: 231804 | GL27: 62690.29 | GM27: 169113.71 | GN27: 177627.89 | GO27: 0 | GP27: 1.21 | GQ27: 0.386933989 | GR27: PASS | GS27: 0.95 | GT27: 0.4934094284 | GU27: FAIL | GV27: 1904025.34 | GW27: =IF(AND(DI27=FR27,DJ27=FS27,DK27=FT27,DL27=FU27,DM27=FV27,DN27=FW27,DO27=FX27,DP27=FY27,DQ27=FZ27,DR27=GA27,DS27=GB27,DT27=GC27,DU27=GD27,DV27=GE27,DW27=GF27,DX27=GG27,DY27=GH27,DZ27=GI27,EA27=GJ27,EB27=GK27,EC27=GL27,ED27=GM27,EE27=GN27,EF27=GO27,EG27=GP27,EH27=GQ27,EI27=GR27,EJ27=GS27,EK27=GT27,EL27=GU27,EM27=GV27),"Pass","Fail") -> Fail | GX27: Y | GY27: 2020-03-26T15:50:39 | HA27: Case 25 | HB27: Mick | HE27: 14198.85
A28: 1500000 | B28: 0.06 | C28: 0.085 | D28: 30 | E28: 0 | F28: Individual (Couple) | G28: Individual (Couple) | H28: Individual (Single) | I28: Individual (Single) | L28: Applicant 2 | M28: Applicant 1 | X28: 36000 | Y28: 10000 | Z28: 0 | AA28: 0 | AB28: 0 | AC28: 0 | AD28: 35000 | AE28: 0 | AF28: 35000 | AG28: 100000 | AH28: 0 | AI28: 0 | AJ28: 0 | AK28: 0 | AL28: 0 | AM28: 0 | AN28: 0 | AO28: 0 | AP28: 10000 | AQ28: 0 | AR28: 0 | AS28: 0 | AT28: 0 | AU28: 0 | AV28: 0 | AW28: 0 | AX28: 0 | AY28: 0 | AZ28: 0 | BA28: 0 | BB28: 0 | BC28: 0 | BD28: 0 | BE28: 0 | BF28: 0 | BG28: 0 | BH28: 0 | BI28: 0 | BJ28: 0 | BK28: 0 | BL28: 0 | BM28: 0 | BN28: 100 | BO28: 0 | BP28: 0 | BQ28: 0 | BR28: 0 | BS28: 0 | BT28: 0 | BU28: 0 | BV28: 0 | BW28: 0 | BX28: 0 | BY28: 0 | BZ28: 0 | CA28: 0 | CB28: 0 | CC28: 0 | CD28: 0 | CE28: 4102 | CF28: 0 | CG28: 0 | CH28: 0 | CI28: 0 | CJ28: 0 | CK28: 77543 | CL28: 10000 | CM28: 35000 | CN28: 100000 | CO28: 0 | CP28: 0 | CQ28: 222543 | CR28: 32183.31 | CS28: 0 | CT28: 14128.43 | CU28: 22205.22 | CV28: 0 | CW28: 0 | CX28: 68516.96 | CY28: 1200 | CZ28: 68516.96 | DA28: 154026.04 | DB28: 0.0585 | DC28: 0.025 | DD28: 0.0382 | DE28: 0.0406 | DF28: 1.25 | DG28: 0.8 | DH28: 0.3 | DI28: 18833.33 | DJ28: 18545.25 | DK28: 5709.75 | DL28: 12835.5 | DM28: 8993.26 | DN28: 0 | DO28: 226000 | DP28: 222543 | DQ28: 68516.96 | DR28: 154026.04 | DS28: 107919.09 | DT28: 0 | DU28: 18833.33 | DV28: 18545.25 | DW28: 5709.75 | DX28: 12835.5 | DY28: 11533.7 | DZ28: 0 | EA28: 226000 | EB28: 222543 | EC28: 68516.96 | ED28: 154026.04 | EE28: 138404.43 | EF28: 0 | EG28: 1.42 | EH28: 0.4775181174 | EI28: PASS | EJ28: 1.11 | EK28: 0.6124089692 | EL28: FAIL | EM28: 1335390.81 | EN28: 4102 | EO28: 0 | EP28: 0 | EQ28: 0 | ER28: 0 | ES28: 0 | ET28: 77543 | EU28: 10000 | EV28: 35000 | EW28: 100000 | EX28: 0 | EY28: 0 | EZ28: 222543 | FA28: 35565.5 | FB28: 0 | FC28: 14556.94 | FD28: 23891.6 | FE28: 0 | FF28: 0 | FG28: 74014.05 | FH28: 1200 | FI28: 74014.05 | FJ28: 148528.95 | FK28: 0.0585 | FL28: 0.025 | FM28: 0.0382 | FN28: 0.0367 | FO28: 1.25 | FP28: 0.8 | FQ28: 0.275 | FR28: 18833.33 | FS28: 18545.25 | FT28: 6167.84 | FU28: 12377.41 | FV28: 8993.26 | FW28: 0 | FX28: 226000 | FY28: 222543 | FZ28: 74014.05 | GA28: 148528.95 | GB28: 107919.09 | GC28: 0 | GD28: 18833.33 | GE28: 18545.25 | GF28: 6167.84 | GG28: 12377.41 | GH28: 11533.7 | GI28: 0 | GJ28: 226000 | GK28: 222543 | GL28: 74014.05 | GM28: 148528.95 | GN28: 138404.43 | GO28: 0 | GP28: 1.37 | GQ28: 0.4775181174 | GR28: PASS | GS28: 1.07 | GT28: 0.6124089692 | GU28: FAIL | GV28: 1287661.12 | GW28: Fail | GX28: Y | GY28: 2020-03-26T15:50:48 | HA28: Case 26 | HB28: Mick | HE28: 5497.09
A29: 1000000 | B29: 0.06 | C29: 0.085 | D29: 30 | E29: 0 | F29: Individual (Single) | G29: Individual (Couple) | H29: Individual (Couple) | M29: Applicant 3 | N29: Applicant 2 | X29: 0 | Y29: 50000 | Z29: 0 | AA29: 0 | AB29: 0 | AC29: 0 | AD29: 0 | AE29: 0 | AF29: 0 | AG29: 0 | AH29: 0 | AI29: 0 | AJ29: 25000 | AK29: 0 | AL29: 0 | AM29: 0 | AN29: 0 | AO29: 0 | AP29: 0 | AQ29: 0 | AR29: 0 | AS29: 0 | AT29: 0 | AU29: 0 | AV29: 0 | AW29: 0 | AX29: 0 | AY29: 0 | AZ29: 0 | BA29: 0 | BB29: 0 | BC29: 60000 | BD29: 60000 | BE29: 0 | BF29: 0 | BG29: 0 | BH29: 0 | BI29: 500000 | BJ29: 500000 | BK29: 0 | BL29: 0 | BM29: 0 | BN29: 100 | BO29: 0 | BP29: 0 | BQ29: 0 | BR29: 0 | BS29: 0 | BT29: 0 | BU29: 0 | BV29: 0 | BW29: 0 | BX29: 0 | BY29: 0 | BZ29: 0 | CA29: 0 | CB29: 0 | CC29: 0 | CD29: 0 | CE29: 1594 | CF29: 18353.5 | CG29: 2359 | CH29: 0 | CI29: 0 | CJ29: 0 | CK29: 24051 | CL29: 80176.5 | CM29: 46286 | CN29: 0 | CO29: 0 | CP29: 0 | CQ29: 150513.5 | CR29: 14357.8 | CS29: 32668.58 | CT29: 0 | CU29: 0 | CV29: 0 | CW29: 0 | CX29: 47026.37 | CY29: 1200 | CZ29: 47026.37 | DA29: 103487.13 | DB29: 0.0585 | DC29: 0.025 | DD29: 0.0382 | DE29: 0.0406 | DF29: 1.25 | DG29: 0.8 | DH29: 0.3 | DI29: 14250 | DJ29: 12542.79 | DK29: 3918.86 | DL29: 8623.93 | DM29: 5995.51 | DN29: 0 | DO29: 171000 | DP29: 150513.5 | DQ29: 47026.37 | DR29: 103487.13 | DS29: 71946.06 | DT29: 0 | DU29: 14250 | DV29: 12542.79 | DW29: 3918.86 | DX29: 8623.93 | DY29: 7689.13 | DZ29: 0 | EA29: 171000 | EB29: 150513.5 | EC29: 47026.37 | ED29: 103487.13 | EE29: 92269.62 | EF29: 0 | EG29: 1.43 | EH29: 0.4207372106 | EI29: PASS | EJ29: 1.12 | EK29: 0.5395884095 | EL29: PASS | EM29: 1000000 | EN29: 1594 | EO29: 19026.25 | EP29: 2768.5 | EQ29: 0 | ER29: 0 | ES29: 0 | ET29: 24051 | EU29: 79503.75 | EV29: 45876.5 | EW29: 0 | EX29: 0 | EY29: 0 | EZ29: 149431.25 | FA29: 13823.5 | FB29: 38356.62 | FC29: 0 | FD29: 0 | FE29: 0 | FF29: 0 | FG29: 52180.12 | FH29: 1200 | FI29: 52180.12 | FJ29: 97251.13 | FK29: 0.0585 | FL29: 0.025 | FM29: 0.0382 | FN29: 0.0367 | FO29: 1.25 | FP29: 0.8 | FQ29: 0.275 | FR29: 14250 | FS29: 12452.6 | FT29: 4348.34 | FU29: 8104.26 | FV29: 5995.51 | FW29: 0 | FX29: 171000 | FY29: 149431.25 | FZ29: 52180.12 | GA29: 97251.13 | GB29: 71946.06 | GC29: 0 | GD29: 14250 | GE29: 12452.6 | GF29: 4348.34 | GG29: 8104.26 | GH29: 7689.13 | GI29: 0 | GJ29: 171000 | GK29: 149431.25 | GL29: 52180.12 | GM29: 97251.13 | GN29: 92269.62 | GO29: 0 | GP29: 1.35 | GQ29: 0.4207372106 | GR29: PASS | GS29: 1.05 | GT29: 0.5395884095 | GU29: PASS | GV29: 1000000 | GW29: =IF(AND(DI29=FR29,DJ29=FS29,DK29=FT29,DL29=FU29,DM29=FV29,DN29=FW29,DO29=FX29,DP29=FY29,DQ29=FZ29,DR29=GA29,DS29=GB29,DT29=GC29,DU29=GD29,DV29=GE29,DW29=GF29,DX29=GG29,DY29=GH29,DZ29=GI29,EA29=GJ29,EB29=GK29,EC29=GL29,ED29=GM29,EE29=GN29,EF29=GO29,EG29=GP29,EH29=GQ29,EI29=GR29,EJ29=GS29,EK29=GT29,EL29=GU29,EM29=GV29),"Pass","Fail") -> Fail | GX29: Y | GY29: 2020-03-26T15:50:57 | HA29: Case 27 | HB29: Mick | HE29: 5153.75
A30: 1000000 | B30: 0.05 | C30: 0.075 | D30: 30 | E30: 0 | F30: Individual (Couple) | G30: Individual (Couple) | L30: Applicant 2 | M30: Applicant 1 | X30: 0 | Y30: 0 | Z30: 0 | AA30: 0 | AB30: 0 | AC30: 0 | AD30: 0 | AE30: 0 | AF30: 0 | AG30: 0 | AH30: 0 | AI30: 0 | AJ30: 0 | AK30: 0 | AL30: 0 | AM30: 0 | AN30: 0 | AO30: 0 | AP30: 0 | AQ30: 0 | AR30: 0 | AS30: 0 | AT30: 0 | AU30: 0 | AV30: 0 | AW30: 0 | AX30: 0 | AY30: 0 | AZ30: 0 | BA30: 0 | BB30: 200000 | BC30: 0 | BD30: 0 | BE30: 0 | BF30: 0 | BG30: 0 | BH30: 1000000 | BI30: 0 | BJ30: 0 | BK30: 0 | BL30: 0 | BM30: 0 | BN30: 100 | BO30: 0 | BP30: 0 | BQ30: 0 | BR30: 0 | BS30: 0 | BT30: 0 | BU30: 0 | BV30: 0 | BW30: 0 | BX30: 0 | BY30: 0 | BZ30: 0 | CA30: 0 | CB30: 0 | CC30: 0 | CD30: 0 | CE30: 34063 | CF30: 0 | CG30: 0 | CH30: 0 | CI30: 0 | CJ30: 0 | CK30: 126026 | CL30: 0 | CM30: 0 | CN30: 0 | CO30: 0 | CP30: 0 | CQ30: 126026 | CR30: 33648.97 | CS30: 0 | CT30: 0 | CU30: 0 | CV30: 0 | CW30: 0 | CX30: 33648.97 | CY30: 1200 | CZ30: 33648.97 | DA30: 92377.03 | DB30: 0.0585 | DC30: 0.025 | DD30: 0.0382 | DE30: 0.0406 | DF30: 1.25 | DG30: 0.8 | DH30: 0.3 | DI30: 13333.33 | DJ30: 10502.17 | DK30: 2804.08 | DL30: 7698.09 | DM30: 5368.22 | DN30: 0 | DO30: 160000 | DP30: 126026 | DQ30: 33648.97 | DR30: 92377.03 | DS30: 64418.59 | DT30: 0 | DU30: 13333.33 | DV30: 10502.17 | DW30: 2804.08 | DX30: 7698.09 | DY30: 6992.15 | DZ30: 0 | EA30: 160000 | EB30: 126026 | EC30: 33648.97 | ED30: 92377.03 | EE30: 83905.74 | EF30: 0 | EG30: 1.43 | EH30: 0.4026162173 | EI30: PASS | EJ30: 1.1 | EK30: 0.5244108814 | EL30: PASS | EM30: 1000000 | EN30: 35584 | EO30: 0 | EP30: 0 | EQ30: 0 | ER30: 0 | ES30: 0 | ET30: 124446.5 | EU30: 0 | EV30: 0 | EW30: 0 | EX30: 0 | EY30: 0 | EZ30: 124446.5 | FA30: 38356.62 | FB30: 0 | FC30: 0 | FD30: 0 | FE30: 0 | FF30: 0 | FG30: 38356.62 | FH30: 1200 | FI30: 38356.62 | FJ30: 86089.88 | FK30: 0.0585 | FL30: 0.025 | FM30: 0.0382 | FN30: 0.0367 | FO30: 1.25 | FP30: 0.8 | FQ30: 0.275 | FR30: 13333.33 | FS30: 10370.54 | FT30: 3196.39 | FU30: 7174.16 | FV30: 5368.22 | FW30: 0 | FX30: 160000 | FY30: 124446.5 | FZ30: 38356.62 | GA30: 86089.88 | GB30: 64418.59 | GC30: 0 | GD30: 13333.33 | GE30: 10370.54 | GF30: 3196.39 | GG30: 7174.16 | GH30: 6992.15 | GI30: 0 | GJ30: 160000 | GK30: 124446.5 | GL30: 38356.62 | GM30: 86089.88 | GN30: 83905.74 | GO30: 0 | GP30: 1.33 | GQ30: 0.4026162173 | GR30: PASS | GS30: 1.02 | GT30: 0.5244108814 | GU30: PASS | GV30: 1000000 | GW30: =IF(AND(DI30=FR30,DJ30=FS30,DK30=FT30,DL30=FU30,DM30=FV30,DN30=FW30,DO30=FX30,DP30=FY30,DQ30=FZ30,DR30=GA30,DS30=GB30,DT30=GC30,DU30=GD30,DV30=GE30,DW30=GF30,DX30=GG30,DY30=GH30,DZ30=GI30,EA30=GJ30,EB30=GK30,EC30=GL30,ED30=GM30,EE30=GN30,EF30=GO30,EG30=GP30,EH30=GQ30,EI30=GR30,EJ30=GS30,EK30=GT30,EL30=GU30,EM30=GV30),"Pass","Fail") -> Fail | GX30: Y | GY30: 2020-03-26T15:51:06 | HA30: Case 28 | HB30: Mick | HE30: 4707.65
A31: 1500000 | B31: 0.06 | C31: 0.085 | D31: 30 | E31: 0 | F31: Individual (Couple) | G31: Individual (Couple) | H31: Individual (Single) | L31: Applicant 2 | M31: Applicant 1 | X31: 300000 | Y31: 10000 | Z31: 0 | AA31: 0 | AB31: 0 | AC31: 0 | AD31: 35000 | AE31: 0 | AF31: 35000 | AG31: 0 | AH31: 0 | AI31: 0 | AJ31: 116000 | AK31: 0 | AL31: 0 | AM31: 0 | AN31: 0 | AO31: 0 | AP31: 15000 | AQ31: 0 | AR31: 0 | AS31: 0 | AT31: 0 | AU31: 0 | AV31: 0 | AW31: 0 | AX31: 0 | AY31: 0 | AZ31: 0 | BA31: 0 | BB31: 0 | BC31: 0 | BD31: 0 | BE31: 0 | BF31: 0 | BG31: 0 | BH31: 0 | BI31: 0 | BJ31: 0 | BK31: 0 | BL31: 0 | BM31: 0 | BN31: 100 | BO31: 0 | BP31: 0 | BQ31: 0 | BR31: 0 | BS31: 0 | BT31: 0 | BU31: 0 | BV31: 0 | BW31: 0 | BX31: 0 | BY31: 0 | BZ31: 0 | CA31: 0 | CB31: 0 | CC31: 0 | CD31: 0 | CE31: 168617 | CF31: 0 | CG31: 0 | CH31: 0 | CI31: 0 | CJ31: 0 | CK31: 297383 | CL31: 10000 | CM31: 35000 | CN31: 0 | CO31: 0 | CP31: 0 | CQ31: 342383 | CR31: 47693.58 | CS31: 0 | CT31: 14128.43 | CU31: 0 | CV31: 0 | CW31: 0 | CX31: 61822.01 | CY31: 1200 | CZ31: 61822.01 | DA31: 280560.99 | DB31: 0.0585 | DC31: 0.025 | DD31: 0.0382 | DE31: 0.0406 | DF31: 1.25 | DG31: 0.8 | DH31: 0.3 | DI31: 42583.33 | DJ31: 28531.92 | DK31: 5151.83 | DL31: 23380.08 | DM31: 8993.26 | DN31: 0 | DO31: 511000 | DP31: 342383 | DQ31: 61822.01 | DR31: 280560.99 | DS31: 107919.09 | DT31: 0 | DU31: 42583.33 | DV31: 28531.92 | DW31: 5151.83 | DX31: 23380.08 | DY31: 11533.7 | DZ31: 0 | EA31: 511000 | EB31: 342383 | EC31: 61822.01 | ED31: 280560.99 | EE31: 138404.43 | EF31: 0 | EG31: 2.59 | EH31: 0.2111919658 | EI31: PASS | EJ31: 2.02 | EK31: 0.2708501508 | EL31: PASS | EM31: 1500000 | EN31: 168617 | EO31: 0 | EP31: 0 | EQ31: 0 | ER31: 0 | ES31: 0 | ET31: 297383 | EU31: 10000 | EV31: 35000 | EW31: 0 | EX31: 0 | EY31: 0 | EZ31: 342383 | FA31: 60529.1 | FB31: 0 | FC31: 14556.94 | FD31: 0 | FE31: 0 | FF31: 0 | FG31: 75086.04 | FH31: 1200 | FI31: 75086.04 | FJ31: 267296.96 | FK31: 0.0585 | FL31: 0.025 | FM31: 0.0382 | FN31: 0.0367 | FO31: 1.25 | FP31: 0.8 | FQ31: 0.275 | FR31: 42583.33 | FS31: 28531.92 | FT31: 6257.17 | FU31: 22274.75 | FV31: 8993.26 | FW31: 0 | FX31: 511000 | FY31: 342383 | FZ31: 75086.04 | GA31: 267296.96 | GB31: 107919.09 | GC31: 0 | GD31: 42583.33 | GE31: 28531.92 | GF31: 6257.17 | GG31: 22274.75 | GH31: 11533.7 | GI31: 0 | GJ31: 511000 | GK31: 342383 | GL31: 75086.04 | GM31: 267296.96 | GN31: 138404.43 | GO31: 0 | GP31: 2.47 | GQ31: 0.2111919658 | GR31: PASS | GS31: 1.93 | GT31: 0.2708501508 | GU31: PASS | GV31: 1500000 | GW31: Fail | GX31: Y | GY31: 2020-03-26T15:51:14 | HA31: Case 29 | HB31: Mick | HE31: 13264.03
A32: 200000 | B32: 0.05 | C32: 0.075 | D32: 30 | E32: 0 | F32: Individual (Single) | R32: 1 | X32: 107000 | Y32: 0 | Z32: 0 | AA32: 0 | AB32: 0 | AC32: 0 | AD32: 25000 | AE32: 0 | AF32: 0 | AG32: 0 | AH32: 0 | AI32: 0 | AJ32: 0 | AK32: 0 | AL32: 0 | AM32: 0 | AN32: 0 | AO32: 0 | AP32: 0 | AQ32: 0 | AR32: 0 | AS32: 0 | AT32: 0 | AU32: 0 | AV32: 0 | AW32: 0 | AX32: 0 | AY32: 0 | AZ32: 0 | BA32: 0 | BB32: 0 | BC32: 0 | BD32: 0 | BE32: 0 | BF32: 0 | BG32: 0 | BH32: 0 | BI32: 0 | BJ32: 0 | BK32: 0 | BL32: 0 | BM32: 0 | BN32: 100 | BO32: 0 | BP32: 0 | BQ32: 0 | BR32: 0 | BS32: 0 | BT32: 0 | BU32: 0 | BV32: 0 | BW32: 0 | BX32: 0 | BY32: 0 | BZ32: 0 | CA32: 0 | CB32: 10000 | CC32: 1000 | CD32: 1000 | CE32: 29227 | CF32: 0 | CG32: 0 | CH32: 0 | CI32: 0 | CJ32: 0 | CK32: 103048 | CL32: 0 | CM32: 0 | CN32: 0 | CO32: 0 | CP32: 0 | CQ32: 103048 | CR32: 28667.85 | CS32: 0 | CT32: 0 | CU32: 0 | CV32: 0 | CW32: 0 | CX32: 28667.85 | CY32: 1200 | CZ32: 28667.85 | DA32: 74380.15 | DB32: 0.0585 | DC32: 0.025 | DD32: 0.0382 | DE32: 0.0406 | DF32: 1.25 | DG32: 0.8 | DH32: 0.3 | DI32: 11000 | DJ32: 8587.33 | DK32: 2388.99 | DL32: 6198.35 | DM32: 1073.64 | DN32: 2632 | DO32: 132000 | DP32: 103048 | DQ32: 28667.85 | DR32: 74380.15 | DS32: 12883.72 | DT32: 31584 | DU32: 11000 | DV32: 8587.33 | DW32: 2388.99 | DX32: 6198.35 | DY32: 1398.43 | DZ32: 2632 | EA32: 132000 | EB32: 103048 | EC32: 28667.85 | ED32: 74380.15 | EE32: 16781.15 | EF32: 31584 | EG32: 1.67 | EH32: 0.3368766587 | EI32: PASS | EJ32: 1.53 | EK32: 0.3664026379 | EL32: PASS | EM32: 200000 | EN32: 29227 | EO32: 0 | EP32: 0 | EQ32: 0 | ER32: 0 | ES32: 0 | ET32: 103048 | EU32: 0 | EV32: 0 | EW32: 0 | EX32: 0 | EY32: 0 | EZ32: 103048 | FA32: 35708.34 | FB32: 0 | FC32: 0 | FD32: 0 | FE32: 0 | FF32: 0 | FG32: 35708.34 | FH32: 1200 | FI32: 35708.34 | FJ32: 67339.66 | FK32: 0.0585 | FL32: 0.025 | FM32: 0.0382 | FN32: 0.0367 | FO32: 1.25 | FP32: 0.8 | FQ32: 0.275 | FR32: 11000 | FS32: 8587.33 | FT32: 2975.7 | FU32: 5611.64 | FV32: 1073.64 | FW32: 2632 | FX32: 132000 | FY32: 103048 | FZ32: 35708.34 | GA32: 67339.66 | GB32: 12883.72 | GC32: 31584 | GD32: 11000 | GE32: 8587.33 | GF32: 2975.7 | GG32: 5611.64 | GH32: 1398.43 | GI32: 2632 | GJ32: 132000 | GK32: 103048 | GL32: 35708.34 | GM32: 67339.66 | GN32: 16781.15 | GO32: 31584 | GP32: 1.51 | GQ32: 0.3368766587 | GR32: PASS | GS32: 1.39 | GT32: 0.3664026379 | GU32: PASS | GV32: 200000 | GW32: Fail | GX32: Y | GY32: 2020-03-26T15:51:23 | HA32: Case 30 | HB32: Mick | HE32: 7040.49
A33: 200000 | B33: 0.05 | C33: 0.075 | D33: 30 | E33: 0 | F33: Individual (Single) | R33: 1 | X33: 107000 | Y33: 0 | Z33: 0 | AA33: 0 | AB33: 0 | AC33: 0 | AD33: 0 | AE33: 0 | AF33: 0 | AG33: 0 | AH33: 0 | AI33: 0 | AJ33: 0 | AK33: 0 | AL33: 0 | AM33: 0 | AN33: 0 | AO33: 0 | AP33: 0 | AQ33: 0 | AR33: 0 | AS33: 0 | AT33: 0 | AU33: 0 | AV33: 0 | AW33: 0 | AX33: 0 | AY33: 0 | AZ33: 0 | BA33: 0 | BB33: 0 | BC33: 0 | BD33: 0 | BE33: 0 | BF33: 0 | BG33: 0 | BH33: 0 | BI33: 0 | BJ33: 0 | BK33: 0 | BL33: 0 | BM33: 0 | BN33: 100 | BO33: 0 | BP33: 0 | BQ33: 0 | BR33: 0 | BS33: 0 | BT33: 0 | BU33: 0 | BV33: 0 | BW33: 0 | BX33: 0 | BY33: 0 | BZ33: 0 | CA33: 0 | CB33: 10000 | CC33: 1000 | CD33: 1000 | CE33: 29227 | CF33: 0 | CG33: 0 | CH33: 0 | CI33: 0 | CJ33: 0 | CK33: 78048 | CL33: 0 | CM33: 0 | CN33: 0 | CO33: 0 | CP33: 0 | CQ33: 78048 | CR33: 25344.47 | CS33: 0 | CT33: 0 | CU33: 0 | CV33: 0 | CW33: 0 | CX33: 25344.47 | CY33: 1200 | CZ33: 25344.47 | DA33: 52703.54 | DB33: 0.0585 | DC33: 0.025 | DD33: 0.0382 | DE33: 0.0406 | DF33: 1.25 | DG33: 0.8 | DH33: 0.3 | DI33: 8916.67 | DJ33: 6504 | DK33: 2112.04 | DL33: 4391.96 | DM33: 1073.64 | DN33: 2632 | DO33: 107000 | DP33: 78048 | DQ33: 25344.47 | DR33: 52703.54 | DS33: 12883.72 | DT33: 31584 | DU33: 8916.67 | DV33: 6504 | DW33: 2112.04 | DX33: 4391.96 | DY33: 1398.43 | DZ33: 2632 | EA33: 107000 | EB33: 78048 | EC33: 25344.47 | ED33: 52703.54 | EE33: 16781.15 | EF33: 31584 | EG33: 1.18 | EH33: 0.4155861584 | EI33: PASS | EJ33: 1.08 | EK33: 0.4520107309 | EL33: PASS | EM33: 200000 | EN33: 29227 | EO33: 0 | EP33: 0 | EQ33: 0 | ER33: 0 | ES33: 0 | ET33: 78048 | EU33: 0 | EV33: 0 | EW33: 0 | EX33: 0 | EY33: 0 | EZ33: 78048 | FA33: 31144.04 | FB33: 0 | FC33: 0 | FD33: 0 | FE33: 0 | FF33: 0 | FG33: 31144.04 | FH33: 1200 | FI33: 31144.04 | FJ33: 46903.96 | FK33: 0.0585 | FL33: 0.025 | FM33: 0.0382 | FN33: 0.0367 | FO33: 1.25 | FP33: 0.8 | FQ33: 0.275 | FR33: 8916.67 | FS33: 6504 | FT33: 2595.34 | FU33: 3908.66 | FV33: 1073.64 | FW33: 2632 | FX33: 107000 | FY33: 78048 | FZ33: 31144.04 | GA33: 46903.96 | GB33: 12883.72 | GC33: 31584 | GD33: 8916.67 | GE33: 6504 | GF33: 2595.34 | GG33: 3908.66 | GH33: 1398.43 | GI33: 2632 | GJ33: 107000 | GK33: 78048 | GL33: 31144.04 | GM33: 46903.96 | GN33: 16781.15 | GO33: 31584 | GP33: 1.05 | GQ33: 0.4155861584 | GR33: PASS | GS33: 0.96 | GT33: 0.4520107309 | GU33: FAIL | GV33: 182490.49 | GW33: Fail | GX33: Y | GY33: 2020-03-26T15:51:32 | HA33: Case 31 | HB33: Mick | HE33: 5799.57
A34: 1500000 | B34: 0.06 | C34: 0.085 | D34: 30 | E34: 0 | F34: Individual (Couple) | G34: Individual (Couple) | H34: Individual (Single) | I34: Individual (Single) | L34: Applicant 2 | M34: Applicant 1 | X34: 36000 | Y34: 10000 | Z34: 0 | AA34: 0 | AB34: 0 | AC34: 0 | AD34: 35000 | AE34: 0 | AF34: 35000 | AG34: 100000 | AH34: 0 | AI34: 0 | AJ34: 0 | AK34: 0 | AL34: 0 | AM34: 0 | AN34: 0 | AO34: 0 | AP34: 10000 | AQ34: 0 | AR34: 0 | AS34: 0 | AT34: 0 | AU34: 0 | AV34: 0 | AW34: 0 | AX34: 0 | AY34: 0 | AZ34: 0 | BA34: 0 | BB34: 0 | BC34: 0 | BD34: 0 | BE34: 0 | BF34: 0 | BG34: 0 | BH34: 0 | BI34: 0 | BJ34: 0 | BK34: 0 | BL34: 0 | BM34: 0 | BN34: 100 | BO34: 0 | BP34: 0 | BQ34: 0 | BR34: 0 | BS34: 0 | BT34: 0 | BU34: 0 | BV34: 0 | BW34: 0 | BX34: 0 | BY34: 0 | BZ34: 0 | CA34: 0 | CB34: 0 | CC34: 0 | CD34: 0 | CE34: 4102 | CF34: 0 | CG34: 0 | CH34: 0 | CI34: 0 | CJ34: 0 | CK34: 77543 | CL34: 10000 | CM34: 35000 | CN34: 100000 | CO34: 0 | CP34: 0 | CQ34: 222543 | CR34: 32183.31 | CS34: 0 | CT34: 14128.43 | CU34: 22205.22 | CV34: 0 | CW34: 0 | CX34: 68516.96 | CY34: 1200 | CZ34: 68516.96 | DA34: 154026.04 | DB34: 0.0585 | DC34: 0.025 | DD34: 0.0382 | DE34: 0.0406 | DF34: 1.25 | DG34: 0.8 | DH34: 0.3 | DI34: 18833.33 | DJ34: 18545.25 | DK34: 5709.75 | DL34: 12835.5 | DM34: 8993.26 | DN34: 0 | DO34: 226000 | DP34: 222543 | DQ34: 68516.96 | DR34: 154026.04 | DS34: 107919.09 | DT34: 0 | DU34: 18833.33 | DV34: 18545.25 | DW34: 5709.75 | DX34: 12835.5 | DY34: 11533.7 | DZ34: 0 | EA34: 226000 | EB34: 222543 | EC34: 68516.96 | ED34: 154026.04 | EE34: 138404.43 | EF34: 0 | EG34: 1.42 | EH34: 0.4775181174 | EI34: PASS | EJ34: 1.11 | EK34: 0.6124089692 | EL34: FAIL | EM34: 1335390.81 | EN34: 4102 | EO34: 0 | EP34: 0 | EQ34: 0 | ER34: 0 | ES34: 0 | ET34: 77543 | EU34: 10000 | EV34: 35000 | EW34: 100000 | EX34: 0 | EY34: 0 | EZ34: 222543 | FA34: 35565.5 | FB34: 0 | FC34: 14556.94 | FD34: 23891.6 | FE34: 0 | FF34: 0 | FG34: 74014.05 | FH34: 1200 | FI34: 74014.05 | FJ34: 148528.95 | FK34: 0.0585 | FL34: 0.025 | FM34: 0.0382 | FN34: 0.0367 | FO34: 1.25 | FP34: 0.8 | FQ34: 0.275 | FR34: 18833.33 | FS34: 18545.25 | FT34: 6167.84 | FU34: 12377.41 | FV34: 8993.26 | FW34: 0 | FX34: 226000 | FY34: 222543 | FZ34: 74014.05 | GA34: 148528.95 | GB34: 107919.09 | GC34: 0 | GD34: 18833.33 | GE34: 18545.25 | GF34: 6167.84 | GG34: 12377.41 | GH34: 11533.7 | GI34: 0 | GJ34: 226000 | GK34: 222543 | GL34: 74014.05 | GM34: 148528.95 | GN34: 138404.43 | GO34: 0 | GP34: 1.37 | GQ34: 0.4775181174 | GR34: PASS | GS34: 1.07 | GT34: 0.6124089692 | GU34: FAIL | GV34: 1287661.12 | GW34: Fail | GX34: Y | GY34: 2020-03-26T15:51:41 | HA34: Case 32 | HB34: Mick | HE34: 5497.09
A35: 3000000 | B35: 0.07 | C35: 0.095 | D35: 40 | E35: 5 | F35: Company | G35: Individual (Single) | X35: 0 | Y35: 0 | Z35: 0 | AA35: 0 | AB35: 0 | AC35: 0 | AD35: 0 | AE35: 225000 | AF35: 0 | AG35: 0 | AH35: 0 | AI35: 0 | AJ35: 87500 | AK35: 87500 | AL35: 0 | AM35: 0 | AN35: 0 | AO35: 0 | AP35: 22500 | AQ35: 22500 | AR35: 0 | AS35: 0 | AT35: 0 | AU35: 0 | AV35: 0 | AW35: 0 | AX35: 0 | AY35: 0 | AZ35: 0 | BA35: 0 | BB35: 0 | BC35: 0 | BD35: 0 | BE35: 0 | BF35: 0 | BG35: 0 | BH35: 0 | BI35: 0 | BJ35: 0 | BK35: 0 | BL35: 0 | BM35: 0 | BN35: 0 | BO35: 0 | BP35: 0 | BQ35: 0 | BR35: 0 | BS35: 0 | BT35: 0 | BU35: 0 | BV35: 0 | BW35: 0 | BX35: 4000 | BY35: 0 | BZ35: 0 | CA35: 0 | CB35: 0 | CC35: 0 | CD35: 0 | CE35: 26250 | CF35: 21734.5 | CG35: 0 | CH35: 0 | CI35: 0 | CJ35: 0 | CK35: 83750 | CL35: 313795.5 | CM35: 0 | CN35: 0 | CO35: 0 | CP35: 0 | CQ35: 397545.5 | CR35: 0 | CS35: 34133.65 | CT35: 0 | CU35: 0 | CV35: 0 | CW35: 0 | CX35: 34133.65 | CY35: 48000 | CZ35: 48000 | DA35: 349545.5 | DB35: 0.0585 | DC35: 0.025 | DD35: 0.0382 | DE35: 0.0406 | DF35: 1.25 | DG35: 0.8 | DH35: 0.3 | DI35: 37083.33 | DJ35: 33128.79 | DK35: 4000 | DL35: 29128.79 | DM35: 19165.69 | DN35: 0 | DO35: 445000 | DP35: 397545.5 | DQ35: 48000 | DR35: 349545.5 | DS35: 229988.29 | DT35: 0 | DU35: 37083.33 | DV35: 33128.79 | DW35: 4000 | DX35: 29128.79 | DY35: 24648.35 | DZ35: 0 | EA35: 445000 | EB35: 397545.5 | EC35: 48000 | ED35: 349545.5 | EE35: 295780.18 | EF35: 0 | EG35: 1.51 | EH35: 0.5168276159 | EI35: PASS | EJ35: 1.18 | EK35: 0.6646745539 | EL35: FAIL | EM35: 2836254.99 | EN35: 24062.5 | EO35: 21734.5 | EP35: 0 | EQ35: 0 | ER35: 0 | ES35: 0 | ET35: 85937.5 | EU35: 313795.5 | EV35: 0 | EW35: 0 | EX35: 0 | EY35: 0 | EZ35: 399733 | FA35: 0 | FB35: 48866.8 | FC35: 0 | FD35: 0 | FE35: 0 | FF35: 0 | FG35: 48866.8 | FH35: 48000 | FI35: 48866.8 | FJ35: 350866.2 | FK35: 0.0585 | FL35: 0.025 | FM35: 0.0382 | FN35: 0.0367 | FO35: 1.25 | FP35: 0.8 | FQ35: 0.275 | FR35: 37083.33 | FS35: 33311.08 | FT35: 4072.23 | FU35: 29238.85 | FV35: 19165.69 | FW35: 0 | FX35: 445000 | FY35: 399733 | FZ35: 48866.8 | GA35: 350866.2 | GB35: 229988.29 | GC35: 0 | GD35: 37083.33 | GE35: 33311.08 | GF35: 4072.23 | GG35: 29238.85 | GH35: 24648.35 | GI35: 0 | GJ35: 445000 | GK35: 399733 | GL35: 48866.8 | GM35: 350866.2 | GN35: 295780.18 | GO35: 0 | GP35: 1.52 | GQ35: 0.5168276159 | GR35: PASS | GS35: 1.18 | GT35: 0.6646745539 | GU35: FAIL | GV35: 2846965.64 | GW35: Fail | GX35: Y | GY35: 2020-03-26T15:51:50 | HA35: Case 33 | HB35: Mick | HE35: 14733.15
A36: 3000000 | B36: 0.07 | C36: 0.095 | D36: 40 | E36: 5 | F36: Company | G36: Individual (Single) | X36: 0 | Y36: 0 | Z36: 0 | AA36: 0 | AB36: 0 | AC36: 0 | AD36: 0 | AE36: 200000 | AF36: 0 | AG36: 0 | AH36: 0 | AI36: 0 | AJ36: 87500 | AK36: 87500 | AL36: 0 | AM36: 0 | AN36: 0 | AO36: 0 | AP36: 22500 | AQ36: 22500 | AR36: 0 | AS36: 0 | AT36: 0 | AU36: 0 | AV36: 0 | AW36: 0 | AX36: 0 | AY36: 0 | AZ36: 0 | BA36: 0 | BB36: 0 | BC36: 0 | BD36: 0 | BE36: 0 | BF36: 0 | BG36: 0 | BH36: 0 | BI36: 0 | BJ36: 0 | BK36: 0 | BL36: 0 | BM36: 0 | BN36: 0 | BO36: 0 | BP36: 0 | BQ36: 0 | BR36: 0 | BS36: 0 | BT36: 0 | BU36: 0 | BV36: 0 | BW36: 0 | BX36: 4000 | BY36: 0 | BZ36: 0 | CA36: 0 | CB36: 0 | CC36: 0 | CD36: 0 | CE36: 26250 | CF36: 21734.5 | CG36: 0 | CH36: 0 | CI36: 0 | CJ36: 0 | CK36: 83750 | CL36: 288795.5 | CM36: 0 | CN36: 0 | CO36: 0 | CP36: 0 | CQ36: 372545.5 | CR36: 0 | CS36: 34133.65 | CT36: 0 | CU36: 0 | CV36: 0 | CW36: 0 | CX36: 34133.65 | CY36: 48000 | CZ36: 48000 | DA36: 324545.5 | DB36: 0.0585 | DC36: 0.025 | DD36: 0.0382 | DE36: 0.0406 | DF36: 1.25 | DG36: 0.8 | DH36: 0.3 | DI36: 35000 | DJ36: 31045.46 | DK36: 4000 | DL36: 27045.46 | DM36: 19165.69 | DN36: 0 | DO36: 420000 | DP36: 372545.5 | DQ36: 48000 | DR36: 324545.5 | DS36: 229988.29 | DT36: 0 | DU36: 35000 | DV36: 31045.46 | DW36: 4000 | DX36: 27045.46 | DY36: 24648.35 | DZ36: 0 | EA36: 420000 | EB36: 372545.5 | EC36: 48000 | ED36: 324545.5 | EE36: 295780.18 | EF36: 0 | EG36: 1.41 | EH36: 0.5475911645 | EI36: PASS | EJ36: 1.09 | EK36: 0.7042385154 | EL36: PASS | EM36: 3000000 | EN36: 24062.5 | EO36: 21734.5 | EP36: 0 | EQ36: 0 | ER36: 0 | ES36: 0 | ET36: 85937.5 | EU36: 288795.5 | EV36: 0 | EW36: 0 | EX36: 0 | EY36: 0 | EZ36: 374733 | FA36: 0 | FB36: 47764.4 | FC36: 0 | FD36: 0 | FE36: 0 | FF36: 0 | FG36: 47764.4 | FH36: 48000 | FI36: 48000 | FJ36: 326733 | FK36: 0.0585 | FL36: 0.025 | FM36: 0.0382 | FN36: 0.0367 | FO36: 1.25 | FP36: 0.8 | FQ36: 0.275 | FR36: 35000 | FS36: 31227.75 | FT36: 4000 | FU36: 27227.75 | FV36: 19165.69 | FW36: 0 | FX36: 420000 | FY36: 374733 | FZ36: 48000 | GA36: 326733 | GB36: 229988.29 | GC36: 0 | GD36: 35000 | GE36: 31227.75 | GF36: 4000 | GG36: 27227.75 | GH36: 24648.35 | GI36: 0 | GJ36: 420000 | GK36: 374733 | GL36: 48000 | GM36: 326733 | GN36: 295780.18 | GO36: 0 | GP36: 1.42 | GQ36: 0.5475911645 | GR36: PASS | GS36: 1.1 | GT36: 0.7042385154 | GU36: PASS | GV36: 3000000 | GW36: Fail | GX36: Y | GY36: 2020-03-26T15:51:58 | HA36: Case 34 | HB36: Mick | HE36: 13630.75
A37: 3000000 | B37: 0.07 | C37: 0.095 | D37: 40 | E37: 5 | F37: Company | G37: Individual (Single) | H37: Individual (Couple) | I37: Individual (Couple) | N37: Applicant 4 | O37: Applicant 3 | T37: 2 | U37: 0 | X37: 0 | Y37: 225000 | Z37: 100000 | AA37: 80000 | AB37: 0 | AC37: 0 | AD37: 0 | AE37: 0 | AF37: 0 | AG37: 0 | AH37: 0 | AI37: 0 | AJ37: 87500 | AK37: 87500 | AL37: 37500 | AM37: 12500 | AN37: 0 | AO37: 0 | AP37: 22500 | AQ37: 22500 | AR37: 52500 | AS37: 17500 | AT37: 0 | AU37: 0 | AV37: 0 | AW37: 0 | AX37: 0 | AY37: 0 | AZ37: 0 | BA37: 0 | BB37: 0 | BC37: 0 | BD37: 20000 | BE37: 20000 | BF37: 0 | BG37: 0 | BH37: 0 | BI37: 0 | BJ37: 500000 | BK37: 500000 | BL37: 0 | BM37: 0 | BN37: 0 | BO37: 0 | BP37: 0 | BQ37: 0 | BR37: 0 | BS37: 0 | BT37: 0 | BU37: 0 | BV37: 0 | BW37: 0 | BX37: 15000 | BY37: 0 | BZ37: 0 | CA37: 0 | CB37: 25000 | CC37: 5000 | CD37: 3000 | CE37: 26250 | CF37: 119972 | CG37: 39445 | CH37: 21976 | CI37: 0 | CJ37: 0 | CK37: 83750 | CL37: 215028 | CM37: 166555 | CN37: 104554 | CO37: 0 | CP37: 0 | CQ37: 569887 | CR37: 0 | CS37: 34133.65 | CT37: 51476.91 | CU37: 0 | CV37: 0 | CW37: 0 | CX37: 85610.55 | CY37: 180000 | CZ37: 180000 | DA37: 389887 | DB37: 0.0585 | DC37: 0.025 | DD37: 0.0382 | DE37: 0.0406 | DF37: 1.25 | DG37: 0.8 | DH37: 0.3 | DI37: 64750 | DJ37: 47490.58 | DK37: 15000 | DL37: 32490.58 | DM37: 19165.69 | DN37: 10205 | DO37: 777000 | DP37: 569887 | DQ37: 180000 | DR37: 389887 | DS37: 229988.29 | DT37: 122460 | DU37: 64750 | DV37: 47490.58 | DW37: 15000 | DX37: 32490.58 | DY37: 24648.35 | DZ37: 10205 | EA37: 777000 | EB37: 569887 | EC37: 180000 | ED37: 389887 | EE37: 295780.18 | EF37: 122460 | EG37: 1.1 | EH37: 0.4536014016 | EI37: PASS | EJ37: 0.93 | EK37: 0.5382756454 | EL37: FAIL | EM37: 2712352.16 | EN37: 24062.5 | EO37: 119972 | EP37: 40205.5 | EQ37: 22655.5 | ER37: 0 | ES37: 0 | ET37: 85937.5 | EU37: 215028 | EV37: 165794.5 | EW37: 103872.25 | EX37: 0 | EY37: 0 | EZ37: 570632.25 | FA37: 0 | FB37: 48866.8 | FC37: 66634.5 | FD37: 0 | FE37: 0 | FF37: 0 | FG37: 115501.3 | FH37: 180000 | FI37: 180000 | FJ37: 390632.25 | FK37: 0.0585 | FL37: 0.025 | FM37: 0.0382 | FN37: 0.0367 | FO37: 1.25 | FP37: 0.8 | FQ37: 0.275 | FR37: 64750 | FS37: 47552.69 | FT37: 15000 | FU37: 32552.69 | FV37: 19165.69 | FW37: 10205 | FX37: 777000 | FY37: 570632.25 | FZ37: 180000 | GA37: 390632.25 | GB37: 229988.29 | GC37: 122460 | GD37: 64750 | GE37: 47552.69 | GF37: 15000 | GG37: 32552.69 | GH37: 24648.35 | GI37: 10205 | GJ37: 777000 | GK37: 570632.25 | GL37: 180000 | GM37: 390632.25 | GN37: 295780.18 | GO37: 122460 | GP37: 1.1 | GQ37: 0.4536014016 | GR37: PASS | GS37: 0.93 | GT37: 0.5382756454 | GU37: FAIL | GV37: 2719898.3 | GW37: Fail | GX37: Y | GY37: 2020-03-26T15:52:07 | HA37: Case 35 | HB37: Mick | HE37: 29890.75
A38: 1500000 | B38: 0.0599 | C38: 0.0849 | D38: 30 | E38: 0 | F38: Individual (Single) | G38: Individual (Couple) | H38: Company | I38: Company | M38: Non-loan party | S38: 3 | X38: 0 | Y38: 95000 | Z38: 0 | AA38: 25000 | AB38: 0 | AC38: 0 | AD38: 85000 | AE38: 0 | AF38: 0 | AG38: 0 | AH38: 0 | AI38: 0 | AJ38: 0 | AK38: 0 | AL38: 0 | AM38: 0 | AN38: 0 | AO38: 0 | AP38: 0 | AQ38: 0 | AR38: 0 | AS38: 20000 | AT38: 0 | AU38: 0 | AV38: 0 | AW38: 0 | AX38: 0 | AY38: 0 | AZ38: 0 | BA38: 0 | BB38: 0 | BC38: 30000 | BD38: 30000 | BE38: 0 | BF38: 0 | BG38: 0 | BH38: 0 | BI38: 0 | BJ38: 1000000 | BK38: 0 | BL38: 0 | BM38: 0 | BN38: 1 | BO38: 0 | BP38: 0 | BQ38: 0 | BR38: 0 | BS38: 0 | BT38: 0 | BU38: 0 | BV38: 0 | BW38: 0 | BX38: 0 | BY38: 0 | BZ38: 0 | CA38: 0 | CB38: 0 | CC38: 1000 | CD38: 0 | CE38: 0 | CF38: 33907 | CG38: 0 | CH38: 7500 | CI38: 0 | CJ38: 0 | CK38: 85000 | CL38: 85188 | CM38: 24000 | CN38: 37500 | CO38: 0 | CP38: 0 | CQ38: 231688 | CR38: 21720.69 | CS38: 45414.31 | CT38: 0 | CU38: 0 | CV38: 0 | CW38: 0 | CX38: 67135 | CY38: 12 | CZ38: 67135 | DA38: 164553 | DB38: 0.0585 | DC38: 0.025 | DD38: 0.0382 | DE38: 0.0406 | DF38: 1.25 | DG38: 0.8 | DH38: 0.3 | DI38: 22750 | DJ38: 19307.33 | DK38: 5594.58 | DL38: 13712.75 | DM38: 8983.62 | DN38: 1250 | DO38: 273000 | DP38: 231688 | DQ38: 67135 | DR38: 164553 | DS38: 107803.4 | DT38: 15000 | DU38: 22750 | DV38: 19307.33 | DW38: 5594.58 | DX38: 13712.75 | DY38: 11523.07 | DZ38: 1250 | EA38: 273000 | EB38: 231688 | EC38: 67135 | ED38: 164553 | EE38: 138276.88 | EF38: 15000 | EG38: 1.33 | EH38: 0.4498292905 | EI38: PASS | EJ38: 1.07 | EK38: 0.5614537721 | EL38: PASS | EM38: 1500000 | EN38: 0 | EO38: 33907 | EP38: 0 | EQ38: 6875 | ER38: 0 | ES38: 0 | ET38: 85000 | EU38: 85188 | EV38: 24000 | EW38: 38125 | EX38: 0 | EY38: 0 | EZ38: 232313 | FA38: 23891.6 | FB38: 48535.4 | FC38: 0 | FD38: 0 | FE38: 0 | FF38: 0 | FG38: 72427 | FH38: 12 | FI38: 72427 | FJ38: 159886 | FK38: 0.0585 | FL38: 0.025 | FM38: 0.0382 | FN38: 0.0367 | FO38: 1.25 | FP38: 0.8 | FQ38: 0.275 | FR38: 22750 | FS38: 19359.42 | FT38: 6035.58 | FU38: 13323.83 | FV38: 8983.62 | FW38: 1250 | FX38: 273000 | FY38: 232313 | FZ38: 72427 | GA38: 159886 | GB38: 107803.4 | GC38: 15000 | GD38: 22750 | GE38: 19359.42 | GF38: 6035.58 | GG38: 13323.83 | GH38: 11523.07 | GI38: 1250 | GJ38: 273000 | GK38: 232313 | GL38: 72427 | GM38: 159886 | GN38: 138276.88 | GO38: 15000 | GP38: 1.3 | GQ38: 0.4498292905 | GR38: PASS | GS38: 1.04 | GT38: 0.5614537721 | GU38: PASS | GV38: 1500000 | GW38: =IF(AND(DI38=FR38,DJ38=FS38,DK38=FT38,DL38=FU38,DM38=FV38,DN38=FW38,DO38=FX38,DP38=FY38,DQ38=FZ38,DR38=GA38,DS38=GB38,DT38=GC38,DU38=GD38,DV38=GE38,DW38=GF38,DX38=GG38,DY38=GH38,DZ38=GI38,EA38=GJ38,EB38=GK38,EC38=GL38,ED38=GM38,EE38=GN38,EF38=GO38,EG38=GP38,EH38=GQ38,EI38=GR38,EJ38=GS38,EK38=GT38,EL38=GU38,EM38=GV38),"Pass","Fail") -> Fail | GX38: Y | GY38: 2020-03-26T15:52:17 | HA38: Case 36 | HB38: Mick | HE38: 5292
A39: 300000 | B39: 0.0509 | C39: 0.0759 | D39: 30 | E39: 0 | F39: Individual (Couple) | G39: Individual (Couple) | L39: Non-loan Party | M39: Non-loan party | R39: 3 | X39: 72735 | Y39: 0 | Z39: 0 | AA39: 0 | AB39: 0 | AC39: 0 | AD39: 0 | AE39: 0 | AF39: 0 | AG39: 0 | AH39: 0 | AI39: 0 | AJ39: 0 | AK39: 0 | AL39: 0 | AM39: 0 | AN39: 0 | AO39: 0 | AP39: 0 | AQ39: 0 | AR39: 0 | AS39: 0 | AT39: 0 | AU39: 0 | AV39: 0 | AW39: 0 | AX39: 0 | AY39: 0 | AZ39: 0 | BA39: 0 | BB39: 0 | BC39: 0 | BD39: 0 | BE39: 0 | BF39: 0 | BG39: 0 | BH39: 0 | BI39: 0 | BJ39: 0 | BK39: 0 | BL39: 0 | BM39: 0 | BN39: 285 | BO39: 291 | BP39: 0 | BQ39: 260 | BR39: 1100 | BS39: 400 | BT39: 700 | BU39: 0 | BV39: 69 | BW39: 48 | BX39: 0 | BY39: 0 | BZ39: 0 | CA39: 1275 | CB39: 32500 | CC39: 1275 | CD39: 0 | CE39: 16640.58 | CF39: 0 | CG39: 0 | CH39: 0 | CI39: 0 | CJ39: 0 | CK39: 56624.43 | CL39: 0 | CM39: 0 | CN39: 0 | CO39: 0 | CP39: 0 | CQ39: 56624.43 | CR39: 42273.56 | CS39: 24026.67 | CT39: 0 | CU39: 0 | CV39: 0 | CW39: 0 | CX39: 66300.23 | CY39: 37836 | CZ39: 66300.23 | DA39: -9675.8 | DB39: 0.0585 | DC39: 0.025 | DD39: 0.0382 | DE39: 0.0406 | DF39: 1.25 | DG39: 0.8 | DH39: 0.3 | DI39: 6061.25 | DJ39: 4718.7 | DK39: 5525.02 | DL39: -806.32 | DM39: 1627.01 | DN39: 4110.25 | DO39: 72735 | DP39: 56624.43 | DQ39: 66300.23 | DR39: -9675.8 | DS39: 19524.08 | DT39: 49323 | DU39: 6061.25 | DV39: 4718.7 | DW39: 5525.02 | DX39: -806.32 | DY39: 2116.16 | DZ39: 4110.25 | EA39: 72735 | EB39: 56624.43 | EC39: 66300.23 | ED39: -9675.8 | EE39: 25393.95 | EF39: 49323 | EG39: -0.14 | EH39: 0.9290173498 | EI39: FAIL | EJ39: -0.12 | EK39: 1.009719567 | EL39: FAIL | EM39: 0 | EN39: 16640.58 | EO39: 0 | EP39: 0 | EQ39: 0 | ER39: 0 | ES39: 0 | ET39: 56624.43 | EU39: 0 | EV39: 0 | EW39: 0 | EX39: 0 | EY39: 0 | EZ39: 56624.43 | FA39: 41969.52 | FB39: 25502.08 | FC39: 0 | FD39: 0 | FE39: 0 | FF39: 0 | FG39: 67471.6 | FH39: 37836 | FI39: 67471.6 | FJ39: -10847.17 | FK39: 0.0585 | FL39: 0.025 | FM39: 0.0382 | FN39: 0.0367 | FO39: 1.25 | FP39: 0.8 | FQ39: 0.275 | FR39: 6061.25 | FS39: 4718.7 | FT39: 5622.63 | FU39: -903.93 | FV39: 1627.01 | FW39: 4110.25 | FX39: 72735 | FY39: 56624.43 | FZ39: 67471.6 | GA39: -10847.17 | GB39: 19524.08 | GC39: 49323 | GD39: 6061.25 | GE39: 4718.7 | GF39: 5622.63 | GG39: -903.93 | GH39: 2116.16 | GI39: 4110.25 | GJ39: 72735 | GK39: 56624.43 | GL39: 67471.6 | GM39: -10847.17 | GN39: 25393.95 | GO39: 49323 | GP39: -0.15 | GQ39: 0.7361940873 | GR39: FAIL | GS39: -0.14 | GT39: 0.8168963048 | GU39: FAIL | GV39: 0 | GW39: Fail | GX39: Y | GY39: 2020-03-26T15:52:26 | HA39: Case 37 | HB39: Mick | HE39: 1171.37
A40: 300000 | B40: 0.06 | C40: 0.085 | D40: 40 | E40: 0 | F40: Individual (Single) | G40: Individual (Single) | X40: 0 | Y40: 1 | Z40: 0 | AA40: 0 | AB40: 0 | AC40: 0 | AD40: 0 | AE40: 0 | AF40: 0 | AG40: 0 | AH40: 0 | AI40: 0 | AJ40: 0 | AK40: 0 | AL40: 0 | AM40: 0 | AN40: 0 | AO40: 0 | AP40: 0 | AQ40: 0 | AR40: 0 | AS40: 0 | AT40: 0 | AU40: 0 | AV40: 0 | AW40: 0 | AX40: 0 | AY40: 0 | AZ40: 0 | BA40: 0 | BB40: 0 | BC40: 0 | BD40: 0 | BE40: 0 | BF40: 0 | BG40: 0 | BH40: 0 | BI40: 0 | BJ40: 0 | BK40: 0 | BL40: 0 | BM40: 0 | BN40: 1 | BO40: 1 | BP40: 1 | BQ40: 1 | BR40: 1 | BS40: 1 | BT40: 1 | BU40: 1 | BV40: 1 | BW40: 1 | BX40: 1 | BY40: 1 | BZ40: 1 | CA40: 0 | CB40: 0 | CC40: 0 | CD40: 0 | CE40: 0 | CF40: 0 | CG40: 0 | CH40: 0 | CI40: 0 | CJ40: 0 | CK40: 0 | CL40: 1 | CM40: 0 | CN40: 0 | CO40: 0 | CP40: 0 | CQ40: 1 | CR40: 13576.59 | CS40: 13576.59 | CT40: 0 | CU40: 0 | CV40: 0 | CW40: 0 | CX40: 27153.17 | CY40: 156 | CZ40: 27153.17 | DA40: -27152.17 | DB40: 0.0585 | DC40: 0.025 | DD40: 0.0382 | DE40: 0.0406 | DF40: 1.25 | DG40: 0.8 | DH40: 0.3 | DI40: 0.08 | DJ40: 0.08 | DK40: 2262.76 | DL40: -2262.68 | DM40: 1650.64 | DN40: 0 | DO40: 1 | DP40: 1 | DQ40: 27153.17 | DR40: -27152.17 | DS40: 19807.69 | DT40: 0 | DU40: 0.08 | DV40: 0.08 | DW40: 2262.76 | DX40: -2262.68 | DY40: 2199.28 | DZ40: 0 | EA40: 1 | EB40: 1 | EC40: 27153.17 | ED40: -27152.17 | EE40: 26391.39 | EF40: 0 | EG40: -1.37 | EH40: 19807.69106 | EI40: FAIL | EJ40: -1.02 | EK40: 26391.38646 | EL40: FAIL | EM40: 0 | EN40: 0 | EO40: 0 | EP40: 0 | EQ40: 0 | ER40: 0 | ES40: 0 | ET40: 0 | EU40: 1 | EV40: 0 | EW40: 0 | EX40: 0 | EY40: 0 | EZ40: 1 | FA40: 13087.54 | FB40: 13087.54 | FC40: 0 | FD40: 0 | FE40: 0 | FF40: 0 | FG40: 26175.08 | FH40: 156 | FI40: 26175.08 | FJ40: -26174.08 | FK40: 0.0585 | FL40: 0.025 | FM40: 0.0382 | FN40: 0.0367 | FO40: 1.25 | FP40: 0.8 | FQ40: 0.275 | FR40: 0.08 | FS40: 0.08 | FT40: 2181.26 | FU40: -2181.17 | FV40: 1650.64 | FW40: 0 | FX40: 1 | FY40: 1 | FZ40: 26175.08 | GA40: -26174.08 | GB40: 19807.69 | GC40: 0 | GD40: 0.08 | GE40: 0.08 | GF40: 2181.26 | GG40: -2181.17 | GH40: 2199.28 | GI40: 0 | GJ40: 1 | GK40: 1 | GL40: 26175.08 | GM40: -26174.08 | GN40: 26391.39 | GO40: 0 | GP40: -1.32 | GQ40: 19807.69106 | GR40: FAIL | GS40: -0.99 | GT40: 26391.38646 | GU40: FAIL | GV40: 0 | GW40: Fail | GX40: Y | GY40: 2020-03-26T15:52:34 | HA40: Case 38 | HB40: Mick | HE40: -978.09
A41: 100000 | B41: 0.065 | C41: 0.09 | D41: 20 | E41: 0 | F41: Individual (Couple) | L41: Non-loan Party | X41: 25000 | Y41: 0 | Z41: 0 | AA41: 0 | AB41: 0 | AC41: 0 | AD41: 0 | AE41: 0 | AF41: 0 | AG41: 0 | AH41: 0 | AI41: 0 | AJ41: 0 | AK41: 0 | AL41: 0 | AM41: 0 | AN41: 0 | AO41: 0 | AP41: 0 | AQ41: 0 | AR41: 0 | AS41: 0 | AT41: 0 | AU41: 0 | AV41: 0 | AW41: 0 | AX41: 0 | AY41: 0 | AZ41: 0 | BA41: 0 | BB41: 0 | BC41: 0 | BD41: 0 | BE41: 0 | BF41: 0 | BG41: 0 | BH41: 0 | BI41: 0 | BJ41: 0 | BK41: 0 | BL41: 0 | BM41: 0 | BN41: 1 | BO41: 1000 | BP41: 1 | BQ41: 50 | BR41: 1 | BS41: 100 | BT41: 200 | BU41: 1 | BV41: 500 | BW41: 1 | BX41: 1 | BY41: 1 | BZ41: 1 | CA41: 0 | CB41: 0 | CC41: 0 | CD41: 0 | CE41: 1594 | CF41: 0 | CG41: 0 | CH41: 0 | CI41: 0 | CJ41: 0 | CK41: 24051 | CL41: 0 | CM41: 0 | CN41: 0 | CO41: 0 | CP41: 0 | CQ41: 24051 | CR41: 24809.08 | CS41: 0 | CT41: 0 | CU41: 0 | CV41: 0 | CW41: 0 | CX41: 24809.08 | CY41: 22296 | CZ41: 24809.08 | DA41: -758.08 | DB41: 0.0585 | DC41: 0.025 | DD41: 0.0382 | DE41: 0.0406 | DF41: 1.25 | DG41: 0.8 | DH41: 0.3 | DI41: 2083.33 | DJ41: 2004.25 | DK41: 2067.42 | DL41: -63.17 | DM41: 745.57 | DN41: 0 | DO41: 25000 | DP41: 24051 | DQ41: 24809.08 | DR41: -758.08 | DS41: 8946.88 | DT41: 0 | DU41: 2083.33 | DV41: 2004.25 | DW41: 2067.42 | DX41: -63.17 | DY41: 899.73 | DZ41: 0 | EA41: 25000 | EB41: 24051 | EC41: 24809.08 | ED41: -758.08 | EE41: 10796.71 | EF41: 0 | EG41: -0.08 | EH41: 0.357875105 | EI41: FAIL | EJ41: -0.07 | EK41: 0.4318684588 | EL41: FAIL | EM41: 0 | EN41: 1594 | EO41: 0 | EP41: 0 | EQ41: 0 | ER41: 0 | ES41: 0 | ET41: 24051 | EU41: 0 | EV41: 0 | EW41: 0 | EX41: 0 | EY41: 0 | EZ41: 24051 | FA41: 25502.08 | FB41: 0 | FC41: 0 | FD41: 0 | FE41: 0 | FF41: 0 | FG41: 25502.08 | FH41: 22296 | FI41: 25502.08 | FJ41: -1451.08 | FK41: 0.0585 | FL41: 0.025 | FM41: 0.0382 | FN41: 0.0367 | FO41: 1.25 | FP41: 0.8 | FQ41: 0.275 | FR41: 2083.33 | FS41: 2004.25 | FT41: 2125.17 | FU41: -120.92 | FV41: 745.57 | FW41: 0 | FX41: 25000 | FY41: 24051 | FZ41: 25502.08 | GA41: -1451.08 | GB41: 8946.88 | GC41: 0 | GD41: 2083.33 | GE41: 2004.25 | GF41: 2125.17 | GG41: -120.92 | GH41: 899.73 | GI41: 0 | GJ41: 25000 | GK41: 24051 | GL41: 25502.08 | GM41: -1451.08 | GN41: 10796.71 | GO41: 0 | GP41: -0.16 | GQ41: 0.357875105 | GR41: FAIL | GS41: -0.13 | GT41: 0.4318684588 | GU41: FAIL | GV41: 0 | GW41: Fail | GX41: Y | GY41: 2020-03-26T15:52:44 | HA41: Case 39 | HB41: Mick | HE41: 693
A42: 100000 | B42: 0.065 | C42: 0.09 | D42: 20 | E42: 0 | F42: Individual (Couple) | L42: Non-loan Party | X42: 50000 | Y42: 0 | Z42: 0 | AA42: 0 | AB42: 0 | AC42: 0 | AD42: 0 | AE42: 0 | AF42: 0 | AG42: 0 | AH42: 0 | AI42: 0 | AJ42: 0 | AK42: 0 | AL42: 0 | AM42: 0 | AN42: 0 | AO42: 0 | AP42: 0 | AQ42: 0 | AR42: 0 | AS42: 0 | AT42: 0 | AU42: 0 | AV42: 0 | AW42: 0 | AX42: 0 | AY42: 0 | AZ42: 0 | BA42: 0 | BB42: 0 | BC42: 0 | BD42: 0 | BE42: 0 | BF42: 0 | BG42: 0 | BH42: 0 | BI42: 0 | BJ42: 0 | BK42: 0 | BL42: 0 | BM42: 0 | BN42: 1 | BO42: 1000 | BP42: 1 | BQ42: 50 | BR42: 1 | BS42: 100 | BT42: 200 | BU42: 1 | BV42: 500 | BW42: 1 | BX42: 1 | BY42: 1 | BZ42: 1 | CA42: 0 | CB42: 0 | CC42: 0 | CD42: 0 | CE42: 8797 | CF42: 0 | CG42: 0 | CH42: 0 | CI42: 0 | CJ42: 0 | CK42: 41983 | CL42: 0 | CM42: 0 | CN42: 0 | CO42: 0 | CP42: 0 | CQ42: 41983 | CR42: 27013.5 | CS42: 0 | CT42: 0 | CU42: 0 | CV42: 0 | CW42: 0 | CX42: 27013.5 | CY42: 22296 | CZ42: 27013.5 | DA42: 14969.5 | DB42: 0.0585 | DC42: 0.025 | DD42: 0.0382 | DE42: 0.0406 | DF42: 1.25 | DG42: 0.8 | DH42: 0.3 | DI42: 4166.67 | DJ42: 3498.58 | DK42: 2251.12 | DL42: 1247.46 | DM42: 745.57 | DN42: 0 | DO42: 50000 | DP42: 41983 | DQ42: 27013.5 | DR42: 14969.5 | DS42: 8946.88 | DT42: 0 | DU42: 4166.67 | DV42: 3498.58 | DW42: 2251.12 | DX42: 1247.46 | DY42: 899.73 | DZ42: 0 | EA42: 50000 | EB42: 41983 | EC42: 27013.5 | ED42: 14969.5 | EE42: 10796.71 | EF42: 0 | EG42: 1.67 | EH42: 0.1789375525 | EI42: PASS | EJ42: 1.38 | EK42: 0.2159342294 | EL42: PASS | EM42: 100000 | EN42: 8797 | EO42: 0 | EP42: 0 | EQ42: 0 | ER42: 0 | ES42: 0 | ET42: 41983 | EU42: 0 | EV42: 0 | EW42: 0 | EX42: 0 | EY42: 0 | EZ42: 41983 | FA42: 27321.85 | FB42: 0 | FC42: 0 | FD42: 0 | FE42: 0 | FF42: 0 | FG42: 27321.85 | FH42: 22296 | FI42: 27321.85 | FJ42: 14661.15 | FK42: 0.0585 | FL42: 0.025 | FM42: 0.0382 | FN42: 0.0367 | FO42: 1.25 | FP42: 0.8 | FQ42: 0.275 | FR42: 4166.67 | FS42: 3498.58 | FT42: 2276.82 | FU42: 1221.76 | FV42: 745.57 | FW42: 0 | FX42: 50000 | FY42: 41983 | FZ42: 27321.85 | GA42: 14661.15 | GB42: 8946.88 | GC42: 0 | GD42: 4166.67 | GE42: 3498.58 | GF42: 2276.82 | GG42: 1221.76 | GH42: 899.73 | GI42: 0 | GJ42: 50000 | GK42: 41983 | GL42: 27321.85 | GM42: 14661.15 | GN42: 10796.71 | GO42: 0 | GP42: 1.63 | GQ42: 0.1789375525 | GR42: PASS | GS42: 1.35 | GT42: 0.2159342294 | GU42: PASS | GV42: 100000 | GW42: Fail | GX42: Y | GY42: 2020-03-26T15:52:54 | HA42: Case 40 | HB42: Mick | HE42: 308.35
A43: 300000 | B43: 0.065 | C43: 0.09 | D43: 20 | E43: 0 | F43: Individual (Couple) | G43: Individual (Couple) | L43: Applicant 2 | M43: Applicant 1 | X43: 85000 | Y43: 45000 | Z43: 0 | AA43: 0 | AB43: 0 | AC43: 0 | AD43: 0 | AE43: 0 | AF43: 0 | AG43: 0 | AH43: 0 | AI43: 0 | AJ43: 0 | AK43: 0 | AL43: 0 | AM43: 0 | AN43: 0 | AO43: 0 | AP43: 0 | AQ43: 0 | AR43: 0 | AS43: 0 | AT43: 0 | AU43: 0 | AV43: 0 | AW43: 0 | AX43: 0 | AY43: 0 | AZ43: 0 | BA43: 0 | BB43: 0 | BC43: 0 | BD43: 0 | BE43: 0 | BF43: 0 | BG43: 0 | BH43: 0 | BI43: 0 | BJ43: 0 | BK43: 0 | BL43: 0 | BM43: 0 | BN43: 1 | BO43: 1000 | BP43: 500 | BQ43: 50 | BR43: 1 | BS43: 100 | BT43: 200 | BU43: 500 | BV43: 500 | BW43: 1 | BX43: 1 | BY43: 1 | BZ43: 1 | CA43: 0 | CB43: 0 | CC43: 0 | CD43: 0 | CE43: 20872 | CF43: 7072 | CG43: 0 | CH43: 0 | CI43: 0 | CJ43: 0 | CK43: 64658 | CL43: 38693 | CM43: 0 | CN43: 0 | CO43: 0 | CP43: 0 | CQ43: 103351 | CR43: 35992.61 | CS43: 0 | CT43: 0 | CU43: 0 | CV43: 0 | CW43: 0 | CX43: 35992.61 | CY43: 34272 | CZ43: 35992.61 | DA43: 67358.39 | DB43: 0.0585 | DC43: 0.025 | DD43: 0.0382 | DE43: 0.0406 | DF43: 1.25 | DG43: 0.8 | DH43: 0.3 | DI43: 10833.33 | DJ43: 8612.58 | DK43: 2999.38 | DL43: 5613.2 | DM43: 2236.72 | DN43: 0 | DO43: 130000 | DP43: 103351 | DQ43: 35992.61 | DR43: 67358.39 | DS43: 26840.63 | DT43: 0 | DU43: 10833.33 | DV43: 8612.58 | DW43: 2999.38 | DX43: 5613.2 | DY43: 2699.18 | DZ43: 0 | EA43: 130000 | EB43: 103351 | EC43: 35992.61 | ED43: 67358.39 | EE43: 32390.13 | EF43: 0 | EG43: 2.5 | EH43: 0.2064664068 | EI43: PASS | EJ43: 2.07 | EK43: 0.2491548801 | EL43: PASS | EM43: 300000 | EN43: 20872 | EO43: 7072 | EP43: 0 | EQ43: 0 | ER43: 0 | ES43: 0 | ET43: 64658 | EU43: 38693 | EV43: 0 | EW43: 0 | EX43: 0 | EY43: 0 | EZ43: 103351 | FA43: 42946.73 | FB43: 0 | FC43: 0 | FD43: 0 | FE43: 0 | FF43: 0 | FG43: 42946.73 | FH43: 34272 | FI43: 42946.73 | FJ43: 60404.27 | FK43: 0.0585 | FL43: 0.025 | FM43: 0.0382 | FN43: 0.0367 | FO43: 1.25 | FP43: 0.8 | FQ43: 0.275 | FR43: 10833.33 | FS43: 8612.58 | FT43: 3578.89 | FU43: 5033.69 | FV43: 2236.72 | FW43: 0 | FX43: 130000 | FY43: 103351 | FZ43: 42946.73 | GA43: 60404.27 | GB43: 26840.63 | GC43: 0 | GD43: 10833.33 | GE43: 8612.58 | GF43: 3578.89 | GG43: 5033.69 | GH43: 2699.18 | GI43: 0 | GJ43: 130000 | GK43: 103351 | GL43: 42946.73 | GM43: 60404.27 | GN43: 32390.13 | GO43: 0 | GP43: 2.25 | GQ43: 0.2064664068 | GR43: PASS | GS43: 1.86 | GT43: 0.2491548801 | GU43: PASS | GV43: 300000 | GW43: Fail | GX43: Y | GY43: 2020-03-26T15:53:04 | HA43: Case 41 | HB43: Mick | HE43: 6954.12
A44: 300000 | B44: 0.065 | C44: 0.09 | D44: 20 | E44: 0 | F44: Individual (Couple) | G44: Individual (Couple) | L44: Applicant 2 | M44: Applicant 1 | X44: 85000 | Y44: 45000 | Z44: 0 | AA44: 0 | AB44: 0 | AC44: 0 | AD44: 0 | AE44: 0 | AF44: 0 | AG44: 0 | AH44: 0 | AI44: 0 | AJ44: 0 | AK44: 0 | AL44: 0 | AM44: 0 | AN44: 0 | AO44: 0 | AP44: 0 | AQ44: 0 | AR44: 0 | AS44: 0 | AT44: 0 | AU44: 0 | AV44: 0 | AW44: 0 | AX44: 0 | AY44: 0 | AZ44: 0 | BA44: 0 | BB44: 0 | BC44: 0 | BD44: 0 | BE44: 0 | BF44: 0 | BG44: 0 | BH44: 0 | BI44: 0 | BJ44: 0 | BK44: 0 | BL44: 0 | BM44: 0 | BN44: 1 | BO44: 1000 | BP44: 500 | BQ44: 50 | BR44: 1 | BS44: 100 | BT44: 200 | BU44: 500 | BV44: 500 | BW44: 200 | BX44: 1 | BY44: 400 | BZ44: 1 | CA44: 0 | CB44: 0 | CC44: 1800 | CD44: 0 | CE44: 20872 | CF44: 7072 | CG44: 0 | CH44: 0 | CI44: 0 | CJ44: 0 | CK44: 64658 | CL44: 38693 | CM44: 0 | CN44: 0 | CO44: 0 | CP44: 0 | CQ44: 103351 | CR44: 35992.61 | CS44: 0 | CT44: 0 | CU44: 0 | CV44: 0 | CW44: 0 | CX44: 35992.61 | CY44: 41448 | CZ44: 41448 | DA44: 61903 | DB44: 0.0585 | DC44: 0.025 | DD44: 0.0382 | DE44: 0.0406 | DF44: 1.25 | DG44: 0.8 | DH44: 0.3 | DI44: 10833.33 | DJ44: 8612.58 | DK44: 3454 | DL44: 5158.58 | DM44: 2236.72 | DN44: 2250 | DO44: 130000 | DP44: 103351 | DQ44: 41448 | DR44: 61903 | DS44: 26840.63 | DT44: 27000 | DU44: 10833.33 | DV44: 8612.58 | DW44: 3454 | DX44: 5158.58 | DY44: 2699.18 | DZ44: 2250 | EA44: 130000 | EB44: 103351 | EC44: 41448 | ED44: 61903 | EE44: 32390.13 | EF44: 27000 | EG44: 1.14 | EH44: 0.4141587145 | EI44: PASS | EJ44: 1.04 | EK44: 0.4568471878 | EL44: PASS | EM44: 300000 | EN44: 20872 | EO44: 7072 | EP44: 0 | EQ44: 0 | ER44: 0 | ES44: 0 | ET44: 64658 | EU44: 38693 | EV44: 0 | EW44: 0 | EX44: 0 | EY44: 0 | EZ44: 103351 | FA44: 42946.73 | FB44: 0 | FC44: 0 | FD44: 0 | FE44: 0 | FF44: 0 | FG44: 42946.73 | FH44: 41448 | FI44: 42946.73 | FJ44: 60404.27 | FK44: 0.0585 | FL44: 0.025 | FM44: 0.0382 | FN44: 0.0367 | FO44: 1.25 | FP44: 0.8 | FQ44: 0.275 | FR44: 10833.33 | FS44: 8612.58 | FT44: 3578.89 | FU44: 5033.69 | FV44: 2236.72 | FW44: 2250 | FX44: 130000 | FY44: 103351 | FZ44: 42946.73 | GA44: 60404.27 | GB44: 26840.63 | GC44: 27000 | GD44: 10833.33 | GE44: 8612.58 | GF44: 3578.89 | GG44: 5033.69 | GH44: 2699.18 | GI44: 2250 | GJ44: 130000 | GK44: 103351 | GL44: 42946.73 | GM44: 60404.27 | GN44: 32390.13 | GO44: 27000 | GP44: 1.12 | GQ44: 0.4141587145 | GR44: PASS | GS44: 1.01 | GT44: 0.4568471878 | GU44: PASS | GV44: 300000 | GW44: Fail | GX44: Y | GY44: 2020-03-26T15:53:13 | HA44: Case 42 | HB44: Mick | HE44: 6954.12
A45: 700000 | B45: 0.065 | C45: 0.09 | D45: 30 | E45: 0 | F45: Individual (Couple) | G45: Individual (Couple) | L45: Applicant 2 | M45: Applicant 1 | X45: 100000 | Y45: 45000 | Z45: 0 | AA45: 0 | AB45: 0 | AC45: 0 | AD45: 0 | AE45: 0 | AF45: 0 | AG45: 0 | AH45: 0 | AI45: 0 | AJ45: 0 | AK45: 0 | AL45: 0 | AM45: 0 | AN45: 0 | AO45: 0 | AP45: 0 | AQ45: 0 | AR45: 0 | AS45: 0 | AT45: 0 | AU45: 0 | AV45: 0 | AW45: 0 | AX45: 0 | AY45: 0 | AZ45: 0 | BA45: 0 | BB45: 0 | BC45: 0 | BD45: 0 | BE45: 0 | BF45: 0 | BG45: 0 | BH45: 0 | BI45: 0 | BJ45: 0 | BK45: 0 | BL45: 0 | BM45: 0 | BN45: 1 | BO45: 1 | BP45: 1 | BQ45: 50 | BR45: 1 | BS45: 100 | BT45: 200 | BU45: 500 | BV45: 500 | BW45: 200 | BX45: 1 | BY45: 400 | BZ45: 1 | CA45: 0 | CB45: 0 | CC45: 1800 | CD45: 0 | CE45: 26497 | CF45: 7072 | CG45: 0 | CH45: 0 | CI45: 0 | CJ45: 0 | CK45: 73883 | CL45: 38693 | CM45: 0 | CN45: 0 | CO45: 0 | CP45: 0 | CQ45: 112576 | CR45: 37211.23 | CS45: 0 | CT45: 0 | CU45: 0 | CV45: 0 | CW45: 0 | CX45: 37211.23 | CY45: 23472 | CZ45: 37211.23 | DA45: 75364.77 | DB45: 0.0585 | DC45: 0.025 | DD45: 0.0382 | DE45: 0.0406 | DF45: 1.25 | DG45: 0.8 | DH45: 0.3 | DI45: 12083.33 | DJ45: 9381.33 | DK45: 3100.94 | DL45: 6280.4 | DM45: 4424.48 | DN45: 2250 | DO45: 145000 | DP45: 112576 | DQ45: 37211.23 | DR45: 75364.77 | DS45: 53093.71 | DT45: 27000 | DU45: 12083.33 | DV45: 9381.33 | DW45: 3100.94 | DX45: 6280.4 | DY45: 5632.36 | DZ45: 2250 | EA45: 145000 | EB45: 112576 | EC45: 37211.23 | ED45: 75364.77 | EE45: 67588.3 | EF45: 27000 | EG45: 0.94 | EH45: 0.5523704412 | EI45: FAIL | EJ45: 0.79 | EK45: 0.6523331022 | EL45: FAIL | EM45: 500855.92 | EN45: 26497 | EO45: 7072 | EP45: 0 | EQ45: 0 | ER45: 0 | ES45: 0 | ET45: 73883 | EU45: 38693 | EV45: 0 | EW45: 0 | EX45: 0 | EY45: 0 | EZ45: 112576 | FA45: 42946.73 | FB45: 0 | FC45: 0 | FD45: 0 | FE45: 0 | FF45: 0 | FG45: 42946.73 | FH45: 23472 | FI45: 42946.73 | FJ45: 69629.27 | FK45: 0.0585 | FL45: 0.025 | FM45: 0.0382 | FN45: 0.0367 | FO45: 1.25 | FP45: 0.8 | FQ45: 0.275 | FR45: 12083.33 | FS45: 9381.33 | FT45: 3578.89 | FU45: 5802.44 | FV45: 4424.48 | FW45: 2250 | FX45: 145000 | FY45: 112576 | FZ45: 42946.73 | GA45: 69629.27 | GB45: 53093.71 | GC45: 27000 | GD45: 12083.33 | GE45: 9381.33 | GF45: 3578.89 | GG45: 5802.44 | GH45: 5632.36 | GI45: 2250 | GJ45: 145000 | GK45: 112576 | GL45: 42946.73 | GM45: 69629.27 | GN45: 67588.3 | GO45: 27000 | GP45: 0.86 | GQ45: 0.5523704412 | GR45: FAIL | GS45: 0.73 | GT45: 0.6523331022 | GU45: FAIL | GV45: 441449.19 | GW45: Fail | GX45: Y | GY45: 2020-03-26T15:53:22 | HA45: Case 43 | HB45: Mick | HE45: 5735.5
A46: 160000 | B46: 0.065 | C46: 0.09 | D46: 30 | E46: 0 | F46: Individual (Couple) | G46: Individual (Couple) | L46: Applicant 2 | M46: Applicant 1 | X46: 56000 | Y46: 35000 | Z46: 0 | AA46: 0 | AB46: 0 | AC46: 0 | AD46: 0 | AE46: 0 | AF46: 0 | AG46: 0 | AH46: 0 | AI46: 0 | AJ46: 0 | AK46: 0 | AL46: 0 | AM46: 0 | AN46: 0 | AO46: 0 | AP46: 0 | AQ46: 0 | AR46: 0 | AS46: 0 | AT46: 0 | AU46: 0 | AV46: 0 | AW46: 0 | AX46: 0 | AY46: 0 | AZ46: 0 | BA46: 0 | BB46: 0 | BC46: 0 | BD46: 0 | BE46: 0 | BF46: 0 | BG46: 0 | BH46: 0 | BI46: 0 | BJ46: 0 | BK46: 0 | BL46: 0 | BM46: 0 | BN46: 600 | BO46: 1 | BP46: 50 | BQ46: 300 | BR46: 41 | BS46: 100 | BT46: 200 | BU46: 480 | BV46: 500 | BW46: 120 | BX46: 1 | BY46: 350 | BZ46: 1 | CA46: 0 | CB46: 0 | CC46: 1800 | CD46: 0 | CE46: 10867 | CF46: 3892 | CG46: 0 | CH46: 0 | CI46: 0 | CJ46: 0 | CK46: 45823 | CL46: 31753 | CM46: 0 | CN46: 0 | CO46: 0 | CP46: 0 | CQ46: 77576 | CR46: 32183.31 | CS46: 0 | CT46: 0 | CU46: 0 | CV46: 0 | CW46: 0 | CX46: 32183.31 | CY46: 32928 | CZ46: 32928 | DA46: 44648 | DB46: 0.0585 | DC46: 0.025 | DD46: 0.0382 | DE46: 0.0406 | DF46: 1.25 | DG46: 0.8 | DH46: 0.3 | DI46: 7583.33 | DJ46: 6464.67 | DK46: 2744 | DL46: 3720.67 | DM46: 1011.31 | DN46: 2250 | DO46: 91000 | DP46: 77576 | DQ46: 32928 | DR46: 44648 | DS46: 12135.71 | DT46: 27000 | DU46: 7583.33 | DV46: 6464.67 | DW46: 2744 | DX46: 3720.67 | DY46: 1287.4 | DZ46: 2250 | EA46: 91000 | EB46: 77576 | EC46: 32928 | ED46: 44648 | EE46: 15448.75 | EF46: 27000 | EG46: 1.14 | EH46: 0.4300627039 | EI46: PASS | EJ46: 1.05 | EK46: 0.4664698269 | EL46: PASS | EM46: 160000 | EN46: 10867 | EO46: 3892 | EP46: 0 | EQ46: 0 | ER46: 0 | ES46: 0 | ET46: 45823 | EU46: 31753 | EV46: 0 | EW46: 0 | EX46: 0 | EY46: 0 | EZ46: 77576 | FA46: 35565.5 | FB46: 0 | FC46: 0 | FD46: 0 | FE46: 0 | FF46: 0 | FG46: 35565.5 | FH46: 32928 | FI46: 35565.5 | FJ46: 42010.5 | FK46: 0.0585 | FL46: 0.025 | FM46: 0.0382 | FN46: 0.0367 | FO46: 1.25 | FP46: 0.8 | FQ46: 0.275 | FR46: 7583.33 | FS46: 6464.67 | FT46: 2963.79 | FU46: 3500.87 | FV46: 1011.31 | FW46: 2250 | FX46: 91000 | FY46: 77576 | FZ46: 35565.5 | GA46: 42010.5 | GB46: 12135.71 | GC46: 27000 | GD46: 7583.33 | GE46: 6464.67 | GF46: 2963.79 | GG46: 3500.87 | GH46: 1287.4 | GI46: 2250 | GJ46: 91000 | GK46: 77576 | GL46: 35565.5 | GM46: 42010.5 | GN46: 15448.75 | GO46: 27000 | GP46: 1.07 | GQ46: 0.4300627039 | GR46: PASS | GS46: 0.98 | GT46: 0.4664698269 | GU46: FAIL | GV46: 155352.33 | GW46: Fail | GX46: Y | GY46: 2020-03-26T15:53:31 | HA46: Case 44 | HB46: Mick | HE46: 3382.19
A47: 160000 | B47: 0.065 | C47: 0.09 | D47: 30 | E47: 0 | F47: Individual (Couple) | G47: Individual (Couple) | L47: Applicant 2 | M47: Applicant 1 | X47: 58000 | Y47: 35000 | Z47: 0 | AA47: 0 | AB47: 0 | AC47: 0 | AD47: 0 | AE47: 0 | AF47: 0 | AG47: 0 | AH47: 0 | AI47: 0 | AJ47: 0 | AK47: 0 | AL47: 0 | AM47: 0 | AN47: 0 | AO47: 0 | AP47: 0 | AQ47: 0 | AR47: 0 | AS47: 0 | AT47: 0 | AU47: 0 | AV47: 0 | AW47: 0 | AX47: 0 | AY47: 0 | AZ47: 0 | BA47: 0 | BB47: 0 | BC47: 0 | BD47: 0 | BE47: 0 | BF47: 0 | BG47: 0 | BH47: 0 | BI47: 0 | BJ47: 0 | BK47: 0 | BL47: 0 | BM47: 0 | BN47: 600 | BO47: 1 | BP47: 300 | BQ47: 50 | BR47: 1 | BS47: 100 | BT47: 200 | BU47: 480 | BV47: 500 | BW47: 200 | BX47: 1 | BY47: 400 | BZ47: 1 | CA47: 0 | CB47: 0 | CC47: 1800 | CD47: 0 | CE47: 11557 | CF47: 3892 | CG47: 0 | CH47: 0 | CI47: 0 | CJ47: 0 | CK47: 47103 | CL47: 31753 | CM47: 0 | CN47: 0 | CO47: 0 | CP47: 0 | CQ47: 78856 | CR47: 32183.31 | CS47: 0 | CT47: 0 | CU47: 0 | CV47: 0 | CW47: 0 | CX47: 32183.31 | CY47: 34008 | CZ47: 34008 | DA47: 44848 | DB47: 0.0585 | DC47: 0.025 | DD47: 0.0382 | DE47: 0.0406 | DF47: 1.25 | DG47: 0.8 | DH47: 0.3 | DI47: 7750 | DJ47: 6571.33 | DK47: 2834 | DL47: 3737.33 | DM47: 1011.31 | DN47: 2250 | DO47: 93000 | DP47: 78856 | DQ47: 34008 | DR47: 44848 | DS47: 12135.71 | DT47: 27000 | DU47: 7750 | DV47: 6571.33 | DW47: 2834 | DX47: 3737.33 | DY47: 1287.4 | DZ47: 2250 | EA47: 93000 | EB47: 78856 | EC47: 34008 | ED47: 44848 | EE47: 15448.75 | EF47: 27000 | EG47: 1.14 | EH47: 0.4208140436 | EI47: PASS | EJ47: 1.05 | EK47: 0.4564382177 | EL47: PASS | EM47: 160000 | EN47: 11557 | EO47: 3892 | EP47: 0 | EQ47: 0 | ER47: 0 | ES47: 0 | ET47: 47103 | EU47: 31753 | EV47: 0 | EW47: 0 | EX47: 0 | EY47: 0 | EZ47: 78856 | FA47: 35565.5 | FB47: 0 | FC47: 0 | FD47: 0 | FE47: 0 | FF47: 0 | FG47: 35565.5 | FH47: 34008 | FI47: 35565.5 | FJ47: 43290.5 | FK47: 0.0585 | FL47: 0.025 | FM47: 0.0382 | FN47: 0.0367 | FO47: 1.25 | FP47: 0.8 | FQ47: 0.275 | FR47: 7750 | FS47: 6571.33 | FT47: 2963.79 | FU47: 3607.54 | FV47: 1011.31 | FW47: 2250 | FX47: 93000 | FY47: 78856 | FZ47: 35565.5 | GA47: 43290.5 | GB47: 12135.71 | GC47: 27000 | GD47: 7750 | GE47: 6571.33 | GF47: 2963.79 | GG47: 3607.54 | GH47: 1287.4 | GI47: 2250 | GJ47: 93000 | GK47: 78856 | GL47: 35565.5 | GM47: 43290.5 | GN47: 15448.75 | GO47: 27000 | GP47: 1.1 | GQ47: 0.4208140436 | GR47: PASS | GS47: 1.01 | GT47: 0.4564382177 | GU47: PASS | GV47: 160000 | GW47: Fail | GX47: Y | GY47: 2020-03-26T15:53:40 | HA47: Case 45 | HB47: Mick | HE47: 3382.19
A48: 100000 | B48: 0.065 | C48: 0.09 | D48: 20 | E48: 0 | F48: Individual (Couple) | L48: Non-loan Party | X48: 41000 | Y48: 0 | Z48: 0 | AA48: 0 | AB48: 0 | AC48: 0 | AD48: 0 | AE48: 0 | AF48: 0 | AG48: 0 | AH48: 0 | AI48: 0 | AJ48: 0 | AK48: 0 | AL48: 0 | AM48: 0 | AN48: 0 | AO48: 0 | AP48: 0 | AQ48: 0 | AR48: 0 | AS48: 0 | AT48: 0 | AU48: 0 | AV48: 0 | AW48: 0 | AX48: 0 | AY48: 0 | AZ48: 0 | BA48: 0 | BB48: 0 | BC48: 0 | BD48: 0 | BE48: 0 | BF48: 0 | BG48: 0 | BH48: 0 | BI48: 0 | BJ48: 0 | BK48: 0 | BL48: 0 | BM48: 0 | BN48: 1 | BO48: 1000 | BP48: 1 | BQ48: 50 | BR48: 1 | BS48: 100 | BT48: 200 | BU48: 1 | BV48: 500 | BW48: 1 | BX48: 1 | BY48: 1 | BZ48: 1 | CA48: 0 | CB48: 0 | CC48: 0 | CD48: 0 | CE48: 5692 | CF48: 0 | CG48: 0 | CH48: 0 | CI48: 0 | CJ48: 0 | CK48: 36013 | CL48: 0 | CM48: 0 | CN48: 0 | CO48: 0 | CP48: 0 | CQ48: 36013 | CR48: 24926.29 | CS48: 0 | CT48: 0 | CU48: 0 | CV48: 0 | CW48: 0 | CX48: 24926.29 | CY48: 22296 | CZ48: 24926.29 | DA48: 11086.71 | DB48: 0.0585 | DC48: 0.025 | DD48: 0.0382 | DE48: 0.0406 | DF48: 1.25 | DG48: 0.8 | DH48: 0.3 | DI48: 3416.67 | DJ48: 3001.08 | DK48: 2077.19 | DL48: 923.89 | DM48: 745.57 | DN48: 0 | DO48: 41000 | DP48: 36013 | DQ48: 24926.29 | DR48: 11086.71 | DS48: 8946.88 | DT48: 0 | DU48: 3416.67 | DV48: 3001.08 | DW48: 2077.19 | DX48: 923.89 | DY48: 899.73 | DZ48: 0 | EA48: 41000 | EB48: 36013 | EC48: 24926.29 | ED48: 11086.71 | EE48: 10796.71 | EF48: 0 | EG48: 1.23 | EH48: 0.2182165275 | EI48: PASS | EJ48: 1.02 | EK48: 0.2633344261 | EL48: PASS | EM48: 100000 | EN48: 5692 | EO48: 0 | EP48: 0 | EQ48: 0 | ER48: 0 | ES48: 0 | ET48: 36013 | EU48: 0 | EV48: 0 | EW48: 0 | EX48: 0 | EY48: 0 | EZ48: 36013 | FA48: 26235.18 | FB48: 0 | FC48: 0 | FD48: 0 | FE48: 0 | FF48: 0 | FG48: 26235.18 | FH48: 22296 | FI48: 26235.18 | FJ48: 9777.82 | FK48: 0.0585 | FL48: 0.025 | FM48: 0.0382 | FN48: 0.0367 | FO48: 1.25 | FP48: 0.8 | FQ48: 0.275 | FR48: 3416.67 | FS48: 3001.08 | FT48: 2186.27 | FU48: 814.82 | FV48: 745.57 | FW48: 0 | FX48: 41000 | FY48: 36013 | FZ48: 26235.18 | GA48: 9777.82 | GB48: 8946.88 | GC48: 0 | GD48: 3416.67 | GE48: 3001.08 | GF48: 2186.27 | GG48: 814.82 | GH48: 899.73 | GI48: 0 | GJ48: 41000 | GK48: 36013 | GL48: 26235.18 | GM48: 9777.82 | GN48: 10796.71 | GO48: 0 | GP48: 1.09 | GQ48: 0.2182165275 | GR48: PASS | GS48: 0.9 | GT48: 0.2633344261 | GU48: FAIL | GV48: 90471.99 | GW48: Fail | GX48: Y | GY48: 2020-03-26T15:53:49 | HA48: Case 46 | HB48: Mick | HE48: 1308.89
A49: 145000 | B49: 0.065 | C49: 0.09 | D49: 20 | E49: 0 | F49: Individual (Couple) | L49: Non-loan Party | X49: 51000 | Y49: 0 | Z49: 0 | AA49: 0 | AB49: 0 | AC49: 0 | AD49: 0 | AE49: 0 | AF49: 0 | AG49: 0 | AH49: 0 | AI49: 0 | AJ49: 0 | AK49: 0 | AL49: 0 | AM49: 0 | AN49: 0 | AO49: 0 | AP49: 0 | AQ49: 0 | AR49: 0 | AS49: 0 | AT49: 0 | AU49: 0 | AV49: 0 | AW49: 0 | AX49: 0 | AY49: 0 | AZ49: 0 | BA49: 0 | BB49: 0 | BC49: 0 | BD49: 0 | BE49: 0 | BF49: 0 | BG49: 0 | BH49: 0 | BI49: 0 | BJ49: 0 | BK49: 0 | BL49: 0 | BM49: 0 | BN49: 1 | BO49: 1000 | BP49: 1 | BQ49: 250 | BR49: 1 | BS49: 100 | BT49: 200 | BU49: 1 | BV49: 500 | BW49: 1 | BX49: 200 | BY49: 1 | BZ49: 1 | CA49: 0 | CB49: 0 | CC49: 0 | CD49: 0 | CE49: 9142 | CF49: 0 | CG49: 0 | CH49: 0 | CI49: 0 | CJ49: 0 | CK49: 42623 | CL49: 0 | CM49: 0 | CN49: 0 | CO49: 0 | CP49: 0 | CQ49: 42623 | CR49: 27013.5 | CS49: 0 | CT49: 0 | CU49: 0 | CV49: 0 | CW49: 0 | CX49: 27013.5 | CY49: 27084 | CZ49: 27084 | DA49: 15539 | DB49: 0.0585 | DC49: 0.025 | DD49: 0.0382 | DE49: 0.0406 | DF49: 1.25 | DG49: 0.8 | DH49: 0.3 | DI49: 4250 | DJ49: 3551.92 | DK49: 2257 | DL49: 1294.92 | DM49: 1081.08 | DN49: 0 | DO49: 51000 | DP49: 42623 | DQ49: 27084 | DR49: 15539 | DS49: 12972.97 | DT49: 0 | DU49: 4250 | DV49: 3551.92 | DW49: 2257 | DX49: 1294.92 | DY49: 1304.6 | DZ49: 0 | EA49: 51000 | EB49: 42623 | EC49: 27084 | ED49: 15539 | EE49: 15655.23 | EF49: 0 | EG49: 1.19 | EH49: 0.2543720109 | EI49: PASS | EJ49: 0.99 | EK49: 0.3069653261 | EL49: FAIL | EM49: 143821.57 | EN49: 9142 | EO49: 0 | EP49: 0 | EQ49: 0 | ER49: 0 | ES49: 0 | ET49: 42623 | EU49: 0 | EV49: 0 | EW49: 0 | EX49: 0 | EY49: 0 | EZ49: 42623 | FA49: 27321.85 | FB49: 0 | FC49: 0 | FD49: 0 | FE49: 0 | FF49: 0 | FG49: 27321.85 | FH49: 27084 | FI49: 27321.85 | FJ49: 15301.15 | FK49: 0.0585 | FL49: 0.025 | FM49: 0.0382 | FN49: 0.0367 | FO49: 1.25 | FP49: 0.8 | FQ49: 0.275 | FR49: 4250 | FS49: 3551.92 | FT49: 2276.82 | FU49: 1275.1 | FV49: 1081.08 | FW49: 0 | FX49: 51000 | FY49: 42623 | FZ49: 27321.85 | GA49: 15301.15 | GB49: 12972.97 | GC49: 0 | GD49: 4250 | GE49: 3551.92 | GF49: 2276.82 | GG49: 1275.1 | GH49: 1304.6 | GI49: 0 | GJ49: 51000 | GK49: 42623 | GL49: 27321.85 | GM49: 15301.15 | GN49: 15655.23 | GO49: 0 | GP49: 1.17 | GQ49: 0.2543720109 | GR49: PASS | GS49: 0.97 | GT49: 0.3069653261 | GU49: FAIL | GV49: 141709.82 | GW49: Fail | GX49: Y | GY49: 2020-03-26T15:53:59 | HA49: Case 47 | HB49: Mick | HE49: 308.35
A50: 300000 | B50: 0.0544 | C50: 0.0794 | D50: 30 | E50: 0 | F50: Individual (Single) | X50: 80000 | Y50: 0 | Z50: 0 | AA50: 0 | AB50: 0 | AC50: 0 | AD50: 0 | AE50: 0 | AF50: 0 | AG50: 0 | AH50: 0 | AI50: 0 | AJ50: 0 | AK50: 0 | AL50: 0 | AM50: 0 | AN50: 0 | AO50: 0 | AP50: 0 | AQ50: 0 | AR50: 0 | AS50: 0 | AT50: 0 | AU50: 0 | AV50: 0 | AW50: 0 | AX50: 0 | AY50: 0 | AZ50: 0 | BA50: 0 | BB50: 0 | BC50: 0 | BD50: 0 | BE50: 0 | BF50: 0 | BG50: 0 | BH50: 0 | BI50: 0 | BJ50: 0 | BK50: 0 | BL50: 0 | BM50: 0 | BN50: 1 | BO50: 1 | BP50: 1 | BQ50: 1 | BR50: 100 | BS50: 50 | BT50: 60 | BU50: 50 | BV50: 20 | BW50: 45 | BX50: 60 | BY50: 1 | BZ50: 1 | CA50: 0 | CB50: 0 | CC50: 0 | CD50: 0 | CE50: 19147 | CF50: 0 | CG50: 0 | CH50: 0 | CI50: 0 | CJ50: 0 | CK50: 61383 | CL50: 0 | CM50: 0 | CN50: 0 | CO50: 0 | CP50: 0 | CQ50: 61383 | CR50: 20049.75 | CS50: 0 | CT50: 0 | CU50: 0 | CV50: 0 | CW50: 0 | CX50: 20049.75 | CY50: 4692 | CZ50: 20049.75 | DA50: 41333.25 | DB50: 0.0585 | DC50: 0.025 | DD50: 0.0382 | DE50: 0.0406 | DF50: 1.25 | DG50: 0.8 | DH50: 0.3 | DI50: 6666.67 | DJ50: 5115.25 | DK50: 1670.81 | DL50: 3444.44 | DM50: 1692.09 | DN50: 0 | DO50: 80000 | DP50: 61383 | DQ50: 20049.75 | DR50: 41333.25 | DS50: 20305.09 | DT50: 0 | DU50: 6666.67 | DV50: 5115.25 | DW50: 1670.81 | DX50: 3444.44 | DY50: 2188.76 | DZ50: 0 | EA50: 80000 | EB50: 61383 | EC50: 20049.75 | ED50: 41333.25 | EE50: 26265.1 | EF50: 0 | EG50: 2.03 | EH50: 0.2538136098 | EI50: PASS | EJ50: 1.57 | EK50: 0.3283137803 | EL50: PASS | EM50: 300000 | EN50: 19147 | EO50: 0 | EP50: 0 | EQ50: 0 | ER50: 0 | ES50: 0 | ET50: 61383 | EU50: 0 | EV50: 0 | EW50: 0 | EX50: 0 | EY50: 0 | EZ50: 61383 | FA50: 20096.16 | FB50: 0 | FC50: 0 | FD50: 0 | FE50: 0 | FF50: 0 | FG50: 20096.16 | FH50: 4692 | FI50: 20096.16 | FJ50: 41286.84 | FK50: 0.0585 | FL50: 0.025 | FM50: 0.0382 | FN50: 0.0367 | FO50: 1.25 | FP50: 0.8 | FQ50: 0.275 | FR50: 6666.67 | FS50: 5115.25 | FT50: 1674.68 | FU50: 3440.57 | FV50: 1692.09 | FW50: 0 | FX50: 80000 | FY50: 61383 | FZ50: 20096.16 | GA50: 41286.84 | GB50: 20305.09 | GC50: 0 | GD50: 6666.67 | GE50: 5115.25 | GF50: 1674.68 | GG50: 3440.57 | GH50: 2188.76 | GI50: 0 | GJ50: 80000 | GK50: 61383 | GL50: 20096.16 | GM50: 41286.84 | GN50: 26265.1 | GO50: 0 | GP50: 2.03 | GQ50: 0.2538136098 | GR50: PASS | GS50: 1.57 | GT50: 0.3283137803 | GU50: PASS | GV50: 300000 | GW50: Fail | GX50: Y | GY50: 2020-03-26T15:54:07 | HA50: Case 48 | HB50: Mick | HE50: 46.41
A51: 300000 | B51: 0.0544 | C51: 0.0794 | D51: 30 | E51: 0 | F51: Individual (Single) | X51: 60000 | Y51: 0 | Z51: 0 | AA51: 0 | AB51: 0 | AC51: 0 | AD51: 0 | AE51: 0 | AF51: 0 | AG51: 0 | AH51: 0 | AI51: 0 | AJ51: 0 | AK51: 0 | AL51: 0 | AM51: 0 | AN51: 0 | AO51: 0 | AP51: 0 | AQ51: 0 | AR51: 0 | AS51: 0 | AT51: 0 | AU51: 0 | AV51: 0 | AW51: 0 | AX51: 0 | AY51: 0 | AZ51: 0 | BA51: 0 | BB51: 0 | BC51: 0 | BD51: 0 | BE51: 0 | BF51: 0 | BG51: 0 | BH51: 0 | BI51: 0 | BJ51: 0 | BK51: 0 | BL51: 0 | BM51: 0 | BN51: 1 | BO51: 1 | BP51: 1 | BQ51: 1 | BR51: 100 | BS51: 50 | BT51: 60 | BU51: 50 | BV51: 20 | BW51: 45 | BX51: 60 | BY51: 1 | BZ51: 1 | CA51: 0 | CB51: 0 | CC51: 0 | CD51: 0 | CE51: 12247 | CF51: 0 | CG51: 0 | CH51: 0 | CI51: 0 | CJ51: 0 | CK51: 48383 | CL51: 0 | CM51: 0 | CN51: 0 | CO51: 0 | CP51: 0 | CQ51: 48383 | CR51: 18225.18 | CS51: 0 | CT51: 0 | CU51: 0 | CV51: 0 | CW51: 0 | CX51: 18225.18 | CY51: 4692 | CZ51: 18225.18 | DA51: 30157.82 | DB51: 0.0585 | DC51: 0.025 | DD51: 0.0382 | DE51: 0.0406 | DF51: 1.25 | DG51: 0.8 | DH51: 0.3 | DI51: 5000 | DJ51: 4031.92 | DK51: 1518.77 | DL51: 2513.15 | DM51: 1692.09 | DN51: 0 | DO51: 60000 | DP51: 48383 | DQ51: 18225.18 | DR51: 30157.82 | DS51: 20305.09 | DT51: 0 | DU51: 5000 | DV51: 4031.92 | DW51: 1518.77 | DX51: 2513.15 | DY51: 2188.76 | DZ51: 0 | EA51: 60000 | EB51: 48383 | EC51: 18225.18 | ED51: 30157.82 | EE51: 26265.1 | EF51: 0 | EG51: 1.48 | EH51: 0.3384181464 | EI51: PASS | EJ51: 1.14 | EK51: 0.4377517071 | EL51: PASS | EM51: 300000 | EN51: 12247 | EO51: 0 | EP51: 0 | EQ51: 0 | ER51: 0 | ES51: 0 | ET51: 48383 | EU51: 0 | EV51: 0 | EW51: 0 | EX51: 0 | EY51: 0 | EZ51: 48383 | FA51: 17595.91 | FB51: 0 | FC51: 0 | FD51: 0 | FE51: 0 | FF51: 0 | FG51: 17595.91 | FH51: 4692 | FI51: 17595.91 | FJ51: 30787.09 | FK51: 0.0585 | FL51: 0.025 | FM51: 0.0382 | FN51: 0.0367 | FO51: 1.25 | FP51: 0.8 | FQ51: 0.275 | FR51: 5000 | FS51: 4031.92 | FT51: 1466.33 | FU51: 2565.59 | FV51: 1692.09 | FW51: 0 | FX51: 60000 | FY51: 48383 | FZ51: 17595.91 | GA51: 30787.09 | GB51: 20305.09 | GC51: 0 | GD51: 5000 | GE51: 4031.92 | GF51: 1466.33 | GG51: 2565.59 | GH51: 2188.76 | GI51: 0 | GJ51: 60000 | GK51: 48383 | GL51: 17595.91 | GM51: 30787.09 | GN51: 26265.1 | GO51: 0 | GP51: 1.51 | GQ51: 0.3384181464 | GR51: PASS | GS51: 1.17 | GT51: 0.4377517071 | GU51: PASS | GV51: 300000 | GW51: Fail | GX51: Y | GY51: 2020-03-26T15:54:16 | HA51: Case 49 | HB51: Mick | HE51: -629.27
A52: 300000 | B52: 0.054 | C52: 0.079 | D52: 30 | E52: 0 | F52: Individual (Single) | G52: Individual (Single) | X52: 45000 | Y52: 45000 | Z52: 0 | AA52: 0 | AB52: 0 | AC52: 0 | AD52: 0 | AE52: 0 | AF52: 0 | AG52: 0 | AH52: 0 | AI52: 0 | AJ52: 0 | AK52: 0 | AL52: 0 | AM52: 0 | AN52: 0 | AO52: 0 | AP52: 0 | AQ52: 0 | AR52: 0 | AS52: 0 | AT52: 0 | AU52: 0 | AV52: 0 | AW52: 0 | AX52: 0 | AY52: 0 | AZ52: 0 | BA52: 0 | BB52: 0 | BC52: 0 | BD52: 0 | BE52: 0 | BF52: 0 | BG52: 0 | BH52: 0 | BI52: 0 | BJ52: 0 | BK52: 0 | BL52: 0 | BM52: 0 | BN52: 100 | BO52: 100 | BP52: 100 | BQ52: 100 | BR52: 100 | BS52: 100 | BT52: 500 | BU52: 10 | BV52: 100 | BW52: 500 | BX52: 300 | BY52: 100 | BZ52: 100 | CA52: 0 | CB52: 0 | CC52: 0 | CD52: 0 | CE52: 7072 | CF52: 7072 | CG52: 0 | CH52: 0 | CI52: 0 | CJ52: 0 | CK52: 38693 | CL52: 38693 | CM52: 0 | CN52: 0 | CO52: 0 | CP52: 0 | CQ52: 77386 | CR52: 15796.5 | CS52: 15796.5 | CT52: 0 | CU52: 0 | CV52: 0 | CW52: 0 | CX52: 31593 | CY52: 26520 | CZ52: 31593 | DA52: 45793 | DB52: 0.0585 | DC52: 0.025 | DD52: 0.0382 | DE52: 0.0406 | DF52: 1.25 | DG52: 0.8 | DH52: 0.3 | DI52: 7500 | DJ52: 6448.83 | DK52: 2632.75 | DL52: 3816.08 | DM52: 1684.59 | DN52: 0 | DO52: 90000 | DP52: 77386 | DQ52: 31593 | DR52: 45793 | DS52: 20215.11 | DT52: 0 | DU52: 7500 | DV52: 6448.83 | DW52: 2632.75 | DX52: 3816.08 | DY52: 2180.42 | DZ52: 0 | EA52: 90000 | EB52: 77386 | EC52: 31593 | ED52: 45793 | EE52: 26164.99 | EF52: 0 | EG52: 2.26 | EH52: 0.2246123167 | EI52: PASS | EJ52: 1.75 | EK52: 0.2907221621 | EL52: PASS | EM52: 300000 | EN52: 7072 | EO52: 7072 | EP52: 0 | EQ52: 0 | ER52: 0 | ES52: 0 | ET52: 38693 | EU52: 38693 | EV52: 0 | EW52: 0 | EX52: 0 | EY52: 0 | EZ52: 77386 | FA52: 15644.12 | FB52: 15644.12 | FC52: 0 | FD52: 0 | FE52: 0 | FF52: 0 | FG52: 31288.23 | FH52: 26520 | FI52: 31288.23 | FJ52: 46097.77 | FK52: 0.0585 | FL52: 0.025 | FM52: 0.0382 | FN52: 0.0367 | FO52: 1.25 | FP52: 0.8 | FQ52: 0.275 | FR52: 7500 | FS52: 6448.83 | FT52: 2607.35 | FU52: 3841.48 | FV52: 1684.59 | FW52: 0 | FX52: 90000 | FY52: 77386 | FZ52: 31288.23 | GA52: 46097.77 | GB52: 20215.11 | GC52: 0 | GD52: 7500 | GE52: 6448.83 | GF52: 2607.35 | GG52: 3841.48 | GH52: 2180.42 | GI52: 0 | GJ52: 90000 | GK52: 77386 | GL52: 31288.23 | GM52: 46097.77 | GN52: 26164.99 | GO52: 0 | GP52: 2.28 | GQ52: 0.2246123167 | GR52: PASS | GS52: 1.76 | GT52: 0.2907221621 | GU52: PASS | GV52: 300000 | GW52: Fail | GX52: Y | GY52: 2020-03-26T15:54:25 | HA52: Case 50 | HB52: Mick | HE52: -304.77
A53: 300000 | B53: 0.054 | C53: 0.079 | D53: 30 | E53: 0 | F53: Individual (Single) | G53: Individual (Single) | X53: 45000 | Y53: 25000 | Z53: 0 | AA53: 0 | AB53: 0 | AC53: 0 | AD53: 0 | AE53: 0 | AF53: 0 | AG53: 0 | AH53: 0 | AI53: 0 | AJ53: 0 | AK53: 0 | AL53: 0 | AM53: 0 | AN53: 0 | AO53: 0 | AP53: 0 | AQ53: 0 | AR53: 0 | AS53: 0 | AT53: 0 | AU53: 0 | AV53: 0 | AW53: 0 | AX53: 0 | AY53: 0 | AZ53: 0 | BA53: 0 | BB53: 0 | BC53: 0 | BD53: 0 | BE53: 0 | BF53: 0 | BG53: 0 | BH53: 0 | BI53: 0 | BJ53: 0 | BK53: 0 | BL53: 0 | BM53: 0 | BN53: 100 | BO53: 100 | BP53: 100 | BQ53: 100 | BR53: 100 | BS53: 100 | BT53: 500 | BU53: 10 | BV53: 100 | BW53: 500 | BX53: 300 | BY53: 100 | BZ53: 100 | CA53: 0 | CB53: 0 | CC53: 0 | CD53: 0 | CE53: 7072 | CF53: 1594 | CG53: 0 | CH53: 0 | CI53: 0 | CJ53: 0 | CK53: 38693 | CL53: 24051 | CM53: 0 | CN53: 0 | CO53: 0 | CP53: 0 | CQ53: 62744 | CR53: 15796.5 | CS53: 14357.8 | CT53: 0 | CU53: 0 | CV53: 0 | CW53: 0 | CX53: 30154.29 | CY53: 26520 | CZ53: 30154.29 | DA53: 32589.71 | DB53: 0.0585 | DC53: 0.025 | DD53: 0.0382 | DE53: 0.0406 | DF53: 1.25 | DG53: 0.8 | DH53: 0.3 | DI53: 5833.33 | DJ53: 5228.67 | DK53: 2512.86 | DL53: 2715.81 | DM53: 1684.59 | DN53: 0 | DO53: 70000 | DP53: 62744 | DQ53: 30154.29 | DR53: 32589.71 | DS53: 20215.11 | DT53: 0 | DU53: 5833.33 | DV53: 5228.67 | DW53: 2512.86 | DX53: 2715.81 | DY53: 2180.42 | DZ53: 0 | EA53: 70000 | EB53: 62744 | EC53: 30154.29 | ED53: 32589.71 | EE53: 26164.99 | EF53: 0 | EG53: 1.61 | EH53: 0.2887872644 | EI53: PASS | EJ53: 1.24 | EK53: 0.373785637 | EL53: PASS | EM53: 300000 | EN53: 7072 | EO53: 1594 | EP53: 0 | EQ53: 0 | ER53: 0 | ES53: 0 | ET53: 38693 | EU53: 24051 | EV53: 0 | EW53: 0 | EX53: 0 | EY53: 0 | EZ53: 62744 | FA53: 15644.12 | FB53: 13823.5 | FC53: 0 | FD53: 0 | FE53: 0 | FF53: 0 | FG53: 29467.61 | FH53: 26520 | FI53: 29467.61 | FJ53: 33276.39 | FK53: 0.0585 | FL53: 0.025 | FM53: 0.0382 | FN53: 0.0367 | FO53: 1.25 | FP53: 0.8 | FQ53: 0.275 | FR53: 5833.33 | FS53: 5228.67 | FT53: 2455.63 | FU53: 2773.03 | FV53: 1684.59 | FW53: 0 | FX53: 70000 | FY53: 62744 | FZ53: 29467.61 | GA53: 33276.39 | GB53: 20215.11 | GC53: 0 | GD53: 5833.33 | GE53: 5228.67 | GF53: 2455.63 | GG53: 2773.03 | GH53: 2180.42 | GI53: 0 | GJ53: 70000 | GK53: 62744 | GL53: 29467.61 | GM53: 33276.39 | GN53: 26164.99 | GO53: 0 | GP53: 1.64 | GQ53: 0.2887872644 | GR53: PASS | GS53: 1.27 | GT53: 0.373785637 | GU53: PASS | GV53: 300000 | GW53: Fail | GX53: Y | GY53: 2020-03-26T15:54:34 | HA53: Case 51 | HB53: Mick | HE53: -686.68
A54: 300000 | B54: 0.02 | C54: 0.0585 | D54: 30 | E54: 0 | F54: Individual (Single) | X54: 80000 | Y54: 0 | Z54: 0 | AA54: 0 | AB54: 0 | AC54: 0 | AD54: 0 | AE54: 0 | AF54: 0 | AG54: 0 | AH54: 0 | AI54: 0 | AJ54: 0 | AK54: 0 | AL54: 0 | AM54: 0 | AN54: 0 | AO54: 0 | AP54: 0 | AQ54: 0 | AR54: 0 | AS54: 0 | AT54: 0 | AU54: 0 | AV54: 0 | AW54: 0 | AX54: 0 | AY54: 0 | AZ54: 0 | BA54: 0 | BB54: 0 | BC54: 0 | BD54: 0 | BE54: 0 | BF54: 0 | BG54: 0 | BH54: 0 | BI54: 0 | BJ54: 0 | BK54: 0 | BL54: 0 | BM54: 0 | BN54: 1 | BO54: 1 | BP54: 1 | BQ54: 1 | BR54: 100 | BS54: 50 | BT54: 60 | BU54: 50 | BV54: 20 | BW54: 45 | BX54: 60 | BY54: 1 | BZ54: 1 | CA54: 0 | CB54: 0 | CC54: 0 | CD54: 0 | CE54: 19147 | CF54: 0 | CG54: 0 | CH54: 0 | CI54: 0 | CJ54: 0 | CK54: 61383 | CL54: 0 | CM54: 0 | CN54: 0 | CO54: 0 | CP54: 0 | CQ54: 61383 | CR54: 20049.75 | CS54: 0 | CT54: 0 | CU54: 0 | CV54: 0 | CW54: 0 | CX54: 20049.75 | CY54: 4692 | CZ54: 20049.75 | DA54: 41333.25 | DB54: 0.0585 | DC54: 0.025 | DD54: 0.0382 | DE54: 0.0406 | DF54: 1.25 | DG54: 0.8 | DH54: 0.3 | DI54: 6666.67 | DJ54: 5115.25 | DK54: 1670.81 | DL54: 3444.44 | DM54: 1108.86 | DN54: 0 | DO54: 80000 | DP54: 61383 | DQ54: 20049.75 | DR54: 41333.25 | DS54: 13306.3 | DT54: 0 | DU54: 6666.67 | DV54: 5115.25 | DW54: 1670.81 | DX54: 3444.44 | DY54: 1769.82 | DZ54: 0 | EA54: 80000 | EB54: 61383 | EC54: 20049.75 | ED54: 41333.25 | EE54: 21237.87 | EF54: 0 | EG54: 3.1 | EH54: 0.1663287627 | EI54: PASS | EJ54: 1.94 | EK54: 0.2654734204 | EL54: PASS | EM54: 300000 | EN54: 19147 | EO54: 0 | EP54: 0 | EQ54: 0 | ER54: 0 | ES54: 0 | ET54: 61383 | EU54: 0 | EV54: 0 | EW54: 0 | EX54: 0 | EY54: 0 | EZ54: 61383 | FA54: 20096.16 | FB54: 0 | FC54: 0 | FD54: 0 | FE54: 0 | FF54: 0 | FG54: 20096.16 | FH54: 4692 | FI54: 20096.16 | FJ54: 41286.84 | FK54: 0.0585 | FL54: 0.025 | FM54: 0.0382 | FN54: 0.0367 | FO54: 1.25 | FP54: 0.8 | FQ54: 0.275 | FR54: 6666.67 | FS54: 5115.25 | FT54: 1674.68 | FU54: 3440.57 | FV54: 1108.86 | FW54: 0 | FX54: 80000 | FY54: 61383 | FZ54: 20096.16 | GA54: 41286.84 | GB54: 13306.3 | GC54: 0 | GD54: 6666.67 | GE54: 5115.25 | GF54: 1674.68 | GG54: 3440.57 | GH54: 1769.82 | GI54: 0 | GJ54: 80000 | GK54: 61383 | GL54: 20096.16 | GM54: 41286.84 | GN54: 21237.87 | GO54: 0 | GP54: 3.1 | GQ54: 0.1663287627 | GR54: PASS | GS54: 1.94 | GT54: 0.2654734204 | GU54: PASS | GV54: 300000 | GW54: =IF(AND(DI54=FR54,DJ54=FS54,DK54=FT54,DL54=FU54,DM54=FV54,DN54=FW54,DO54=FX54,DP54=FY54,DQ54=FZ54,DR54=GA54,DS54=GB54,DT54=GC54,DU54=GD54,DV54=GE54,DW54=GF54,DX54=GG54,DY54=GH54,DZ54=GI54,EA54=GJ54,EB54=GK54,EC54=GL54,ED54=GM54,EE54=GN54,EF54=GO54,EG54=GP54,EH54=GQ54,EI54=GR54,EJ54=GS54,EK54=GT54,EL54=GU54,EM54=GV54),"Pass","Fail") -> Fail | GX54: Y | GY54: 2020-03-26T15:54:43 | HA54: Case 52 | HB54: Mick | HE54: 46.41
A55: 300000 | B55: 0.03 | C55: 0.0585 | D55: 30 | E55: 0 | F55: Individual (Single) | X55: 60000 | Y55: 0 | Z55: 0 | AA55: 0 | AB55: 0 | AC55: 0 | AD55: 0 | AE55: 0 | AF55: 0 | AG55: 0 | AH55: 0 | AI55: 0 | AJ55: 0 | AK55: 0 | AL55: 0 | AM55: 0 | AN55: 0 | AO55: 0 | AP55: 0 | AQ55: 0 | AR55: 0 | AS55: 0 | AT55: 0 | AU55: 0 | AV55: 0 | AW55: 0 | AX55: 0 | AY55: 0 | AZ55: 0 | BA55: 0 | BB55: 0 | BC55: 0 | BD55: 0 | BE55: 0 | BF55: 0 | BG55: 0 | BH55: 0 | BI55: 0 | BJ55: 0 | BK55: 0 | BL55: 0 | BM55: 0 | BN55: 1 | BO55: 1 | BP55: 1 | BQ55: 1 | BR55: 100 | BS55: 50 | BT55: 60 | BU55: 50 | BV55: 20 | BW55: 45 | BX55: 60 | BY55: 1 | BZ55: 1 | CA55: 0 | CB55: 0 | CC55: 0 | CD55: 0 | CE55: 12247 | CF55: 0 | CG55: 0 | CH55: 0 | CI55: 0 | CJ55: 0 | CK55: 48383 | CL55: 0 | CM55: 0 | CN55: 0 | CO55: 0 | CP55: 0 | CQ55: 48383 | CR55: 18225.18 | CS55: 0 | CT55: 0 | CU55: 0 | CV55: 0 | CW55: 0 | CX55: 18225.18 | CY55: 4692 | CZ55: 18225.18 | DA55: 30157.82 | DB55: 0.0585 | DC55: 0.025 | DD55: 0.0382 | DE55: 0.0406 | DF55: 1.25 | DG55: 0.8 | DH55: 0.3 | DI55: 5000 | DJ55: 4031.92 | DK55: 1518.77 | DL55: 2513.15 | DM55: 1264.81 | DN55: 0 | DO55: 60000 | DP55: 48383 | DQ55: 18225.18 | DR55: 30157.82 | DS55: 15177.75 | DT55: 0 | DU55: 5000 | DV55: 4031.92 | DW55: 1518.77 | DX55: 2513.15 | DY55: 1769.82 | DZ55: 0 | EA55: 60000 | EB55: 48383 | EC55: 18225.18 | ED55: 30157.82 | EE55: 21237.87 | EF55: 0 | EG55: 1.98 | EH55: 0.2529624202 | EI55: PASS | EJ55: 1.42 | EK55: 0.3539645605 | EL55: PASS | EM55: 300000 | EN55: 12247 | EO55: 0 | EP55: 0 | EQ55: 0 | ER55: 0 | ES55: 0 | ET55: 48383 | EU55: 0 | EV55: 0 | EW55: 0 | EX55: 0 | EY55: 0 | EZ55: 48383 | FA55: 17595.91 | FB55: 0 | FC55: 0 | FD55: 0 | FE55: 0 | FF55: 0 | FG55: 17595.91 | FH55: 4692 | FI55: 17595.91 | FJ55: 30787.09 | FK55: 0.0585 | FL55: 0.025 | FM55: 0.0382 | FN55: 0.0367 | FO55: 1.25 | FP55: 0.8 | FQ55: 0.275 | FR55: 5000 | FS55: 4031.92 | FT55: 1466.33 | FU55: 2565.59 | FV55: 1264.81 | FW55: 0 | FX55: 60000 | FY55: 48383 | FZ55: 17595.91 | GA55: 30787.09 | GB55: 15177.75 | GC55: 0 | GD55: 5000 | GE55: 4031.92 | GF55: 1466.33 | GG55: 2565.59 | GH55: 1769.82 | GI55: 0 | GJ55: 60000 | GK55: 48383 | GL55: 17595.91 | GM55: 30787.09 | GN55: 21237.87 | GO55: 0 | GP55: 2.02 | GQ55: 0.2529624202 | GR55: PASS | GS55: 1.44 | GT55: 0.3539645605 | GU55: PASS | GV55: 300000 | GW55: Fail | GX55: Y | GY55: 2020-03-26T15:54:52 | HA55: Case 53 | HB55: Mick | HE55: -629.27
A56: 300000 | B56: 0.0334 | C56: 0.0585 | D56: 30 | E56: 0 | F56: Individual (Single) | G56: Individual (Single) | X56: 45000 | Y56: 45000 | Z56: 0 | AA56: 0 | AB56: 0 | AC56: 0 | AD56: 0 | AE56: 0 | AF56: 0 | AG56: 0 | AH56: 0 | AI56: 0 | AJ56: 0 | AK56: 0 | AL56: 0 | AM56: 0 | AN56: 0 | AO56: 0 | AP56: 0 | AQ56: 0 | AR56: 0 | AS56: 0 | AT56: 0 | AU56: 0 | AV56: 0 | AW56: 0 | AX56: 0 | AY56: 0 | AZ56: 0 | BA56: 0 | BB56: 0 | BC56: 0 | BD56: 0 | BE56: 0 | BF56: 0 | BG56: 0 | BH56: 0 | BI56: 0 | BJ56: 0 | BK56: 0 | BL56: 0 | BM56: 0 | BN56: 100 | BO56: 100 | BP56: 100 | BQ56: 100 | BR56: 100 | BS56: 100 | BT56: 500 | BU56: 10 | BV56: 100 | BW56: 500 | BX56: 300 | BY56: 100 | BZ56: 100 | CA56: 0 | CB56: 0 | CC56: 0 | CD56: 0 | CE56: 7072 | CF56: 7072 | CG56: 0 | CH56: 0 | CI56: 0 | CJ56: 0 | CK56: 38693 | CL56: 38693 | CM56: 0 | CN56: 0 | CO56: 0 | CP56: 0 | CQ56: 77386 | CR56: 15796.5 | CS56: 15796.5 | CT56: 0 | CU56: 0 | CV56: 0 | CW56: 0 | CX56: 31593 | CY56: 26520 | CZ56: 31593 | DA56: 45793 | DB56: 0.0585 | DC56: 0.025 | DD56: 0.0382 | DE56: 0.0406 | DF56: 1.25 | DG56: 0.8 | DH56: 0.3 | DI56: 7500 | DJ56: 6448.83 | DK56: 2632.75 | DL56: 3816.08 | DM56: 1320.48 | DN56: 0 | DO56: 90000 | DP56: 77386 | DQ56: 31593 | DR56: 45793 | DS56: 15845.8 | DT56: 0 | DU56: 7500 | DV56: 6448.83 | DW56: 2632.75 | DX56: 3816.08 | DY56: 1769.82 | DZ56: 0 | EA56: 90000 | EB56: 77386 | EC56: 31593 | ED56: 45793 | EE56: 21237.87 | EF56: 0 | EG56: 2.88 | EH56: 0.1760644465 | EI56: PASS | EJ56: 2.15 | EK56: 0.2359763737 | EL56: PASS | EM56: 300000 | EN56: 7072 | EO56: 7072 | EP56: 0 | EQ56: 0 | ER56: 0 | ES56: 0 | ET56: 38693 | EU56: 38693 | EV56: 0 | EW56: 0 | EX56: 0 | EY56: 0 | EZ56: 77386 | FA56: 15644.12 | FB56: 15644.12 | FC56: 0 | FD56: 0 | FE56: 0 | FF56: 0 | FG56: 31288.23 | FH56: 26520 | FI56: 31288.23 | FJ56: 46097.77 | FK56: 0.0585 | FL56: 0.025 | FM56: 0.0382 | FN56: 0.0367 | FO56: 1.25 | FP56: 0.8 | FQ56: 0.275 | FR56: 7500 | FS56: 6448.83 | FT56: 2607.35 | FU56: 3841.48 | FV56: 1320.48 | FW56: 0 | FX56: 90000 | FY56: 77386 | FZ56: 31288.23 | GA56: 46097.77 | GB56: 15845.8 | GC56: 0 | GD56: 7500 | GE56: 6448.83 | GF56: 2607.35 | GG56: 3841.48 | GH56: 1769.82 | GI56: 0 | GJ56: 90000 | GK56: 77386 | GL56: 31288.23 | GM56: 46097.77 | GN56: 21237.87 | GO56: 0 | GP56: 2.9 | GQ56: 0.1760644465 | GR56: PASS | GS56: 2.17 | GT56: 0.2359763737 | GU56: PASS | GV56: 300000 | GW56: Fail | GX56: Y | GY56: 2020-03-26T15:55:02 | HA56: Case 54 | HB56: Mick | HE56: -304.77
A57: 300000 | B57: 0.0336 | C57: 0.0586 | D57: 30 | E57: 0 | F57: Individual (Single) | G57: Individual (Single) | X57: 45000 | Y57: 25000 | Z57: 0 | AA57: 0 | AB57: 0 | AC57: 0 | AD57: 0 | AE57: 0 | AF57: 0 | AG57: 0 | AH57: 0 | AI57: 0 | AJ57: 0 | AK57: 0 | AL57: 0 | AM57: 0 | AN57: 0 | AO57: 0 | AP57: 0 | AQ57: 0 | AR57: 0 | AS57: 0 | AT57: 0 | AU57: 0 | AV57: 0 | AW57: 0 | AX57: 0 | AY57: 0 | AZ57: 0 | BA57: 0 | BB57: 0 | BC57: 0 | BD57: 0 | BE57: 0 | BF57: 0 | BG57: 0 | BH57: 0 | BI57: 0 | BJ57: 0 | BK57: 0 | BL57: 0 | BM57: 0 | BN57: 100 | BO57: 100 | BP57: 100 | BQ57: 100 | BR57: 100 | BS57: 100 | BT57: 500 | BU57: 10 | BV57: 100 | BW57: 500 | BX57: 300 | BY57: 100 | BZ57: 100 | CA57: 0 | CB57: 0 | CC57: 0 | CD57: 0 | CE57: 7072 | CF57: 1594 | CG57: 0 | CH57: 0 | CI57: 0 | CJ57: 0 | CK57: 38693 | CL57: 24051 | CM57: 0 | CN57: 0 | CO57: 0 | CP57: 0 | CQ57: 62744 | CR57: 15796.5 | CS57: 14357.8 | CT57: 0 | CU57: 0 | CV57: 0 | CW57: 0 | CX57: 30154.29 | CY57: 26520 | CZ57: 30154.29 | DA57: 32589.71 | DB57: 0.0585 | DC57: 0.025 | DD57: 0.0382 | DE57: 0.0406 | DF57: 1.25 | DG57: 0.8 | DH57: 0.3 | DI57: 5833.33 | DJ57: 5228.67 | DK57: 2512.86 | DL57: 2715.81 | DM57: 1323.8 | DN57: 0 | DO57: 70000 | DP57: 62744 | DQ57: 30154.29 | DR57: 32589.71 | DS57: 15885.59 | DT57: 0 | DU57: 5833.33 | DV57: 5228.67 | DW57: 2512.86 | DX57: 2715.81 | DY57: 1771.74 | DZ57: 0 | EA57: 70000 | EB57: 62744 | EC57: 30154.29 | ED57: 32589.71 | EE57: 21260.86 | EF57: 0 | EG57: 2.05 | EH57: 0.2269369652 | EI57: PASS | EJ57: 1.53 | EK57: 0.303726567 | EL57: PASS | EM57: 300000 | EN57: 7072 | EO57: 1594 | EP57: 0 | EQ57: 0 | ER57: 0 | ES57: 0 | ET57: 38693 | EU57: 24051 | EV57: 0 | EW57: 0 | EX57: 0 | EY57: 0 | EZ57: 62744 | FA57: 15644.12 | FB57: 13823.5 | FC57: 0 | FD57: 0 | FE57: 0 | FF57: 0 | FG57: 29467.61 | FH57: 26520 | FI57: 29467.61 | FJ57: 33276.39 | FK57: 0.0585 | FL57: 0.025 | FM57: 0.0382 | FN57: 0.0367 | FO57: 1.25 | FP57: 0.8 | FQ57: 0.275 | FR57: 5833.33 | FS57: 5228.67 | FT57: 2455.63 | FU57: 2773.03 | FV57: 1323.8 | FW57: 0 | FX57: 70000 | FY57: 62744 | FZ57: 29467.61 | GA57: 33276.39 | GB57: 15885.59 | GC57: 0 | GD57: 5833.33 | GE57: 5228.67 | GF57: 2455.63 | GG57: 2773.03 | GH57: 1771.74 | GI57: 0 | GJ57: 70000 | GK57: 62744 | GL57: 29467.61 | GM57: 33276.39 | GN57: 21260.86 | GO57: 0 | GP57: 2.09 | GQ57: 0.2269369652 | GR57: PASS | GS57: 1.56 | GT57: 0.303726567 | GU57: PASS | GV57: 300000 | GW57: Fail | GX57: Y | GY57: 2020-03-26T15:55:10 | HA57: Case 55 | HB57: Mick | HE57: -686.68

Sheet CommercialData (hidden)
A1: Proposed Loan Details | H1: Business Loan Details | T1: Business Income / Expenses (Income) | X1: Business Income / Expenses (Add Backs) | AD1: Personal Income / Expenses | CC1: Calculation | CU1: Inputs | DB1: Results
A2: New Loan Amount | B2: Interest Rate | C2: Documentation Type | D2: Loan Term (Years) | E2: I/O Term (Years) | F2: P&I Repayment | G2: IO Repayment | H2: Loan Amount 1 | I2: Rate 1 | J2: Actual Loan Repayment (Monthly) 1 | K2: Loan Amount 2 | L2: Rate 2 | M2: Actual Loan Repayment (Monthly) 2 | N2: Loan Amount 3 | O2: Rate 3 | P2: Actual Loan Repayment (Monthly) 3 | Q2: Loan Amount 4 | R2: Rate 4 | S2: Actual Loan Repayment (Monthly) 4 | T2: Net Profit Before Tax | U2: Proposed Net CRE Rental Income | V2: Proposed Gross Residential Rental Income | W2: Earning Before Interest, Tax, Depreciation & Ammortisation (EBITDA) | X2: Depreciation | Y2: Ammortisation | Z2: Interest Paid | AA2: Directors Salaries/ Fees / Super | AB2: Other | AC2: Total Add Backs | AD2: Status Applicant 1 | AE2: Status Applicant 2 | AF2: Status Applicant 3 | AG2: Status Applicant 4 | AH2: Couple with Applicant 1 | AI2: Couple with Applicant 2 | AJ2: Couple with Applicant 3 | AK2: Couple with Applicant 4 | AL2: Dependent Applicant 1 | AM2: Dependent Applicant 2 | AN2: Dependent Applicant 3 | AO2: Dependent Applicant 4 | AP2: Gross Annual Income Applicant 1 | AQ2: Gross Annual Income Applicant 2 | AR2: Gross Annual Income Applicant 3 | AS2: Gross Annual Income Applicant 4 | AT2: Untaxed Allowable Income Applicant 1 | AU2: Untaxed Allowable Income Applicant 2 | AV2: Untaxed Allowable Income Applicant 3 | AW2: Untaxed Allowable Income Applicant 4 | AX2: Gross Residential Rental Income (Other) Applicant 1 | AY2: Gross Residential Rental Income (Other) Applicant 2 | AZ2: Gross Residential Rental Income (Other) Applicant 3 | BA2: Gross Residential Rental Income (Other) Applicant 4 | BB2: Total Income Applicant 1 | BC2: Total Income Applicant 2 | BD2: Total Income Applicant 3 | BE2: Total Income Applicant 4 | BF2: Total Gross Annual Income of All Applicants | BG2: Investment Property Loan Balance (personal name) Applicant 1 | BH2: Investment Property Loan Balance (personal name) Applicant 2 | BI2: Investment Property Loan Balance (personal name) Applicant 3 | BJ2: Investment Property Loan Balance (personal name) Applicant 4 | BK2: Tax Applicant 1 | BL2: Tax Applicant 2 | BM2: Tax Applicant 3 | BN2: Tax Applicant 4 | BO2: Tax offset for Low Income Earners Applicant 1 | BP2: Tax offset for Low Income Earners Applicant 2 | BQ2: Tax offset for Low Income Earners Applicant 3 | BR2: Tax offset for Low Income Earners Applicant 4 | BS2: Total Net Annual Income Applicant 1 | BT2: Total Net Annual Income Applicant 2 | BU2: Total Net Annual Income Applicant 3 | BV2: Total Net Annual Income Applicant 4 | BW2: Total Net Annual Income of All Applicants | BX2: Living Expenses Monthly (Declared Living Expenses) | BY2: Rent/Board | BZ2: Total Credit Card Limit | CA2: Personal Mortgage Repayments | CB2: Other Consumer Debt | CC2: Total Taxable Income Applicant 1 | CD2: Total Taxable Income Applicant 2 | CE2: Total Taxable Income Applicant 3 | CF2: Total Taxable Income Applicant 4 | CG2: Total Taxable Income For All Applicants | CH2: Spouse Income Applicant 1 | CI2: Spouse Income Applicant 2 | CJ2: Spouse Income Applicant 3 | CK2: Spouse Income Applicant 4 | CL2: Hem Living Expense Applicant 1 | CM2: Hem Living Expense Applicant 2 | CN2: Hem Living Expense Applicant 3 | CO2: Hem Living Expense Applicant 4 | CP2: Hem Living Expense Total | CQ2: Customer Nominated Living Expenses | CR2: Used Living Expenses | CS2: Personal rent | CT2: Personal Debt | CU2: Baseline Assessment Rate | CV2: Assessment Loading | CW2: Credit Card Commitments | CX2: Workings for Negative Gearing | CY2: Other Mortgage Repayment Buffer | CZ2: Rental Income Shading | DA2: Company Tax | DB2: Business income (EBITDA + net personal contribution) | DC2: Interest Expenses | DD2: Debt Repayments | DE2: Interest Coverage Ratio (ICR) % | DF2: Debt Service Coverage Ratio (DSCR) % | DG2: Interest Coverage Ratio (ICR) Flag | DH2: Debt Service Coverage Ratio (DSCR) Flag | DI2: Application Status Flag
A3: =Commercial!$E$8 -> 0 | B3: =Commercial!$I$8 -> 0 | C3: =Commercial!$E$9 -> 0 | D3: =Commercial!$I$9 -> 0 | E3: =Commercial!$I$10 -> 0 | F3: =Commercial!$I$11 -> 0 | G3: =Commercial!$I$12 -> 0 | H3: =Commercial!$E$18 -> 0 | I3: =Commercial!$G$18 -> 0 | J3: =Commercial!$I$18 -> 0 | K3: =Commercial!$E$19 -> 0 | L3: =Commercial!$G$19 -> 0 | M3: =Commercial!$I$19 -> 0 | N3: =Commercial!$E$20 -> 0 | O3: =Commercial!$G$20 -> 0 | P3: =Commercial!$I$20 -> 0 | Q3: =Commercial!$E$21 -> 0 | R3: =Commercial!$G$21 -> 0 | S3: =Commercial!$I$21 -> 0 | T3: =Commercial!$E$27 -> 0 | U3: =Commercial!$E$28 -> 0 | V3: =Commercial!$E$29 -> 0 | W3: =Commercial!$E$33 -> 0 | X3: =Commercial!$K$27 -> 0 | Y3: =Commercial!$K$28 -> 0 | Z3: =Commercial!$K$29 -> 0 | AA3: =Commercial!$K$30 -> 0 | AB3: =Commercial!$K$31 -> 0 | AC3: =Commercial!$K$33 -> 0 | AD3: =Commercial!$E$39 -> 0 | AE3: =Commercial!$G$39 -> 0 | AF3: =Commercial!$I$39 -> 0 | AG3: =Commercial!$K$39 -> 0 | AH3: =Commercial!$E$40 -> 0 | AI3: =Commercial!$G$40 -> 0 | AJ3: =Commercial!$I$40 -> 0 | AK3: =Commercial!$K$40 -> 0 | AL3: =Commercial!$E$41 -> 0 | AM3: =Commercial!$G$41 -> 0 | AN3: =Commercial!$I$41 -> 0 | AO3: =Commercial!$K$41 -> 0 | AP3: =Commercial!$E$44 -> 0 | AQ3: =Commercial!$G$44 -> 0 | AR3: =Commercial!$I$44 -> 0 | AS3: =Commercial!$K$44 -> 0 | AT3: =Commercial!$E$45 -> 0 | AU3: =Commercial!$G$45 -> 0 | AV3: =Commercial!$I$45 -> 0 | AW3: =Commercial!$K$45 -> 0 | AX3: =Commercial!$E$46 -> 0 | AY3: =Commercial!$G$46 -> 0 | AZ3: =Commercial!$I$46 -> 0 | BA3: =Commercial!$K$46 -> 0 | BB3: =Commercial!$E$47 -> 0 | BC3: =Commercial!$G$47 -> 0 | BD3: =Commercial!$I$47 -> 0 | BE3: =Commercial!$K$47 -> 0 | BF3: =Commercial!$P$47 -> 0 | BG3: =Commercial!$E$49 -> 0 | BH3: =Commercial!$G$49 -> 0 | BI3: =Commercial!$I$49 -> 0 | BJ3: =Commercial!$K$49 -> 0 | BK3: =Commercial!$E$50 -> 0 | BL3: =Commercial!$G$50 -> 0 | BM3: =Commercial!$I$50 -> 0 | BN3: =Commercial!$K$50 -> 0 | BO3: =Commercial!$E$51 -> 0 | BP3: =Commercial!$G$51 -> 0 | BQ3: =Commercial!$I$51 -> 0 | BR3: =Commercial!$K$51 -> 0 | BS3: =Commercial!$E$52 -> 0 | BT3: =Commercial!$G$52 -> 0 | BU3: =Commercial!$I$52 -> 0 | BV3: =Commercial!$K$52 -> 0 | BW3: =Commercial!$P$52 -> 0 | BX3: =Commercial!$E$55 -> 0 | BY3: =Commercial!$K$55 -> 0 | BZ3: =Commercial!$K$56 -> 0 | CA3: =Commercial!$K$57 -> 0 | CB3: =Commercial!$K$58 -> 0 | CC3: =Commercial!$E$66 -> 0 | CD3: =Commercial!$G$66 -> 0 | CE3: =Commercial!$I$66 -> 0 | CF3: =Commercial!$K$66 -> 0 | CG3: =Commercial!$P$66 -> 0 | CH3: =Commercial!$E$67 -> 0 | CI3: =Commercial!$G$67 -> 0 | CJ3: =Commercial!$I$67 -> 0 | CK3: =Commercial!$K$67 -> 0 | CL3: =Commercial!$E$69 -> 0 | CM3: =Commercial!$G$69 -> 0 | CN3: =Commercial!$I$69 -> 0 | CO3: =Commercial!$K$69 -> 0 | CP3: =Commercial!$P$69 -> 0 | CQ3: =Commercial!$P$70 -> 0 | CR3: =Commercial!$P$71 -> 0 | CS3: =Commercial!$P$72 -> 0 | CT3: =Commercial!$P$73 -> 0 | CU3: =BaselineAssessmentRate -> 0.0585 | CV3: =AssessmentLoading -> 0.025 | CW3: =CreditCardCommitments -> 0.0382 | CX3: =WorkingsForNegativeGearing -> 0.0367 | CY3: =OtherMortgageRepaymentBuffer -> 1.25 | CZ3: =RentalIncomeShading -> 0.8 | DA3: =CompanyTax -> 0.275 | DB3: =Commercial!$E$81 -> 0 | DC3: =Commercial!$I$81 -> 0 | DD3: =Commercial!$I$82 -> 0 | DE3: =Commercial!$I$85 -> 0 | DF3: =Commercial!$I$86 -> 0 | DG3: =Commercial!$K$85 -> INCOMPLETE | DH3: =Commercial!$K$86 -> INCOMPLETE | DI3: =Commercial!$I$89 -> INCOMPLETE

Sheet CommercialTestCases (hidden)
A1: Test Cases TestCases TestCases TestCases TestCases TestCases TestCases TestCases TestCases TestCases TestCases TestCases TestCases TestCases TestCases TestCases TestCases TestCases TestCases TestCases TestCases TestCases TestCases TestCases TestCases TestCases TestCases TestCases TestCases TestCases TestCases TestCases TestCases TestCases TestCases TestCases TestCases TestCases TestCases TestCases TestCases TestCases TestCases TestCases TestCases TestCases TestCases TestCases TestCases TestCases TestCases TestCases TestCases TestCases TestCases TestCases TestCases TestCases TestCases TestCases TestCases TestCases TestCases TestCases TestCases TestCases TestCases TestCases TestCases TestCases TestCases TestCases TestCases TestCases TestCases TestCases TestCases TestCases TestCases TestCases TestCases TestCases TestCases TestCases | CC1: Original-Result-set Original-Result-set Original-Result-set Original-Result-set Original-Result-set Original-Result-set Original-Result-set Original-Result-set Original-Result-set Original-Result-set Original-Result-set Original-Result-set Original-Result-set Original-Result-set Original-Result-set | DJ1: New-Resultset New-Resultset New-Resultset New-Resultset New-Resultset New-Resultset New-Resultset New-Resultset New-Resultset New-Resultset New-Resultset New-Resultset New-Resultset New-Resultset New-Resultset New-Resultset New-Resultset New-Resultset New-Resultset New-Resultset New-Resultset New-Resultset New-Resultset New-Resultset New-Resultset | FM1: Test cases will run when date tested is blank and Run Scenario Flag is "Y"
A2: New Loan Amount | B2: Interest Rate | C2: Documentation Type | D2: Loan Term (Years) | E2: I/O Term (Years) | F2: P&I Repayment | G2: IO Repayment | H2: Loan Amount 1 | I2: Rate 1 | J2: Actual Loan Repayment (Monthly) 1 | K2: Loan Amount 2 | L2: Rate 2 | M2: Actual Loan Repayment (Monthly) 2 | N2: Loan Amount 3 | O2: Rate 3 | P2: Actual Loan Repayment (Monthly) 3 | Q2: Loan Amount 4 | R2: Rate 4 | S2: Actual Loan Repayment (Monthly) 4 | T2: Net Profit Before Tax | U2: Proposed Net CRE Rental Income | V2: Proposed Gross Residential Rental Income | W2: Earning Before Interest, Tax, Depreciation & Ammortisation (EBITDA) | X2: Depreciation | Y2: Ammortisation | Z2: Interest Paid | AA2: Directors Salaries/ Fees / Super | AB2: Other | AC2: Total Add Backs | AD2: Status Applicant 1 | AE2: Status Applicant 2 | AF2: Status Applicant 3 | AG2: Status Applicant 4 | AH2: Couple with Applicant 1 | AI2: Couple with Applicant 2 | AJ2: Couple with Applicant 3 | AK2: Couple with Applicant 4 | AL2: Dependent Applicant 1 | AM2: Dependent Applicant 2 | AN2: Dependent Applicant 3 | AO2: Dependent Applicant 4 | AP2: Gross Annual Income Applicant 1 | AQ2: Gross Annual Income Applicant 2 | AR2: Gross Annual Income Applicant 3 | AS2: Gross Annual Income Applicant 4 | AT2: Untaxed Allowable Income Applicant 1 | AU2: Untaxed Allowable Income Applicant 2 | AV2: Untaxed Allowable Income Applicant 3 | AW2: Untaxed Allowable Income Applicant 4 | AX2: Gross Residential Rental Income (Other) Applicant 1 | AY2: Gross Residential Rental Income (Other) Applicant 2 | AZ2: Gross Residential Rental Income (Other) Applicant 3 | BA2: Gross Residential Rental Income (Other) Applicant 4 | BB2: Total Income Applicant 1 | BC2: Total Income Applicant 2 | BD2: Total Income Applicant 3 | BE2: Total Income Applicant 4 | BF2: Total Gross Annual Income of All Applicants | BG2: Investment Property Loan Balance (personal name) Applicant 1 | BH2: Investment Property Loan Balance (personal name) Applicant 2 | BI2: Investment Property Loan Balance (personal name) Applicant 3 | BJ2: Investment Property Loan Balance (personal name) Applicant 4 | BK2: Tax Applicant 1 | BL2: Tax Applicant 2 | BM2: Tax Applicant 3 | BN2: Tax Applicant 4 | BO2: Tax offset for Low Income Earners Applicant 1 | BP2: Tax offset for Low Income Earners Applicant 2 | BQ2: Tax offset for Low Income Earners Applicant 3 | BR2: Tax offset for Low Income Earners Applicant 4 | BS2: Total Net Annual Income Applicant 1 | BT2: Total Net Annual Income Applicant 2 | BU2: Total Net Annual Income Applicant 3 | BV2: Total Net Annual Income Applicant 4 | BW2: Total Net Annual Income of All Applicants | BX2: Living Expenses Monthly (Declared Living Expenses) | BY2: Rent/Board | BZ2: Total Credit Card Limit | CA2: Personal Mortgage Repayments | CB2: Other Consumer Debt | CC2: Total Taxable Income Applicant 1 | CD2: Total Taxable Income Applicant 2 | CE2: Total Taxable Income Applicant 3 | CF2: Total Taxable Income Applicant 4 | CG2: Total Taxable Income For All Applicants | CH2: Spouse Income Applicant 1 | CI2: Spouse Income Applicant 2 | CJ2: Spouse Income Applicant 3 | CK2: Spouse Income Applicant 4 | CL2: Hem Living Expense Applicant 1 | CM2: Hem Living Expense Applicant 2 | CN2: Hem Living Expense Applicant 3 | CO2: Hem Living Expense Applicant 4 | CP2: Hem Living Expense Total | CQ2: Customer Nominated Living Expenses | CR2: Used Living Expenses | CS2: Personal rent | CT2: Personal Debt | CU2: Baseline Assessment Rate | CV2: Assessment Loading | CW2: Credit Card Commitments | CX2: Workings for Negative Gearing | CY2: Other Mortgage Repayment Buffer | CZ2: Rental Income Shading | DA2: Company Tax | DB2: Business income (EBITDA + net personal contribution) | DC2: Interest Expenses | DD2: Debt Repayments | DE2: Interest Coverage Ratio (ICR) % | DF2: Debt Service Coverage Ratio (DSCR) % | DG2: Interest Coverage Ratio (ICR) Flag | DH2: Debt Service Coverage Ratio (DSCR) Flag | DI2: Application Status Flag | DJ2: P&I Repayment | DK2: IO Repayment | DL2: Earning Before Interest, Tax, Depreciation & Ammortisation (EBITDA) | DM2: Total Add Backs | DN2: Total Income Applicant 1 | DO2: Total Income Applicant 2 | DP2: Total Income Applicant 3 | DQ2: Total Income Applicant 4 | DR2: Total Gross Annual Income of All Applicants | DS2: Tax Applicant 1 | DT2: Tax Applicant 2 | DU2: Tax Applicant 3 | DV2: Tax Applicant 4 | DW2: Tax offset for Low Income Earners Applicant 1 | DX2: Tax offset for Low Income Earners Applicant 2 | DY2: Tax offset for Low Income Earners Applicant 3 | DZ2: Tax offset for Low Income Earners Applicant 4 | EA2: Total Net Annual Income Applicant 1 | EB2: Total Net Annual Income Applicant 2 | EC2: Total Net Annual Income Applicant 3 | ED2: Total Net Annual Income Applicant 4 | EE2: Total Net Annual Income of All Applicants | EF2: Total Taxable Income Applicant 1 | EG2: Total Taxable Income Applicant 2 | EH2: Total Taxable Income Applicant 3 | EI2: Total Taxable Income Applicant 4 | EJ2: Total Taxable Income For All Applicants | EK2: Spouse Income Applicant 1 | EL2: Spouse Income Applicant 2 | EM2: Spouse Income Applicant 3 | EN2: Spouse Income Applicant 4 | EO2: Hem Living Expense Applicant 1 | EP2: Hem Living Expense Applicant 2 | EQ2: Hem Living Expense Applicant 3 | ER2: Hem Living Expense Applicant 4 | ES2: Hem Living Expense Total | ET2: Customer Nominated Living Expenses | EU2: Used Living Expenses | EV2: Personal rent | EW2: Personal Debt | EX2: Baseline Assessment Rate | EY2: Assessment Loading | EZ2: Credit Card Commitments | FA2: Workings for Negative Gearing | FB2: Other Mortgage Repayment Buffer | FC2: Rental Income Shading | FD2: Company Tax | FE2: Business income (EBITDA + net personal contribution) | FF2: Interest Expenses | FG2: Debt Repayments | FH2: Interest Coverage Ratio (ICR) % | FI2: Debt Service Coverage Ratio (DSCR) % | FJ2: Interest Coverage Ratio (ICR) Flag | FK2: Debt Service Coverage Ratio (DSCR) Flag | FL2: Application Status Flag | FM2: Pass or Fail | FN2: Run Scenario Flag | FO2: Date Tested | FP2: Scenario | FQ2: Sequence | FR2: Name
A3: 1000000 | B3: 0.05 | C3: Full Doc | D3: 12 | E3: 0 | F3: 9248.904136 | G3: 0 | H3: 0 | I3: 0 | J3: 0 | K3: 0 | L3: 0 | M3: 0 | N3: 0 | O3: 0 | P3: 0 | Q3: 0 | R3: 0 | S3: 0 | T3: 50000 | U3: 70000 | V3: 0 | W3: 120000 | X3: 0 | Y3: 0 | Z3: 0 | AA3: 0 | AB3: 0 | AC3: 0 | AD3: 0 | AE3: 0 | AF3: 0 | AG3: 0 | AH3: 0 | AI3: 0 | AJ3: 0 | AK3: 0 | AL3: 0 | AM3: 0 | AN3: 0 | AO3: 0 | AP3: 0 | AQ3: 0 | AR3: 0 | AS3: 0 | AT3: 0 | AU3: 0 | AV3: 0 | AW3: 0 | AX3: 0 | AY3: 0 | AZ3: 0 | BA3: 0 | BB3: 0 | BC3: 0 | BD3: 0 | BE3: 0 | BF3: 0 | BG3: 0 | BH3: 0 | BI3: 0 | BJ3: 0 | BK3: 0 | BL3: 0 | BM3: 0 | BN3: 0 | BO3: 0 | BP3: 0 | BQ3: 0 | BR3: 0 | BS3: 0 | BT3: 0 | BU3: 0 | BV3: 0 | BW3: 0 | BX3: 0 | BY3: 0 | BZ3: 0 | CA3: 0 | CB3: 0 | CC3: 0 | CD3: 0 | CE3: 0 | CF3: 0 | CG3: 0 | CH3: 0 | CI3: 0 | CJ3: 0 | CK3: 0 | CL3: 0 | CM3: 0 | CN3: 0 | CO3: 0 | CP3: 0 | CQ3: 0 | CR3: 0 | CS3: 0 | CT3: 0 | CU3: 0.0585 | CV3: 0.025 | CW3: 0.0382 | CX3: 0.0406 | CY3: 1.25 | CZ3: 0.8 | DA3: 0.3 | DB3: 120000 | DC3: 50000 | DD3: 110986.85 | DE3: 2.4 | DF3: 1.081209174 | DG3: PASS | DH3: FAIL | DI3: COMPLETE | DJ3: 9248.9 | DK3: 0 | DL3: 120000 | DM3: 0 | DN3: 0 | DO3: 0 | DP3: 0 | DQ3: 0 | DR3: 0 | DS3: 0 | DT3: 0 | DU3: 0 | DV3: 0 | DW3: 0 | DX3: 0 | DY3: 0 | DZ3: 0 | EA3: 0 | EB3: 0 | EC3: 0 | ED3: 0 | EE3: 0 | EF3: 0 | EG3: 0 | EH3: 0 | EI3: 0 | EJ3: 0 | EK3: 0 | EL3: 0 | EM3: 0 | EN3: 0 | EO3: 0 | EP3: 0 | EQ3: 0 | ER3: 0 | ES3: 0 | ET3: 0 | EU3: 0 | EV3: 0 | EW3: 0 | EX3: 0.0585 | EY3: 0.025 | EZ3: 0.0382 | FA3: 0.0367 | FB3: 1.25 | FC3: 0.8 | FD3: 0.275 | FE3: 120000 | FF3: 50000 | FG3: 110986.85 | FH3: 2.4 | FI3: 1.081209174 | FJ3: PASS | FK3: FAIL | FL3: COMPLETE | FM3: =IF(AND(CC3=EF3,CD3=EG3,CE3=EH3,CF3=EI3,CG3=EJ3,CH3=EK3,CI3=EL3,CJ3=EM3,CK3=EN3,CL3=EO3,CM3=EP3,CN3=EQ3,CO3=ER3,CP3=ES3,CQ3=ET3,CR3=EU3,CS3=EV3,CT3=EW3,CU3=EX3,CV3=EY3,CW3=EZ3,CX3=FA3,CY3=FB3,CZ3=FC3,DA3=FD3,DB3=FE3,DC3=FF3,DD3=FG3,DE3=FH3,DF3=FI3,DG3=FJ3,DH3=FK3,DI3=FL3),"Pass","Fail") -> Fail | FN3: Y | FO3: 2020-03-26T18:12:52 | FQ3: Case 1 | FR3: Mick
A4: 1000000 | B4: 0.05 | C4: Full Doc | D4: 15 | E4: 3 | F4: 9248.904136 | G4: 4166.666667 | H4: 0 | I4: 0 | J4: 0 | K4: 0 | L4: 0 | M4: 0 | N4: 0 | O4: 0 | P4: 0 | Q4: 0 | R4: 0 | S4: 0 | T4: 50000 | U4: 70000 | V4: 0 | W4: 120000 | X4: 0 | Y4: 0 | Z4: 0 | AA4: 0 | AB4: 0 | AC4: 0 | AD4: Individual (Couple) | AE4: 0 | AF4: 0 | AG4: 0 | AH4: N/A | AI4: 0 | AJ4: 0 | AK4: 0 | AL4: 2 | AM4: 0 | AN4: 0 | AO4: 0 | AP4: 30000 | AQ4: 0 | AR4: 0 | AS4: 0 | AT4: 0 | AU4: 0 | AV4: 0 | AW4: 0 | AX4: 0 | AY4: 0 | AZ4: 0 | BA4: 0 | BB4: 30000 | BC4: 0 | BD4: 0 | BE4: 0 | BF4: 30000 | BG4: 0 | BH4: 0 | BI4: 0 | BJ4: 0 | BK4: 2842 | BL4: 0 | BM4: 0 | BN4: 0 | BO4: -645 | BP4: 0 | BQ4: 0 | BR4: 0 | BS4: 27803 | BT4: 0 | BU4: 0 | BV4: 0 | BW4: 27803 | BX4: 2000 | BY4: 0 | BZ4: 10000 | CA4: 0 | CB4: 1000 | CC4: 30000 | CD4: 0 | CE4: 0 | CF4: 0 | CG4: 30000 | CH4: 0 | CI4: 0 | CJ4: 0 | CK4: 0 | CL4: 33518.15 | CM4: 0 | CN4: 0 | CO4: 0 | CP4: 33518.15 | CQ4: 24000 | CR4: 33518.15 | CS4: 0 | CT4: 16584 | CU4: 0.0585 | CV4: 0.025 | CW4: 0.0382 | CX4: 0.0406 | CY4: 1.25 | CZ4: 0.8 | DA4: 0.3 | DB4: 97700.85 | DC4: 50000 | DD4: 110986.85 | DE4: 1.954016984 | DF4: 0.8802921202 | DG4: PASS | DH4: FAIL | DI4: COMPLETE | DJ4: 9248.9 | DK4: 4166.67 | DL4: 120000 | DM4: 0 | DN4: 30000 | DO4: 0 | DP4: 0 | DQ4: 0 | DR4: 30000 | DS4: 2842 | DT4: 0 | DU4: 0 | DV4: 0 | DW4: -645 | DX4: 0 | DY4: 0 | DZ4: 0 | EA4: 27803 | EB4: 0 | EC4: 0 | ED4: 0 | EE4: 27803 | EF4: 30000 | EG4: 0 | EH4: 0 | EI4: 0 | EJ4: 30000 | EK4: 0 | EL4: 0 | EM4: 0 | EN4: 0 | EO4: 32650.19 | EP4: 0 | EQ4: 0 | ER4: 0 | ES4: 32650.19 | ET4: 24000 | EU4: 32650.19 | EV4: 0 | EW4: 16584 | EX4: 0.0585 | EY4: 0.025 | EZ4: 0.0382 | FA4: 0.0367 | FB4: 1.25 | FC4: 0.8 | FD4: 0.275 | FE4: 98568.81 | FF4: 50000 | FG4: 110986.85 | FH4: 1.971376171 | FI4: 0.8881125004 | FJ4: PASS | FK4: FAIL | FL4: COMPLETE | FM4: =IF(AND(CC4=EF4,CD4=EG4,CE4=EH4,CF4=EI4,CG4=EJ4,CH4=EK4,CI4=EL4,CJ4=EM4,CK4=EN4,CL4=EO4,CM4=EP4,CN4=EQ4,CO4=ER4,CP4=ES4,CQ4=ET4,CR4=EU4,CS4=EV4,CT4=EW4,CU4=EX4,CV4=EY4,CW4=EZ4,CX4=FA4,CY4=FB4,CZ4=FC4,DA4=FD4,DB4=FE4,DC4=FF4,DD4=FG4,DE4=FH4,DF4=FI4,DG4=FJ4,DH4=FK4,DI4=FL4),"Pass","Fail") -> Fail | FN4: Y | FO4: 2020-03-26T18:12:59 | FQ4: Case 2 | FR4: Mick
A5: 1000000 | B5: 0.05 | C5: Full Doc | D5: 15 | E5: 3 | F5: 9248.904136 | G5: 4166.666667 | H5: 0 | I5: 0 | J5: 0 | K5: 0 | L5: 0 | M5: 0 | N5: 0 | O5: 0 | P5: 0 | Q5: 0 | R5: 0 | S5: 0 | T5: 50000 | U5: 70000 | V5: 80000 | W5: 184000 | X5: 0 | Y5: 0 | Z5: 0 | AA5: 0 | AB5: 0 | AC5: 0 | AD5: Individual (Couple) | AE5: 0 | AF5: 0 | AG5: 0 | AH5: N/A | AI5: 0 | AJ5: 0 | AK5: 0 | AL5: 2 | AM5: 0 | AN5: 0 | AO5: 0 | AP5: 30000 | AQ5: 0 | AR5: 0 | AS5: 0 | AT5: 0 | AU5: 0 | AV5: 0 | AW5: 0 | AX5: 0 | AY5: 0 | AZ5: 0 | BA5: 0 | BB5: 30000 | BC5: 0 | BD5: 0 | BE5: 0 | BF5: 30000 | BG5: 0 | BH5: 0 | BI5: 0 | BJ5: 0 | BK5: 2842 | BL5: 0 | BM5: 0 | BN5: 0 | BO5: -645 | BP5: 0 | BQ5: 0 | BR5: 0 | BS5: 27803 | BT5: 0 | BU5: 0 | BV5: 0 | BW5: 27803 | BX5: 4000 | BY5: 0 | BZ5: 10000 | CA5: 0 | CB5: 1000 | CC5: 30000 | CD5: 0 | CE5: 0 | CF5: 0 | CG5: 30000 | CH5: 0 | CI5: 0 | CJ5: 0 | CK5: 0 | CL5: 33518.15 | CM5: 0 | CN5: 0 | CO5: 0 | CP5: 33518.15 | CQ5: 48000 | CR5: 48000 | CS5: 0 | CT5: 16584 | CU5: 0.0585 | CV5: 0.025 | CW5: 0.0382 | CX5: 0.0406 | CY5: 1.25 | CZ5: 0.8 | DA5: 0.3 | DB5: 147219 | DC5: 50000 | DD5: 110986.85 | DE5: 2.94438 | DF5: 1.326454445 | DG5: PASS | DH5: PASS | DI5: COMPLETE | DJ5: 9248.9 | DK5: 4166.67 | DL5: 184000 | DM5: 0 | DN5: 30000 | DO5: 0 | DP5: 0 | DQ5: 0 | DR5: 30000 | DS5: 2842 | DT5: 0 | DU5: 0 | DV5: 0 | DW5: -645 | DX5: 0 | DY5: 0 | DZ5: 0 | EA5: 27803 | EB5: 0 | EC5: 0 | ED5: 0 | EE5: 27803 | EF5: 30000 | EG5: 0 | EH5: 0 | EI5: 0 | EJ5: 30000 | EK5: 0 | EL5: 0 | EM5: 0 | EN5: 0 | EO5: 32650.19 | EP5: 0 | EQ5: 0 | ER5: 0 | ES5: 32650.19 | ET5: 48000 | EU5: 48000 | EV5: 0 | EW5: 16584 | EX5: 0.0585 | EY5: 0.025 | EZ5: 0.0382 | FA5: 0.0367 | FB5: 1.25 | FC5: 0.8 | FD5: 0.275 | FE5: 147219 | FF5: 50000 | FG5: 110986.85 | FH5: 2.94438 | FI5: 1.326454445 | FJ5: PASS | FK5: PASS | FL5: COMPLETE | FM5: =IF(AND(CC5=EF5,CD5=EG5,CE5=EH5,CF5=EI5,CG5=EJ5,CH5=EK5,CI5=EL5,CJ5=EM5,CK5=EN5,CL5=EO5,CM5=EP5,CN5=EQ5,CO5=ER5,CP5=ES5,CQ5=ET5,CR5=EU5,CS5=EV5,CT5=EW5,CU5=EX5,CV5=EY5,CW5=EZ5,CX5=FA5,CY5=FB5,CZ5=FC5,DA5=FD5,DB5=FE5,DC5=FF5,DD5=FG5,DE5=FH5,DF5=FI5,DG5=FJ5,DH5=FK5,DI5=FL5),"Pass","Fail") -> Fail | FN5: Y | FO5: 2020-03-26T18:13:05 | FQ5: Case 3 | FR5: Mick
A6: 1000000 | B6: 0.05 | C6: Alt Doc | D6: 12 | E6: 0 | F6: 9248.904136 | G6: 0 | H6: 0 | I6: 0 | J6: 0 | K6: 0 | L6: 0 | M6: 0 | N6: 0 | O6: 0 | P6: 0 | Q6: 0 | R6: 0 | S6: 0 | T6: 50000 | U6: 70000 | V6: 0 | W6: 120000 | X6: 0 | Y6: 0 | Z6: 0 | AA6: 0 | AB6: 0 | AC6: 0 | AD6: 0 | AE6: 0 | AF6: 0 | AG6: 0 | AH6: 0 | AI6: 0 | AJ6: 0 | AK6: 0 | AL6: 0 | AM6: 0 | AN6: 0 | AO6: 0 | AP6: 0 | AQ6: 0 | AR6: 0 | AS6: 0 | AT6: 0 | AU6: 0 | AV6: 0 | AW6: 0 | AX6: 0 | AY6: 0 | AZ6: 0 | BA6: 0 | BB6: 0 | BC6: 0 | BD6: 0 | BE6: 0 | BF6: 0 | BG6: 0 | BH6: 0 | BI6: 0 | BJ6: 0 | BK6: 0 | BL6: 0 | BM6: 0 | BN6: 0 | BO6: 0 | BP6: 0 | BQ6: 0 | BR6: 0 | BS6: 0 | BT6: 0 | BU6: 0 | BV6: 0 | BW6: 0 | BX6: 0 | BY6: 0 | BZ6: 0 | CA6: 0 | CB6: 0 | CC6: 0 | CD6: 0 | CE6: 0 | CF6: 0 | CG6: 0 | CH6: 0 | CI6: 0 | CJ6: 0 | CK6: 0 | CL6: 0 | CM6: 0 | CN6: 0 | CO6: 0 | CP6: 0 | CQ6: 0 | CR6: 0 | CS6: 0 | CT6: 0 | CU6: 0.0585 | CV6: 0.025 | CW6: 0.0382 | CX6: 0.0406 | CY6: 1.25 | CZ6: 0.8 | DA6: 0.3 | DB6: 120000 | DC6: 50000 | DD6: 110986.85 | DE6: 2.4 | DF6: 1.081209174 | DG6: PASS | DH6: FAIL | DI6: COMPLETE | DJ6: 9248.9 | DK6: 0 | DL6: 120000 | DM6: 0 | DN6: 0 | DO6: 0 | DP6: 0 | DQ6: 0 | DR6: 0 | DS6: 0 | DT6: 0 | DU6: 0 | DV6: 0 | DW6: 0 | DX6: 0 | DY6: 0 | DZ6: 0 | EA6: 0 | EB6: 0 | EC6: 0 | ED6: 0 | EE6: 0 | EF6: 0 | EG6: 0 | EH6: 0 | EI6: 0 | EJ6: 0 | EK6: 0 | EL6: 0 | EM6: 0 | EN6: 0 | EO6: 0 | EP6: 0 | EQ6: 0 | ER6: 0 | ES6: 0 | ET6: 0 | EU6: 0 | EV6: 0 | EW6: 0 | EX6: 0.0585 | EY6: 0.025 | EZ6: 0.0382 | FA6: 0.0367 | FB6: 1.25 | FC6: 0.8 | FD6: 0.275 | FE6: 120000 | FF6: 50000 | FG6: 110986.85 | FH6: 2.4 | FI6: 1.081209174 | FJ6: PASS | FK6: FAIL | FL6: COMPLETE | FM6: Fail | FN6: Y | FO6: 2020-03-26T18:13:12 | FQ6: Case 4 | FR6: Mick | FS6: Changed to Alt Doc - no diff.
A7: 1000000 | B7: 0.05 | C7: Alt Doc | D7: 15 | E7: 3 | F7: 9248.904136 | G7: 4166.666667 | H7: 0 | I7: 0 | J7: 0 | K7: 0 | L7: 0 | M7: 0 | N7: 0 | O7: 0 | P7: 0 | Q7: 0 | R7: 0 | S7: 0 | T7: 50000 | U7: 70000 | V7: 0 | W7: 120000 | X7: 0 | Y7: 0 | Z7: 0 | AA7: 0 | AB7: 0 | AC7: 0 | AD7: Individual (Couple) | AE7: 0 | AF7: 0 | AG7: 0 | AH7: N/A | AI7: 0 | AJ7: 0 | AK7: 0 | AL7: 2 | AM7: 0 | AN7: 0 | AO7: 0 | AP7: 30000 | AQ7: 0 | AR7: 0 | AS7: 0 | AT7: 0 | AU7: 0 | AV7: 0 | AW7: 0 | AX7: 0 | AY7: 0 | AZ7: 0 | BA7: 0 | BB7: 30000 | BC7: 0 | BD7: 0 | BE7: 0 | BF7: 30000 | BG7: 0 | BH7: 0 | BI7: 0 | BJ7: 0 | BK7: 2842 | BL7: 0 | BM7: 0 | BN7: 0 | BO7: -645 | BP7: 0 | BQ7: 0 | BR7: 0 | BS7: 27803 | BT7: 0 | BU7: 0 | BV7: 0 | BW7: 27803 | BX7: 2000 | BY7: 0 | BZ7: 10000 | CA7: 0 | CB7: 1000 | CC7: 30000 | CD7: 0 | CE7: 0 | CF7: 0 | CG7: 30000 | CH7: 0 | CI7: 0 | CJ7: 0 | CK7: 0 | CL7: 33518.15 | CM7: 0 | CN7: 0 | CO7: 0 | CP7: 33518.15 | CQ7: 24000 | CR7: 33518.15 | CS7: 0 | CT7: 16584 | CU7: 0.0585 | CV7: 0.025 | CW7: 0.0382 | CX7: 0.0406 | CY7: 1.25 | CZ7: 0.8 | DA7: 0.3 | DB7: 97700.85 | DC7: 50000 | DD7: 110986.85 | DE7: 1.954016984 | DF7: 0.8802921202 | DG7: PASS | DH7: FAIL | DI7: COMPLETE | DJ7: 9248.9 | DK7: 4166.67 | DL7: 120000 | DM7: 0 | DN7: 30000 | DO7: 0 | DP7: 0 | DQ7: 0 | DR7: 30000 | DS7: 2842 | DT7: 0 | DU7: 0 | DV7: 0 | DW7: -645 | DX7: 0 | DY7: 0 | DZ7: 0 | EA7: 27803 | EB7: 0 | EC7: 0 | ED7: 0 | EE7: 27803 | EF7: 30000 | EG7: 0 | EH7: 0 | EI7: 0 | EJ7: 30000 | EK7: 0 | EL7: 0 | EM7: 0 | EN7: 0 | EO7: 32650.19 | EP7: 0 | EQ7: 0 | ER7: 0 | ES7: 32650.19 | ET7: 24000 | EU7: 32650.19 | EV7: 0 | EW7: 16584 | EX7: 0.0585 | EY7: 0.025 | EZ7: 0.0382 | FA7: 0.0367 | FB7: 1.25 | FC7: 0.8 | FD7: 0.275 | FE7: 98568.81 | FF7: 50000 | FG7: 110986.85 | FH7: 1.971376171 | FI7: 0.8881125004 | FJ7: PASS | FK7: FAIL | FL7: COMPLETE | FM7: Fail | FN7: Y | FO7: 2020-03-26T18:13:18 | FQ7: Case 5 | FR7: Mick | FS7: Changed to Alt Doc - no diff.
A8: 830000 | B8: 0.09847 | C8: Full Doc | D8: 15 | E8: 3 | F8: 9846.11 | G8: 7026.49 | H8: 0 | I8: 0 | J8: 0 | K8: 0 | L8: 0 | M8: 0 | N8: 0 | O8: 0 | P8: 0 | Q8: 0 | R8: 0 | S8: 0 | T8: 50000 | U8: 70000 | V8: 80000 | W8: 184000 | X8: 0 | Y8: 0 | Z8: 0 | AA8: 0 | AB8: 0 | AC8: 0 | AD8: Individual (Couple) | AE8: 0 | AF8: 0 | AG8: 0 | AH8: N/A | AI8: 0 | AJ8: 0 | AK8: 0 | AL8: 2 | AM8: 0 | AN8: 0 | AO8: 0 | AP8: 30000 | AQ8: 0 | AR8: 0 | AS8: 0 | AT8: 0 | AU8: 0 | AV8: 0 | AW8: 0 | AX8: 0 | AY8: 0 | AZ8: 0 | BA8: 0 | BB8: 30000 | BC8: 0 | BD8: 0 | BE8: 0 | BF8: 30000 | BG8: 0 | BH8: 0 | BI8: 0 | BJ8: 0 | BK8: 2842 | BL8: 0 | BM8: 0 | BN8: 0 | BO8: -645 | BP8: 0 | BQ8: 0 | BR8: 0 | BS8: 27803 | BT8: 0 | BU8: 0 | BV8: 0 | BW8: 27803 | BX8: 4000 | BY8: 0 | BZ8: 10000 | CA8: 0 | CB8: 1000 | CC8: 30000 | CD8: 0 | CE8: 0 | CF8: 0 | CG8: 30000 | CH8: 0 | CI8: 0 | CJ8: 0 | CK8: 0 | CL8: 33518.15 | CM8: 0 | CN8: 0 | CO8: 0 | CP8: 33518.15 | CQ8: 48000 | CR8: 48000 | CS8: 0 | CT8: 16584 | CU8: 0.0585 | CV8: 0.025 | CW8: 0.0382 | CX8: 0.0406 | CY8: 1.25 | CZ8: 0.8 | DA8: 0.3 | DB8: 147219 | DC8: 50000 | DD8: 110986.85 | DE8: 2.94438 | DF8: 1.326454445 | DG8: PASS | DH8: PASS | DI8: COMPLETE | DJ8: 9845.93 | DK8: 6810.84 | DL8: 184000 | DM8: 0 | DN8: 30000 | DO8: 0 | DP8: 0 | DQ8: 0 | DR8: 30000 | DS8: 2842 | DT8: 0 | DU8: 0 | DV8: 0 | DW8: -645 | DX8: 0 | DY8: 0 | DZ8: 0 | EA8: 27803 | EB8: 0 | EC8: 0 | ED8: 0 | EE8: 27803 | EF8: 30000 | EG8: 0 | EH8: 0 | EI8: 0 | EJ8: 30000 | EK8: 0 | EL8: 0 | EM8: 0 | EN8: 0 | EO8: 32650.19 | EP8: 0 | EQ8: 0 | ER8: 0 | ES8: 32650.19 | ET8: 48000 | EU8: 48000 | EV8: 0 | EW8: 16584 | EX8: 0.0585 | EY8: 0.025 | EZ8: 0.0382 | FA8: 0.0367 | FB8: 1.25 | FC8: 0.8 | FD8: 0.275 | FE8: 147219 | FF8: 81730.1 | FG8: 118151.13 | FH8: 1.801282514 | FI8: 1.246022772 | FJ8: PASS | FK8: PASS | FL8: COMPLETE | FM8: Fail | FN8: Y | FO8: 2020-03-26T18:13:24 | FQ8: Case 6 | FR8: Mick | FS8: DSCR Flag correct
A9: 832000 | B9: 0.09847 | C9: Full Doc | D9: 15 | E9: 3 | F9: 9846.11 | G9: 7026.49 | H9: 0 | I9: 0 | J9: 0 | K9: 0 | L9: 0 | M9: 0 | N9: 0 | O9: 0 | P9: 0 | Q9: 0 | R9: 0 | S9: 0 | T9: 50000 | U9: 70000 | V9: 80000 | W9: 184000 | X9: 0 | Y9: 0 | Z9: 0 | AA9: 0 | AB9: 0 | AC9: 0 | AD9: Individual (Couple) | AE9: 0 | AF9: 0 | AG9: 0 | AH9: N/A | AI9: 0 | AJ9: 0 | AK9: 0 | AL9: 2 | AM9: 0 | AN9: 0 | AO9: 0 | AP9: 30000 | AQ9: 0 | AR9: 0 | AS9: 0 | AT9: 0 | AU9: 0 | AV9: 0 | AW9: 0 | AX9: 0 | AY9: 0 | AZ9: 0 | BA9: 0 | BB9: 30000 | BC9: 0 | BD9: 0 | BE9: 0 | BF9: 30000 | BG9: 0 | BH9: 0 | BI9: 0 | BJ9: 0 | BK9: 2842 | BL9: 0 | BM9: 0 | BN9: 0 | BO9: -645 | BP9: 0 | BQ9: 0 | BR9: 0 | BS9: 27803 | BT9: 0 | BU9: 0 | BV9: 0 | BW9: 27803 | BX9: 4000 | BY9: 0 | BZ9: 10000 | CA9: 0 | CB9: 1000 | CC9: 30000 | CD9: 0 | CE9: 0 | CF9: 0 | CG9: 30000 | CH9: 0 | CI9: 0 | CJ9: 0 | CK9: 0 | CL9: 33518.15 | CM9: 0 | CN9: 0 | CO9: 0 | CP9: 33518.15 | CQ9: 48000 | CR9: 48000 | CS9: 0 | CT9: 16584 | CU9: 0.0585 | CV9: 0.025 | CW9: 0.0382 | CX9: 0.0406 | CY9: 1.25 | CZ9: 0.8 | DA9: 0.3 | DB9: 147219 | DC9: 50000 | DD9: 110986.85 | DE9: 2.94438 | DF9: 1.326454445 | DG9: PASS | DH9: PASS | DI9: COMPLETE | DJ9: 9869.65 | DK9: 6827.25 | DL9: 184000 | DM9: 0 | DN9: 30000 | DO9: 0 | DP9: 0 | DQ9: 0 | DR9: 30000 | DS9: 2842 | DT9: 0 | DU9: 0 | DV9: 0 | DW9: -645 | DX9: 0 | DY9: 0 | DZ9: 0 | EA9: 27803 | EB9: 0 | EC9: 0 | ED9: 0 | EE9: 27803 | EF9: 30000 | EG9: 0 | EH9: 0 | EI9: 0 | EJ9: 30000 | EK9: 0 | EL9: 0 | EM9: 0 | EN9: 0 | EO9: 32650.19 | EP9: 0 | EQ9: 0 | ER9: 0 | ES9: 32650.19 | ET9: 48000 | EU9: 48000 | EV9: 0 | EW9: 16584 | EX9: 0.0585 | EY9: 0.025 | EZ9: 0.0382 | FA9: 0.0367 | FB9: 1.25 | FC9: 0.8 | FD9: 0.275 | FE9: 147219 | FF9: 81927.04 | FG9: 118435.83 | FH9: 1.796952508 | FI9: 1.243027525 | FJ9: PASS | FK9: FAIL | FL9: COMPLETE | FM9: Fail | FN9: Y | FO9: 2020-03-26T18:13:30 | FQ9: Case 7 | FR9: Mick | FS9: DCSR Flag Correct
A10: 1000000 | B10: 0.09847 | C10: Full Doc | D10: 15 | E10: 3 | F10: 9846.11 | G10: 7026.49 | H10: 0 | I10: 0 | J10: 0 | K10: 0 | L10: 0 | M10: 0 | N10: 0 | O10: 0 | P10: 0 | Q10: 0 | R10: 0 | S10: 0 | T10: 50000 | U10: 70000 | V10: 80000 | W10: 184000 | X10: 0 | Y10: 0 | Z10: 0 | AA10: 0 | AB10: 0 | AC10: 0 | AD10: Individual (Couple) | AE10: 0 | AF10: 0 | AG10: 0 | AH10: N/A | AI10: 0 | AJ10: 0 | AK10: 0 | AL10: 2 | AM10: 0 | AN10: 0 | AO10: 0 | AP10: 30000 | AQ10: 0 | AR10: 0 | AS10: 0 | AT10: 0 | AU10: 0 | AV10: 0 | AW10: 0 | AX10: 0 | AY10: 0 | AZ10: 0 | BA10: 0 | BB10: 30000 | BC10: 0 | BD10: 0 | BE10: 0 | BF10: 30000 | BG10: 0 | BH10: 0 | BI10: 0 | BJ10: 0 | BK10: 2842 | BL10: 0 | BM10: 0 | BN10: 0 | BO10: -645 | BP10: 0 | BQ10: 0 | BR10: 0 | BS10: 27803 | BT10: 0 | BU10: 0 | BV10: 0 | BW10: 27803 | BX10: 4000 | BY10: 0 | BZ10: 10000 | CA10: 0 | CB10: 1000 | CC10: 30000 | CD10: 0 | CE10: 0 | CF10: 0 | CG10: 30000 | CH10: 0 | CI10: 0 | CJ10: 0 | CK10: 0 | CL10: 33518.15 | CM10: 0 | CN10: 0 | CO10: 0 | CP10: 33518.15 | CQ10: 48000 | CR10: 48000 | CS10: 0 | CT10: 16584 | CU10: 0.0585 | CV10: 0.025 | CW10: 0.0382 | CX10: 0.0406 | CY10: 1.25 | CZ10: 0.8 | DA10: 0.3 | DB10: 147219 | DC10: 50000 | DD10: 110986.85 | DE10: 2.94438 | DF10: 1.326454445 | DG10: PASS | DH10: PASS | DI10: COMPLETE | DJ10: 11862.56 | DK10: 8205.83 | DL10: 184000 | DM10: 0 | DN10: 30000 | DO10: 0 | DP10: 0 | DQ10: 0 | DR10: 30000 | DS10: 2842 | DT10: 0 | DU10: 0 | DV10: 0 | DW10: -645 | DX10: 0 | DY10: 0 | DZ10: 0 | EA10: 27803 | EB10: 0 | EC10: 0 | ED10: 0 | EE10: 27803 | EF10: 30000 | EG10: 0 | EH10: 0 | EI10: 0 | EJ10: 30000 | EK10: 0 | EL10: 0 | EM10: 0 | EN10: 0 | EO10: 32650.19 | EP10: 0 | EQ10: 0 | ER10: 0 | ES10: 32650.19 | ET10: 48000 | EU10: 48000 | EV10: 0 | EW10: 16584 | EX10: 0.0585 | EY10: 0.025 | EZ10: 0.0382 | FA10: 0.0367 | FB10: 1.25 | FC10: 0.8 | FD10: 0.275 | FE10: 147219 | FF10: 98470 | FG10: 142350.76 | FH10: 1.495064487 | FI10: 1.034198901 | FJ10: PASS | FK10: FAIL | FL10: COMPLETE | FM10: Fail | FN10: Y | FO10: 2020-03-26T18:13:37 | FQ10: Case 8 | FR10: Mick | FS10: ICR Flag correct - Full Doc
A11: 1000000 | B11: 0.09848 | C11: Full Doc | D11: 15 | E11: 3 | F11: 9846.11 | G11: 7026.49 | H11: 0 | I11: 0 | J11: 0 | K11: 0 | L11: 0 | M11: 0 | N11: 0 | O11: 0 | P11: 0 | Q11: 0 | R11: 0 | S11: 0 | T11: 50000 | U11: 70000 | V11: 80000 | W11: 184000 | X11: 0 | Y11: 0 | Z11: 0 | AA11: 0 | AB11: 0 | AC11: 0 | AD11: Individual (Couple) | AE11: 0 | AF11: 0 | AG11: 0 | AH11: N/A | AI11: 0 | AJ11: 0 | AK11: 0 | AL11: 2 | AM11: 0 | AN11: 0 | AO11: 0 | AP11: 30000 | AQ11: 0 | AR11: 0 | AS11: 0 | AT11: 0 | AU11: 0 | AV11: 0 | AW11: 0 | AX11: 0 | AY11: 0 | AZ11: 0 | BA11: 0 | BB11: 30000 | BC11: 0 | BD11: 0 | BE11: 0 | BF11: 30000 | BG11: 0 | BH11: 0 | BI11: 0 | BJ11: 0 | BK11: 2842 | BL11: 0 | BM11: 0 | BN11: 0 | BO11: -645 | BP11: 0 | BQ11: 0 | BR11: 0 | BS11: 27803 | BT11: 0 | BU11: 0 | BV11: 0 | BW11: 27803 | BX11: 4000 | BY11: 0 | BZ11: 10000 | CA11: 0 | CB11: 1000 | CC11: 30000 | CD11: 0 | CE11: 0 | CF11: 0 | CG11: 30000 | CH11: 0 | CI11: 0 | CJ11: 0 | CK11: 0 | CL11: 33518.15 | CM11: 0 | CN11: 0 | CO11: 0 | CP11: 33518.15 | CQ11: 48000 | CR11: 48000 | CS11: 0 | CT11: 16584 | CU11: 0.0585 | CV11: 0.025 | CW11: 0.0382 | CX11: 0.0406 | CY11: 1.25 | CZ11: 0.8 | DA11: 0.3 | DB11: 147219 | DC11: 50000 | DD11: 110986.85 | DE11: 2.94438 | DF11: 1.326454445 | DG11: PASS | DH11: PASS | DI11: COMPLETE | DJ11: 11863.14 | DK11: 8206.67 | DL11: 184000 | DM11: 0 | DN11: 30000 | DO11: 0 | DP11: 0 | DQ11: 0 | DR11: 30000 | DS11: 2842 | DT11: 0 | DU11: 0 | DV11: 0 | DW11: -645 | DX11: 0 | DY11: 0 | DZ11: 0 | EA11: 27803 | EB11: 0 | EC11: 0 | ED11: 0 | EE11: 27803 | EF11: 30000 | EG11: 0 | EH11: 0 | EI11: 0 | EJ11: 30000 | EK11: 0 | EL11: 0 | EM11: 0 | EN11: 0 | EO11: 32650.19 | EP11: 0 | EQ11: 0 | ER11: 0 | ES11: 32650.19 | ET11: 48000 | EU11: 48000 | EV11: 0 | EW11: 16584 | EX11: 0.0585 | EY11: 0.025 | EZ11: 0.0382 | FA11: 0.0367 | FB11: 1.25 | FC11: 0.8 | FD11: 0.275 | FE11: 147219 | FF11: 98480 | FG11: 142357.67 | FH11: 1.494912673 | FI11: 1.034148729 | FJ11: FAIL | FK11: FAIL | FL11: COMPLETE | FM11: Fail | FN11: Y | FO11: 2020-03-26T18:13:43 | FQ11: Case 9 | FR11: Mick | FS11: ICR Flag Correct - Full Doc
A12: 1000000 | B12: 0.0844 | C12: Alt Doc | D12: 15 | E12: 3 | F12: 9846.11 | G12: 7026.49 | H12: 0 | I12: 0 | J12: 0 | K12: 0 | L12: 0 | M12: 0 | N12: 0 | O12: 0 | P12: 0 | Q12: 0 | R12: 0 | S12: 0 | T12: 50000 | U12: 70000 | V12: 80000 | W12: 184000 | X12: 0 | Y12: 0 | Z12: 0 | AA12: 0 | AB12: 0 | AC12: 0 | AD12: Individual (Couple) | AE12: 0 | AF12: 0 | AG12: 0 | AH12: N/A | AI12: 0 | AJ12: 0 | AK12: 0 | AL12: 2 | AM12: 0 | AN12: 0 | AO12: 0 | AP12: 30000 | AQ12: 0 | AR12: 0 | AS12: 0 | AT12: 0 | AU12: 0 | AV12: 0 | AW12: 0 | AX12: 0 | AY12: 0 | AZ12: 0 | BA12: 0 | BB12: 30000 | BC12: 0 | BD12: 0 | BE12: 0 | BF12: 30000 | BG12: 0 | BH12: 0 | BI12: 0 | BJ12: 0 | BK12: 2842 | BL12: 0 | BM12: 0 | BN12: 0 | BO12: -645 | BP12: 0 | BQ12: 0 | BR12: 0 | BS12: 27803 | BT12: 0 | BU12: 0 | BV12: 0 | BW12: 27803 | BX12: 4000 | BY12: 0 | BZ12: 10000 | CA12: 0 | CB12: 1000 | CC12: 30000 | CD12: 0 | CE12: 0 | CF12: 0 | CG12: 30000 | CH12: 0 | CI12: 0 | CJ12: 0 | CK12: 0 | CL12: 33518.15 | CM12: 0 | CN12: 0 | CO12: 0 | CP12: 33518.15 | CQ12: 48000 | CR12: 48000 | CS12: 0 | CT12: 16584 | CU12: 0.0585 | CV12: 0.025 | CW12: 0.0382 | CX12: 0.0406 | CY12: 1.25 | CZ12: 0.8 | DA12: 0.3 | DB12: 147219 | DC12: 50000 | DD12: 110986.85 | DE12: 2.94438 | DF12: 1.326454445 | DG12: PASS | DH12: PASS | DI12: COMPLETE | DJ12: 11067.23 | DK12: 7033.33 | DL12: 184000 | DM12: 0 | DN12: 30000 | DO12: 0 | DP12: 0 | DQ12: 0 | DR12: 30000 | DS12: 2842 | DT12: 0 | DU12: 0 | DV12: 0 | DW12: -645 | DX12: 0 | DY12: 0 | DZ12: 0 | EA12: 27803 | EB12: 0 | EC12: 0 | ED12: 0 | EE12: 27803 | EF12: 30000 | EG12: 0 | EH12: 0 | EI12: 0 | EJ12: 30000 | EK12: 0 | EL12: 0 | EM12: 0 | EN12: 0 | EO12: 32650.19 | EP12: 0 | EQ12: 0 | ER12: 0 | ES12: 32650.19 | ET12: 48000 | EU12: 48000 | EV12: 0 | EW12: 16584 | EX12: 0.0585 | EY12: 0.025 | EZ12: 0.0382 | FA12: 0.0367 | FB12: 1.25 | FC12: 0.8 | FD12: 0.275 | FE12: 147219 | FF12: 84400 | FG12: 132806.82 | FH12: 1.744300948 | FI12: 1.108519913 | FJ12: FAIL | FK12: FAIL | FL12: COMPLETE | FM12: Fail | FN12: Y | FO12: 2020-03-26T18:13:49 | FQ12: Case 10 | FR12: Mick | FS12: ICR Flag correct - Alt Doc
A13: 1000000 | B13: 0.0843 | C13: Alt Doc | D13: 15 | E13: 3 | F13: 9846.11 | G13: 7026.49 | H13: 0 | I13: 0 | J13: 0 | K13: 0 | L13: 0 | M13: 0 | N13: 0 | O13: 0 | P13: 0 | Q13: 0 | R13: 0 | S13: 0 | T13: 50000 | U13: 70000 | V13: 80000 | W13: 184000 | X13: 0 | Y13: 0 | Z13: 0 | AA13: 0 | AB13: 0 | AC13: 0 | AD13: Individual (Couple) | AE13: 0 | AF13: 0 | AG13: 0 | AH13: N/A | AI13: 0 | AJ13: 0 | AK13: 0 | AL13: 2 | AM13: 0 | AN13: 0 | AO13: 0 | AP13: 30000 | AQ13: 0 | AR13: 0 | AS13: 0 | AT13: 0 | AU13: 0 | AV13: 0 | AW13: 0 | AX13: 0 | AY13: 0 | AZ13: 0 | BA13: 0 | BB13: 30000 | BC13: 0 | BD13: 0 | BE13: 0 | BF13: 30000 | BG13: 0 | BH13: 0 | BI13: 0 | BJ13: 0 | BK13: 2842 | BL13: 0 | BM13: 0 | BN13: 0 | BO13: -645 | BP13: 0 | BQ13: 0 | BR13: 0 | BS13: 27803 | BT13: 0 | BU13: 0 | BV13: 0 | BW13: 27803 | BX13: 4000 | BY13: 0 | BZ13: 10000 | CA13: 0 | CB13: 1000 | CC13: 30000 | CD13: 0 | CE13: 0 | CF13: 0 | CG13: 30000 | CH13: 0 | CI13: 0 | CJ13: 0 | CK13: 0 | CL13: 33518.15 | CM13: 0 | CN13: 0 | CO13: 0 | CP13: 33518.15 | CQ13: 48000 | CR13: 48000 | CS13: 0 | CT13: 16584 | CU13: 0.0585 | CV13: 0.025 | CW13: 0.0382 | CX13: 0.0406 | CY13: 1.25 | CZ13: 0.8 | DA13: 0.3 | DB13: 147219 | DC13: 50000 | DD13: 110986.85 | DE13: 2.94438 | DF13: 1.326454445 | DG13: PASS | DH13: PASS | DI13: COMPLETE | DJ13: 11061.69 | DK13: 7025 | DL13: 184000 | DM13: 0 | DN13: 30000 | DO13: 0 | DP13: 0 | DQ13: 0 | DR13: 30000 | DS13: 2842 | DT13: 0 | DU13: 0 | DV13: 0 | DW13: -645 | DX13: 0 | DY13: 0 | DZ13: 0 | EA13: 27803 | EB13: 0 | EC13: 0 | ED13: 0 | EE13: 27803 | EF13: 30000 | EG13: 0 | EH13: 0 | EI13: 0 | EJ13: 30000 | EK13: 0 | EL13: 0 | EM13: 0 | EN13: 0 | EO13: 32650.19 | EP13: 0 | EQ13: 0 | ER13: 0 | ES13: 32650.19 | ET13: 48000 | EU13: 48000 | EV13: 0 | EW13: 16584 | EX13: 0.0585 | EY13: 0.025 | EZ13: 0.0382 | FA13: 0.0367 | FB13: 1.25 | FC13: 0.8 | FD13: 0.275 | FE13: 147219 | FF13: 84300 | FG13: 132740.24 | FH13: 1.746370107 | FI13: 1.109075921 | FJ13: PASS | FK13: FAIL | FL13: COMPLETE | FM13: Fail | FN13: Y | FO13: 2020-03-26T18:13:55 | FQ13: Case 11 | FR13: Mick | FS13: ICR Flag correct - Alt Doc

Sheet User Guide - Residential
A1: User Guide - Residential Serviceability Calculator
A3: Field Name | B3: Instruction
A4: Clear Form (BUTTON) | B4: Allows the user to clear all input fields in the calculator
A5: Applicant Name | B5: Applicants name
A6: New Loan Amount | B6: Mandatory field - Total loan amount including any capitalised fees
A7: Interest Rate | B7: Mandatory field - Actual interest rate of the proposed loan
A8: Loan Term | B8: Mandatory field - The total loan term of the proposed loan (cannot exceed 30 years on Prime or 40 years on Near Prime or Specialist products)
A9: I/O Term | B9: The interest only term of the proposed loan. Leave blank if not applicable (will not allow IO term to exceed 5 years)
A10: Status | B10: Mandatory field - For each applicant of the loan, what is their marital status. Drop down selection of Single, Couple, Company. Note, if Company status all income will be calculated based on Company tax rates.
A11: Couple with | B11: Mandatory field - Links applicants who are a couple for household income band selection for living expense benchmark. This field must be correctly completed for both individuals of a couple, where one member of a couple is not correctly linked the living expense will be calculated as an additional couple living expense. Drop down selection N/A, Non-Loan Party or Applicant “X” when another Applicant is applied with a Couple status
A12: Dependents | B12: Number of child dependents, aged < 18, the Applicant has. Each dependent child must only be entered once per couple. If a dependent is entered for both individuals of a couple, that dependent will be counted twice.
A13: Gross Annual Income | B13: The applicants income from acceptable taxable income sources
A14: Untaxed Allowable Income | B14: Income from acceptable untaxed income sources such as Centrelink allowances. Tax is not calculated on this income
A15: Self Employed Income | B15: Income from self-employed activities, this income is taxed at personal tax rates and should not be duplicated if this income has already been entered in Gross Annual Income. Optional Macro: Where the SEIC has been used and “Apply Values to Servicing Calculator” macro executed, this field will populate with the results from the SEIC
A16: Addbacks | B16: Allowable addbacks to be entered such as depreciation or non-recurring expenses. Optional Macro: Where the SEIC has been used and “Apply Values to Servicing Calculator” macro executed, this field will populate with the results from the SEIC
A17: Business NPBT | B17: Self employed income that is to be taxed at company tax rates.
A18: Self-Employed Worksheet (BUTTON) | B18: Takes user to the SEIC tab
A19: Gross Rental Income | B19: Rental income entered at 100%. For the purposes of allowable income for serviceability, 80% of this income is used for servicing.
A20: Investment Property Loan Balance | B20: This is the total balance of investment loans held by the applicant. For tax purposes, negative gearing will be applied to the calculated taxable income. For company applicants, if this interest has been calculated in the SEIC then this field should not be populated.
A21: Owner occupied property costs including utilities, rates & expenses | B21: Mandatory fields - Include council rates, water, gas & electricity utility bills and body corporate fees where applicable for property owned by the applicant. Assessment should account for these expenses giving account to the type of property (location, house or unit and size).
A22: Investment property costs including utilities, rates & expenses
A23: Renter property costs | B23: Mandatory field - Include water, gas & electricity bills if the applicant is renting. Assessment should account for these expenses giving account to the type of property (location and size).
A24: Telephone, internet, Pay TV & media streaming | B24: Mandatory field - Unless an applicant has a mobile phone supplied by their employer, it is expected that each applicant would have a mobile phone expense. If they have a home phone number, they may have a ‘bundle’ with a telco which includes internet.
A25: Groceries | B25: Mandatory field - It is expected that all applicants will have a grocery expense that is reasonable for their family unit size.
A26: Recreation & Entertainment | B26: Mandatory field - It is expected that all applicants will have some form of recreation & entertainment cost. This includes alcohol, tobacco, gambling, restaurants and membership fees.
A27: Clothing & Personal Care | B27: Mandatory field - It is expected that all applicants will have clothing and personal care expenses that is reasonable for their family unit size.
A28: Medical & Health | B28: Mandatory field - As an applicant’s age increase it is expected that medical and health costs will increase. In some case this cost may be $0 however given the customers circumstance it should be understood why through additional inquiry.
A29: Transport | B29: Mandatory field - It is expected that all applicants will have a transport cost that is reasonable for their assets and employment position. What are the running costs of each car owned including petrol and servicing or what are the costs of public transport where they commute for work. One exception may be where an applicant has one car only which is provided by their employer or running costs are already include in novated lease payments.
A30: Education | B30: Mandatory field - Where the applicant(s) has school aged children is the declared amount reasonable to cover schools fees, uniform costs and books (if high school). Does the affluency of the applicant indicate that their children may attend a private school, if so, has this been declared by the customer.
A31: Childcare | B31: Mandatory field - Where the applicant(s) has pre-school aged children and all applicants work, has a child care cost been included that is reasonable for the location accounting for any rebate that may be due. Where this is applicable and declared expense is $0 additional inquiry needs to be made.
A32: Insurance | B32: Mandatory field - Do the below insurances apply to the applicant(s) and have they been accounted for: - House owners with home insurance - Car owners (accounted for each car) - Private Health - particularly where income is > $90,000 and applicant is single or > $180,000 for families - Income and life insurance - Pet insurance
A33: Other | B33: Mandatory field - This is to capture unique items not covered for in the above categories that may be applicable to the applicant(s).
A34: Rent/Board | B34: Rental or board expense paid by the customer.
A35: Total Credit Card Limit | B35: Total credit card limit of all continuing credit cards.
A36: Other Mortgage Repayments | B36: Mortgage repayments of any other continuing mortgage repayments.
A37: Other Liabilities | B37: Any other commitments the borrower has such as personal loans, child support, HEC’s.
A38: Eligible Loan Amount | B38: Where the NSR = FAIL an offer as to the maximum loan amount the customer can qualify for to pass the minimum NSR of 1x or 1.25x if > 50% of income is from untaxed sources. Otherwise the applied loan amount is shown.
A39: Maximum Serviceable Loan Amount | B39: This is an indication of the maximum loan amount that the borrower can service.

Sheet User Guide - Commercial (hidden)
A1: CRE Servicing Calculator
A3: Field Name | B3: Instruction
A4: Clear Form (BUTTON) | B4: Allows the user to clear all fields in the calculator
A5: Applicant name | B5: Applicants name
A6: New Loan Amount | B6: Mandatory field - total loan amount including any capitalised fees
A7: Interest Rate | B7: Mandatory field - actual interest rate of the proposed loan
A8: Documentation Type | B8: Mandatory field - identify whether FullDoc or AltDoc or LeaseDoc income documentation
A9: Loan Term (Years) | B9: Mandatory field - the total loan term of the proposed loan (maximum term 25 years)
A10: I/O Term (Years) | B10: The interest only term of the proposed loan. Left blank if not applicable (maximum term 5 years allowed)
A11: Loan 1-4 Loan Amount | B11: Outstanding loan amount of external business loan
A12: Loan 1-4 Rate | B12: Current interest rate of external business loan
A13: Loan 1-4 Actual Loan Repayment (Monthly) | B13: Current monthly loan repayments under contract for external business loan
A14: Net Profit before Tax | B14: Net Profit Before Tax per annum from business activities of applicant
A15: Depreciation | B15: Depreciation expense per annum from the business activities of applicant (obtained from Profit & Loss statements)
A16: Proposed Net CRE Rental Income | B16: 100% of CRE rental income after outgoings paid for by landlord
A17: Amortisation | B17: Amortisation expense per annum from business activities of the applicant (obtained from Profit & Loss statements)
A18: Proposed Gross Residential Rental Income | B18: 100% of gross residential rental income if to be received by the business
A19: Interest Paid | B19: Actual interest paid per annum from the business (obtained from Profit & Loss statements)
A20: Directors Salaries/Fees/Super | B20: Actual Directors Salaries/Fees/Superannuation payments per annum paid by the business activities of the applicant (obtained from Profit & Loss statements/personal tax returns). CARE: do not duplicate in personal income
A21: Other | B21: Actual expenses per annum which are non-recurring and are paid by the business activities of the applicant (obtained from Profit & Loss statements)
A22: Earnings before Interest, Tax, Depreciation & Amortisation (EBITDA) | B22: Formula: Summation of all business income and addbacks subject to 80% (Proposed Gross residential Rental Income)
A23: Total Add Backs | B23: Formula: Summation of all add backs
A24: Status | B24: For each applicant of the loan, what is their marital status.
A25: Couple With | B25: Links applicants who are a couple for household income band selection for living expense benchmark. This field must be correctly completed for both individuals of a couple, where one member of a couple is not correctly linked the living expense will be calculated as an additional couple living expense. Drop down selection N/A, Non-Loan Party or Applicant “X” when another Applicant is applied with a Couple status
A26: Dependents | B26: Number of child dependents, aged < 18, the Applicant has. Each dependent child must only be entered once per couple. If a dependent is entered for both individuals of a couple, that dependent will be counted twice.
A27: Gross Annual Income | B27: Gross annual income of applicant from acceptable taxable income sources external to business income. Do NOT include Directors Fees/Salary/Super if included in addbacks.
A28: Untaxed Allowable Income | B28: Income from acceptable untaxed income sources. Tax is not calculated on this income.
A29: Gross Residential Rental Income (Other) | B29: Rental income entered at 100%. For the purposes of allowable income for serviceability, 80% of this income is used for servicing. Care: do NOT enter if income has been included under Business Income.
A30: Investment Property Loan Balance (personal name) | B30: This is the total balance of investment loans held by the applicant. For tax purposes, negative gearing will be applied to the calculated taxable income. For company applicants, if this interest has been calculated in the SEIC then this field should not be populated.
A31: Declared Living Expenses | B31: Total personal living expenses per month declared by the customer (sum of all applicants declared living expenses)
A32: Rent/Board | B32: Rental or board expense paid by the customer.
A33: Total Credit Card Limit | B33: Total credit card limit of all continuing credit cards.
A34: Personal Mortgage Repayments | B34: Mortgage repayments of any Personal continuing mortgage repayments.
A35: Other Consumer Debt | B35: Any other commitments the borrower has such as personal loans, child support, HEC’s.
A36: Business Income (EBITDA + net personal contribution) | B36: Formula: EBITDA plus Net Personal Contribution
A37: Interest Expenses | B37: Formula: Total Interest Expenses per annum for all business debt (Pepper and external), including existing and proposed business loans
A38: Debt Repayments | B38: Formula: Total contracted business debt repayments per annum including Proposed loan (if applicable, would include P&I repayments over residual term after any interest only period)
A39: Interest Cover Ratio (ICR) | B39: Formula: Business Income divided by Interest Expenses
A40: ICR Outcome | B40: Formula: All mandatory fields to be completed otherwise shows incomplete, where ICR < 1.5 (Full Doc) or <1.75 (Alt Doc) then result is FAIL otherwise result is PASS
A41: Debt Service Coverage Ratio (DSCR) | B41: Formula: Business Income divided by debt repayments
A42: DSCR Outcome | B42: Formula: All mandatory fields to be completed otherwise shows incomplete, where ICR < 1.25 then result is FAIL otherwise result is PASS

Sheet User Guide - SEIC
A1: User Guide - Self Employed Income Calculator (SEIC)
A3: Field Name | B3: Explanation
A4: Clear Form (BUTTON) | B4: Allows the user to clear all fields in the calculator
A5: Apply Values | B5: Applies outputs from Self- employed income Calc into the Servicing Calculator
A6: Return to Calculator (BUTTON) | B6: Returns to Servicing Calculator.
A7: Financials for year ended Most Recent Year | B7: Year financial year ends of financial statement period
A8: Financials for year ended Previous Year | B8: Year financial year ends of financial statement period
A9: Gross Business Income | B9: Gross business income off Profit and Loss statement
A10: Less Expenses | B10: Total expenses including COGS from Profit and Loss statement
A11: Plus Superannuation over 9.5% | B11: Discretionary superannuation paid >9.5% of wages from Profit and Loss statement
A12: Plus Depreciation | B12: As advised in Profit and Loss statement
A13: Interest /Leasing Charges | B13: As advised in Profit and Loss statement
A14: Ongoing Loan Repayments | B14: Business loan repayments that will continue after the settlement of subject Pepper loan
A15: Director Wages Applicant 1 | B15: Wages paid to director
A16: Director Wages Applicant 2 | B16: Wages paid to director
A17: Director Wages Applicant 3 | B17: Wages paid to director
A18: Director Wages Applicant 4 | B18: Wages paid to director
A19: Director Wages Applicant 5 | B19: Wages paid to director
A20: Director Wages Applicant 6 | B20: Wages paid to director
A21: Applicants Entitlement/Applicant 1 | B21: % ownership of this applicant of Business/Company or Trust
A22: Applicants Entitlement/Applicant 2 | B22: % ownership of this applicant of Business/Company or Trust
A23: Applicants Entitlement/Applicant 3 | B23: % ownership of this applicant of Business/Company or Trust
A24: Applicants Entitlement/Applicant 4 | B24: % ownership of this applicant of Business/Company or Trust
A25: Applicants Entitlement/Applicant 5 | B25: % ownership of this applicant of Business/Company or Trust
A26: Applicants Entitlement/Applicant 6 | B26: % ownership of this applicant of Business/Company or Trust
A27: Apply Values (BUTTON) | B27: Applies outputs from SELF employed income calc into residential Servicing calculator
A28: Return To Calculator (BUTTON) | B28: Returns to Servicing Calculator Tab

Sheet Assessment Notes - Residential (hidden)
A1: UNDERWRITER NOTES | D1: INSTRUCTIONS | G1: CONDITIONS
A2: Loan Amount - Requested: | D2: Loan amount requested by customer at application. | R2: Prime Fulldoc
A3: Loan Amount - Approved: | D3: Loan amount approved as a result of this assessment. | R3: Prime Fulldoc PLUS
A4: LPF / MRF: | D4: LPF or MRF applicable to the approved loan amount. | R4: Prime Fulldoc (Construction)
A5: Loan Amount - Final: | C5: =C3+C4 -> 0 | D5: Loan amount including any capitalised fees. This amount is to be entered into the Servicing Calculator for credit assessment purposes. | R5: Prime Fulldoc PLUS (Construction)
A6: Security Estimate: | D6: Security value amount used for LVR calculation. | R6: Prime Altdoc | AB6: Have adopted Pepper’s minimum living expenses allowance as considered more reasonable than borrower advised amount | AC6: Have adopted Pepper’s minimum living expenses allowance as considered more reasonable than borrower advised amount
A7: LVR - Initial: | C7: =C3/C6 ->  | D7: LVR based on loan amount before capitalised fees. | R7: Prime Altdoc PLUS
A8: LVR - Final: | C8: =C5/C6 ->  | D8: Total LVR based on loan amount plus capitalised fees. | R8: Prime Altdoc (Construction)
A9: Global Exposure if other loans held | D9: Total Loan Amount and Total LVR of all Pepper exposure held. If this is the only loan "No other exposure held" | R9: Prime Altdoc PLUS (Construction)
A10: NSR **Min. 1.35x when end LVR >90%**: | C10: =D10 -> 0 | D10: =ResiAssessmentNSR -> 0 | E10: NSR based on total loan amount (plus capitalised fees if applicable). Cannot be < 1x or where LVR > 90% cannot be < 1.35x or where income from government support is > 50% of total income cannot be <1.25x. | R10: Near Prime Fulldoc | AC10: PEP checks verified. Matches addressed and explained. If EDD was completed - what information was collected and how was it verified.
A11: Customers Requirements & Objectives: | D11: Comment on what the customers objective with the loan purpose is and whether the proposed loan meets the product requirements captured on the CRO form. | R11: Near Prime Fulldoc PLUS
A12: Customer Benefit: | D12: What advantage is the customer receiving from the loan purpose and does this match with the Customers Requirements and Objectives. | R12: Near Prime Altdoc
A13: Product: | D13: Product that is recommended for approval. If this is different to what the customer has applied for then comment as to why it still meets the Customers Requirements and Objectives. | G13: Can attach here your Rate Card, LPF Calc, Postcode search etc… | R13: Near Prime Altdoc PLUS | AA13: Rec for Approval. have made reasonable enquiries to verify that the product will not be unsuitable to the customers’ requirements and objectives and the loan will not cause the customer substantial hardship. This assessment is valid for 90 days. | AC13: Rec for Approval. have made reasonable enquiries to verify that the product will not be unsuitable to the customers’ requirements and objectives and the loan will not cause the customer substantial hardship. This assessment is valid for 90 days.
A14: Interest Only? (If O/O then document reason): | D14: Why the applicant is seeking interest only and whether the reasons are reasonable based on customers requirements and objectives, the purpose of the loan and the customers circumstances. | R14: Near Prime Fulldoc (Construction)
A15: Security Category: | D15: What is the security property location Category? If Prime and requires Metro category note here. | R15: Near Prime Altdoc (Construction)
A16: High Density Area? | D16: Is the security property a unit in a high density postcode with more than 35 units? | R16: Specialist Fulldoc | AC16: Prime Full Doc
A17: Fraud check: | D17: What is the outcome of the Equifax Fraud check in NextGen? If a match, to be referred to Senior or Team Leader to investigate the match. | R17: Specialist Fulldoc PLUS | AC17: Prime Alt Doc
A18: PEP & Sanctions check: | D18: Is the applicant confirmed as being on the PEP or Sanctions register (not a potential match). If a match refer to dedicated team member for enhanced search. | R18: Specialist Altdoc | AC18: Prime PLUS Full Doc
A19: ID document is clear and valid? | D19: Have the correct, clear identification documents and Customer Identification form been completed correctly, signed? | R19: Specialist Altdoc PLUS | AC19: Prime PLUS Alt Doc
A20: Company & Trust Loans (>25% Owned): | D20: Non-individual entities: Has the correct information and documentation been collected to verify the customer to ensure we meet our AML obligations including the verification of identity of beneficial owners.
A21: Credit file summary: | D21: Comment on the credit bureau file. Where there is an adverse listing what is the reason and why is it accepted. If there are numerous inquiries and the customer has stated no liabilities - what investigations were done and what was the outcome. If there are items that don't match the profile of the customer e.g. customer aged 50 and new credit file, document investigations completed. Is the information on the credit file consistent with the information provided in the customer's application form e.g. in relation to liabilities. | AC21: Near Prime Full Doc
A22: Applicant 1 Income: | D22: Summary about the applicant, job, how long employed, income and what documents were used to verify that income and employment. Is income reasonable for the borrower's employment and age. If self employed what does the applicants business do. | AC22: Near Prime Alt Doc
A23: Applicant 2 Income: | D23: Summary about the applicant, job, how long employed, income and what documents were used to verify that income and employment. Is income reasonable for the borrower's employment and age. If self employed what does the applicants business do. | AC23: Specialist Full Doc
A24: Exit Strategy | D24: If the applicants are older than 50 years of age and the loan term exceeds the standard retirement age (67) of the oldest income reliant borrower an exit strategy of how the borower(s) will continue to meet their repayment obligations must be obtained. The borrower(s) exit strategy must be documented and the credit notes included as to why the exit strategy has been deemed reasonable and consistent with Customer's requirements and objectives. | AC24: Specialist Alt Doc
A25: Rental Income: | D25: Comment on what rental income is received and used in assessment and how was it verified. | AC25: Specialist PLUS Full Doc
A26: Conduct assessed (Refinance): | D26: Refinance: Comment on conduct of any loans that are being refinanced and where adverse conduct exists why and mitigation. Confirm that 6 months statements held. | AC26: Specialist PLUS Alt Doc
A27: Funds to complete (Purchase): | D27: Purchase: Comment on where the funds to complete are coming from and have been verified. Have 5% genuine savings been verified on Prime > 90%
A28: Declared Living Expense | B28: =Residential!R41 -> 0 | D28: Comment on whether DLE or benchmark has been relied upon and assessment to be made as to whether or not the declared living expenses are realistic and if so why. Where a declared living expense appears unrealisitc, is zero, or the declared living expense are less than 80% of benchmark, additional inquiry must be made with the broker / borrower and subsequently assessed. If the ratio is substantially over 100%, check if applicant has not doubled up anywhere eg included finance cost on property categories. If bank statements are provided comment on how the transactions on those statement support the DLE.
A29: Living Expense Benchmark | B29: =SUM(Residential!E40:O40) -> 0
A30: Declared Living Expense % of Benchmark | B30: =Residential!R41/SUM(Residential!E40:O40) -> 
A31: Living expense assessment: | B31: Property costs | D31: =Residential!G50 -> 0 | E31: =[1]Servicing_Calculator!B13 -> Owner occupied property utilities, rates & costs | F31: Include council rates, water, gas & electricity utility bills and body corporate fees where applicable for property owned by the applicant. Assessment should account for these expenses giving account to the type of property (location, house or unit and size).
D32: =Residential!G51 -> 0 | E32: =[1]Servicing_Calculator!B14 -> Investment property utilities, rates & costs
D33: =Residential!G52 -> 0 | E33: =[1]Servicing_Calculator!B15 -> Rented property costs | F33: Include water, gas & electricity bills if the applicant is renting. Assessment should account for these expenses giving account to the type of property (location and size).
B34: Living Expenses | D34: =Residential!G53 -> 0 | E34: =[1]Servicing_Calculator!B16 -> Telephone, Internet, pay TV & media streaming | F34: Unless an applicant has a mobile phone supplied by their employer, it is expected that each applicant would have a mobile phone expense. If they have a home phone number, they may have a ‘bundle’ with a telco which includes internet.
D35: =Residential!G54 -> 0 | E35: =[1]Servicing_Calculator!B17 -> Groceries | F35: It is expected that all applicants will have a grocery expense that is reasonable for their family unit size.
D36: =Residential!G55 -> 0 | E36: =[1]Servicing_Calculator!B18 -> Recreation & Entertainment | F36: It is expected that all applicants will have some form of recreation & entertainment cost. This includes alcohol, tobacco, gambling, restaurants and membership fees.
D37: =Residential!G56 -> 0 | E37: =[1]Servicing_Calculator!B19 -> Clothing & Personal Care | F37: It is expected that all applicants will have clothing and personal care expenses that is reasonable for their family unit size.
D38: =Residential!G57 -> 0 | E38: =[1]Servicing_Calculator!B20 -> Medical & Health | F38: As an applicant’s age increase it is expected that medical and health costs will increase. In some case this cost may be $0 however given the customers circumstance it should be understood why through additional inquiry.
D39: =Residential!G58 -> 0 | E39: =[1]Servicing_Calculator!B21 -> Transport | F39: It is expected that all applicants will have a transport cost that is reasonable for their assets and employment position. What are the running costs of each car owned including petrol and servicing or what are the costs of public transport where they commute for work. One exception may be where an applicant has one car only which is provided by their employer or running costs are already include in novated lease payments.
D40: =Residential!G59 -> 0 | E40: =[1]Servicing_Calculator!B24 -> Insurance | F40: Do the below insurances apply to the applicant(s) and have they been accounted for: - House owners with home insurance - Car owners (accounted for each car) - Private Health - particularly where income is > $90,000 and applicant is single or > $180,000 for families - Income and life insurance - Pet insurance
D41: =Residential!G60 -> 0 | E41: =[1]Servicing_Calculator!B25 -> Other | F41: This is to capture unique items not covered for in the above categories that may be applicable to the applicant(s).
B42: Children | D42: =Residential!G61 -> 0 | E42: =[1]Servicing_Calculator!B22 -> Education | F42: Where the applicant(s) has school aged children is the declared amount reasonable to cover schools fees, uniform costs and books (if high school). Does the affluency of the applicant indicate that their children may attend a private school, if so, has this been declared by the customer.
D43: =Residential!G62 -> 0 | E43: =[1]Servicing_Calculator!B23 -> Childcare | F43: Where the applicant(s) has pre-school aged children and all applicants work, has a child care cost been included that is reasonable for the location accounting for any rebate that may be due. Where this is applicable and declared expense is $0 additional inquiry needs to be made.
A44: Valuation: | D44: COS/Estimate $Amount Date VAL $Amount Date CAT Residential Zoning? Essential Repairs? Risk ratings XXXX Comp Sales XXXX Selling period within six months? Addressed to Pepper in Lender Specific Info? Comments Acceptable Security: Yes/No
A45: Other:
A46: Exceptions: | D46: conclusion and
A47: COVID-19 impact assessment Select your outcome in the next cell. | D47: Comment here on if and how COVID-19 will impact applicant's income, including how long the impact is expected to last. Is the impact indusrty wide or specific to this business or emloyment? Also include cusatomer's plans to overcome or minimise the impact. Make a "Proceed/Do Not Proceed conclusion and give your reasons.
A48: Recommendation (if assessor is not the DCA approver): | D48: If approval recommendation: Recommend for Approval. I have made reasonable enquiries to verify that the product will not be unsuitable to the customers’ requirements and objectives and the loan will not cause the customer substantial hardship.
A49: Approval note: | D49: If assessor is the approver: Approval granted under my DCA. I have made the assessment and confirm that reasonable enquiries to verify that the loan meets the customer's requirements and objectives, is not unsuitable and will not cause the customer substantial hardship. This approval is valid for 90 days. If approver was not the assessor: Approval granted under my DCA. I have reviewed the assessment and confirm that reasonable enquiries to verify that the loan meets the customer's requirements and objectives, is not unsuitable and will not cause the customer substantial hardship. This approval is valid for 90 days. Final assessment made at the time of final approval: Approval granted under my DCA. I have confirm that reasonable enquiries to verify the customers financial situation and that the loan meets the customer's requirements and objectives, is not unsuitable and will not cause the customer substantial hardship. This approval is valid for 90 days.
A50: ABN search(s) | D50: Space for ABN search if not copied directly into NextGen.
A53: COMPLIANCE:
A54: Privacy Dec held:
A55: CRO & Features required:
A56: Customer Identification Form:
A58: SE CHECK COMPLETE:
A59: CUSTOMER ID'D:
A60: Confirm requirements and objectives and benefit: In reviewing the application, your requirements are (a) interest only payments, (b) lowest interest rate and objectives are to purchase the property at ......(address); or (b) refinance the debt with (lender); and/or (c) consolidate debt (i), (ii), (iii) etc . Is this correct? Are there any other requirements and objectives?
A61: Business operated and how long:
A62: Income confirmed: Do you expect an increase or decrease in your income over the next 3 years. If a decrease, describe events that would cause this and your strategy to maintain your repayments / details of your exit strategy.
A63: Confirm loan amount, product, interest rate & repayment with the borrower: If there is an indication on the application which suggests financials are avilable for the borrower, we need to question if they are availble, therefore advising they are entitled to a different product (Full Doc).
A64: Any other info:
B67: ACCOUNTANT CHECK COMPLETE:
B69: Called XXXX (verified on TPB - registration number XXXX) on phone number XXXX (internet site)
B70: Confirmed prepared accounts since year XXXX
B71: 20XX NPBT $___ Deductions $___
B72: 20XX NPBT $___ Deductions $___
B73: Other:
B138: Proceed
B139: Do Not Proceed

Sheet Assessment Notes - Commercial (hidden)
A1: UNDERWRITER NOTES- Commercial | C1: INSTRUCTIONS
A2: Background | C2: Summary of applicants background and business operation.Borrowing History, Lender,Industry Type, Industry Outlook, Management Experience
A3: Purpose | C3: To state whether the asset will be owner occupied or Investment. What is the reason for the money being borrowed. ( ie refinance from XXXBank)
A4: Loan Amount: | C4: Loan amount approved as a result of this assessment
A5: Global Exposure | C5: Total Loan Amount of all Pepper exposure held. If this is the only loan state "No other exposure held"
A6: Loan term. Interest Only Term | C6: Loan structure . Ie Total loan term and term of interest only
A7: Security Estimate: | C7: Security value amount used for LVR calculation.
A8: NCCP- Yes or No- | C8: If answered YES use Residential underwriting template
A9: Asset Class | C9: Description of asset class of security. Office, Medical, Retail, Industrial, Industrial Land, Mixed Residential/Commercial, Child Care, Boarding Houses.
A10: Address | C10: Address of property being offered as security
A11: Location- Cat 1 or 2 | C11: What is the security Property location category?
A12: LVR: | C12: LVR based on loan amount
A13: ICR | C13: Interest cover ratio as per output of Servicing Calculator. Min 1.50 times for Full doc loan and 1.75 times for Alt doc loan
A14: DSCR | C14: Debt Service ratio as per outcome of Servicing Calculator. **Min 1.25 times for both Full Doc and Alt doc loans.
A15: Product: | C15: Product that is recommended for approval. If this is different to what the customer has applied for then comment as to why
A16: Rental Terms: | C16: Has a tenancy schedule been completed and attached. Does lease term align with expiry of loan if rental forms >50% of total available income to service.
A17: Valuation Reviewed. | C17: Valuation reviewed and acceptable. Refer separate valuation review checklist. Please comment on industry that the tenant is involved in.
A18: Fraud Check on Directors | C18: What is the outcome of the Equifax Fraud check in NextGen? If a match, to be referred to Senior Manager to investigate the match
A19: PEP & Sanctions checked: | C19: Is the director/s confirmed as being on the PEP or Sanctions register (not a potential match). If a match refer to dedicated team member for enhanced search.
A20: ID Document is clear and valid | C20: Have the correct, clear identification documents and Customer Identification form been completed correctly, signed?
A21: Company & Trust Loans - Beneficial owner with greater than 25% ownership: | C21: Non-individual entities: Has the correct information and documentation been collected to verify the customer to ensure we meet our AML obligations including the verification of identity of beneficial owners.
A22: Directors Guarantee | C22: Is a directors guarantee being taken as part of security?
A23: Guarantors/Sponsors Statement of position | C23: Summary of assets and liabilities of . State main assets (ie home, car, etc) Excess assets over liabilities. State how applicant could meet a call of the guarantee.
A24: Supporting Income | C24: What entity and supporting income included in loan assessment
A25: Equifax /commercial search. | C25: Comment on the credit bureau file. Where there is an adverse listing what is the reason and why is it accepted. If there are numerous inquiries and the customer has stated no liabilities - what investigations were done and what was the outcome. If there are items that don't match the profile of the customer e.g. customer aged 50 and new credit file, document investigations completed. Is the information on the credit file consistent with the information provided in the customer's application form e.g. in relation to liabilities.
A26: Is a PPSR being taken as part of our security. | C26: Does the equifax search reveal a registered interest. State why a party has a secured interest over applicants property and how this could effect our interest.
A27: APP 1 Veda | C27: Comment on the credit bureau file. Where there is an adverse listing what is the reason and why is it accepted. If there are numerous inquiries and the customer has stated no liabilities - what investigations were done and what was the outcome. Is the information on the credit file consistent with the information provided in the customer's application form e.g. in relation to liabilities.
A28: Guarantor 1 Income checked: | C28: Summary about the applicant, job, how long employed, income and what documents were used to verify that income and employment. Is income reasonable for the borrower's employment and age. If self employed what does the applicants industry do.
A29: APP 2 Veda | C29: Comment on the credit bureau file. Where there is an adverse listing what is the reason and why is it accepted. If there are numerous inquiries and the customer has stated no liabilities - what investigations were done and what was the outcome. Is the information on the credit file consistent with the information provided in the customer's application form e.g. in relation to liabilities.
A30: Guarantor 2 Income checked: | C30: Summary about the applicant, job, how long employed, income and what documents were used to verify that income and employment. Is income reasonable for the borrower's employment and age. If self employed what does the applicants industry do.
